Workbook

Sheet Inicio
B3: Estación
B4: Parametro
B5: Fecha inicio | C5: -
B6: Fecha termino | C6: -
B7: Fecha Evaluacion
B8: Campaña | C8: Todas
B9: Titulo | C9: Ph en estación CA10 (01-01-2006 a 03-03-2014)
B10: Norma Riego | C10: no
C12: CA10 | D12: CA20 | E12: CA30 | F12: CA40 | G12: CA50
C13: CA60 | D13: CA70 | E13: PA10 | F13: CO10 | G13: LC10
C14: CL10 | D14: CL20 | E14: ZA10 | F14: RI10 | G14: AV10
C15: AV20 | D15: AV30 | E15: RIEV | F15: CLEV

Sheet Estaciones y parámetros
B1: Estaciones de Monitoreo | H1: Parámetros incluidos para análisis
B3: Cauce | C3: Area de Vigilancia | D3: Limites Area de Vigilancia | E3: Coordenadas UTM | H3: Parámetro | I3: Unidad | J3: Abreviación | L3: Parámetro | M3: Unidad | N3: Abreviación
E4: Este | F4: Norte | H4: Coliformes Fecales | I4: [NMP/100 ml] | J4: CF | L4: Hierro disuelto | M4: [mg/L] | N4: Fe dis.
B5: Rio Cachapoal | C5: CA10 | D5: Desde: Naciente Río Cachapoal | E5: 397496 | F5: 6196004 | H5: Coliformes Totales | I5: [NMP/100 ml] | J5: CT | L5: Manganeso | M5: [mg/L] | N5: Mn
D6: Hasta: Confluencia Río Pangal | E6: 363519 | F6: 6210854 | H6: Aceite y Grasas | I6: [mg/L] | J6: AyG | L6: Manganeso disuelto | M6: [mg/L] | N6: Mn dis.
C7: CA20 | D7: Desde: Confluencia Río Pangal | E7: 363519 | F7: 6210854 | H7: Aluminio | I7: [mg/L] | J7: Al | L7: Mercurio | M7: [mg/L] | N7: Hg
D8: Hasta: Confluencia Río Coya | E8: 359003 | F8: 6213840 | H8: Aluminio disuelto | I8: [mg/L] | J8: Al dis. | L8: Mercurio disuelto | M8: [mg/L] | N8: Hg dis.
C9: CA30 | D9: Desde: Confluencia Río Coya | E9: 359003 | F9: 6213840 | H9: Amonio | I9: [mg/L] | J9: NH4 | L9: Molibdeno | M9: [mg/L] | N9: Mo
D10: Hasta: Confluencia Estero Los Leones | E10: 342314 | F10: 6212278 | H10: Arsenico | I10: [mg/L] | J10: As | L10: Molibdeno disuelto | M10: [mg/L] | N10: Mo dis.
C11: CA40 | D11: Desde: Confluencia Estero Los Leones | E11: 342314 | F11: 6212278 | H11: Arsenico disuelto | I11: [mg/L] | J11: As dis. | L11: Niquel | M11: [mg/L] | N11: Ni
D12: Hasta: Confluencia Estero La Cadena | E12: 330165 | F12: 6215166 | H12: Boro | I12: [mg/L] | J12: B | L12: Niquel disuelto | M12: [mg/L] | N12: Ni dis.
C13: CA50 | D13: Desde: Confluencia Estero La Cadena | E13: 330165 | F13: 6215166 | H13: Boro disuelto | I13: [mg/L] | J13: B dis. | L13: Nitritos | M13: [mg/L] | N13: Nitritos
D14: Hasta: Confluencia Estero Idahue | E14: 302577 | F14: 6196217 | H14: Cadmio | I14: [mg/L] | J14: Cd | L14: Oxígeno disuelto | M14: [mg/L] | N14: O dis.
C15: CA60 | D15: Desde: Confluencia Estero Idahue | E15: 302577 | F15: 6196217 | H15: Cadmio disuelto | I15: [mg/L] | J15: Cd dis. | L15: Razón de Absorción de Sodio | M15: [%] | N15: RAS
D16: Hasta: Confluencia Río Claro (Rengo) | E16: 304395 | F16: 6191382 | H16: Cianuro | I16: [mg/L] | J16: CN | L16: Plomo | M16: [mg/L] | N16: Pb
C17: CA70 | D17: Desde: Confluencia Río Claro (Rengo) | E17: 304395 | F17: 6191382 | H17: Cloruro | I17: [mg/L] | J17: Cloruro | L17: Plomo disuelto | M17: [mg/L] | N17: Pb dis.
D18: Hasta: Confluencia Río Tinguiririca | E18: 281871 | F18: 6204849 | H18: Cobre | I18: [mg/L] | J18: Cu | L18: Sólidos Disueltos Totales | M18: [mg/L] | N18: SDT
B19: Río Pangal | C19: PA10 | D19: Desde: Naciente Río Pangal | E19: 383008 | F19: 6212039 | H19: Cobre disuelto | I19: [mg/L] | J19: Cu dis. | L19: Sólidos Suspendidos Totales | M19: [mg/L] | N19: SST
D20: Hasta: Confluencia Río Cachapoal | E20: 363519 | F20: 6210854 | H20: Conductividad (25°c) | I20: [uS/cm] | J20: Cond .elect | L20: Selenio | M20: [mg/L] | N20: Se
B21: Río Coya | C21: CO10 | D21: Desde: Naciente Río Coya | E21: 376541 | F21: 6235014 | H21: Cromo disuelto | I21: [mg/L] | J21: Cr dis. | L21: Selenio disuelto | M21: [mg/L] | N21: Se dis.
D22: Hasta: Confluencia Río Cachapoal | E22: 359003 | F22: 6213840 | H22: Cromo | I22: [mg/L] | J22: Cr | L22: SO4 | M22: [mg/L] | N22: Sulfatos
B23: Estero La Cadena | C23: LC10 | D23: Desde: Confluencia Estero Machali y Estero Las Delicias | E23: 342130 | F23: 6224339 | H23: Demanda Bioquimica de O | I23: [mg/L] | J23: DBO5 | L23: Sulfuros | M23: [mg/L] | N23: Sulfuros
D24: Hasta: Confluencia Río Cachapoal | E24: 330165 | F24: 6215166 | H24: Detergente | I24: [mg/L] | J24: Deterg. | L24: Zinc | M24: [mg/L] | N24: Zn
B25: Río Claro de Rengo | C25: CL10 | D25: Desde: Naciente Río Claro | E25: 357011 | F25: 6175854 | H25: Estaño | I25: [mg/L] | J25: Sn | L25: Zinc disuelto | M25: [mg/L] | N25: Zn dis.
D26: Hasta: Sector Chanqueahue | E26: 333863 | F26: 6191106 | H26: Estaño disuelto | I26: [mg/L] | J26: Sn dis. | L26: pH | M26: [-] | N26: pH
C27: CL20 | D27: Desde: Sector Chanqueahue | E27: 333863 | F27: 6191106 | H27: Fluoruros | I27: [mg/L] | J27: Fluoruro | L27: Temperatura | M27: [°C] | N27: T°
D28: Hasta: Confluencia Río Cachapoal | E28: 304395 | F28: 6191382 | H28: Hidrocarburos fijos | I28: [mg/L] | J28: HCF | L28: Fósforo total | M28: [mg/L] | N28: P tot.
C29: CLEV | D29: Desde: Localidad de Popeta | E29: - | F29: - | H29: Hidrocarburos volatiles | I29: [mg/L] | J29: HCV | L29: Nitrogeno total | M29: [mg/L] | N29: N tot.
D30: Hasta: Sector La Isla en Rengo | E30: - | F30: - | H30: Hierro | I30: [mg/L] | J30: Fe
B31: Estero Zamorano | C31: ZA10 | D31: Desde: Puente Las Truchas | E31: 319180 | F31: 6185210
D32: Hasta: Confluencia Río Cachapoal | E32: 299570 | F32: 6189950
B33: Estero Rigolemu | C33: RI10 | D33: Desde: Naciente Estero Rigolemu | E33: 340828 | F33: 6173316
D34: Hasta: Confluencia Estero Zamorano | E34: 319192 | F34: 6185268
C35: RIEV | D35: Desde: Naciente estero Rigolemu | E35: - | F35: -
D36: Hasta: Localidad de Pelequen | E36: - | F36: -
B37: Estero Antivero | C37: AV10 | D37: Desde: Naciente Estero Antivero | E37: 346649 | F37: 6173735
D38: Hasta: Puente Antivero, Ruta 5 Sur | E38: 319223 | F38: 6170367
C39: AV20 | D39: Desde: Puente Antivero, Ruta 5 Sur | E39: 319223 | F39: 6170367
D40: Hasta: Puente Ruta I-90-H | E40: 319133 | F40: 6179158
C41: AV30 | D41: Desde: Puente Ruta I-90-H | E41: 319133 | F41: 6179158
D42: Hasta: Confluencia Estero Zamorano | E42: 319152 | F42: 6185236

Sheet CA10 (hidden)
B1: Nro. Muestra | C1: Fecha Muestreo | D1: CF | E1: CT | F1: A y G | G1: Al | H1: Al Dis. | I1: NH4 | J1: As | K1: As Dis. | L1: B | M1: B Dis. | N1: Cd | O1: Cd Dis. | P1: CN | Q1: Cloruro | R1: Cu | S1: Cu Dis. | T1: Co. Esp. | U1: Cr Dis. | V1: Cromo total | W1: DBO5 | X1: Deterg. | Y1: Sn | Z1: Sn Dis. | AA1: Fluoruro | AB1: HCF | AC1: HCV | AD1: Fe | AE1: Fe Dis. | AF1: Mn | AG1: Mn Dis. | AH1: Hg | AI1: Hg Dis. | AJ1: Mo | AK1: Mo Dis. | AL1: Ni | AM1: Ni Dis. | AN1: Nitritos | AO1: O Dis. | AP1: RAS | AQ1: Pb | AR1: Pb Dis. | AS1: SDT | AT1: SST | AU1: Se | AV1: Se Dis. | AW1: Sulfatos | AX1: Sulfuros | AY1: Zn | AZ1: Zn Dis. | BA1: Ph | BB1: T° | BC1: P tot. | BD1: N tot. | BE1: Nitratos | BF1: N Kjeldahl | BG1: DQO | BH1: N amoniacal
D2: [NMP/100 ml] | E2: [NMP/100 ml] | F2: [mg/L] | G2: [mg/L] | H2: [mg/L] | I2: [mg/L] | J2: [mg/L] | K2: [mg/L] | L2: [mg/L] | M2: [mg/L] | N2: [mg/L] | O2: [mg/L] | P2: [mg/L] | Q2: [mg/L] | R2: [mg/L] | S2: [mg/L] | T2: [uS/cm] | U2: [mg/L] | V2: [mg/L] | W2: [mg/L] | X2: [mg/L] | Y2: [mg/L] | Z2: [mg/L] | AA2: [mg/L] | AB2: [mg/L] | AC2: [mg/L] | AD2: [mg/L] | AE2: [mg/L] | AF2: [mg/L] | AG2: [mg/L] | AH2: [mg/L] | AI2: [mg/L] | AJ2: [mg/L] | AK2: [mg/L] | AL2: [mg/L] | AM2: [mg/L] | AN2: [mg/L] | AO2: [mg/L] | AP2: [%] | AQ2: [mg/L] | AR2: [mg/L] | AS2: [mg/L] | AT2: [mg/L] | AU2: [mg/L] | AV2: [mg/L] | AW2: [mg/L] | AX2: [mg/L] | AY2: [mg/L] | AZ2: [mg/L] | BA2: [-] | BB2: [°C] | BC2: [mg/L] | BD2: [mg/L] | BE2: [mg/L] | BF2: [mg/L] | BG2: [mg/L] | BH2: [mg/L]
A3: 1 | B3: 6938 | C3: 2006-03-01 | D3: * | E3: * | F3: * | G3: 1.34 | H3: <0,1 | I3: * | J3: 0.0196 | K3: 0.0146 | L3: <0,1 | M3: <0,1 | N3: <0,0040 | O3: <0,0040 | P3: * | Q3: 29.22 | R3: <0,03 | S3: <0,03 | T3: 431 | U3: <0,05 | V3: <0,05 | W3: <2 | X3: * | Y3: <0,1 | Z3: <0,1 | AA3: * | AB3: <5 | AC3: ND | AD3: 1.74 | AE3: <0,05 | AF3: 0.08 | AG3: <0,03 | AH3: <0,001 | AI3: <0,001 | AJ3: <0,1 | AK3: <0,1 | AL3: <0,02 | AM3: <0,02 | AN3: * | AO3: 9.9 | AP3: * | AQ3: 0.0145 | AR3: <0,0100 | AS3: 188 | AT3: 56 | AU3: <0,0050 | AV3: <0,0050 | AW3: 141 | AX3: <0,1 | AY3: <0,05 | AZ3: <0,05 | BA3: 8 | BB3: 9.5 | BC3: * | BD3: * | BE3: * | BF3: * | BG3: * | BH3: *
A4: 2 | B4: 18578 | C4: 2006-06-05 | D4: * | E4: * | F4: * | G4: 0.27 | H4: 0.23 | I4: * | J4: 0.0255 | K4: 0.025 | L4: * | M4: * | N4: <0,0040 | O4: <0,0040 | P4: * | Q4: 60.56 | R4: <0,03 | S4: <0,03 | T4: 644 | U4: <0,05 | V4: <0,05 | W4: <2 | X4: * | Y4: * | Z4: * | AA4: * | AB4: * | AC4: * | AD4: 0.26 | AE4: <0,05 | AF4: <0,03 | AG4: <0,03 | AH4: <0,001 | AI4: <0,001 | AJ4: <0,1 | AK4: <0,1 | AL4: <0,02 | AM4: <0,02 | AN4: 14 | AO4: 14 | AP4: * | AQ4: 0.0123 | AR4: 0.012 | AS4: 369 | AT4: <5 | AU4: <0,0050 | AV4: <0,0050 | AW4: 124 | AX4: <0,15 | AY4: <0,05 | AZ4: <0,05 | BA4: 7.6 | BB4: 8.5 | BC4: * | BD4: * | BE4: * | BF4: * | BG4: * | BH4: *
A5: 3 | B5: 30508 | C5: 2006-09-04 | D5: * | E5: * | F5: * | G5: 0.25 | H5: <0,1 | I5: * | J5: 0.0222 | K5: 0.0204 | L5: * | M5: * | N5: <0,0040 | O5: <0,0040 | P5: * | Q5: 51.32 | R5: 0.03 | S5: <0,03 | T5: 503 | U5: <0,05 | V5: <0,05 | W5: 2.1 | X5: * | Y5: * | Z5: * | AA5: * | AB5: * | AC5: * | AD5: 0.36 | AE5: <0,05 | AF5: <0,03 | AG5: <0,03 | AH5: <0,001 | AI5: <0,001 | AJ5: <0,1 | AK5: <0,1 | AL5: <0,02 | AM5: <0,02 | AN5: * | AO5: 11.6 | AP5: * | AQ5: <0,0100 | AR5: <0,0100 | AS5: 222 | AT5: 5.9 | AU5: <0,0050 | AV5: <0,0050 | AW5: 513 | AX5: <0,15 | AY5: <0,05 | AZ5: <0,05 | BA5: 8.1 | BB5: 6.2 | BC5: * | BD5: * | BE5: * | BF5: * | BG5: * | BH5: *
A6: 4 | B6: 41971 | C6: 2006-12-04 | D6: * | E6: * | F6: * | G6: 3.51 | H6: 1.42 | I6: * | J6: 0.0162 | K6: 0.0107 | L6: * | M6: * | N6: <0,003 | O6: <0,0040 | P6: * | Q6: 20.44 | R6: <0,03 | S6: <0,03 | T6: 306 | U6: <0,01 | V6: <0,01 | W6: <2 | X6: * | Y6: * | Z6: * | AA6: * | AB6: * | AC6: * | AD6: 3.39 | AE6: 0.05 | AF6: 0.15 | AG6: 0.02 | AH6: <0,001 | AI6: <0,001 | AJ6: <0,1 | AK6: <0,1 | AL6: <0,02 | AM6: <0,02 | AN6: * | AO6: 13.07 | AP6: * | AQ6: 0.0133 | AR6: <0,0100 | AS6: 172 | AT6: 103 | AU6: <0,003 | AV6: <0,0050 | AW6: 226 | AX6: <0,15 | AY6: <0,05 | AZ6: <0,05 | BA6: 7.8 | BB6: 8.2 | BC6: * | BD6: * | BE6: * | BF6: * | BG6: * | BH6: *
A7: 5 | B7: 8463 | C7: 2007-03-12 | D7: <5,00E+0 | E7: ND | F7: * | G7: 1.61 | H7: 0.32 | I7: * | J7: 0.0197 | K7: 0.0155 | L7: <0,1 | M7: <0,1 | N7: <0,003 | O7: <0,003 | P7: * | Q7: 28.34 | R7: <0,03 | S7: <0,03 | T7: 490 | U7: <0,002 | V7: <0,002 | W7: <2 | X7: <0,05 | Y7: <0,1 | Z7: <0,003 | AA7: * | AB7: <5 | AC7: ND | AD7: 3.25 | AE7: <0,05 | AF7: 0.11 | AG7: 0.02 | AH7: <0,001 | AI7: <0,001 | AJ7: <0,003 | AK7: <0,003 | AL7: <0,02 | AM7: <0,02 | AN7: * | AO7: 10.2 | AP7: * | AQ7: 0.0178 | AR7: <0,0100 | AS7: 253 | AT7: 73 | AU7: <0,003 | AV7: <0,003 | AW7: 123 | AX7: <0,15 | AY7: 0.02 | AZ7: <0,02 | BA7: 7.4 | BB7: 11 | BC7: * | BD7: * | BE7: * | BF7: * | BG7: * | BH7: *
A8: 6 | B8: 19452 | C8: 2007-06-18 | D8: 17 | E8: * | F8: * | G8: 0.13 | H8: 0.13 | I8: * | J8: 0.038 | K8: 0.019 | L8: <0,1 | M8: <0,1 | N8: <0,003 | O8: <0,003 | P8: * | Q8: 77.48 | R8: <0,03 | S8: <0,03 | T8: 512 | U8: <0,002 | V8: <0,002 | W8: <2 | X8: <0,05 | Y8: <0,1 | Z8: <0,1 | AA8: * | AB8: <5 | AC8: 0.085 | AD8: 0.15 | AE8: <0,05 | AF8: 0.02 | AG8: 0.02 | AH8: <0,001 | AI8: <0,001 | AJ8: <0,003 | AK8: <0,003 | AL8: <0,02 | AM8: <0,02 | AN8: * | AO8: 8.07 | AP8: * | AQ8: 0.0103 | AR8: <0,0100 | AS8: 585 | AT8: <5 | AU8: <0,003 | AV8: <0,003 | AW8: 156 | AX8: <0,15 | AY8: 0.02 | AZ8: <0,02 | BA8: 7.9 | BB8: 6 | BC8: * | BD8: * | BE8: * | BF8: * | BG8: * | BH8: *
A9: 7 | B9: 27723 | C9: 2007-09-10 | D9: <2,00E+0 | E9: * | F9: * | G9: 0.11 | H9: <0,1 | I9: * | J9: 0.0292 | K9: 0.0294 | L9: <0,1 | M9: <0,1 | N9: <0,003 | O9: <0,003 | P9: * | Q9: 59.06 | R9: <0,03 | S9: <0,03 | T9: 507 | U9: <0,002 | V9: <0,002 | W9: <2 | X9: 0.07 | Y9: <0,1 | Z9: <0,1 | AA9: * | AB9: <5 | AC9: 0.124 | AD9: 0.59 | AE9: <0,05 | AF9: 0.02 | AG9: <0,02 | AH9: <0,001 | AI9: <0,001 | AJ9: <0,003 | AK9: <0,003 | AL9: <0,02 | AM9: <0,02 | AN9: * | AO9: 11.5 | AP9: * | AQ9: 0.0116 | AR9: <0,0100 | AS9: 318 | AT9: 7.6 | AU9: <0,003 | AV9: <0,003 | AW9: 103 | AX9: <0,15 | AY9: <0,02 | AZ9: <0,02 | BA9: 7.4 | BB9: 9 | BC9: * | BD9: * | BE9: * | BF9: * | BG9: * | BH9: *
A10: 8 | B10: 35836 | C10: 2007-12-03 | D10: 40 | E10: * | F10: * | G10: 4.67 | H10: 1.72 | I10: * | J10: 0.0153 | K10: 0.0078 | L10: <0,1 | M10: <0,1 | N10: <0,003 | O10: <0,003 | P10: * | Q10: 29.22 | R10: <0,03 | S10: <0,03 | T10: 359 | U10: <0,002 | V10: <0,002 | W10: <2 | X10: <0,05 | Y10: <0,1 | Z10: <0,1 | AA10: * | AB10: <5 | AC10: n.d. | AD10: 8.63 | AE10: <0,05 | AF10: 0.21 | AG10: 0.02 | AH10: <0,001 | AI10: <0,001 | AJ10: <0,003 | AK10: <0,003 | AL10: <0,02 | AM10: <0,02 | AN10: * | AO10: 11.9 | AP10: * | AQ10: 0.0186 | AR10: 0.0119 | AS10: 240 | AT10: 151 | AU10: <0,003 | AV10: <0,003 | AW10: 96.7 | AX10: <0,15 | AY10: 0.03 | AZ10: <0,02 | BA10: 7.7 | BB10: 7.7 | BC10: * | BD10: * | BE10: * | BF10: * | BG10: * | BH10: *
A11: 9 | B11: 6665 | C11: 2008-03-10 | D11: 20 | E11: ND | F11: ND | G11: 7.52 | H11: <0,5 | I11: ND | J11: 0.0315 | K11: 0.0085 | L11: ND | M11: ND | N11: <0,003 | O11: <0,003 | P11: ND | Q11: 45.55 | R11: <0,03 | S11: <0,03 | T11: 481 | U11: <0,002 | V11: <0,002 | W11: 2 | X11: ND | Y11: <0,1 | Z11: <0,1 | AA11: ND | AB11: ND | AC11: ND | AD11: 3.66 | AE11: <0,05 | AF11: 0.16 | AG11: <0,02 | AH11: ND | AI11: ND | AJ11: 0.004 | AK11: 0.003 | AL11: <0,03 | AM11: <0,03 | AN11: ND | AO11: 11.1 | AP11: * | AQ11: 0.014 | AR11: <0,0100 | AS11: 277 | AT11: 133 | AU11: <0,003 | AV11: <0,003 | AW11: 153 | AX11: ND | AY11: 0.03 | AZ11: <0,02 | BA11: 7.5 | BB11: 9.4 | BC11: * | BD11: * | BE11: * | BF11: * | BG11: * | BH11: *
A12: 10 | B12: 15408 | C12: 2008-06-09 | D12: 17 | E12: ND | F12: ND | G12: 14 | H12: <0,5 | I12: ND | J12: 0.019 | K12: 0.0101 | L12: ND | M12: ND | N12: <0,003 | O12: <0,003 | P12: ND | Q12: 38.18 | R12: <0,03 | S12: <0,03 | T12: 387 | U12: <0,002 | V12: <0,002 | W12: <2 | X12: ND | Y12: <0,1 | Z12: <0,1 | AA12: ND | AB12: ND | AC12: ND | AD12: 8.58 | AE12: <0,05 | AF12: 0.31 | AG12: 0.02 | AH12: ND | AI12: ND | AJ12: * | AK12: * | AL12: <0,03 | AM12: <0,03 | AN12: ND | AO12: 12.5 | AP12: * | AQ12: <0,0100 | AR12: <0,0100 | AS12: 259 | AT12: 370 | AU12: <0,003 | AV12: <0,003 | AW12: 51 | AX12: ND | AY12: 0.03 | AZ12: <0,02 | BA12: 6.5 | BB12: 15.1 | BC12: * | BD12: * | BE12: * | BF12: * | BG12: * | BH12: *
A13: 11 | B13: 23931 | C13: 2008-09-01 | D13: <2,00E+0 | E13: * | F13: * | G13: 0.65 | H13: <0,5 | I13: * | J13: 0.0212 | K13: 0.0186 | L13: * | M13: * | N13: <0,003 | O13: <0,003 | P13: * | Q13: 49.54 | R13: <0,03 | S13: <0,03 | T13: 458 | U13: <0,002 | V13: * | W13: <2 | X13: * | Y13: <0,1 | Z13: <0,1 | AA13: * | AB13: * | AC13: * | AD13: 1.1 | AE13: <0,05 | AF13: 0.04 | AG13: <0,02 | AH13: * | AI13: * | AJ13: 0.00968 | AK13: <0,003 | AL13: 0.03 | AM13: <0,03 | AN13: * | AO13: 11.2 | AP13: * | AQ13: 0.0107 | AR13: <0,0100 | AS13: 248 | AT13: 18.2 | AU13: <0,003 | AV13: <0,003 | AW13: 51 | AX13: * | AY13: <0,02 | AZ13: <0,02 | BA13: 7.6 | BB13: 7.9 | BC13: * | BD13: * | BE13: * | BF13: * | BG13: * | BH13: *
A14: 12 | B14: 32855 | C14: 2008-12-01 | D14: 30 | E14: * | F14: * | G14: 11.5 | H14: <0,5 | I14: * | J14: 0.0158 | K14: 0.0085 | L14: * | M14: * | N14: <0,003 | O14: <0,003 | P14: * | Q14: 23.31 | R14: 0.03 | S14: <0,03 | T14: 340 | U14: <0,002 | V14: 0.00235 | W14: <2 | X14: * | Y14: <0,1 | Z14: <0,1 | AA14: * | AB14: * | AC14: * | AD14: 12.55 | AE14: 0.07 | AF14: 0.4 | AG14: 0.05 | AH14: * | AI14: * | AJ14: <0,003 | AK14: <0,003 | AL14: <0,03 | AM14: <0,03 | AN14: * | AO14: 11.9 | AP14: * | AQ14: 0.0212 | AR14: <0,0100 | AS14: 222 | AT14: 211 | AU14: <0,003 | AV14: <0,003 | AW14: 28 | AX14: * | AY14: 0.09 | AZ14: <0,02 | BA14: 8 | BB14: 14 | BC14: * | BD14: * | BE14: * | BF14: * | BG14: * | BH14: *
A15: 13 | B15: 7238 | C15: 2009-03-16 | D15: 23 | E15: * | F15: * | G15: 6.85 | H15: <0,5 | I15: * | J15: 0.0161 | K15: 0.0125 | L15: * | M15: * | N15: <0,003 | O15: <0,003 | P15: * | Q15: 34.17 | R15: 0.03 | S15: <0,03 | T15: 414 | U15: <0,002 | V15: 0.00398 | W15: <2 | X15: * | Y15: <0,1 | Z15: <0,1 | AA15: * | AB15: * | AC15: * | AD15: 6.75 | AE15: <0,05 | AF15: 0.23 | AG15: 0.04 | AH15: * | AI15: * | AJ15: <0,003 | AK15: <0,003 | AL15: <0,03 | AM15: <0,03 | AN15: * | AO15: 10.6 | AP15: * | AQ15: 0.0219 | AR15: <0,0100 | AS15: 214 | AT15: 167 | AU15: <0,003 | AV15: <0,003 | AW15: 47 | AX15: * | AY15: 0.06 | AZ15: <0,02 | BA15: 7.1 | BB15: 7 | BC15: * | BD15: * | BE15: * | BF15: * | BG15: * | BH15: *
A16: 14 | B16: 14802 | C16: 2009-06-01 | D16: 2 | E16: * | F16: * | G16: 3.55 | H16: <0,5 | I16: * | J16: 0.0275 | K16: 0.0173 | L16: * | M16: * | N16: <0,003 | O16: <0,003 | P16: * | Q16: 64.26 | R16: <0,03 | S16: <0,03 | T16: 588 | U16: <0,002 | V16: <0,002 | W16: <2 | X16: * | Y16: <0,1 | Z16: <0,1 | AA16: * | AB16: * | AC16: * | AD16: 3.29 | AE16: <0,05 | AF16: 0.13 | AG16: 0.02 | AH16: * | AI16: * | AJ16: 0.00872 | AK16: 0.00449 | AL16: <0,03 | AM16: <0,03 | AN16: * | AO16: 12.1 | AP16: * | AQ16: 0.0137 | AR16: <0,0100 | AS16: 365 | AT16: 81 | AU16: <0,003 | AV16: <0,003 | AW16: 120 | AX16: * | AY16: <0,02 | AZ16: <0,02 | BA16: 7.7 | BB16: 7.6 | BC16: * | BD16: * | BE16: * | BF16: * | BG16: * | BH16: *
A17: 15 | B17: 23229 | C17: 2009-09-01 | D17: <2,00E+0 | E17: * | F17: * | G17: 1.34 | H17: <0,5 | I17: * | J17: 0.0199 | K17: 0.0149 | L17: * | M17: * | N17: <0,003 | O17: <0,003 | P17: * | Q17: 55.03 | R17: <0,03 | S17: <0,03 | T17: 479 | U17: <0,002 | V17: <0,002 | W17: <2 | X17: * | Y17: <0,1 | Z17: <0,1 | AA17: * | AB17: * | AC17: * | AD17: 1.2 | AE17: <0,05 | AF17: 0.05 | AG17: <0,02 | AH17: * | AI17: * | AJ17: <0,003 | AK17: <0,003 | AL17: <0,03 | AM17: <0,03 | AN17: * | AO17: 10.5 | AP17: * | AQ17: 0.0133 | AR17: 0.011 | AS17: 258 | AT17: 30.5 | AU17: <0,003 | AV17: <0,003 | AW17: 71 | AX17: * | AY17: <0,02 | AZ17: <0,02 | BA17: 8 | BB17: 8 | BC17: * | BD17: * | BE17: * | BF17: * | BG17: * | BH17: *
A18: 16 | B18: 32278 | C18: 2009-12-01 | D18: 500 | E18: * | F18: * | G18: 7.03 | H18: <0,5 | I18: * | J18: 0.0199 | K18: 0.0145 | L18: * | M18: * | N18: <0,003 | O18: <0,003 | P18: * | Q18: 37.02 | R18: <0,03 | S18: <0,03 | T18: 390 | U18: <0,002 | V18: <0,002 | W18: <2 | X18: * | Y18: <0,1 | Z18: <0,1 | AA18: * | AB18: * | AC18: * | AD18: 9.71 | AE18: 0.93 | AF18: 0.3 | AG18: 0.05 | AH18: * | AI18: * | AJ18: <0,003 | AK18: <0,003 | AL18: <0,03 | AM18: <0,03 | AN18: * | AO18: 10.6 | AP18: * | AQ18: 0.0143 | AR18: <0,0100 | AS18: 222 | AT18: 174 | AU18: <0,003 | AV18: <0,003 | AW18: 28 | AX18: * | AY18: <0,02 | AZ18: <0,02 | BA18: 7.8 | BB18: 8 | BC18: * | BD18: * | BE18: * | BF18: * | BG18: * | BH18: *
A19: 17 | B19: 27455 | C19: 2010-09-27 | D19: 80 | E19: * | F19: * | G19: 0.32 | H19: <0,5 | I19: * | J19: 0.0355 | K19: 0.0185 | L19: * | M19: * | N19: <0,003 | O19: <0,003 | P19: * | Q19: 88.45 | R19: <0,03 | S19: <0,03 | T19: 658 | U19: <0,002 | V19: 0.006 | W19: <2 | X19: * | Y19: <0,1 | Z19: <0,1 | AA19: * | AB19: * | AC19: * | AD19: 0.27 | AE19: <0,05 | AF19: 0.03 | AG19: <0,02 | AH19: * | AI19: * | AJ19: 0.004 | AK19: <0,003 | AL19: <0,03 | AM19: <0,03 | AN19: * | AO19: 11 | AP19: * | AQ19: 0.0171 | AR19: 0.0129 | AS19: 512 | AT19: 6 | AU19: <0,003 | AV19: <0,003 | AW19: 102 | AX19: * | AY19: 0.04 | AZ19: <0,02 | BA19: 8.1 | BB19: 7.7 | BC19: * | BD19: * | BE19: * | BF19: * | BG19: * | BH19: *
A20: 18 | B20: 8978 | C20: 2011-03-01 | D20: 30 | E20: * | F20: * | G20: 0.88 | H20: <0,5 | I20: * | J20: 0.029 | K20: 0.0205 | L20: * | M20: * | N20: <0,003 | O20: <0,003 | P20: * | Q20: 73.33 | R20: <0,03 | S20: <0,03 | T20: 667 | U20: 0.00207 | V20: 0.00299 | W20: <2 | X20: * | Y20: <0,1 | Z20: <0,1 | AA20: * | AB20: * | AC20: * | AD20: 0.49 | AE20: <0,05 | AF20: 0.06 | AG20: 0.03 | AH20: * | AI20: * | AJ20: 0.00352 | AK20: <0,003 | AL20: <0,03 | AM20: <0,03 | AN20: * | AO20: 9.8 | AP20: * | AQ20: 0.0155 | AR20: 0.0133 | AS20: 451 | AT20: 20.1 | AU20: <0,003 | AV20: <0,003 | AW20: 151 | AX20: * | AY20: <0,02 | AZ20: <0,02 | BA20: 8.8 | BB20: 7.7 | BC20: * | BD20: * | BE20: * | BF20: * | BG20: * | BH20: *
A21: 19 | B21: 17226 | C21: 2011-06-01 | D21: 80 | E21: * | F21: * | G21: 1.13 | H21: <0,5 | I21: * | J21: 0.0415 | K21: 0.039 | L21: * | M21: * | N21: <0,003 | O21: <0,003 | P21: * | Q21: 103.37 | R21: <0,03 | S21: <0,03 | T21: 783 | U21: <0,002 | V21: <0,002 | W21: 2.2 | X21: * | Y21: <0,5 | Z21: <0,5 | AA21: * | AB21: * | AC21: * | AD21: 1.01 | AE21: <0,05 | AF21: 0.08 | AG21: <0,02 | AH21: * | AI21: * | AJ21: 0.00537 | AK21: 0.00436 | AL21: <0,03 | AM21: <0,03 | AN21: * | AO21: 10 | AP21: * | AQ21: 0.0213 | AR21: 0.0106 | AS21: 488 | AT21: 40 | AU21: <0,003 | AV21: <0,003 | AW21: 89 | AX21: * | AY21: <0,02 | AZ21: <0,02 | BA21: 8.1 | BB21: 6.4 | BC21: * | BD21: * | BE21: * | BF21: * | BG21: * | BH21: *
A22: 20 | B22: 29248 | C22: 2011-09-01 | D22: 8 | E22: * | F22: * | G22: 0.84 | H22: <0,5 | I22: * | J22: 0.0315 | K22: 0.0202 | L22: * | M22: * | N22: <0,003 | O22: <0,003 | P22: * | Q22: 72.64 | R22: <0,03 | S22: <0,03 | T22: 553 | U22: <0,002 | V22: <0,002 | W22: <2 | X22: * | Y22: <0,5 | Z22: <0,5 | AA22: * | AB22: * | AC22: * | AD22: 0.45 | AE22: <0,05 | AF22: 0.04 | AG22: <0,02 | AH22: * | AI22: * | AJ22: <0,003 | AK22: <0,003 | AL22: <0,03 | AM22: <0,03 | AN22: * | AO22: 10.2 | AP22: * | AQ22: 0.0125 | AR22: <0,0100 | AS22: 382 | AT22: 21.2 | AU22: <0,003 | AV22: <0,003 | AW22: 93 | AX22: * | AY22: <0,02 | AZ22: <0,02 | BA22: 7.8 | BB22: 8.3 | BC22: * | BD22: * | BE22: * | BF22: * | BG22: * | BH22: *
A23: 21 | B23: 36293 | C23: 2011-12-22 | D23: 50 | E23: * | F23: * | G23: 9.76 | H23: <0,5 | I23: * | J23: 0.0185 | K23: 0.0066 | L23: * | M23: * | N23: <0,003 | O23: <0,003 | P23: * | Q23: 23.87 | R23: <0,03 | S23: <0,03 | T23: 319 | U23: <0,002 | V23: 0.00365 | W23: <2 | X23: * | Y23: <0,01 | Z23: <0,5 | AA23: * | AB23: * | AC23: * | AD23: 8.46 | AE23: <0,05 | AF23: 0.33 | AG23: 0.06 | AH23: * | AI23: * | AJ23: <0,003 | AK23: <0,003 | AL23: <0,03 | AM23: <0,03 | AN23: * | AO23: 10.3 | AP23: * | AQ23: 0.0215 | AR23: <0,0100 | AS23: 226 | AT23: 278 | AU23: <0,003 | AV23: <0,003 | AW23: 51 | AX23: * | AY23: 0.04 | AZ23: <0,02 | BA23: 8 | BB23: 13 | BC23: * | BD23: * | BE23: * | BF23: * | BG23: * | BH23: *
A24: 22 | B24: 9333 | C24: 2012-03-28 | D24: * | E24: * | F24: * | G24: 2.26 | H24: <0,5 | I24: * | J24: 0.0225 | K24: 0.0164 | L24: * | M24: * | N24: <0,003 | O24: <0,003 | P24: * | Q24: 43.3 | R24: <0,03 | S24: <0,03 | T24: 447 | U24: * | V24: 0.002 | W24: * | X24: <0,1 | Y24: * | Z24: * | AA24: * | AB24: * | AC24: * | AD24: 1.38 | AE24: <0,05 | AF24: 0.09 | AG24: 0.03 | AH24: * | AI24: * | AJ24: 0.004 | AK24: <0,003 | AL24: <0,03 | AM24: <0,03 | AN24: * | AO24: 11.7 | AP24: * | AQ24: 0.0166 | AR24: 0.108 | AS24: 312 | AT24: 78 | AU24: <0,003 | AV24: <0,003 | AW24: * | AX24: * | AY24: <0,02 | AZ24: <0,02 | BA24: 7.3 | BB24: 11.1 | BC24: * | BD24: * | BE24: * | BF24: * | BG24: * | BH24: *
A25: 23 | B25: 17473 | C25: 2012-06-11 | D25: * | E25: * | F25: * | G25: * | H25: * | I25: * | J25: * | K25: * | L25: * | M25: * | N25: * | O25: * | P25: * | Q25: * | R25: <0,03 | S25: <0,03 | T25: 678 | U25: * | V25: * | W25: * | X25: * | Y25: * | Z25: * | AA25: * | AB25: * | AC25: * | AD25: 0.56 | AE25: <0,05 | AF25: * | AG25: * | AH25: * | AI25: * | AJ25: * | AK25: * | AL25: * | AM25: * | AN25: * | AO25: 3052 | AP25: * | AQ25: * | AR25: * | AS25: 393 | AT25: 20.9 | AU25: * | AV25: * | AW25: * | AX25: * | AY25: * | AZ25: * | BA25: 6.53 | BB25: 8.5 | BC25: * | BD25: * | BE25: * | BF25: * | BG25: * | BH25: *
A26: 24 | B26: 29561 | C26: 2012-10-01 | D26: * | E26: * | F26: * | G26: * | H26: * | I26: * | J26: * | K26: * | L26: * | M26: * | N26: * | O26: * | P26: * | Q26: * | R26: 0.04 | S26: <0,03 | T26: 631 | U26: * | V26: * | W26: * | X26: * | Y26: * | Z26: * | AA26: * | AB26: * | AC26: * | AD26: 0.36 | AE26: < 0,05 | AF26: * | AG26: * | AH26: * | AI26: * | AJ26: * | AK26: * | AL26: * | AM26: * | AN26: * | AO26: 10.4 | AP26: * | AQ26: * | AR26: * | AS26: 451 | AT26: 10.5 | AU26: * | AV26: * | AW26: * | AX26: * | AY26: * | AZ26: * | BA26: 8.1 | BB26: 7 | BC26: * | BD26: * | BE26: * | BF26: * | BG26: * | BH26: *
A27: 25 | B27: 37884 | C27: 2012-12-12 | D27: * | E27: * | F27: * | G27: * | H27: * | I27: * | J27: * | K27: * | L27: * | M27: * | N27: * | O27: * | P27: * | Q27: * | R27: <0,03 | S27: <0,03 | T27: 483 | U27: * | V27: * | W27: * | X27: * | Y27: * | Z27: * | AA27: * | AB27: * | AC27: * | AD27: 2.82 | AE27: 1.08 | AF27: * | AG27: * | AH27: * | AI27: * | AJ27: * | AK27: * | AL27: * | AM27: * | AN27: * | AO27: 11.1 | AP27: * | AQ27: * | AR27: * | AS27: 313 | AT27: 91 | AU27: * | AV27: * | AW27: * | AX27: * | AY27: * | AZ27: * | BA27: 8.09 | BB27: 9.3 | BC27: * | BD27: * | BE27: * | BF27: * | BG27: * | BH27: *
A28: 26 | B28: 8854 | C28: 2013-03-20 | D28: * | E28: * | F28: * | G28: <0,5 | H28: <0,5 | I28: * | J28: 0.034 | K28: 0.019 | L28: * | M28: * | N28: <0,01 | O28: <0,01 | P28: * | Q28: 55.31 | R28: <0,01 | S28: <0,01 | T28: 563 | U28: * | V28: <0,05 | W28: 3.5 | X28: <0,1 | Y28: * | Z28: * | AA28: * | AB28: * | AC28: * | AD28: <0,01 | AE28: 0.04 | AF28: 0.04 | AG28: 0.04 | AH28: * | AI28: * | AJ28: <0,005 | AK28: <0,005 | AL28: <0,05 | AM28: <0,05 | AN28: * | AO28: 12.73 | AP28: * | AQ28: <0,01 | AR28: <0,01 | AS28: 372 | AT28: 57 | AU28: <0,001 | AV28: <0,001 | AW28: 103 | AX28: * | AY28: 0.03 | AZ28: 0.03 | BA28: 7.8 | BB28: 10 | BC28: * | BD28: * | BE28: * | BF28: * | BG28: * | BH28: *
A29: 27 | B29: 21366 | C29: 2013-06-26 | D29: * | E29: * | F29: * | G29: * | H29: * | I29: * | J29: * | K29: * | L29: * | M29: * | N29: * | O29: * | P29: * | Q29: * | R29: <0,03 | S29: <0,03 | T29: 763 | U29: * | V29: * | W29: * | X29: * | Y29: * | Z29: * | AA29: * | AB29: * | AC29: * | AD29: 0.06 | AE29: <0,05 | AF29: * | AG29: * | AH29: * | AI29: * | AJ29: * | AK29: * | AL29: * | AM29: * | AN29: * | AO29: 12.88 | AP29: * | AQ29: * | AR29: * | AS29: 449 | AT29: 5.6 | AU29: * | AV29: * | AW29: * | AX29: * | AY29: * | AZ29: * | BA29: 8.25 | BB29: 6.9 | BC29: * | BD29: * | BE29: * | BF29: * | BG29: * | BH29: *
A30: 28 | B30: 36011 | C30: 2013-09-25 | D30: * | E30: * | F30: * | G30: * | H30: * | I30: * | J30: * | K30: * | L30: * | M30: * | N30: * | O30: * | P30: * | Q30: * | R30: <0,01 | S30: <0,01 | T30: 702 | U30: * | V30: * | W30: * | X30: * | Y30: * | Z30: * | AA30: * | AB30: * | AC30: * | AD30: 0.92 | AE30: 0.14 | AF30: * | AG30: * | AH30: * | AI30: * | AJ30: * | AK30: * | AL30: * | AM30: * | AN30: * | AO30: 7.7 | AP30: * | AQ30: * | AR30: * | AS30: 451 | AT30: 16 | AU30: * | AV30: * | AW30: * | AX30: * | AY30: * | AZ30: * | BA30: 7.54 | BB30: 10.6 | BC30: * | BD30: * | BE30: * | BF30: * | BG30: * | BH30: *
A31: 29 | B31: 46822 | C31: 2013-12-04 | D31: * | E31: * | F31: * | G31: * | H31: * | I31: * | J31: * | K31: * | L31: * | M31: * | N31: * | O31: * | P31: * | Q31: * | R31: 0.02 | S31: 0.02 | T31: 447 | U31: * | V31: * | W31: * | X31: * | Y31: * | Z31: * | AA31: * | AB31: * | AC31: * | AD31: 3.61 | AE31: 1.53 | AF31: * | AG31: * | AH31: * | AI31: * | AJ31: * | AK31: * | AL31: * | AM31: * | AN31: * | AO31: 9.2 | AP31: * | AQ31: * | AR31: * | AS31: 289 | AT31: 150 | AU31: * | AV31: * | AW31: * | AX31: * | AY31: * | AZ31: * | BA31: 8.09 | BB31: 10 | BC31: * | BD31: * | BE31: * | BF31: * | BG31: * | BH31: *
A32: 30 | B32: 12291 | C32: 2014-03-26 | D32: * | E32: * | F32: * | G32: * | H32: * | I32: * | J32: 0.029 | K32: 0.018 | L32: * | M32: * | N32: * | O32: * | P32: * | Q32: * | R32: 0.03 | S32: <0,01 | T32: 465 | U32: * | V32: * | W32: * | X32: * | Y32: * | Z32: * | AA32: * | AB32: * | AC32: * | AD32: * | AE32: * | AF32: * | AG32: * | AH32: * | AI32: * | AJ32: * | AK32: * | AL32: * | AM32: * | AN32: * | AO32: 9.9 | AP32: * | AQ32: * | AR32: * | AS32: 290 | AT32: 66 | AU32: * | AV32: * | AW32: 65 | AX32: * | AY32: * | AZ32: * | BA32: 7.11 | BB32: 10.2 | BC32: * | BD32: * | BE32: * | BF32: * | BG32: * | BH32: *
A33: 31 | B33: 24934 | C33: 2014-06-18 | D33: * | E33: * | F33: * | G33: * | H33: * | I33: * | J33: * | K33: * | L33: * | M33: * | N33: * | O33: * | P33: * | Q33: * | R33: * | S33: * | T33: 649 | U33: * | V33: * | W33: * | X33: * | Y33: * | Z33: * | AA33: * | AB33: * | AC33: * | AD33: * | AE33: * | AF33: * | AG33: * | AH33: * | AI33: * | AJ33: * | AK33: * | AL33: * | AM33: * | AN33: * | AO33: 10.9 | AP33: * | AQ33: * | AR33: * | AS33: 431 | AT33: 6.3 | AU33: * | AV33: * | AW33: * | AX33: * | AY33: * | AZ33: * | BA33: 7.35 | BB33: 7.8 | BC33: * | BD33: * | BE33: * | BF33: * | BG33: * | BH33: *
A34: 31 | B34: 40057 | C34: 2014-09-29 | D34: * | E34: * | F34: * | G34: * | H34: * | I34: 0.11 | J34: * | K34: * | L34: * | M34: * | N34: * | O34: * | P34: * | Q34: * | R34: 0.08 | S34: <0,01 | T34: 678 | U34: * | V34: * | W34: * | X34: * | Y34: * | Z34: * | AA34: * | AB34: * | AC34: * | AD34: * | AE34: * | AF34: * | AG34: * | AH34: * | AI34: * | AJ34: * | AK34: * | AL34: * | AM34: * | AN34: <0,015 | AO34: 10.2 | AP34: * | AQ34: * | AR34: * | AS34: 364 | AT34: 6.5 | AU34: * | AV34: * | AW34: * | AX34: * | AY34: * | AZ34: * | BA34: 7.78 | BB34: 11.1 | BC34: 0.1 | BD34: * | BE34: * | BF34: * | BG34: * | BH34: *
B35: 53138 | C35: 2014-12-15 | D35: * | E35: * | F35: * | G35: * | H35: * | I35: * | J35: 0.015 | K35: 0.008 | L35: * | M35: * | N35: * | O35: * | P35: * | Q35: * | R35: 0.02 | S35: <0,01 | T35: 452 | U35: * | V35: * | W35: 3.1 | X35: * | Y35: * | Z35: * | AA35: * | AB35: * | AC35: * | AD35: 4.45 | AE35: 0.14 | AF35: * | AG35: * | AH35: * | AI35: * | AJ35: * | AK35: * | AL35: * | AM35: * | AN35: * | AO35: 14.8 | AP35: * | AQ35: * | AR35: * | AS35: 279 | AT35: 118 | AU35: * | AV35: * | AW35: * | AX35: * | AY35: * | AZ35: * | BA35: 8.2 | BB35: 11.8 | BC35: * | BD35: * | BE35: * | BF35: * | BG35: 11 | BH35: *
C38: Promedio | D38: =AVERAGE(D3:D27) -> 69 | E38: =AVERAGE(E3:E27) ->  | G38: 3.614545455 | H38: 0.764 | J38: 0.02432272727 | K38: 0.01675 | Q38: 50.34818182 | R38: 0.0325 | T38: 500.32 | U38: 0.00207 | V38: 0.003495 | W38: 2.1 | X38: 0.07 | AC38: 0.1045 | AD38: 3.2404 | AE38: 0.5325 | AF38: 0.142 | AG38: 0.03166666667 | AJ38: 0.005612857143 | AK38: 0.00395 | AL38: 0.03 | AN38: 14 | AO38: 132.6896 | AQ38: 0.0156 | AR38: 0.02567142857 | AS38: 317.6 | AT38: 93.34347826 | AW38: 119.8904762 | AY38: 0.04 | BA38: 7.7168 | BB38: 8.884
C39: Percentil | D39: =PERCENTILE(D3:D27,0.66) -> 39.2 | E39: =PERCENTILE(E3:E27,0.66) ->  | G39: 3.5444 | H39: 1.024 | J39: 0.02722 | K39: 0.018586 | Q39: 58.4958 | R39: 0.03 | T39: 511.2 | U39: 0.00207 | V39: 0.003749 | W39: 2.132 | X39: 0.07 | AC39: 0.11074 | AD39: 3.2836 | AE39: 0.9128 | AF39: 0.1554 | AG39: 0.0326 | AJ39: 0.0053152 | AK39: 0.0044016 | AL39: 0.03 | AN39: 14 | AO39: 11.584 | AQ39: 0.01687 | AR39: 0.012864 | AS39: 357.48 | AT39: 97.24 | AW39: 123.2 | AY39: 0.04 | BA39: 8 | BB39: 8.92

Sheet CA20 (hidden)
B1: Nro. Muestra | C1: Fecha Muestreo | D1: CF | E1: CT | F1: A y G | G1: Al | H1: Al Dis. | I1: NH4 | J1: As | K1: As Dis. | L1: B | M1: B Dis. | N1: Cd | O1: Cd Dis. | P1: CN | Q1: Cloruro | R1: Cu | S1: Cu Dis. | T1: Co. Esp. | U1: Cr Dis. | V1: Cromo total | W1: DBO5 | X1: Deterg. | Y1: Sn | Z1: Sn Dis. | AA1: Fluoruro | AB1: HCF | AC1: HCV | AD1: Fe | AE1: Fe Dis. | AF1: Mn | AG1: Mn Dis. | AH1: Hg | AI1: Hg Dis. | AJ1: Mo | AK1: Mo Dis. | AL1: Ni | AM1: Ni Dis. | AN1: Nitritos | AO1: O Dis. | AP1: RAS | AQ1: Pb | AR1: Pb Dis. | AS1: SDT | AT1: SST | AU1: Se | AV1: Se Dis. | AW1: Sulfatos | AX1: Sulfuros | AY1: Zn | AZ1: Zn Dis. | BA1: Ph | BB1: T° | BC1: P tot. | BD1: N tot. | BE1: Nitratos | BF1: N Kjeldahl | BG1: DQO | BH1: N amoniacal
D2: [NMP/100 ml] | E2: [NMP/100 ml] | F2: [mg/L] | G2: [mg/L] | H2: [mg/L] | I2: [mg/L] | J2: [mg/L] | K2: [mg/L] | L2: [mg/L] | M2: [mg/L] | N2: [mg/L] | O2: [mg/L] | P2: [mg/L] | Q2: [mg/L] | R2: [mg/L] | S2: [mg/L] | T2: [uS/cm] | U2: [mg/L] | V2: [mg/L] | W2: [mg/L] | X2: [mg/L] | Y2: [mg/L] | Z2: [mg/L] | AA2: [mg/L] | AB2: [mg/L] | AC2: [mg/L] | AD2: [mg/L] | AE2: [mg/L] | AF2: [mg/L] | AG2: [mg/L] | AH2: [mg/L] | AI2: [mg/L] | AJ2: [mg/L] | AK2: [mg/L] | AL2: [mg/L] | AM2: [mg/L] | AN2: [mg/L] | AO2: [mg/L] | AP2: [%] | AQ2: [mg/L] | AR2: [mg/L] | AS2: [mg/L] | AT2: [mg/L] | AU2: [mg/L] | AV2: [mg/L] | AW2: [mg/L] | AX2: [mg/L] | AY2: [mg/L] | AZ2: [mg/L] | BA2: [-] | BB2: [°C] | BC2: [mg/L] | BD2: [mg/L] | BE2: [mg/L] | BF2: [mg/L] | BG2: [mg/L] | BH2: [mg/L]
A3: 1 | B3: 6934 | C3: 2006-03-01 | D3: 500 | E3: 1700 | F3: 9.1 | G3: 1.43 | H3: <0,1 | I3: 0.03 | J3: 0.0186 | K3: 0.0142 | L3: <0,1 | M3: <0,1 | N3: <0,004 | O3: <0,0040 | P3: <0,01 | Q3: 28.39 | R3: 0.06 | S3: <0,03 | T3: 428 | U3: <0,05 | V3: <0,05 | W3: <2 | X3: <0,05 | Y3: <0,1 | Z3: <0,1 | AA3: 0.1 | AB3: <5 | AC3: ND | AD3: 1.56 | AE3: <0,05 | AF3: 0.07 | AG3: <0,03 | AH3: <0,001 | AI3: <0,001 | AJ3: <0,1 | AK3: <0,1 | AL3: <0,02 | AM3: <0,02 | AN3: * | AO3: 9.9 | AP3: * | AQ3: 0.0175 | AR3: <0,0100 | AS3: 205 | AT3: * | AU3: <0,0050 | AV3: <0,0050 | AW3: 139 | AX3: <0,1 | AY3: 0.05 | AZ3: <0,05 | BA3: 7.5 | BB3: 12.1 | BC3: * | BD3: * | BE3: * | BF3: * | BG3: * | BH3: *
A4: 2 | B4: 18576 | C4: 2006-06-05 | D4: 500 | E4: 500 | F4: <5 | G4: 3.93 | H4: 0.16 | I4: 0.01 | J4: 0.0335 | K4: 0.01 | L4: <0,1 | M4: <0,1 | N4: <0,0065 | O4: 0.0061 | P4: <0,01 | Q4: 20.45 | R4: 13.4 | S4: 6.9 | T4: 980 | U4: <005 | V4: <0,05 | W4: 2.7 | X4: <0,05 | Y4: * | Z4: * | AA4: 0.2 | AB4: * | AC4: * | AD4: 5.91 | AE4: <0,05 | AF4: 1.44 | AG4: 0.9 | AH4: <0,001 | AI4: <0,001 | AJ4: <0,1 | AK4: <0,1 | AL4: <0,02 | AM4: <0,02 | AN4: <0,01 | AO4: 9.9 | AP4: * | AQ4: 0.0307 | AR4: 0.0203 | AS4: 651 | AT4: 135 | AU4: <0,0050 | AV4: <0,0050 | AW4: 389 | AX4: <0,15 | AY4: 0.42 | AZ4: 0.35 | BA4: 6.3 | BB4: 10.6 | BC4: * | BD4: * | BE4: * | BF4: * | BG4: * | BH4: *
A5: 3 | B5: 30510 | C5: 2006-09-04 | D5: 1700 | E5: 3500 | F5: 4.4 | G5: 0.32 | H5: <0,1 | I5: 0.09 | J5: 0.0135 | K5: 0.01 | L5: <0,1 | M5: <0,1 | N5: <0,004 | O5: <0,0040 | P5: <0,01 | Q5: 38.96 | R5: 0.56 | S5: 0.16 | T5: 466 | U5: <0,05 | V5: <0,05 | W5: 2.1 | X5: <0,05 | Y5: * | Z5: * | AA5: 0.1 | AB5: * | AC5: * | AD5: 0.76 | AE5: <0,05 | AF5: 0.1 | AG5: 0.1 | AH5: <0,001 | AI5: <0,001 | AJ5: <0,1 | AK5: <0,1 | AL5: <0,02 | AM5: <0,02 | AN5: <0,01 | AO5: * | AP5: * | AQ5: <0,0100 | AR5: <0,0100 | AS5: 243 | AT5: <5 | AU5: <0,0050 | AV5: <0,0050 | AW5: 104 | AX5: <0,15 | AY5: <0,05 | AZ5: <0,05 | BA5: 8 | BB5: 9.4 | BC5: * | BD5: * | BE5: * | BF5: * | BG5: * | BH5: *
A6: 4 | B6: 41972 | C6: 2006-12-04 | D6: 800 | E6: 8000 | F6: 8 | G6: 3.17 | H6: 0.53 | I6: 0.06 | J6: 0.008 | K6: 0.0059 | L6: <0,1 | M6: <0,1 | N6: <0,003 | O6: <0,0040 | P6: <0,01 | Q6: 8.55 | R6: <0,03 | S6: <0,03 | T6: 176 | U6: <0,002 | V6: <0,002 | W6: <2 | X6: <0,05 | Y6: * | Z6: * | AA6: 0.1 | AB6: * | AC6: * | AD6: 2.59 | AE6: 0.15 | AF6: 0.08 | AG6: <0,02 | AH6: <0,001 | AI6: <0,001 | AJ6: <0,1 | AK6: <0,1 | AL6: <0,02 | AM6: <0,02 | AN6: <0,01 | AO6: 10.37 | AP6: * | AQ6: <0,0100 | AR6: <0,0100 | AS6: 42.5 | AT6: 59 | AU6: <0,003 | AV6: <0,0050 | AW6: 49.8 | AX6: <0,15 | AY6: <0,05 | AZ6: <0,05 | BA6: 7.6 | BB6: 10.4 | BC6: * | BD6: * | BE6: * | BF6: * | BG6: * | BH6: *
A7: 5 | B7: 8465 | C7: 2007-03-12 | D7: 40 | E7: 130 | F7: 8.2 | G7: 1.36 | H7: <0,1 | I7: 0.03 | J7: 0.0188 | K7: 0.0151 | L7: <0,1 | M7: <0,1 | N7: <0,003 | O7: <0,003 | P7: <0,01 | Q7: 26.27 | R7: 0.04 | S7: <0,03 | T7: 452 | U7: <0,002 | V7: <0,002 | W7: <2 | X7: <0,05 | Y7: <0,1 | Z7: <0,1 | AA7: 0.1 | AB7: * | AC7: * | AD7: 2.69 | AE7: <0,05 | AF7: 0.09 | AG7: 0.02 | AH7: <0,001 | AI7: <0,001 | AJ7: <0,003 | AK7: <0,003 | AL7: <0,02 | AM7: <0,02 | AN7: <0,01 | AO7: 10 | AP7: * | AQ7: 0.016 | AR7: 0.0106 | AS7: 253 | AT7: 71 | AU7: <0,003 | AV7: <0,003 | AW7: 99.2 | AX7: <0,15 | AY7: 0.02 | AZ7: <0,02 | BA7: 7.3 | BB7: 12 | BC7: * | BD7: * | BE7: * | BF7: * | BG7: * | BH7: *
A8: 6 | B8: 19454 | C8: 2007-06-18 | D8: >1,60E+4 | E8: >1,60E+4 | F8: <5 | G8: 0.23 | H8: <0,1 | I8: 0.54 | J8: 0.0147 | K8: 0.0116 | L8: <0,1 | M8: <0,1 | N8: <0,003 | O8: <0,003 | P8: <0,01 | Q8: 25.35 | R8: 0.07 | S8: 0.03 | T8: 645 | U8: <0,002 | V8: <0,002 | W8: 3.9 | X8: <0,05 | Y8: <0,1 | Z8: <0,1 | AA8: 0.1 | AB8: * | AC8: * | AD8: 0.41 | AE8: <0,05 | AF8: <0,02 | AG8: 0.02 | AH8: <0,001 | AI8: <0,001 | AJ8: <0,003 | AK8: <0,003 | AL8: <0,02 | AM8: <0,02 | AN8: <0,01 | AO8: 6.57 | AP8: * | AQ8: <0,0100 | AR8: <0,0100 | AS8: 455 | AT8: 7.7 | AU8: <0,003 | AV8: <0,003 | AW8: 73.3 | AX8: <0,15 | AY8: <0,02 | AZ8: <0,02 | BA8: 7.6 | BB8: 9 | BC8: * | BD8: * | BE8: * | BF8: * | BG8: * | BH8: *
A9: 7 | B9: 27721 | C9: 2007-09-10 | D9: 1300 | E9: 3000 | F9: <5 | G9: <0,1 | H9: <0,1 | I9: 0.17 | J9: 0.0148 | K9: 0.0138 | L9: <0,1 | M9: <0,1 | N9: <0,003 | O9: <0,003 | P9: <0,01 | Q9: 25.27 | R9: <0,03 | S9: <0,03 | T9: 440 | U9: <0,002 | V9: <0,002 | W9: <2 | X9: <0,05 | Y9: <0,01 | Z9: <0,01 | AA9: 0.1 | AB9: * | AC9: * | AD9: 0.24 | AE9: <0,05 | AF9: 0.02 | AG9: <0,02 | AH9: <0,001 | AI9: <0,001 | AJ9: <0,003 | AK9: <0,003 | AL9: <0,02 | AM9: <0,02 | AN9: <0,01 | AO9: 10 | AP9: * | AQ9: 0.0136 | AR9: 0.0102 | AS9: 216 | AT9: <5 | AU9: <0,003 | AV9: <0,003 | AW9: 44 | AX9: <0,15 | AY9: <0,02 | AZ9: <0,02 | BA9: 7.4 | BB9: 8 | BC9: * | BD9: * | BE9: * | BF9: * | BG9: * | BH9: *
A10: 8 | B10: 35838 | C10: 2007-12-03 | D10: 600 | E10: 1400 | F10: <5 | G10: 2.21 | H10: 1.23 | I10: 0.07 | J10: 0.0163 | K10: 0.0032 | L10: <0,1 | M10: <0,1 | N10: <0,003 | O10: <0,003 | P10: <0,01 | Q10: 25.33 | R10: <0,03 | S10: <0,03 | T10: 321 | U10: <0,002 | V10: <0,002 | W10: <2 | X10: <0,05 | Y10: <0,1 | Z10: <0,1 | AA10: 0.1 | AB10: * | AC10: * | AD10: 4.38 | AE10: <0,05 | AF10: 0.14 | AG10: 0.02 | AH10: <0,001 | AI10: <0,001 | AJ10: <0,003 | AK10: <0,003 | AL10: <0,02 | AM10: <0,02 | AN10: <0,01 | AO10: 10.1 | AP10: * | AQ10: 0.018 | AR10: 0.0111 | AS10: 239 | AT10: 89 | AU10: <0,003 | AV10: <0,003 | AW10: 93.4 | AX10: <0,15 | AY10: 0.03 | AZ10: <0,02 | BA10: 7.7 | BB10: 16 | BC10: * | BD10: * | BE10: * | BF10: * | BG10: * | BH10: *
A11: 9 | B11: 6667 | C11: 2008-03-10 | D11: >1,60E+4 | E11: >1,60E+4 | F11: 10.1 | G11: 1.21 | H11: <0,5 | I11: 0.39 | J11: 0.0119 | K11: 0.0121 | L11: ND | M11: ND | N11: <0,003 | O11: <0,003 | P11: <0,01 | Q11: 31.85 | R11: <0,03 | S11: <0,03 | T11: 437 | U11: <0,002 | V11: <0,002 | W11: 2.9 | X11: <0,05 | Y11: ND | Z11: ND | AA11: 0.1 | AB11: <5 | AC11: ND | AD11: 0.54 | AE11: <0,05 | AF11: 0.2 | AG11: 0.02 | AH11: <0,001 | AI11: <0,001 | AJ11: 0.003 | AK11: <0,003 | AL11: <0,03 | AM11: <0,03 | AN11: 0.01 | AO11: 10.3 | AP11: ND | AQ11: <0,0100 | AR11: <0,0100 | AS11: 214 | AT11: 44.2 | AU11: <0,003 | AV11: <0,003 | AW11: 88 | AX11: ND | AY11: <0,02 | AZ11: <0,02 | BA11: 7.5 | BB11: 16.7 | BC11: * | BD11: * | BE11: * | BF11: * | BG11: * | BH11: *
A12: 10 | B12: 15409 | C12: 2008-06-09 | D12: 170 | E12: 3000 | F12: <5 | G12: 13.8 | H12: <0,5 | I12: 0.07 | J12: 0.015 | K12: 0.0085 | L12: ND | M12: ND | N12: <0,003 | O12: <0,003 | P12: <0,01 | Q12: 32.4 | R12: 0.04 | S12: <0,03 | T12: 362 | U12: <0,002 | V12: <0,002 | W12: 2 | X12: 0.62 | Y12: ND | Z12: ND | AA12: 0.1 | AB12: <5 | AC12: <0,005 | AD12: 19.28 | AE12: <0,05 | AF12: 0.45 | AG12: 0.02 | AH12: 0.002 | AI12: <0,001 | AJ12: * | AK12: * | AL12: <0,03 | AM12: <0,03 | AN12: 0.01 | AO12: 12.8 | AP12: ND | AQ12: <0,0100 | AR12: <0,0100 | AS12: 231 | AT12: 431 | AU12: <0,003 | AV12: <0,003 | AW12: 53 | AX12: ND | AY12: 0.07 | AZ12: <0,02 | BA12: 6.7 | BB12: 6 | BC12: * | BD12: * | BE12: * | BF12: * | BG12: * | BH12: *
A13: 11 | B13: 23933 | C13: 2008-09-01 | D13: 800 | E13: 5000 | F13: <5 | G13: 0.33 | H13: <0,5 | I13: 0.12 | J13: 0.0131 | K13: 0.0116 | L13: * | M13: * | N13: <0,003 | O13: <0,003 | P13: <0,01 | Q13: 31.57 | R13: <0,03 | S13: <0,03 | T13: 400 | U13: <0,002 | V13: 0.00833 | W13: <2 | X13: <0,05 | Y13: * | Z13: * | AA13: 0.1 | AB13: <5 | AC13: ND | AD13: 0.6 | AE13: <0,05 | AF13: 0.02 | AG13: <0,02 | AH13: <0,001 | AI13: <0,001 | AJ13: 0.00372 | AK13: <0,003 | AL13: <0,03 | AM13: <0,03 | AN13: <0,01 | AO13: 10.2 | AP13: * | AQ13: <0,0100 | AR13: <0,0100 | AS13: 220 | AT13: 8.5 | AU13: <0,003 | AV13: <0,003 | AW13: 39 | AX13: * | AY13: <0,02 | AZ13: <0,02 | BA13: 7.7 | BB13: 8.1 | BC13: * | BD13: * | BE13: * | BF13: * | BG13: * | BH13: *
A14: 12 | B14: 32857 | C14: 2008-12-01 | D14: 130 | E14: 300 | F14: <5 | G14: 13.8 | H14: <0,5 | I14: 0.03 | J14: 0.015 | K14: 0.0075 | L14: * | M14: 0.003 | N14: * | O14: <0,003 | P14: <0,01 | Q14: 22.34 | R14: 0.03 | S14: <0,03 | T14: 313 | U14: 0.00203 | V14: 0.00211 | W14: * | X14: <0,05 | Y14: * | Z14: * | AA14: 0.1 | AB14: <5 | AC14: ND | AD14: 14.55 | AE14: 0.08 | AF14: 0.43 | AG14: 0.04 | AH14: <0,001 | AI14: <0,001 | AJ14: <0,003 | AK14: <0,003 | AL14: <0,03 | AM14: <0,03 | AN14: <0,015 | AO14: 2 | AP14: * | AQ14: 0.0197 | AR14: <0,0100 | AS14: 198 | AT14: 323 | AU14: <0,003 | AV14: <0,003 | AW14: 24 | AX14: * | AY14: 0.1 | AZ14: <0,02 | BA14: 8 | BB14: 15 | BC14: * | BD14: * | BE14: * | BF14: * | BG14: * | BH14: *
A15: 13 | B15: 7240 | C15: 2009-03-16 | D15: 17000 | E15: 30000 | F15: <5 | G15: 5.78 | H15: <0,5 | I15: 0.09 | J15: 0.0111 | K15: 0.0071 | L15: * | M15: * | N15: <0,003 | O15: <0,003 | P15: <0,01 | Q15: 32.16 | R15: <0,03 | S15: <0,03 | T15: 391 | U15: <0,002 | V15: 0.00241 | W15: <2 | X15: <0,05 | Y15: * | Z15: * | AA15: 0.1 | AB15: <5 | AC15: ND | AD15: 6.05 | AE15: <0,05 | AF15: 0.2 | AG15: 0.03 | AH15: <0,001 | AI15: <0,001 | AJ15: <0,003 | AK15: <0,003 | AL15: <0,03 | AM15: <0,03 | AN15: <0,015 | AO15: 9.8 | AP15: * | AQ15: 0.0217 | AR15: <0,0100 | AS15: 224 | AT15: 139 | AU15: <0,003 | AV15: <0,003 | AW15: 74 | AX15: * | AY15: 0.07 | AZ15: <0,02 | BA15: 7 | BB15: 13 | BC15: * | BD15: * | BE15: * | BF15: * | BG15: * | BH15: *
A16: 14 | B16: 14804 | C16: 2009-06-01 | D16: 11000 | E16: 30000 | F16: <5 | G16: 1.61 | H16: <0,5 | I16: 0.2 | J16: 0.017 | K16: 0.0133 | L16: * | M16: * | N16: <0,003 | O16: <0,003 | P16: <0,01 | Q16: 47.49 | R16: <0,03 | S16: <0,03 | T16: 514 | U16: <0,002 | V16: <0,002 | W16: <2 | X16: <0,05 | Y16: * | Z16: * | AA16: 0.1 | AB16: <5 | AC16: ND | AD16: 1.31 | AE16: <0,05 | AF16: 0.06 | AG16: <0,02 | AH16: <0,001 | AI16: <0,001 | AJ16: 0.00576 | AK16: <0,003 | AL16: <0,03 | AM16: <0,03 | AN16: <0,015 | AO16: 11.6 | AP16: * | AQ16: 0.0119 | AR16: <0,0100 | AS16: 305 | AT16: 42.3 | AU16: <0,003 | AV16: <0,003 | AW16: 93 | AX16: * | AY16: <0,02 | AZ16: <0,02 | BA16: * | BB16: * | BC16: * | BD16: * | BE16: * | BF16: * | BG16: * | BH16: *
A17: 15 | B17: 23231 | C17: 2009-09-01 | D17: 5000 | E17: 50000 | F17: <5 | G17: 1.26 | H17: <0,5 | I17: 0.36 | J17: 0.0133 | K17: 0.0105 | L17: * | M17: * | N17: <0,003 | O17: <0,003 | P17: <0,01 | Q17: 39.51 | R17: 0.04 | S17: <0,03 | T17: 436 | U17: <0,002 | V17: <0,002 | W17: <2 | X17: <0,05 | Y17: * | Z17: * | AA17: 0.1 | AB17: <5 | AC17: 0.083 | AD17: 1.49 | AE17: <0,05 | AF17: 0.06 | AG17: 0.03 | AH17: <0,001 | AI17: <0,001 | AJ17: <0,003 | AK17: <0,003 | AL17: <0,03 | AM17: <0,03 | AN17: <0,015 | AO17: 9.6 | AP17: * | AQ17: 0.0145 | AR17: 0.0125 | AS17: 227 | AT17: 25.8 | AU17: <0,003 | AV17: <0,003 | AW17: 67 | AX17: * | AY17: <0,02 | AZ17: <0,02 | BA17: * | BB17: * | BC17: * | BD17: * | BE17: * | BF17: * | BG17: * | BH17: *
A18: 16 | B18: * | C18: 2009-12-01 | D18: * | E18: * | F18: * | G18: * | H18: * | I18: * | J18: * | K18: * | L18: * | M18: * | N18: * | O18: * | P18: * | Q18: * | R18: * | S18: * | T18: * | U18: * | V18: * | W18: * | X18: * | Y18: * | Z18: * | AA18: * | AB18: * | AC18: * | AD18: * | AE18: * | AF18: * | AG18: * | AH18: * | AI18: * | AJ18: * | AK18: * | AL18: * | AM18: * | AN18: * | AO18: * | AP18: * | AQ18: * | AR18: * | AS18: * | AT18: * | AU18: * | AV18: * | AW18: * | AX18: * | AY18: * | AZ18: * | BA18: * | BB18: * | BC18: * | BD18: * | BE18: * | BF18: * | BG18: * | BH18: *
A19: 17 | B19: 27457 | C19: 2010-09-27 | D19: 1300 | E19: 5000 | F19: <5 | G19: 1.02 | H19: <0,5 | I19: 0.23 | J19: 0.0158 | K19: 0.015 | L19: * | M19: * | N19: <0,003 | O19: <0,003 | P19: <0,01 | Q19: 42.12 | R19: 0.12 | S19: <0,03 | T19: 479 | U19: <0,002 | V19: 0.005 | W19: <2 | X19: <0,05 | Y19: * | Z19: * | AA19: 0.1 | AB19: <5 | AC19: 0.027 | AD19: 1.21 | AE19: <0,05 | AF19: 0.05 | AG19: 0.06 | AH19: <0,001 | AI19: <0,001 | AJ19: 0.00446 | AK19: 0.00308 | AL19: 0.03 | AM19: <0,03 | AN19: 0.018 | AO19: 9.4 | AP19: * | AQ19: 0.0162 | AR19: 0.0114 | AS19: 281 | AT19: 17.9 | AU19: <0,003 | AV19: <0,003 | AW19: 70 | AX19: * | AY19: 0.06 | AZ19: <0,02 | BA19: 7.5 | BB19: 11.8 | BC19: * | BD19: * | BE19: * | BF19: * | BG19: * | BH19: *
A20: 18 | B20: 8980 | C20: 2011-03-01 | D20: 17000 | E20: 80000 | F20: <5 | G20: 0.25 | H20: <0,5 | I20: 0.16 | J20: 0.02 | K20: 0.0167 | L20: * | M20: * | N20: <0,003 | O20: <0,003 | P20: <0,01 | Q20: 48.89 | R20: <0,03 | S20: <0,03 | T20: 561 | U20: <0,002 | V20: 0.00215 | W20: <2 | X20: 0.16 | Y20: * | Z20: * | AA20: <0,05 | AB20: <5 | AC20: 0.075 | AD20: 0.15 | AE20: <0,05 | AF20: 0.02 | AG20: <0,02 | AH20: <0,001 | AI20: <0,001 | AJ20: <0,003 | AK20: <0,003 | AL20: <0,03 | AM20: <0,03 | AN20: <0,015 | AO20: 10 | AP20: * | AQ20: 0.0133 | AR20: 0.013 | AS20: 372 | AT20: 8.3 | AU20: <0,003 | AV20: <0,003 | AW20: 114 | AX20: * | AY20: <0,02 | AZ20: <0,02 | BA20: 7.9 | BB20: 11.6 | BC20: * | BD20: * | BE20: * | BF20: * | BG20: * | BH20: *
A21: 19 | B21: 17228 | C21: 2011-06-01 | D21: 30000 | E21: 50000 | F21: 9.9 | G21: 0.09 | H21: <0,5 | I21: <0,03 | J21: 0.031 | K21: 0.0215 | L21: * | M21: * | N21: <0,003 | O21: <0,003 | P21: <0,05 | Q21: 48.89 | R21: <0,03 | S21: <0,03 | T21: 565 | U21: <0,002 | V21: <0,002 | W21: <2 | X21: <0,1 | Y21: * | Z21: * | AA21: 0.1 | AB21: <10 | AC21: <1 | AD21: 0.12 | AE21: <0,05 | AF21: <0,02 | AG21: <0,02 | AH21: <0,001 | AI21: <0,001 | AJ21: <0,003 | AK21: <0,003 | AL21: <0,03 | AM21: <0,03 | AN21: 0.021 | AO21: 11.2 | AP21: * | AQ21: 0.0138 | AR21: 0.013 | AS21: 372 | AT21: <5 | AU21: <0,003 | AV21: <0,003 | AW21: 84 | AX21: * | AY21: <0,02 | AZ21: <0,02 | BA21: 8.2 | BB21: 8 | BC21: * | BD21: * | BE21: * | BF21: * | BG21: * | BH21: *
A22: 20 | B22: 29250 | C22: 2011-09-01 | D22: 30000 | E22: 900000 | F22: 17.2 | G22: 1.23 | H22: <0,5 | I22: <0,03 | J22: 0.017 | K22: 0.0133 | L22: * | M22: * | N22: <0,003 | O22: <0,003 | P22: <0,02 | Q22: 41.21 | R22: 0.04 | S22: <0,03 | T22: 472 | U22: <0,002 | V22: <0,002 | W22: <2 | X22: <0,1 | Y22: * | Z22: * | AA22: 0.1 | AB22: <10 | AC22: <1 | AD22: 0.99 | AE22: <0,05 | AF22: 0.05 | AG22: 0.03 | AH22: <0,001 | AI22: <0,001 | AJ22: <0,003 | AK22: <0,003 | AL22: 0.04 | AM22: <0,03 | AN22: <0,015 | AO22: 8.3 | AP22: * | AQ22: <0,0100 | AR22: <0,0100 | AS22: 307 | AT22: 26.8 | AU22: <0,003 | AV22: <0,003 | AW22: 73 | AX22: * | AY22: 0.04 | AZ22: <0,02 | BA22: 7.3 | BB22: 12.5 | BC22: * | BD22: * | BE22: * | BF22: * | BG22: * | BH22: *
A23: 21 | B23: 36295 | C23: 2011-12-22 | D23: 500 | E23: 500 | F23: <5 | G23: 9.28 | H23: <0,5 | I23: <0,03 | J23: 0.023 | K23: 0.006 | L23: * | M23: * | N23: <0,003 | O23: <0,003 | P23: <0,05 | Q23: 29.48 | R23: <0,03 | S23: <0,03 | T23: 406 | U23: <0,002 | V23: 0.00285 | W23: <2 | X23: <0,1 | Y23: * | Z23: * | AA23: 0.1 | AB23: <10 | AC23: <1 | AD23: 7.26 | AE23: <0,05 | AF23: 0.28 | AG23: 0.03 | AH23: <0,001 | AI23: <0,001 | AJ23: <0,003 | AK23: <0,003 | AL23: <0,03 | AM23: <0,03 | AN23: <0,015 | AO23: 9.5 | AP23: * | AQ23: 0.0148 | AR23: <0,0100 | AS23: 320 | AT23: 242 | AU23: <0,003 | AV23: <0,003 | AW23: 65 | AX23: * | AY23: 0.02 | AZ23: <0,02 | BA23: 8 | BB23: 15 | BC23: * | BD23: * | BE23: * | BF23: * | BG23: * | BH23: *
A24: 22 | B24: 9335 | C24: 2012-03-28 | D24: * | E24: * | F24: <10 | G24: * | H24: * | I24: 0.12 | J24: * | K24: * | L24: * | M24: * | N24: * | O24: * | P24: <0,02 | Q24: 44 | R24: * | S24: * | T24: 485 | U24: * | V24: * | W24: 2.2 | X24: <0,1 | Y24: * | Z24: * | AA24: 0.2 | AB24: * | AC24: * | AD24: * | AE24: * | AF24: 0.08 | AG24: 0.03 | AH24: * | AI24: * | AJ24: <0,003 | AK24: <0,003 | AL24: * | AM24: * | AN24: * | AO24: 10.5 | AP24: * | AQ24: * | AR24: * | AS24: 323 | AT24: 71 | AU24: * | AV24: * | AW24: * | AX24: * | AY24: * | AZ24: * | BA24: 7.2 | BB24: 12.4 | BC24: <0,2 | BD24: * | BE24: 0.86 | BF24: * | BG24: * | BH24: *
A25: 23 | B25: 17475 | C25: 2012-06-11 | D25: * | E25: * | F25: * | G25: * | H25: * | I25: * | J25: * | K25: * | L25: * | M25: * | N25: * | O25: * | P25: * | Q25: * | R25: * | S25: * | T25: 471 | U25: * | V25: * | W25: * | X25: * | Y25: * | Z25: * | AA25: * | AB25: * | AC25: * | AD25: * | AE25: * | AF25: * | AG25: * | AH25: * | AI25: * | AJ25: * | AK25: * | AL25: * | AM25: * | AN25: * | AO25: 25.4 | AP25: * | AQ25: * | AR25: * | AS25: 280 | AT25: 5.7 | AU25: * | AV25: * | AW25: * | AX25: * | AY25: * | AZ25: * | BA25: 7.43 | BB25: 9.6 | BC25: <0,1 | BD25: * | BE25: 2.54 | BF25: * | BG25: * | BH25: *
A26: 24 | B26: 29563 | C26: 01-10-2012 | D26: * | E26: * | F26: * | G26: * | H26: * | I26: * | J26: * | K26: * | L26: * | M26: * | N26: * | O26: * | P26: * | Q26: * | R26: * | S26: * | T26: 462 | U26: * | V26: * | W26: * | X26: * | Y26: * | Z26: * | AA26: * | AB26: * | AC26: * | AD26: * | AE26: * | AF26: * | AG26: * | AH26: * | AI26: * | AJ26: * | AK26: * | AL26: * | AM26: * | AN26: * | AO26: 9.5 | AP26: * | AQ26: * | AR26: * | AS26: 302 | AT26: 7.3 | AU26: * | AV26: * | AW26: * | AX26: * | AY26: * | AZ26: * | BA26: 7.5 | BB26: 10 | BC26: 0.2 | BD26: * | BE26: 0.95 | BF26: * | BG26: * | BH26: *
A27: 25 | B27: 37886 | C27: 2012-12-12 | D27: * | E27: * | F27: * | G27: * | H27: * | I27: * | J27: * | K27: * | L27: * | M27: * | N27: * | O27: * | P27: * | Q27: * | R27: * | S27: * | T27: 392 | U27: * | V27: * | W27: * | X27: * | Y27: * | Z27: * | AA27: * | AB27: * | AC27: * | AD27: * | AE27: * | AF27: * | AG27: * | AH27: * | AI27: * | AJ27: * | AK27: * | AL27: * | AM27: * | AN27: * | AO27: 10.2 | AP27: * | AQ27: * | AR27: * | AS27: 282 | AT27: 425 | AU27: * | AV27: * | AW27: * | AX27: * | AY27: * | AZ27: * | BA27: 7.94 | BB27: 12.6 | BC27: 1 | BD27: * | BE27: 0.88 | BF27: * | BG27: * | BH27: *
A28: 26 | B28: 8856 | C28: 2013-03-20 | D28: * | E28: * | F28: <5 | G28: * | H28: * | I28: 0.32 | J28: * | K28: * | L28: * | M28: * | N28: * | O28: * | P28: <0,02 | Q28: * | R28: * | S28: * | T28: 588 | U28: * | V28: * | W28: 2.8 | X28: <0,1 | Y28: * | Z28: * | AA28: 0.2 | AB28: * | AC28: * | AD28: * | AE28: * | AF28: 0.05 | AG28: 0.05 | AH28: * | AI28: * | AJ28: <0,005 | AK28: <0,005 | AL28: * | AM28: * | AN28: * | AO28: 9.9 | AP28: * | AQ28: * | AR28: * | AS28: 408 | AT28: 13.5 | AU28: * | AV28: * | AW28: * | AX28: * | AY28: * | AZ28: * | BA28: 7.92 | BB28: 13.9 | BC28: <0,1 | BD28: * | BE28: 4.41 | BF28: * | BG28: * | BH28: *
A29: 27 | B29: 21368 | C29: 2013-06-26 | D29: * | E29: * | F29: * | G29: * | H29: * | I29: * | J29: * | K29: * | L29: * | M29: * | N29: * | O29: * | P29: * | Q29: * | R29: * | S29: * | T29: 493 | U29: * | V29: * | W29: * | X29: * | Y29: * | Z29: * | AA29: * | AB29: * | AC29: * | AD29: * | AE29: * | AF29: * | AG29: * | AH29: * | AI29: * | AJ29: * | AK29: * | AL29: * | AM29: * | AN29: * | AO29: 12.07 | AP29: * | AQ29: * | AR29: * | AS29: 291 | AT29: <5 | AU29: * | AV29: * | AW29: * | AX29: * | AY29: * | AZ29: * | BA29: 7.79 | BB29: 7 | BC29: 0.1 | BD29: * | BE29: 0.54 | BF29: * | BG29: * | BH29: *
A30: 28 | B30: 36010 | C30: 2013-09-25 | D30: * | E30: * | F30: * | G30: * | H30: * | I30: * | J30: * | K30: * | L30: * | M30: * | N30: * | O30: * | P30: * | Q30: * | R30: * | S30: * | T30: 655 | U30: * | V30: * | W30: * | X30: * | Y30: * | Z30: * | AA30: * | AB30: * | AC30: * | AD30: * | AE30: * | AF30: * | AG30: * | AH30: * | AI30: * | AJ30: * | AK30: * | AL30: * | AM30: * | AN30: * | AO30: 9.1 | AP30: * | AQ30: * | AR30: * | AS30: 496 | AT30: 198 | AU30: * | AV30: * | AW30: 77 | AX30: * | AY30: * | AZ30: * | BA30: 7.79 | BB30: 7 | BC30: 0.9 | BD30: 4.39 | BE30: * | BF30: * | BG30: * | BH30: *
A31: 29 | B31: 46824 | C31: 2013-12-04 | D31: * | E31: * | F31: * | G31: * | H31: * | I31: * | J31: * | K31: * | L31: * | M31: * | N31: * | O31: * | P31: * | Q31: * | R31: * | S31: * | T31: 409 | U31: * | V31: * | W31: * | X31: * | Y31: * | Z31: * | AA31: * | AB31: * | AC31: * | AD31: * | AE31: * | AF31: * | AG31: * | AH31: * | AI31: * | AJ31: * | AK31: * | AL31: * | AM31: * | AN31: * | AO31: 8.9 | AP31: * | AQ31: * | AR31: * | AS31: 354 | AT31: 191 | AU31: * | AV31: * | AW31: * | AX31: * | AY31: * | AZ31: * | BA31: 8.11 | BB31: 10.9 | BC31: 0.7 | BD31: * | BE31: 0.86 | BF31: * | BG31: * | BH31: *
A32: 30 | B32: 12289 | C32: 2014-03-26 | D32: 16000 | E32: 16000 | F32: * | G32: * | H32: * | I32: * | J32: * | K32: * | L32: * | M32: * | N32: * | O32: * | P32: * | Q32: * | R32: * | S32: * | T32: 584 | U32: * | V32: * | W32: * | X32: * | Y32: * | Z32: * | AA32: * | AB32: * | AC32: * | AD32: * | AE32: * | AF32: * | AG32: * | AH32: * | AI32: * | AJ32: * | AK32: * | AL32: * | AM32: * | AN32: * | AO32: 11.4 | AP32: * | AQ32: * | AR32: * | AS32: 1604 | AT32: 11.6 | AU32: * | AV32: * | AW32: * | AX32: * | AY32: * | AZ32: * | BA32: 6.92 | BB32: 11.8 | BC32: 0.3 | BD32: * | BE32: 3.03 | BF32: * | BG32: * | BH32: *
A33: 31 | B33: 24932 | C33: 2014-06-18 | D33: * | E33: * | F33: * | G33: * | H33: * | I33: * | J33: * | K33: * | L33: * | M33: * | N33: * | O33: * | P33: * | Q33: * | R33: * | S33: * | T33: 782 | U33: * | V33: * | W33: * | X33: * | Y33: * | Z33: * | AA33: * | AB33: * | AC33: * | AD33: * | AE33: * | AF33: * | AG33: * | AH33: * | AI33: * | AJ33: * | AK33: * | AL33: * | AM33: * | AN33: * | AO33: 10.5 | AP33: * | AQ33: * | AR33: * | AS33: 543 | AT33: 152 | AU33: * | AV33: * | AW33: * | AX33: * | AY33: * | AZ33: * | BA33: 7.25 | BB33: 6.1 | BC33: <0,1 | BD33: * | BE33: 8.07 | BF33: * | BG33: * | BH33: *
A34: 32 | B34: 40059 | C34: 2014-09-29 | D34: 8000 | E34: 17000 | F34: * | G34: * | H34: * | I34: * | J34: * | K34: * | L34: * | M34: * | N34: * | O34: * | P34: * | Q34: * | R34: * | S34: * | T34: 679 | U34: * | V34: * | W34: * | X34: * | Y34: * | Z34: * | AA34: * | AB34: * | AC34: * | AD34: * | AE34: * | AF34: * | AG34: * | AH34: * | AI34: * | AJ34: * | AK34: * | AL34: * | AM34: * | AN34: * | AO34: 9.4 | AP34: * | AQ34: * | AR34: * | AS34: 444 | AT34: 204 | AU34: * | AV34: * | AW34: * | AX34: * | AY34: * | AZ34: * | BA34: 7.34 | BB34: 11.8 | BC34: 0.6 | BD34: * | BE34: 4.53 | BF34: * | BG34: * | BH34: *
B35: - | C35: 2014-12-15 | D35: * | E35: * | F35: * | G35: * | H35: * | I35: * | J35: * | K35: * | L35: * | M35: * | N35: * | O35: * | P35: * | Q35: * | R35: * | S35: * | T35: * | U35: * | V35: * | W35: * | X35: * | Y35: * | Z35: * | AA35: * | AB35: * | AC35: * | AD35: * | AE35: * | AF35: * | AG35: * | AH35: * | AI35: * | AJ35: * | AK35: * | AL35: * | AM35: * | AN35: * | AO35: * | AP35: * | AQ35: * | AR35: * | AS35: * | AT35: * | AU35: * | AV35: * | AW35: * | AX35: * | AY35: * | AZ35: * | BA35: * | BB35: * | BC35: * | BD35: * | BE35: * | BF35: * | BG35: * | BH35: *
C38: Promedio | D38: =AVERAGE(D3:D27) -> 6574.444444 | E38: =AVERAGE(E3:E27) -> 65112.77778 | F38: 9.557142857 | G38: 3.279473684 | H38: 0.64 | I38: 0.1538888889 | J38: 0.01707 | K38: 0.011345 | M38: 0.003 | O38: 0.0061 | Q38: 32.88 | R38: 1.44 | S38: 2.363333333 | T38: 460.5833333 | U38: 0.00203 | V38: 0.003808333333 | W38: 2.633333333 | X38: 0.39 | AA38: 0.11 | AC38: 0.06166666667 | AD38: 3.6045 | AE38: 0.115 | AF38: 0.2021052632 | AG38: 0.09642857143 | AH38: 0.002 | AJ38: 0.004235 | AK38: 0.00308 | AL38: 0.035 | AN38: 0.01475 | AO38: 10.31043478 | AQ38: 0.01705384615 | AR38: 0.0127625 | AS38: 281.7708333 | AT38: 108.975 | AW38: 91.785 | AY38: 0.088 | AZ38: 0.35 | BA38: 7.512272727 | BB38: 11.35454545 | BC38: 0.6 | BE38: 1.3075
C39: Percentil | D39: =PERCENTILE(D3:D27,0.66) -> 2426 | E39: =PERCENTILE(E3:E27,0.66) -> 12840 | F39: 9.868 | G39: 2.138 | H39: 0.754 | I39: 0.1622 | J39: 0.017 | K39: 0.0133 | M39: 0.003 | O39: 0.0061 | Q39: 39.07 | R39: 0.0694 | S39: 2.3168 | T39: 471.18 | U39: 0.00203 | V39: 0.003495 | W39: 2.76 | X39: 0.4636 | AA39: 0.1 | AC39: 0.07756 | AD39: 2.644 | AE39: 0.1262 | AF39: 0.1352 | AG39: 0.03 | AH39: 0.002 | AJ39: 0.0044452 | AK39: 0.00308 | AL39: 0.0366 | AN39: 0.01784 | AO39: 10.2 | AQ39: 0.017396 | AR39: 0.01281 | AS39: 302.54 | AT39: 80.72 | AW39: 90.7 | AY39: 0.0694 | AZ39: 0.35 | BA39: 7.686 | BB39: 12.358 | BC39: 0.728 | BE39: 0.9486

Sheet CA30 (hidden)
B1: Nro. Muestra | C1: Fecha Muestreo | D1: CF | E1: CT | F1: A y G | G1: Al | H1: Al Dis. | I1: NH4 | J1: As | K1: As Dis. | L1: B | M1: B Dis. | N1: Cd | O1: Cd Dis. | P1: CN | Q1: Cloruro | R1: Cu | S1: Cu Dis. | T1: Co. Esp. | U1: Cr Dis. | V1: Cromo total | W1: DBO5 | X1: Deterg. | Y1: Sn | Z1: Sn Dis. | AA1: Fluoruro | AB1: HCF | AC1: HCV | AD1: Fe | AE1: Fe Dis. | AF1: Mn | AG1: Mn Dis. | AH1: Hg | AI1: Hg Dis. | AJ1: Mo | AK1: Mo Dis. | AL1: Ni | AM1: Ni Dis. | AN1: Nitritos | AO1: O Dis. | AP1: RAS | AQ1: Pb | AR1: Pb Dis. | AS1: SDT | AT1: SST | AU1: Se | AV1: Se Dis. | AW1: Sulfatos | AX1: Sulfuros | AY1: Zn | AZ1: Zn Dis. | BA1: Ph | BB1: T° | BC1: P tot. | BD1: N tot. | BE1: Nitratos | BF1: N Kjeldahl | BG1: DQO | BH1: N amoniacal
D2: [NMP/100 ml] | E2: [NMP/100 ml] | F2: [mg/L] | G2: [mg/L] | H2: [mg/L] | I2: [mg/L] | J2: [mg/L] | K2: [mg/L] | L2: [mg/L] | M2: [mg/L] | N2: [mg/L] | O2: [mg/L] | P2: [mg/L] | Q2: [mg/L] | R2: [mg/L] | S2: [mg/L] | T2: [uS/cm] | U2: [mg/L] | V2: [mg/L] | W2: [mg/L] | X2: [mg/L] | Y2: [mg/L] | Z2: [mg/L] | AA2: [mg/L] | AB2: [mg/L] | AC2: [mg/L] | AD2: [mg/L] | AE2: [mg/L] | AF2: [mg/L] | AG2: [mg/L] | AH2: [mg/L] | AI2: [mg/L] | AJ2: [mg/L] | AK2: [mg/L] | AL2: [mg/L] | AM2: [mg/L] | AN2: [mg/L] | AO2: [mg/L] | AP2: [%] | AQ2: [mg/L] | AR2: [mg/L] | AS2: [mg/L] | AT2: [mg/L] | AU2: [mg/L] | AV2: [mg/L] | AW2: [mg/L] | AX2: [mg/L] | AY2: [mg/L] | AZ2: [mg/L] | BA2: [-] | BB2: [°C] | BC2: [mg/L] | BD2: [mg/L] | BE2: [mg/L] | BF2: [mg/L] | BG2: [mg/L] | BH2: [mg/L]
A3: 1 | B3: 6936 | C3: 2006-03-01 | D3: 30 | E3: 60 | F3: 8 | G3: 1.81 | H3: <0,1 | I3: <0,003 | J3: 0.02 | K3: 0.01 | L3: <0,1 | M3: <0,1 | N3: <0,004 | O3: <0,0040 | P3: <0,01 | Q3: 24.54 | R3: 1.45 | S3: 0.12 | T3: 458 | U3: 0.05 | V3: <0,05 | W3: <2 | X3: <0,05 | Y3: <0,1 | Z3: <0,1 | AA3: 0.1 | AB3: <5 | AC3: ND | AD3: 1.96 | AE3: <0,05 | AF3: 0.19 | AG3: 0.12 | AH3: <0,001 | AI3: <0,001 | AJ3: <0,1 | AK3: <0,1 | AL3: <0,02 | AM3: <0,02 | AN3: 9.9 | AO3: * | AP3: 0.014 | AQ3: <0,0100 | AR3: 247 | AS3: 61 | AT3: <0,005 | AU3: <0,005 | AV3: 143 | AW3: <0,1 | AX3: 0.06 | AY3: <0,05 | AZ3: 77 | BA3: 10.7 | BB3: 10.7 | BC3: * | BD3: * | BE3: * | BF3: * | BG3: * | BH3: *
A4: 2 | B4: 18574 | C4: 2006-06-05 | D4: 14 | E4: 300 | F4: 6.93 | G4: 0.93 | H4: 0.27 | I4: 0.08 | J4: 0.0237 | K4: 0.01 | L4: <0,1 | M4: <0,1 | N4: <0,004 | O4: <0,0040 | P4: <0,01 | Q4: 38.64 | R4: 4 | S4: 0.71 | T4: 745 | U4: 0.05 | V4: <0,05 | W4: <2 | X4: <0,05 | Y4: * | Z4: * | AA4: 0.2 | AB4: <5 | AC4: ND | AD4: 1.33 | AE4: <0,05 | AF4: 0.48 | AG4: 0.42 | AH4: <0,001 | AI4: <0,001 | AJ4: <0,1 | AK4: <0,1 | AL4: <0,02 | AM4: <0,02 | AN4: <0,01 | AO4: 11.1 | AP4: * | AQ4: 0.019 | AR4: 0.0145 | AS4: 480 | AT4: 27.2 | AU4: <0,005 | AV4: <0,005 | AW4: 220 | AX4: <0,15 | AY4: 0.16 | AZ4: 0.13 | BA4: 6.9 | BB4: 10.4 | BC4: * | BD4: * | BE4: * | BF4: * | BG4: * | BH4: *
A5: 3 | B5: 30507 | C5: 2006-09-04 | D5: 8 | E5: 13 | F5: 3.6 | G5: 4.26 | H5: 0.13 | I5: <0,03 | J5: 0.0183 | K5: 0.01 | L5: <0,1 | M5: <0,1 | N5: 0.004 | O5: <0,0040 | P5: <0,01 | Q5: 75.74 | R5: 6.25 | S5: 1.3 | T5: 795 | U5: 0.05 | V5: <0,05 | W5: 4 | X5: <0,05 | Y5: <0,1 | Z5: <0,1 | AA5: 0.1 | AB5: <5 | AC5: ND | AD5: 15.21 | AE5: 0.07 | AF5: 0.76 | AG5: 0.64 | AH5: <0,001 | AI5: <0,001 | AJ5: <0,1 | AK5: <0,1 | AL5: <0,02 | AM5: <0,02 | AN5: <0,01 | AO5: 10.7 | AP5: * | AQ5: 0.0259 | AR5: <0,0100 | AS5: 458 | AT5: 239 | AU5: <0,005 | AV5: <0,005 | AW5: 247 | AX5: <0,15 | AY5: 0.28 | AZ5: 0.2 | BA5: 7.1 | BB5: 7.3 | BC5: * | BD5: * | BE5: * | BF5: * | BG5: * | BH5: *
A6: 4 | B6: 41973 | C6: 2006-12-04 | D6: 50 | E6: 230 | F6: 8.6 | G6: 8.72 | H6: 0.3 | I6: 0.07 | J6: 0.0192 | K6: 0.0068 | L6: <0,1 | M6: <0,1 | N6: <0,003 | O6: <0,0040 | P6: <0,01 | Q6: 17.56 | R6: 0.51 | S6: <0,03 | T6: 287 | U6: 0.02 | V6: 0.13 | W6: <2 | X6: <0,05 | Y6: <0,1 | Z6: <0,1 | AA6: 0.1 | AB6: <5 | AC6: <0,005 | AD6: 10.4 | AE6: 0.06 | AF6: 0.26 | AG6: 0.05 | AH6: <0,001 | AI6: <0,001 | AJ6: <0,1 | AK6: <0,1 | AL6: <0,02 | AM6: <0,002 | AN6: <0,01 | AO6: 11.46 | AP6: * | AQ6: 0.0178 | AR6: <0,0100 | AS6: 114 | AT6: 179 | AU6: <0,003 | AV6: <0,005 | AW6: 77.8 | AX6: <0,15 | AY6: 0.06 | AZ6: <0,05 | BA6: 7.8 | BB6: 9.5 | BC6: * | BD6: * | BE6: * | BF6: * | BG6: * | BH6: *
A7: 5 | B7: 8462 | C7: 2007-03-12 | D7: 230 | E7: 800 | F7: 7.5 | G7: 1.48 | H7: 0.11 | I7: <0,03 | J7: 0.0183 | K7: 0.0128 | L7: <0,1 | M7: <0,1 | N7: <0,003 | O7: <0,003 | P7: <0,01 | Q7: 24.52 | R7: 0.33 | S7: <0,03 | T7: 497 | U7: 0.01 | V7: <0,002 | W7: <2 | X7: <0,05 | Y7: <0,1 | Z7: <0,1 | AA7: 0.1 | AB7: <5 | AC7: ND | AD7: 2.55 | AE7: <0,05 | AF7: 0.13 | AG7: 0.05 | AH7: <0,001 | AI7: <0,001 | AJ7: <0,003 | AK7: <0,003 | AL7: <0,02 | AM7: <0,02 | AN7: <0,01 | AO7: 9.9 | AP7: * | AQ7: 0.0169 | AR7: 0.0109 | AS7: 253 | AT7: 61 | AU7: <0,003 | AV7: <0,003 | AW7: 122 | AX7: <0,15 | AY7: 0.03 | AZ7: <0,02 | BA7: 7.3 | BB7: 8 | BC7: * | BD7: * | BE7: * | BF7: * | BG7: * | BH7: *
A8: 6 | B8: 19450 | C8: 2007-06-18 | D8: 70 | E8: 170 | F8: <5 | G8: 0.48 | H8: <0,1 | I8: 1 | J8: 0.0106 | K8: 0.0047 | L8: <0,1 | M8: <0,1 | N8: <0,003 | O8: <0,003 | P8: <0,01 | Q8: 76.32 | R8: 1.4 | S8: 0.56 | T8: 793 | U8: 0.01 | V8: <0,002 | W8: <2 | X8: 0.06 | Y8: <0,1 | Z8: <0,1 | AA8: 0.2 | AB8: <5 | AC8: 0.092 | AD8: 1.28 | AE8: <0,05 | AF8: 0.56 | AG8: 0.52 | AH8: <0,001 | AI8: <0,001 | AJ8: <0,003 | AK8: <0,003 | AL8: <0,02 | AM8: <0,02 | AN8: <0,01 | AO8: 7.71 | AP8: * | AQ8: 0.0142 | AR8: <0,0100 | AS8: 724 | AT8: 13.1 | AU8: <0,003 | AV8: <0,003 | AW8: 268 | AX8: <0,15 | AY8: 0.12 | AZ8: 0.1 | BA8: 7.2 | BB8: 5 | BC8: * | BD8: * | BE8: * | BF8: * | BG8: * | BH8: *
A9: 7 | B9: 27724 | C9: 2007-09-10 | D9: 300 | E9: 2800 | F9: <5 | G9: 10.1 | H9: 2.55 | I9: 0.23 | J9: 0.0243 | K9: 0.0036 | L9: <0,1 | M9: <0,1 | N9: <0,003 | O9: <0,003 | P9: <0,01 | Q9: <2,5 | R9: 2.8 | S9: 0.05 | T9: 482 | U9: <0,002 | V9: <0,002 | W9: <2 | X9: 1.79 | Y9: <0,1 | Z9: <0,1 | AA9: 0.2 | AB9: <5 | AC9: 0.092 | AD9: 36.35 | AE9: <0,05 | AF9: 0.63 | AG9: 0.36 | AH9: <0,001 | AI9: <0,001 | AJ9: <0,003 | AK9: <0,003 | AL9: <0,02 | AM9: <0,02 | AN9: <0,01 | AO9: 11.2 | AP9: * | AQ9: 0.038 | AR9: <0,0100 | AS9: 327 | AT9: 376 | AU9: <0,003 | AV9: <0,003 | AW9: 145 | AX9: <0,15 | AY9: 0.21 | AZ9: 0.03 | BA9: 7.5 | BB9: 11 | BC9: * | BD9: * | BE9: * | BF9: * | BG9: * | BH9: *
A10: 8 | B10: 35835 | C10: 2007-12-03 | D10: 300 | E10: 300 | F10: 6.7 | G10: 4.18 | H10: 1.9 | I10: 0.08 | J10: 0.0138 | K10: 0.0108 | L10: <0,1 | M10: <0,1 | N10: <0,003 | O10: <0,003 | P10: <0,01 | Q10: 24.98 | R10: 0.13 | S10: <0,03 | T10: 326 | U10: 0.01 | V10: <0,002 | W10: <2 | X10: <0,05 | Y10: 0.1 | Z10: <0,1 | AA10: 0.1 | AB10: <5 | AC10: 0.01 | AD10: 8.28 | AE10: <0,05 | AF10: 0.18 | AG10: 0.03 | AH10: <0,001 | AI10: <0,001 | AJ10: <0,003 | AK10: <0,003 | AL10: <0,02 | AM10: <0,02 | AN10: <0,01 | AO10: 10.7 | AP10: * | AQ10: 0.0192 | AR10: <0,0100 | AS10: 248 | AT10: 136 | AU10: <0,003 | AV10: <0,003 | AW10: 75.7 | AX10: <0,15 | AY10: 0.06 | AZ10: 0.02 | BA10: 7.7 | BB10: 16 | BC10: * | BD10: * | BE10: * | BF10: * | BG10: * | BH10: *
A11: 9 | B11: 6664 | C11: 2008-03-10 | D11: 8000 | E11: 50000 | F11: 5 | G11: 16.9 | H11: <0,5 | I11: 0.14 | J11: 0.0228 | K11: 0.0075 | L11: ND | M11: ND | N11: <0,003 | O11: <0,003 | P11: <0,01 | Q11: 35.23 | R11: 1.4 | S11: 0.06 | T11: 570 | U11: ND | V11: ND | W11: 2.6 | X11: <0,05 | Y11: <0,1 | Z11: <0,1 | AA11: 0.1 | AB11: <5 | AC11: 0.02 | AD11: 18.46 | AE11: <0,05 | AF11: 0.83 | AG11: 0.42 | AH11: <0,001 | AI11: <0,001 | AJ11: ND | AK11: ND | AL11: 0.03 | AM11: <0,03 | AN11: <0,01 | AO11: * | AP11: * | AQ11: 0.0459 | AR11: <0,0100 | AS11: 364 | AT11: 364 | AU11: <0,003 | AV11: <0,003 | AW11: 101 | AX11: <0,15 | AY11: 0.11 | AZ11: <0,02 | BA11: 7.4 | BB11: 14.4 | BC11: * | BD11: * | BE11: * | BF11: * | BG11: * | BH11: *
A12: 10 | B12: 15407 | C12: 2008-06-09 | D12: 70 | E12: 110 | F12: <5 | G12: 20.9 | H12: <0,5 | I12: 0.09 | J12: 0.029 | K12: 0.0064 | L12: ND | M12: ND | N12: <0,003 | O12: <0,003 | P12: <0,01 | Q12: 97.53 | R12: 0.95 | S12: 0.15 | T12: 423 | U12: 0.002 | V12: 0.0035 | W12: 2 | X12: 0.39 | Y12: <0,1 | Z12: <0,1 | AA12: 0.1 | AB12: <5 | AC12: 0.12 | AD12: 20.38 | AE12: <0,05 | AF12: 0.58 | AG12: 0.18 | AH12: 0.006 | AI12: <0,001 | AJ12: * | AK12: * | AL12: <0,03 | AM12: <0,03 | AN12: <0,01 | AO12: * | AP12: * | AQ12: <0,0100 | AR12: <0,0100 | AS12: 284 | AT12: 538 | AU12: <0,003 | AV12: <0,003 | AW12: 81 | AX12: <0,15 | AY12: 0.1 | AZ12: <0,02 | BA12: 6.5 | BB12: 5.4 | BC12: * | BD12: * | BE12: * | BF12: * | BG12: * | BH12: *
A13: 11 | B13: 23930 | C13: 2008-09-01 | D13: 230 | E13: 500 | F13: <5 | G13: 13.5 | H13: <0,5 | I13: 0.07 | J13: 0.0289 | K13: 0.0055 | L13: * | M13: * | N13: <0,003 | O13: <0,003 | P13: <0,01 | Q13: 32.54 | R13: 1.95 | S13: 0.22 | T13: 467 | U13: 0.002 | V13: 0.00713 | W13: <2 | X13: <0,05 | Y13: <0,1 | Z13: <0,1 | AA13: 0.1 | AB13: <5 | AC13: ND | AD13: 34.29 | AE13: 0.21 | AF13: 0.56 | AG13: 0.22 | AH13: 0.008 | AI13: <0,001 | AJ13: 0.0606 | AK13: 0.0137 | AL13: <0,03 | AM13: <0,03 | AN13: <0,01 | AO13: 10.9 | AP13: * | AQ13: 0.0361 | AR13: <0,0100 | AS13: 272 | AT13: 449 | AU13: <0,003 | AV13: <0,003 | AW13: 78 | AX13: <0,15 | AY13: 0.16 | AZ13: <0,02 | BA13: 7.2 | BB13: 8.5 | BC13: * | BD13: * | BE13: * | BF13: * | BG13: * | BH13: *
A14: 12 | B14: 32854 | C14: 2008-12-01 | D14: 80 | E14: 2300 | F14: <5 | G14: <0,5 | H14: 0.0066 | I14: 0.05 | J14: 0.0159 | K14: 0.0066 | L14: * | M14: * | N14: <0,003 | O14: <0,003 | P14: <0,01 | Q14: 19.91 | R14: 0.2 | S14: <0,03 | T14: 311 | U14: 0.002 | V14: 0.00248 | W14: <2 | X14: <0,05 | Y14: <0,1 | Z14: <0,1 | AA14: 0.1 | AB14: <5 | AC14: ND | AD14: 20.95 | AE14: 0.07 | AF14: 0.54 | AG14: 0.05 | AH14: <0,001 | AI14: <0,001 | AJ14: 0.00384 | AK14: <0,003 | AL14: <0,03 | AM14: <0,03 | AN14: <0,015 | AO14: 11.3 | AP14: * | AQ14: 0.0222 | AR14: <0,0100 | AS14: 183 | AT14: 486 | AU14: <0,003 | AV14: <0,003 | AW14: 51 | AX14: <0,15 | AY14: 0.06 | AZ14: <0,02 | BA14: 7.9 | BB14: 14 | BC14: * | BD14: * | BE14: * | BF14: * | BG14: * | BH14: *
A15: 13 | B15: 7237 | C15: 2009-03-16 | D15: 300 | E15: 500 | F15: <5 | G15: 8.64 | H15: <0,5 | I15: 0.08 | J15: 0.0143 | K15: 0.0093 | L15: * | M15: * | N15: <0,003 | O15: <0,003 | P15: <0,01 | Q15: 29.48 | R15: 0.1 | S15: <0,03 | T15: 392 | U15: <0,002 | V15: 0.0043 | W15: <2 | X15: <0,05 | Y15: <0,1 | Z15: <0,1 | AA15: 0.1 | AB15: <5 | AC15: ND | AD15: 7.5 | AE15: <0,05 | AF15: 0.27 | AG15: 0.04 | AH15: <0,001 | AI15: <0,001 | AJ15: 0.00623 | AK15: 0.00458 | AL15: <0,03 | AM15: <0,03 | AN15: <0,015 | AO15: 11 | AP15: * | AQ15: 0.0228 | AR15: <0,0100 | AS15: 254 | AT15: 199 | AU15: <0,003 | AV15: <0,003 | AW15: 83 | AX15: <0,15 | AY15: 0.05 | AZ15: <0,02 | BA15: 6.3 | BB15: 7 | BC15: * | BD15: * | BE15: * | BF15: * | BG15: * | BH15: *
A16: 14 | B16: 14801 | C16: 2009-06-01 | D16: 2300 | E16: 2300 | F16: 5 | G16: 29.15 | H16: <0,5 | I16: 0.13 | J16: 0.0645 | K16: 0.0076 | L16: * | M16: * | N16: <0,003 | O16: <0,003 | P16: <0,01 | Q16: 40.51 | R16: 2.31 | S16: 0.08 | T16: 650 | U16: <0,002 | V16: 0.00497 | W16: <2 | X16: <0,05 | Y16: <0,1 | Z16: <0,1 | AA16: 0.2 | AB16: <5 | AC16: ND | AD16: 42.87 | AE16: <0,05 | AF16: 1.06 | AG16: 0.3 | AH16: 0.001 | AI16: <0,001 | AJ16: 0.0246 | AK16: 0.02163 | AL16: 0.04 | AM16: <0,03 | AN16: <0,015 | AO16: 12.4 | AP16: * | AQ16: 0.0681 | AR16: 0.01 | AS16: 374 | AT16: 845 | AU16: <0,003 | AV16: <0,003 | AW16: 159 | AX16: <0,15 | AY16: 0.2 | AZ16: <0,02 | BA16: 7.8 | BB16: 7.8 | BC16: * | BD16: * | BE16: * | BF16: * | BG16: * | BH16: *
A17: 15 | B17: 23228 | C17: 2009-09-01 | D17: 1100 | E17: 3000 | F17: <5 | G17: 27.15 | H17: <0,5 | I17: 0.41 | J17: 0.054 | K17: 0.005 | L17: * | M17: * | N17: <0,003 | O17: <0,003 | P17: <0,01 | Q17: 45.15 | R17: 2.71 | S17: 0.06 | T17: 612 | U17: <0,002 | V17: <0,002 | W17: <2 | X17: <0,05 | Y17: <0,1 | Z17: <0,1 | AA17: 0.1 | AB17: <5 | AC17: 0.074 | AD17: 51.17 | AE17: 0.09 | AF17: 0.95 | AG17: 0.3 | AH17: <0,001 | AI17: <0,001 | AJ17: <0,003 | AK17: <0,003 | AL17: 0.04 | AM17: <0,03 | AN17: <0,015 | AO17: 10.4 | AP17: * | AQ17: 0.0514 | AR17: 0.0121 | AS17: 359 | AT17: 664 | AU17: <0,003 | AV17: <0,003 | AW17: 157 | AX17: <0,15 | AY17: 0.24 | AZ17: <0,02 | BA17: 7.7 | BB17: 9.3 | BC17: * | BD17: * | BE17: * | BF17: * | BG17: * | BH17: *
A18: 16 | B18: 32277 | C18: 2009-12-01 | D18: 3000 | E18: 14000 | F18: <5 | G18: 26.64 | H18: <0,5 | I18: 0.09 | J18: 0.0389 | K18: 0.0092 | L18: * | M18: * | N18: <0,003 | O18: <0,003 | P18: <0,01 | Q18: 26.54 | R18: 1.06 | S18: <0,03 | T18: 340 | U18: <0,002 | V18: <0,002 | W18: <2 | X18: <0,05 | Y18: <0,1 | Z18: <0,1 | AA18: 0.1 | AB18: <5 | AC18: 0.014 | AD18: 42.76 | AE18: <0,05 | AF18: 0.84 | AG18: 0.05 | AH18: <0,001 | AI18: <0,001 | AJ18: <0,003 | AK18: <0,003 | AL18: <0,03 | AM18: <0,03 | AN18: <0,015 | AO18: 11.1 | AP18: * | AQ18: 0.0325 | AR18: <0,0100 | AS18: 209 | AT18: 722 | AU18: <0,003 | AV18: <0,003 | AW18: 37 | AX18: <0,15 | AY18: 0.16 | AZ18: <0,02 | BA18: 8.1 | BB18: 9.4 | BC18: * | BD18: * | BE18: * | BF18: * | BG18: * | BH18: *
A19: 17 | B19: 27454 | C19: 2010-09-27 | D19: 1700 | E19: 1700 | F19: <5 | G19: 4.35 | H19: <0,5 | I19: 0.24 | J19: 0.0124 | K19: 0.006 | L19: * | M19: * | N19: <0,003 | O19: <0,003 | P19: <0,01 | Q19: 33.69 | R19: 0.94 | S19: 0.04 | T19: 571 | U19: <0,002 | V19: <0,002 | W19: <2 | X19: <0,05 | Y19: <0,1 | Z19: <0,1 | AA19: 0.2 | AB19: <5 | AC19: 0.025 | AD19: 7.07 | AE19: <0,05 | AF19: 0.28 | AG19: 0.15 | AH19: <0,001 | AI19: <0,001 | AJ19: 0.022 | AK19: 0.021 | AL19: <0,03 | AM19: <0,03 | AN19: <0,015 | AO19: 10.6 | AP19: * | AQ19: 0.0175 | AR19: 0.133 | AS19: 388 | AT19: 133 | AU19: <0,003 | AV19: <0,003 | AW19: 165 | AX19: <0,15 | AY19: 0.1 | AZ19: 0.03 | BA19: 7.2 | BB19: 9 | BC19: * | BD19: * | BE19: * | BF19: * | BG19: * | BH19: *
A20: 18 | B20: 8977 | C20: 2011-03-01 | D20: 230 | E20: 13000 | F20: <5 | G20: 0.65 | H20: <0,5 | I20: 0.06 | J20: 0.0148 | K20: 0.0131 | L20: * | M20: * | N20: <0,003 | O20: <0,003 | P20: <0,01 | Q20: 48.19 | R20: 0.21 | S20: 0.06 | T20: 697 | U20: <0,002 | V20: 0.00329 | W20: <2 | X20: 0.16 | Y20: <0,1 | Z20: <0,1 | AA20: 0.1 | AB20: <5 | AC20: 0.086 | AD20: 0.45 | AE20: <0,05 | AF20: 0.16 | AG20: 0.14 | AH20: <0,001 | AI20: <0,001 | AJ20: 0.02435 | AK20: 0.02372 | AL20: <0,03 | AM20: <0,03 | AN20: <0,015 | AO20: 9.1 | AP20: * | AQ20: 0.0176 | AR20: 0.0106 | AS20: 502 | AT20: 14.9 | AU20: <0,003 | AV20: <0,003 | AW20: 116 | AX20: <0,15 | AY20: 0.06 | AZ20: 0.05 | BA20: 7.9 | BB20: 8.8 | BC20: * | BD20: * | BE20: * | BF20: * | BG20: * | BH20: *
A21: 19 | B21: 17225 | C21: 2011-06-01 | D21: 700 | E21: 1700 | F21: <5 | G21: 0.66 | H21: <0,5 | I21: <0,03 | J21: 0.0285 | K21: 0.016 | L21: * | M21: * | N21: <0,003 | O21: <0,003 | P21: <0,05 | Q21: 60.06 | R21: 0.42 | S21: 0.06 | T21: 782 | U21: <0,002 | V21: <0,002 | W21: <2 | X21: <0,1 | Y21: <0,5 | Z21: <0,5 | AA21: 0.2 | AB21: <10 | AC21: <1 | AD21: 0.7 | AE21: <0,05 | AF21: 0.19 | AG21: 0.14 | AH21: <0,001 | AI21: <0,001 | AJ21: 0.0269 | AK21: 0.0231 | AL21: 0.04 | AM21: 0.03 | AN21: <0,015 | AO21: 9.7 | AP21: * | AQ21: 0.0192 | AR21: 0.0157 | AS21: 563 | AT21: 22.5 | AU21: <0,003 | AV21: <0,003 | AW21: 150 | AX21: <1 | AY21: 0.26 | AZ21: <0,002 | BA21: 8 | BB21: 5.6 | BC21: * | BD21: * | BE21: * | BF21: * | BG21: * | BH21: *
A22: 20 | B22: 29247 | C22: 2011-09-01 | D22: 300 | E22: 8000 | F22: <5 | G22: 12.67 | H22: <0,5 | I22: 0.07 | J22: 0.043 | K22: 0.0113 | L22: * | M22: * | N22: <0,003 | O22: <0,003 | P22: <0,02 | Q22: 46.1 | R22: 0.72 | S22: <0,03 | T22: 535 | U22: <0,002 | V22: <0,002 | W22: <2 | X22: <0,1 | Y22: <0,5 | Z22: <0,5 | AA22: 0.2 | AB22: <10 | AC22: <1 | AD22: 10.26 | AE22: <0,05 | AF22: 0.53 | AG22: 0.18 | AH22: <0,001 | AI22: <0,001 | AJ22: 0.0047 | AK22: <0,003 | AL22: <0,03 | AM22: <0,03 | AN22: <0,015 | AO22: 10.6 | AP22: * | AQ22: 0.0233 | AR22: <0,0100 | AS22: 250 | AT22: 838 | AU22: <0,003 | AV22: <0,003 | AW22: 117 | AX22: <1 | AY22: 0.08 | AZ22: <0,02 | BA22: 7.1 | BB22: 8.5 | BC22: * | BD22: * | BE22: * | BF22: * | BG22: * | BH22: *
A23: 21 | B23: 36292 | C23: 2011-12-22 | D23: 240 | E23: 240 | F23: <5 | G23: 12.6 | H23: <0,5 | I23: <0,03 | J23: 0.0295 | K23: 0.0062 | L23: * | M23: * | N23: <0,003 | O23: <0,003 | P23: <0,05 | Q23: 29.48 | R23: 0.19 | S23: <0,03 | T23: 406 | U23: 0.00234 | V23: 0.00327 | W23: <2 | X23: <0,1 | Y23: <0,01 | Z23: <0,5 | AA23: 0.1 | AB23: <10 | AC23: <1 | AD23: 13.81 | AE23: <0,05 | AF23: 0.42 | AG23: 0.05 | AH23: <0,001 | AI23: <0,001 | AJ23: 0.00533 | AK23: <0,003 | AL23: 0.03 | AM23: <0,03 | AN23: <0,015 | AO23: 9.5 | AP23: * | AQ23: 0.0267 | AR23: 0.0113 | AS23: 289 | AT23: 380 | AU23: <0,003 | AV23: <0,003 | AW23: 68 | AX23: <1 | AY23: 0.06 | AZ23: <0,02 | BA23: 7.9 | BB23: 15 | BC23: * | BD23: * | BE23: * | BF23: * | BG23: * | BH23: *
A24: 22 | B24: 9332 | C24: 2012-03-28 | D24: * | E24: * | F24: <10 | G24: * | H24: * | I24: 0.17 | J24: * | K24: * | L24: * | M24: * | N24: * | O24: * | P24: * | Q24: * | R24: 0.17 | S24: 0.15 | T24: 568 | U24: <0,002 | V24: * | W24: 2 | X24: <0,1 | Y24: * | Z24: * | AA24: * | AB24: * | AC24: * | AD24: 1.26 | AE24: 0.57 | AF24: 0.14 | AG24: 0.11 | AH24: * | AI24: * | AJ24: 0.023 | AK24: 0.021 | AL24: * | AM24: * | AN24: * | AO24: 10.7 | AP24: * | AQ24: 0.0166 | AR24: 0.0135 | AS24: 415 | AT24: 61 | AU24: * | AV24: * | AW24: 109 | AX24: * | AY24: 0.04 | AZ24: <0,02 | BA24: 7.2 | BB24: 10.9 | BC24: <0,2 | BD24: * | BE24: 6.17 | BF24: * | BG24: * | BH24: *
A25: 23 | B25: 17472 | C25: 2012-06-11 | D25: 1700 | E25: 8000 | F25: <10 | G25: * | H25: * | I25: * | J25: * | K25: * | L25: * | M25: * | N25: * | O25: * | P25: * | Q25: * | R25: 0.29 | S25: <0,03 | T25: 648 | U25: * | V25: * | W25: <2 | X25: * | Y25: * | Z25: * | AA25: * | AB25: * | AC25: * | AD25: 2.14 | AE25: <0,05 | AF25: * | AG25: * | AH25: * | AI25: * | AJ25: * | AK25: * | AL25: * | AM25: * | AN25: * | AO25: 30.8 | AP25: * | AQ25: * | AR25: * | AS25: 385 | AT25: 71 | AU25: * | AV25: * | AW25: 92 | AX25: * | AY25: * | AZ25: * | BA25: 7.36 | BB25: 8.5 | BC25: 0.4 | BD25: * | BE25: 2.82 | BF25: * | BG25: * | BH25: *
A26: 24 | B26: 29564 | C26: 01-10-2012 | D26: 500 | E26: 800 | F26: < 5 | G26: * | H26: * | I26: * | J26: * | K26: * | L26: * | M26: * | N26: * | O26: * | P26: * | Q26: * | R26: 1.42 | S26: <0,03 | T26: 543 | U26: * | V26: * | W26: 2.6 | X26: * | Y26: * | Z26: * | AA26: 0.2 | AB26: * | AC26: * | AD26: 15.97 | AE26: < 0,05 | AF26: * | AG26: * | AH26: * | AI26: * | AJ26: * | AK26: * | AL26: * | AM26: * | AN26: * | AO26: 9.4 | AP26: * | AQ26: * | AR26: * | AS26: 404 | AT26: 316 | AU26: * | AV26: * | AW26: 90 | AX26: * | AY26: * | AZ26: * | BA26: 7.8 | BB26: 9 | BC26: 0.9 | BD26: * | BE26: 2.33 | BF26: * | BG26: * | BH26: *
A27: 25 | B27: 37883 | C27: 2012-12-12 | D27: 170 | E27: 300 | F27: 9.4 | G27: * | H27: * | I27: * | J27: * | K27: * | L27: * | M27: * | N27: * | O27: * | P27: * | Q27: * | R27: 0.25 | S27: 0.22 | T27: 396 | U27: * | V27: * | W27: 10.2 | X27: * | Y27: * | Z27: * | AA27: * | AB27: * | AC27: * | AD27: 15.44 | AE27: 4.16 | AF27: * | AG27: * | AH27: * | AI27: * | AJ27: * | AK27: * | AL27: * | AM27: * | AN27: * | AO27: 10.6 | AP27: * | AQ27: * | AR27: * | AS27: 284 | AT27: 439 | AU27: * | AV27: * | AW27: 65 | AX27: * | AY27: * | AZ27: * | BA27: 7.81 | BB27: 12.6 | BC27: 1.4 | BD27: * | BE27: 0.86 | BF27: * | BG27: * | BH27: *
A28: 26 | B28: 8853 | C28: 2013-03-20 | D28: * | E28: * | F28: <5 | G28: * | H28: * | I28: 0.08 | J28: * | K28: * | L28: * | M28: * | N28: * | O28: * | P28: * | Q28: * | R28: 1.25 | S28: 0.02 | T28: 621 | U28: * | V28: * | W28: 17.7 | X28: 0.1 | Y28: * | Z28: * | AA28: * | AB28: * | AC28: * | AD28: 83.7 | AE28: <0,01 | AF28: 3.62 | AG28: 0.57 | AH28: * | AI28: * | AJ28: <0,005 | AK28: <0,005 | AL28: * | AM28: * | AN28: * | AO28: 11.43 | AP28: * | AQ28: <0,01 | AR28: <0,01 | AS28: 457 | AT28: 4650 | AU28: * | AV28: * | AW28: 134 | AX28: * | AY28: 0.45 | AZ28: 0.42 | BA28: 7.7 | BB28: 11.8 | BC28: 6.3 | BD28: * | BE28: 1.75 | BF28: * | BG28: * | BH28: *
A29: 27 | B29: 21365 | C29: 2013-06-26 | D29: 350 | E29: 350 | F29: <5 | G29: * | H29: * | I29: * | J29: * | K29: * | L29: * | M29: * | N29: * | O29: * | P29: * | Q29: * | R29: 0.49 | S29: 0.05 | T29: 746 | U29: * | V29: * | W29: 4 | X29: * | Y29: * | Z29: * | AA29: * | AB29: * | AC29: * | AD29: 1.87 | AE29: <0,05 | AF29: * | AG29: * | AH29: * | AI29: * | AJ29: * | AK29: * | AL29: * | AM29: * | AN29: * | AO29: 11.92 | AP29: * | AQ29: * | AR29: * | AS29: 473 | AT29: 44.2 | AU29: * | AV29: * | AW29: 100 | AX29: * | AY29: * | AZ29: * | BA29: 7.62 | BB29: 7.2 | BC29: 0.2 | BD29: * | BE29: 0.69 | BF29: * | BG29: * | BH29: *
A30: 28 | B30: 36009 | C30: 2013-09-25 | D30: 500 | E30: 500 | F30: <5 | G30: * | H30: * | I30: * | J30: * | K30: * | L30: * | M30: * | N30: * | O30: * | P30: * | Q30: * | R30: 1.42 | S30: 1.39 | T30: 642 | U30: * | V30: * | W30: 3.4 | X30: * | Y30: * | Z30: * | AA30: * | AB30: * | AC30: * | AD30: 11.5 | AE30: 4.89 | AF30: * | AG30: * | AH30: * | AI30: * | AJ30: * | AK30: * | AL30: * | AM30: * | AN30: 0.042 | AO30: 8.4 | AP30: * | AQ30: * | AR30: * | AS30: 447 | AT30: 249 | AU30: * | AV30: * | AW30: 86 | AX30: * | AY30: * | AZ30: * | BA30: 7.66 | BB30: 10.9 | BC30: 0.9 | BD30: * | BE30: * | BF30: * | BG30: * | BH30: *
A31: 29 | B31: 46821 | C31: 2013-12-04 | D31: 300 | E31: 2400 | F31: <5 | G31: * | H31: * | I31: * | J31: * | K31: * | L31: * | M31: * | N31: * | O31: * | P31: * | Q31: * | R31: 0.1 | S31: 0.09 | T31: 430 | U31: * | V31: * | W31: 3.7 | X31: * | Y31: * | Z31: * | AA31: * | AB31: * | AC31: * | AD31: 4.56 | AE31: 2.36 | AF31: * | AG31: * | AH31: * | AI31: * | AJ31: * | AK31: * | AL31: * | AM31: * | AN31: * | AO31: 8.3 | AP31: * | AQ31: * | AR31: * | AS31: 328 | AT31: 233 | AU31: * | AV31: * | AW31: 30 | AX31: * | AY31: * | AZ31: * | BA31: 7.85 | BB31: 12.1 | BC31: 0.7 | BD31: * | BE31: 0.86 | BF31: * | BG31: * | BH31: *
A32: 30 | B32: 12292 | C32: 2014-03-26 | D32: 22 | E32: 22 | F32: * | G32: * | H32: * | I32: * | J32: 0.031 | K32: 0.014 | L32: * | M32: * | N32: <0,01 | O32: <0,01 | P32: * | Q32: * | R32: 0.38 | S32: 0.04 | T32: 586 | U32: <0,05 | V32: <0,05 | W32: 5.3 | X32: * | Y32: * | Z32: * | AA32: * | AB32: * | AC32: * | AD32: 2.02 | AE32: 1.84 | AF32: * | AG32: * | AH32: * | AI32: * | AJ32: * | AK32: * | AL32: <0,05 | AM32: <0,05 | AN32: * | AO32: 7.9 | AP32: * | AQ32: * | AR32: * | AS32: 328 | AT32: 89 | AU32: * | AV32: * | AW32: 27 | AX32: * | AY32: * | AZ32: * | BA32: 7.06 | BB32: 16.6 | BC32: 0.3 | BD32: * | BE32: 1.89 | BF32: * | BG32: * | BH32: *
A33: 31 | B33: 24935 | C33: 2014-06-18 | D33: * | E33: * | F33: * | G33: * | H33: * | I33: * | J33: 0.045 | K33: 0.002 | L33: * | M33: * | N33: * | O33: * | P33: * | Q33: * | R33: * | S33: * | T33: 853 | U33: * | V33: * | W33: 5.2 | X33: * | Y33: * | Z33: * | AA33: * | AB33: * | AC33: * | AD33: 11.2 | AE33: <0,01 | AF33: * | AG33: * | AH33: * | AI33: * | AJ33: * | AK33: * | AL33: * | AM33: * | AN33: * | AO33: 11 | AP33: * | AQ33: * | AR33: * | AS33: 551 | AT33: 310 | AU33: * | AV33: * | AW33: * | AX33: * | AY33: * | AZ33: * | BA33: 7.12 | BB33: 7.3 | BC33: * | BD33: * | BE33: * | BF33: * | BG33: * | BH33: *
A34: 32 | B34: 40056 | C34: 2014-09-29 | D34: 1100 | E34: 3000 | F34: * | G34: * | H34: * | I34: 0.1 | J34: 0.043 | K34: 0.012 | L34: * | M34: * | N34: * | O34: * | P34: * | Q34: * | R34: 1.04 | S34: 0.1 | T34: 691 | U34: * | V34: * | W34: 5 | X34: * | Y34: * | Z34: * | AA34: * | AB34: * | AC34: * | AD34: 9.9 | AE34: 0.27 | AF34: * | AG34: * | AH34: * | AI34: * | AJ34: * | AK34: * | AL34: * | AM34: * | AN34: 0.022 | AO34: 9.1 | AP34: * | AQ34: * | AR34: * | AS34: 442 | AT34: 239 | AU34: * | AV34: * | AW34: * | AX34: * | AY34: * | AZ34: * | BA34: 7.54 | BB34: 14.4 | BC34: 1.6 | BD34: * | BE34: * | BF34: * | BG34: * | BH34: *
B35: 53137 | C35: 2014-12-15 | D35: * | E35: * | F35: * | G35: * | H35: * | I35: * | J35: 0.06 | K35: 0.002 | L35: * | M35: * | N35: * | O35: * | P35: * | Q35: * | R35: 0.07 | S35: <0,01 | T35: 436 | U35: * | V35: * | W35: * | X35: * | Y35: * | Z35: * | AA35: * | AB35: * | AC35: * | AD35: 3.84 | AE35: <0,01 | AF35: * | AG35: * | AH35: * | AI35: * | AJ35: * | AK35: * | AL35: * | AM35: * | AN35: * | AO35: 9.9 | AP35: * | AQ35: * | AR35: * | AS35: 256 | AT35: 94 | AU35: * | AV35: * | AW35: * | AX35: * | AY35: * | AZ35: * | BA35: 7.92 | BB35: 12 | BC35: * | BD35: * | BE35: * | BF35: * | BG35: 16 | BH35: *
C38: Promedio | D38: =AVERAGE(D3:D27) -> 900.9166667 | E38: =AVERAGE(E3:E27) -> 4630.125 | F38: 6.747777778 | G38: 10.2885 | H38: 0.7523714286 | I38: 0.18 | J38: 0.02593809524 | K38: 0.008495238095 | N38: 0.004 | Q38: 41.3355 | R38: 1.2864 | S38: 0.256 | T38: 531.76 | U38: 0.01894 | V38: 0.0198675 | W38: 3.9 | X38: 0.6 | Y38: 0.1 | AA38: 0.1363636364 | AC38: 0.05922222222 | AD38: 15.3136 | AE38: 0.7471428571 | AF38: 0.4790909091 | AG38: 0.2054545455 | AH38: 0.005 | AJ38: 0.020155 | AK38: 0.01839 | AL38: 0.036 | AM38: 0.03 | AN38: 9.9 | AO38: 11.40318182 | AP38: 0.014 | AQ38: 0.027545 | AR38: 24.72316 | AS38: 337.76 | AT38: 315.5708333 | AV38: 143 | AW38: 119.7708333 | AX38: 0.06 | AY38: 0.1238095238 | AZ38: 9.695 | BA38: 7.5748 | BB38: 9.664 | BC38: 0.9 | BE38: 3.045
C39: Percentil | D39: =PERCENTILE(D3:D27,0.66) -> 336 | E39: =PERCENTILE(E3:E27,0.66) -> 2300 | F39: 7.64 | G39: 12.6378 | H39: 0.2988 | I39: 0.1356 | J39: 0.02858 | K39: 0.01 | N39: 0.004 | Q39: 43.0156 | R39: 1.4 | S39: 0.1668 | T39: 570.84 | U39: 0.016 | V39: 0.0047154 | W39: 3.02 | X39: 0.3854 | Y39: 0.1 | AA39: 0.186 | AC39: 0.08768 | AD39: 15.8852 | AE39: 0.2052 | AF39: 0.56 | AG39: 0.2144 | AH39: 0.00664 | AJ39: 0.024269 | AK39: 0.0216048 | AL39: 0.04 | AM39: 0.03 | AN39: 9.9 | AO39: 10.986 | AP39: 0.014 | AQ39: 0.026332 | AR39: 0.01444 | AS39: 383.24 | AT39: 390.62 | AV39: 143 | AW39: 126.14 | AX39: 0.06 | AY39: 0.16 | AZ39: 0.1186 | BA39: 7.8 | BB39: 10.256 | BC39: 1.06 | BE39: 2.8102

Sheet CA40 (hidden)
B1: Nro. Muestra | C1: Fecha Muestreo | D1: CF | E1: CT | F1: A y G | G1: Al | H1: Al Dis. | I1: NH4 | J1: As | K1: As Dis. | L1: B | M1: B Dis. | N1: Cd | O1: Cd Dis. | P1: CN | Q1: Cloruro | R1: Cu | S1: Cu Dis. | T1: Co. Esp. | U1: Cr Dis. | V1: Cromo total | W1: DBO5 | X1: Deterg. | Y1: Sn | Z1: Sn Dis. | AA1: Fluoruro | AB1: HCF | AC1: HCV | AD1: Fe | AE1: Fe Dis. | AF1: Mn | AG1: Mn Dis. | AH1: Hg | AI1: Hg Dis. | AJ1: Mo | AK1: Mo Dis. | AL1: Ni | AM1: Ni Dis. | AN1: Nitritos | AO1: O Dis. | AP1: RAS | AQ1: Pb | AR1: Pb Dis. | AS1: SDT | AT1: SST | AU1: Se | AV1: Se Dis. | AW1: Sulfatos | AX1: Sulfuros | AY1: Zn | AZ1: Zn Dis. | BA1: Ph | BB1: T° | BC1: P tot. | BD1: N tot. | BE1: Nitratos | BF1: N Kjeldahl | BG1: DQO | BH1: N amoniacal
D2: [NMP/100 ml] | E2: [NMP/100 ml] | F2: [mg/L] | G2: [mg/L] | H2: [mg/L] | I2: [mg/L] | J2: [mg/L] | K2: [mg/L] | L2: [mg/L] | M2: [mg/L] | N2: [mg/L] | O2: [mg/L] | P2: [mg/L] | Q2: [mg/L] | R2: [mg/L] | S2: [mg/L] | T2: [uS/cm] | U2: [mg/L] | V2: [mg/L] | W2: [mg/L] | X2: [mg/L] | Y2: [mg/L] | Z2: [mg/L] | AA2: [mg/L] | AB2: [mg/L] | AC2: [mg/L] | AD2: [mg/L] | AE2: [mg/L] | AF2: [mg/L] | AG2: [mg/L] | AH2: [mg/L] | AI2: [mg/L] | AJ2: [mg/L] | AK2: [mg/L] | AL2: [mg/L] | AM2: [mg/L] | AN2: [mg/L] | AO2: [mg/L] | AP2: [%] | AQ2: [mg/L] | AR2: [mg/L] | AS2: [mg/L] | AT2: [mg/L] | AU2: [mg/L] | AV2: [mg/L] | AW2: [mg/L] | AX2: [mg/L] | AY2: [mg/L] | AZ2: [mg/L] | BA2: [-] | BB2: [°C] | BC2: [mg/L] | BD2: [mg/L] | BE2: [mg/L] | BF2: [mg/L] | BG2: [mg/L] | BH2: [mg/L]
A3: 1 | B3: 6935 | C3: 2006-03-01 | D3: 220 | E3: 800 | F3: 7 | G3: 1.53 | H3: <0,1 | I3: <0,03 | J3: 0.0185 | K3: <0,01 | L3: <0,1 | M3: <0,1 | N3: <0,0040 | O3: <0,0040 | P3: <0,01 | Q3: 25.43 | R3: 0.6 | S3: <0,03 | T3: 432 | U3: <0,05 | V3: <0,05 | W3: <2 | X3: <0,05 | Y3: <0,1 | Z3: <0,1 | AA3: 0.1 | AB3: <5 | AC3: ND | AD3: 1.97 | AE3: <0,05 | AF3: 0.13 | AG3: <0,05 | AH3: <0,001 | AI3: <0,001 | AJ3: <0,1 | AK3: <0,1 | AL3: <0,02 | AM3: <0,02 | AN3: * | AO3: 9.7 | AP3: * | AQ3: 0.0163 | AR3: <0,0100 | AS3: 237 | AT3: 56 | AU3: <0,0050 | AV3: <0,0050 | AW3: 137 | AX3: 0.43 | AY3: <0,05 | AZ3: <0,05 | BA3: 8.4 | BB3: 11.6 | BC3: * | BD3: * | BE3: * | BF3: * | BG3: * | BH3: *
A4: 2 | B4: 18573 | C4: 2006-06-05 | D4: 230 | E4: 2400 | F4: <5 | G4: 0.16 | H4: <0,1 | I4: 0.02 | J4: 0.0265 | K4: 0.0249 | L4: <0,1 | M4: <0,1 | N4: <0,0040 | O4: <0,0040 | P4: <0,01 | Q4: 59.28 | R4: 0.05 | S4: <0,03 | T4: 608 | U4: <0,05 | V4: <0,05 | W4: 3.4 | X4: <0,05 | Y4: * | Z4: * | AA4: 0.1 | AB4: * | AC4: * | AD4: 0.19 | AE4: <0,05 | AF4: 0.03 | AG4: 0.03 | AH4: <0,001 | AI4: <0,001 | AJ4: <0,1 | AK4: <0,1 | AL4: <0,02 | AM4: <0,02 | AN4: <0,01 | AO4: 11.7 | AP4: * | AQ4: 0.0158 | AR4: 0.0115 | AS4: 316 | AT4: 7.5 | AU4: <0,0050 | AV4: <0,0050 | AW4: 108 | AX4: <0,15 | AY4: <0,05 | AZ4: <0,05 | BA4: 7 | BB4: 9.8 | BC4: * | BD4: * | BE4: * | BF4: * | BG4: * | BH4: *
A5: 3 | B5: 30506 | C5: 2006-09-04 | D5: 80 | E5: 130 | F5: 0.9 | G5: 0.4 | H5: <0,1 | I5: <0,03 | J5: 0.0128 | K5: <0,01 | L5: <0,1 | M5: <0,1 | N5: <0,0040 | O5: <0,0040 | P5: <0,01 | Q5: 31.52 | R5: 0.34 | S5: 0.08 | T5: 534 | U5: <0,05 | V5: <0,05 | W5: <2 | X5: <0,05 | Y5: * | Z5: * | AA5: 0.1 | AB5: * | AC5: * | AD5: 0.76 | AE5: <0,05 | AF5: 0.1 | AG5: 0.09 | AH5: <0,001 | AI5: <0,001 | AJ5: <0,1 | AK5: <0,1 | AL5: <0,02 | AM5: <0,02 | AN5: <0,1 | AO5: 10 | AP5: * | AQ5: <0,01 | AR5: <0,0100 | AS5: 321 | AT5: 9.6 | AU5: <0,0050 | AV5: <0,0050 | AW5: 275 | AX5: <0,15 | AY5: <0,05 | AZ5: <0,05 | BA5: 8.3 | BB5: 8.1 | BC5: * | BD5: * | BE5: * | BF5: * | BG5: * | BH5: *
A6: 4 | B6: 41974 | C6: 2006-12-04 | D6: 20 | E6: 300 | F6: 4.3 | G6: 7.82 | H6: 0.97 | I6: 0.07 | J6: 0.0206 | K6: 0.0074 | L6: <0,1 | M6: <0,1 | N6: <0,003 | O6: <0,003 | P6: <0,01 | Q6: 16.86 | R6: 0.5 | S6: <0,03 | T6: 292 | U6: <0,02 | V6: 0.03 | W6: <2 | X6: <0,05 | Y6: * | Z6: * | AA6: 0.1 | AB6: * | AC6: * | AD6: 14.05 | AE6: 0.16 | AF6: 0.3 | AG6: 0.04 | AH6: <0,001 | AI6: <0,001 | AJ6: <0,1 | AK6: <0,1 | AL6: <0,02 | AM6: <0,02 | AN6: <0,01 | AO6: * | AP6: * | AQ6: 0.0146 | AR6: <0,0100 | AS6: 145 | AT6: 298 | AU6: <0,003 | AV6: <0,0050 | AW6: 119 | AX6: <0,15 | AY6: 0.07 | AZ6: <0,05 | BA6: 7.7 | BB6: 10.3 | BC6: * | BD6: * | BE6: * | BF6: * | BG6: * | BH6: *
A7: 5 | B7: 8461 | C7: 2007-03-12 | D7: 30 | E7: 170 | F7: 16.9 | G7: 0.9 | H7: 0.15 | I7: <0,03 | J7: 0.0195 | K7: 0.015 | L7: <0,1 | M7: <0,1 | N7: <0,003 | O7: <0,003 | P7: <0,01 | Q7: 26.92 | R7: 0.1 | S7: <0,03 | T7: 478 | U7: <0,002 | V7: <0,002 | W7: 2.5 | X7: <0,05 | Y7: <0,1 | Z7: <0,1 | AA7: 0.1 | AB7: <5 | AC7: ND | AD7: 1.95 | AE7: <0,05 | AF7: 0.08 | AG7: 0.02 | AH7: <0,001 | AI7: <0,001 | AJ7: <0,003 | AK7: <0,003 | AL7: <0,02 | AM7: <0,02 | AN7: <0,01 | AO7: 9.7 | AP7: * | AQ7: 0.015 | AR7: 0.0105 | AS7: 241 | AT7: 48.8 | AU7: <0,003 | AV7: <0,003 | AW7: 105 | AX7: <0,15 | AY7: 0.02 | AZ7: 0.02 | BA7: 7.1 | BB7: 9 | BC7: * | BD7: * | BE7: * | BF7: * | BG7: * | BH7: *
A8: 6 | B8: 19451 | C8: 2007-06-18 | D8: 80 | E8: 130 | F8: <5 | G8: 0.5 | H8: <0,1 | I8: 0.8 | J8: 0.0231 | K8: 0.0201 | L8: <0,1 | M8: <0,1 | N8: <0,003 | O8: <0,003 | P8: <0,01 | Q8: 63.51 | R8: 0.1 | S8: 0.05 | T8: 834 | U8: <0,002 | V8: <0,002 | W8: <2 | X8: 0.07 | Y8: <0,1 | Z8: <0,1 | AA8: 0.1 | AB8: <5 | AC8: ND | AD8: 0.4 | AE8: <0,05 | AF8: 0.06 | AG8: 0.05 | AH8: <0,001 | AI8: <0,001 | AJ8: <0,003 | AK8: <0,003 | AL8: <0,02 | AM8: <0,02 | AN8: <0,01 | AO8: 67.4 | AP8: * | AQ8: 0.0103 | AR8: <0,0100 | AS8: 534 | AT8: 5.1 | AU8: <0,003 | AV8: <0,003 | AW8: 124 | AX8: <0,15 | AY8: <0,02 | AZ8: <0,02 | BA8: 7.6 | BB8: 5 | BC8: * | BD8: * | BE8: * | BF8: * | BG8: * | BH8: *
A9: 7 | B9: 27850 | C9: 2007-09-10 | D9: 14 | E9: 220 | F9: 29.2 | G9: 1.57 | H9: 0.38 | I9: 0.12 | J9: 0.0205 | K9: 0.0164 | L9: <0,1 | M9: <0,1 | N9: <0,003 | O9: <0,003 | P9: <0,01 | Q9: 40.21 | R9: 0.28 | S9: <0,03 | T9: 379 | U9: <0,002 | V9: <0,002 | W9: <2 | X9: 0.06 | Y9: <0,1 | Z9: <0,1 | AA9: 0.1 | AB9: <5 | AC9: ND | AD9: 4 | AE9: <0,05 | AF9: 0.08 | AG9: 0.03 | AH9: <0,001 | AI9: <0,001 | AJ9: <0,003 | AK9: <0,003 | AL9: <0,02 | AM9: <0,02 | AN9: <0,01 | AO9: 11.7 | AP9: * | AQ9: 0.0135 | AR9: <0,0100 | AS9: 254 | AT9: 113 | AU9: <0,003 | AV9: <0,003 | AW9: 73.7 | AX9: <0,15 | AY9: 0.02 | AZ9: <0,02 | BA9: 7.5 | BB9: 11 | BC9: * | BD9: * | BE9: * | BF9: * | BG9: * | BH9: *
A10: 8 | B10: 35834 | C10: 2007-12-03 | D10: 80 | E10: 500 | F10: <5 | G10: 5.65 | H10: 1.9 | I10: 0.13 | J10: 0.0198 | K10: 0.0103 | L10: <0,1 | M10: <0,1 | N10: <0,003 | O10: <0,003 | P10: <0,01 | Q10: 27.45 | R10: 0.17 | S10: 0.03 | T10: 329 | U10: <0,002 | V10: <0,002 | W10: <2 | X10: <0,05 | Y10: <0,1 | Z10: <0,1 | AA10: 0.1 | AB10: <5 | AC10: ND | AD10: 10.63 | AE10: <0,05 | AF10: 0.28 | AG10: 0.02 | AH10: <0,001 | AI10: <0,001 | AJ10: <0,003 | AK10: <0,003 | AL10: <0,02 | AM10: <0,02 | AN10: <0,01 | AO10: 10.5 | AP10: * | AQ10: 0.0257 | AR10: <0,0100 | AS10: 271 | AT10: 183 | AU10: <0,003 | AV10: <0,003 | AW10: 70.4 | AX10: <0,15 | AY10: 0.09 | AZ10: <0,02 | BA10: 7.7 | BB10: 16 | BC10: * | BD10: * | BE10: * | BF10: * | BG10: * | BH10: *
A11: 9 | B11: 6663 | C11: 2008-03-10 | D11: 20 | E11: 800 | F11: <5 | G11: 2.62 | H11: <0,5 | I11: 0.12 | J11: 0.029 | K11: <0,003 | L11: ND | M11: ND | N11: <0,003 | O11: <0,003 | P11: <0,01 | Q11: 44.856 | R11: <0,03 | S11: <0,03 | T11: 479 | U11: <0,002 | V11: <0,002 | W11: <2 | X11: <0,05 | Y11: ND | Z11: ND | AA11: 0.1 | AB11: <5 | AC11: ND | AD11: 1.36 | AE11: <0,05 | AF11: 0.07 | AG11: <0,02 | AH11: <0,001 | AI11: <0,001 | AJ11: <0,003 | AK11: <0,003 | AL11: <0,03 | AM11: <0,03 | AN11: <0,01 | AO11: 10.7 | AP11: ND | AQ11: 0.0101 | AR11: <0,0100 | AS11: 270 | AT11: 50 | AU11: <0,003 | AV11: <0,003 | AW11: 107 | AX11: <0,15 | AY11: 0.03 | AZ11: <0,02 | BA11: 8 | BB11: 13.8 | BC11: * | BD11: * | BE11: * | BF11: * | BG11: * | BH11: *
A12: 10 | B12: 15406 | C12: 2008-06-09 | D12: 17 | E12: 500 | F12: <5 | G12: 10.6 | H12: <0,5 | I12: 0.05 | J12: 0.0189 | K12: 0.0065 | L12: ND | M12: ND | N12: <0,003 | O12: <0,003 | P12: <0,01 | Q12: 25.69 | R12: 0.26 | S12: <0,03 | T12: 330 | U12: <0,002 | V12: <0,002 | W12: <2 | X12: 1.16 | Y12: ND | Z12: ND | AA12: 0.1 | AB12: <5 | AC12: 0.06 | AD12: 18.98 | AE12: <0,05 | AF12: 0.43 | AG12: 0.06 | AH12: 0.005 | AI12: <0,001 | AJ12: * | AK12: * | AL12: <0,03 | AM12: <0,03 | AN12: <0,01 | AO12: 11.8 | AP12: ND | AQ12: <0,01 | AR12: <0,0100 | AS12: 205 | AT12: 319 | AU12: <0,003 | AV12: <0,003 | AW12: 41 | AX12: <0,15 | AY12: 0.07 | AZ12: <0,02 | BA12: 6.4 | BB12: 6.5 | BC12: * | BD12: * | BE12: * | BF12: * | BG12: * | BH12: *
A13: 11 | B13: 23929 | C13: 2008-09-01 | D13: 20 | E13: 500 | F13: <5 | G13: 3.92 | H13: <0,5 | I13: 0.07 | J13: 0.0196 | K13: 0.0101 | L13: * | M13: * | N13: <0,003 | O13: <0,003 | P13: * | Q13: 30.11 | R13: 0.46 | S13: 0.06 | T13: 366 | U13: <0,002 | V13: 0.00266 | W13: <2 | X13: <0,05 | Y13: * | Z13: * | AA13: 0.1 | AB13: <5 | AC13: ND | AD13: 9.19 | AE13: <0,05 | AF13: 0.14 | AG13: 0.04 | AH13: 0.002 | AI13: <0,001 | AJ13: 0.0128 | AK13: 0.00583 | AL13: <0,03 | AM13: <0,03 | AN13: <0,01 | AO13: 10.2 | AP13: * | AQ13: 0.0143 | AR13: <0,0100 | AS13: 174 | AT13: 149 | AU13: <0,003 | AV13: <0,003 | AW13: 44 | AX13: <0,15 | AY13: 0.05 | AZ13: <0,02 | BA13: 7.5 | BB13: 9.5 | BC13: * | BD13: * | BE13: * | BF13: * | BG13: * | BH13: *
A14: 12 | B14: 32853 | C14: 2008-12-01 | D14: 70 | E14: 3000 | F14: 5.3 | G14: 13.35 | H14: <0,5 | I14: <0,03 | J14: 0.0192 | K14: 0.0064 | L14: * | M14: * | N14: <0,003 | O14: <0,003 | P14: <0,01 | Q14: 17.97 | R14: 0.33 | S14: <0,03 | T14: 308 | U14: * | V14: 0.00771 | W14: <2 | X14: <0,05 | Y14: * | Z14: * | AA14: 0.1 | AB14: <5 | AC14: ND | AD14: 31.05 | AE14: 0.07 | AF14: 0.73 | AG14: 0.04 | AH14: <0,001 | AI14: <0,001 | AJ14: 0.00454 | AK14: <0,003 | AL14: <0,03 | AM14: <0,03 | AN14: <0,015 | AO14: 10.3 | AP14: * | AQ14: 0.0312 | AR14: <0,0100 | AS14: 215 | AT14: 707 | AU14: <0,003 | AV14: <0,003 | AW14: 31 | AX14: <0,15 | AY14: 0.11 | AZ14: <0,02 | BA14: 8 | BB14: 12 | BC14: * | BD14: * | BE14: * | BF14: * | BG14: * | BH14: *
A15: 13 | B15: 7236 | C15: 2009-03-16 | D15: 80 | E15: 800 | F15: 19.3 | G15: 13.59 | H15: <0,5 | I15: 0.1 | J15: 0.0176 | K15: 0.0094 | L15: * | M15: * | N15: <0,003 | O15: <0,003 | P15: <0,01 | Q15: 25.46 | R15: 0.06 | S15: <0,03 | T15: 349 | U15: <0,002 | V15: 0.00231 | W15: <2 | X15: <0,05 | Y15: * | Z15: * | AA15: 0.1 | AB15: <5 | AC15: ND | AD15: 7.75 | AE15: <0,05 | AF15: 0.26 | AG15: 0.02 | AH15: <0,001 | AI15: <0,001 | AJ15: <0,003 | AK15: <0,003 | AL15: <0,03 | AM15: <0,03 | AN15: <0,015 | AO15: 10.8 | AP15: * | AQ15: 0.0231 | AR15: <0,0100 | AS15: 204 | AT15: 226 | AU15: <0,003 | AV15: <0,003 | AW15: 70 | AX15: <0,15 | AY15: 0.06 | AZ15: <0,02 | BA15: 6.3 | BB15: 7 | BC15: * | BD15: * | BE15: * | BF15: * | BG15: * | BH15: *
A16: 14 | B16: 14800 | C16: 2009-06-01 | D16: 170 | E16: 170 | F16: 9.8 | G16: 3.1 | H16: <0,5 | I16: 0.11 | J16: 0.024 | K16: 0.0153 | L16: * | M16: * | N16: <0,003 | O16: <0,003 | P16: <0,01 | Q16: 55.18 | R16: 0.05 | S16: <0,03 | T16: 551 | U16: <0,002 | V16: 0.00213 | W16: <2 | X16: <0,05 | Y16: * | Z16: * | AA16: 0.1 | AB16: <5 | AC16: ND | AD16: 3.24 | AE16: <0,05 | AF16: 0.14 | AG16: 0.02 | AH16: <0,001 | AI16: <0,001 | AJ16: 0.00536 | AK16: 0.00461 | AL16: <0,03 | AM16: <0,03 | AN16: 0.023 | AO16: 11.7 | AP16: * | AQ16: 0.0132 | AR16: <0,0100 | AS16: 323 | AT16: 94 | AU16: <0,003 | AV16: <0,003 | AW16: 105 | AX16: <0,15 | AY16: <0,02 | AZ16: <0,02 | BA16: 8.1 | BB16: 8.7 | BC16: * | BD16: * | BE16: * | BF16: * | BG16: * | BH16: *
A17: 15 | B17: 23227 | C17: 2009-09-01 | D17: 110 | E17: 800 | F17: <5 | G17: 2.34 | H17: <0,5 | I17: 1.43 | J17: 0.018 | K17: 0.0136 | L17: * | M17: * | N17: <0,003 | O17: <0,003 | P17: <0,01 | Q17: 39.51 | R17: 0.14 | S17: <0,03 | T17: 394 | U17: <0,002 | V17: <0,002 | W17: <2 | X17: <0,05 | Y17: * | Z17: * | AA17: 0.1 | AB17: <5 | AC17: 0.071 | AD17: 3.32 | AE17: <0,05 | AF17: 0.09 | AG17: 0.03 | AH17: <0,001 | AI17: <0,001 | AJ17: <0,003 | AK17: <0,003 | AL17: <0,03 | AM17: <0,03 | AN17: <0,015 | AO17: 10.6 | AP17: * | AQ17: 0.012 | AR17: <0,0100 | AS17: 116 | AT17: 59 | AU17: <0,003 | AV17: <0,003 | AW17: 53 | AX17: <0,15 | AY17: <0,02 | AZ17: <0,02 | BA17: 7.8 | BB17: 9.5 | BC17: * | BD17: * | BE17: * | BF17: * | BG17: * | BH17: *
A18: 16 | B18: 32276 | C18: 2009-12-01 | D18: 1700 | E18: 14000 | F18: <5 | G18: 13.14 | H18: <0,5 | I18: 0.18 | J18: 0.0264 | K18: 0.0114 | L18: * | M18: * | N18: <0,003 | O18: <0,003 | P18: <0,01 | Q18: 27.94 | R18: 0.44 | S18: <0,03 | T18: 335 | U18: <0,002 | V18: <0,002 | W18: <2 | X18: <0,05 | Y18: * | Z18: * | AA18: 0.1 | AB18: <5 | AC18: 0.024 | AD18: 22.66 | AE18: <0,05 | AF18: 0.49 | AG18: 0.03 | AH18: <0,001 | AI18: <0,001 | AJ18: <0,003 | AK18: <0,003 | AL18: <0,03 | AM18: <0,03 | AN18: <0,015 | AO18: 10.9 | AP18: * | AQ18: 0.0219 | AR18: <0,0100 | AS18: 188 | AT18: 439 | AU18: <0,003 | AV18: <0,003 | AW18: 38 | AX18: <0,15 | AY18: 0.08 | AZ18: <0,02 | BA18: 8.4 | BB18: 11.1 | BC18: * | BD18: * | BE18: * | BF18: * | BG18: * | BH18: *
A19: 17 | B19: 27453 | C19: 2010-09-27 | D19: <2,00E+1 | E19: 230 | F19: <5 | G19: 0.89 | H19: <0,5 | I19: 0.44 | J19: 0.0265 | K19: 0.0177 | L19: * | M19: * | N19: <0,003 | O19: <0,003 | P19: <0,01 | Q19: 63.18 | R19: 0.11 | S19: <0,03 | T19: 554 | U19: <0,002 | V19: 0.002 | W19: <2 | X19: <0,05 | Y19: * | Z19: * | AA19: 0.1 | AB19: <5 | AC19: 0.027 | AD19: 1.11 | AE19: <0,05 | AF19: 0.05 | AG19: <0,02 | AH19: <0,001 | AI19: <0,001 | AJ19: 0.007 | AK19: 0.004 | AL19: <0,03 | AM19: <0,03 | AN19: <0,015 | AO19: 10.39 | AP19: * | AQ19: 0.0179 | AR19: 0.0128 | AS19: 327 | AT19: 18.9 | AU19: <0,003 | AV19: <0,003 | AW19: 81 | AX19: <0,15 | AY19: 0.07 | AZ19: <0,02 | BA19: 7.4 | BB19: 9.8 | BC19: * | BD19: * | BE19: * | BF19: * | BG19: * | BH19: *
A20: 18 | B20: 8976 | C20: 2011-03-01 | D20: 30 | E20: 500 | F20: <5 | G20: 0.74 | H20: <0,5 | I20: 0.07 | J20: 0.028 | K20: 0.0266 | L20: * | M20: * | N20: <0,003 | O20: <0,003 | P20: <0,01 | Q20: 68.45 | R20: <0,03 | S20: <0,03 | T20: 646 | U20: <0,002 | V20: 0.00379 | W20: <2 | X20: 0.16 | Y20: * | Z20: * | AA20: <0,05 | AB20: <5 | AC20: 0.065 | AD20: 0.49 | AE20: 0.05 | AF20: 0.05 | AG20: 0.02 | AH20: <0,001 | AI20: <0,001 | AJ20: 0.00674 | AK20: 0.00514 | AL20: 0.03 | AM20: <0,03 | AN20: <0,015 | AO20: 9.5 | AP20: * | AQ20: 0.0156 | AR20: 0.013 | AS20: 429 | AT20: 18.6 | AU20: <0,003 | AV20: <0,003 | AW20: 70 | AX20: <0,15 | AY20: 0.03 | AZ20: 0.02 | BA20: 7.8 | BB20: 9.2 | BC20: * | BD20: * | BE20: * | BF20: * | BG20: * | BH20: *
A21: 19 | B21: 17230 | C21: 2011-06-01 | D21: 130 | E21: 300 | F21: <5 | G21: 0.41 | H21: <0,5 | I21: <0,03 | J21: 0.0375 | K21: 0.032 | L21: * | M21: * | N21: <0,003 | O21: <0,003 | P21: <0,05 | Q21: 85.21 | R21: <0,03 | S21: <0,03 | T21: 701 | U21: <0,002 | V21: <0,002 | W21: <2 | X21: <0,1 | Y21: * | Z21: * | AA21: 0.1 | AB21: <10 | AC21: <1 | AD21: 0.43 | AE21: <0,05 | AF21: 0.03 | AG21: <0,02 | AH21: <0,001 | AI21: <0,001 | AJ21: 0.00757 | AK21: 0.00574 | AL21: 0.03 | AM21: <0,03 | AN21: <0,015 | AO21: 12.2 | AP21: * | AQ21: 0.0167 | AR21: 0.014 | AS21: 437 | AT21: 14.5 | AU21: <0,003 | AV21: <0,003 | AW21: 108 | AX21: <1 | AY21: <0,02 | AZ21: <0,02 | BA21: 8.2 | BB21: 7 | BC21: * | BD21: * | BE21: * | BF21: * | BG21: * | BH21: *
A22: 20 | B22: 29246 | C22: 2011-09-01 | D22: 230 | E22: 2400 | F22: <5 | G22: 2.89 | H22: <0,5 | I22: <0,03 | J22: 0.0255 | K22: 0.0171 | L22: * | M22: * | N22: <0,003 | O22: <0,003 | P22: <0,02 | Q22: 49.59 | R22: 0.13 | S22: <0,03 | T22: 455 | U22: <0,002 | V22: <0,002 | W22: <2 | X22: <0,1 | Y22: * | Z22: * | AA22: 0.1 | AB22: <10 | AC22: <1 | AD22: 2.16 | AE22: <0,05 | AF22: 0.1 | AG22: 0.03 | AH22: <0,001 | AI22: <0,001 | AJ22: 0.00324 | AK22: <0,003 | AL22: <0,03 | AM22: <0,03 | AN22: <0,015 | AO22: 9.8 | AP22: * | AQ22: 0.0107 | AR22: <0,0100 | AS22: 293 | AT22: 69 | AU22: <0,003 | AV22: <0,003 | AW22: 70 | AX22: <1 | AY22: 0.02 | AZ22: <0,02 | BA22: 7.4 | BB22: 10.3 | BC22: * | BD22: * | BE22: * | BF22: * | BG22: * | BH22: *
A23: 21 | B23: 36291 | C23: 2011-12-22 | D23: 110 | E23: 300 | F23: 10.3 | G23: 11.3 | H23: <0,5 | I23: <0,03 | J23: 0.0325 | K23: 0.008 | L23: * | M23: * | N23: <0,003 | O23: <0,003 | P23: <0,05 | Q23: 30.89 | R23: 0.26 | S23: <0,03 | T23: 396 | U23: 0.00332 | V23: 0.0038 | W23: <2 | X23: <0,1 | Y23: * | Z23: * | AA23: 0.1 | AB23: <10 | AC23: <1 | AD23: 14.56 | AE23: <0,05 | AF23: 0.43 | AG23: 0.05 | AH23: <0,001 | AI23: <0,001 | AJ23: 0.00491 | AK23: <0,003 | AL23: <0,03 | AM23: <0,03 | AN23: <0,015 | AO23: 9.1 | AP23: * | AQ23: 0.026 | AR23: 0.0125 | AS23: 289 | AT23: 365 | AU23: <0,003 | AV23: <0,003 | AW23: 70 | AX23: <1 | AY23: 0.07 | AZ23: <0,02 | BA23: 7.8 | BB23: 14 | BC23: * | BD23: * | BE23: * | BF23: * | BG23: * | BH23: *
A24: 22 | B24: 9331 | C24: 2012-03-28 | D24: 230 | E24: 2400 | F24: <10 | G24: * | H24: * | I24: 0.14 | J24: * | K24: * | L24: * | M24: * | N24: * | O24: * | P24: * | Q24: * | R24: * | S24: * | T24: 559 | U24: * | V24: 0.0028 | W24: 2 | X24: <0,1 | Y24: * | Z24: * | AA24: * | AB24: * | AC24: * | AD24: 1.61 | AE24: <0,05 | AF24: * | AG24: * | AH24: * | AI24: * | AJ24: 0.0065 | AK24: 0.0049 | AL24: * | AM24: * | AN24: * | AO24: 11.1 | AP24: * | AQ24: * | AR24: * | AS24: 359 | AT24: 58 | AU24: * | AV24: * | AW24: * | AX24: * | AY24: * | AZ24: * | BA24: 7.4 | BB24: 11.5 | BC24: <0,2 | BD24: * | BE24: 0.22 | BF24: * | BG24: * | BH24: *
A25: 23 | B25: 17471 | C25: 2012-06-11 | D25: 80 | E25: 7000 | F25: <10 | G25: * | H25: * | I25: * | J25: * | K25: * | L25: * | M25: * | N25: * | O25: * | P25: * | Q25: * | R25: * | S25: * | T25: 606 | U25: * | V25: * | W25: <2 | X25: * | Y25: * | Z25: * | AA25: * | AB25: * | AC25: * | AD25: * | AE25: * | AF25: * | AG25: * | AH25: * | AI25: * | AJ25: * | AK25: * | AL25: * | AM25: * | AN25: * | AO25: 28.5 | AP25: * | AQ25: * | AR25: * | AS25: 354 | AT25: 14.3 | AU25: * | AV25: * | AW25: * | AX25: * | AY25: * | AZ25: * | BA25: 7.47 | BB25: 7.8 | BC25: 0.2 | BD25: * | BE25: 1.75 | BF25: * | BG25: * | BH25: *
A26: 24 | B26: 29566 | C26: 01-10-2012 | D26: 40 | E26: 1700 | F26: < 5 | G26: * | H26: * | I26: * | J26: * | K26: * | L26: * | M26: * | N26: * | O26: * | P26: * | Q26: * | R26: * | S26: * | T26: 517 | U26: * | V26: * | W26: 2.3 | X26: * | Y26: * | Z26: * | AA26: * | AB26: * | AC26: * | AD26: * | AE26: * | AF26: * | AG26: * | AH26: * | AI26: * | AJ26: * | AK26: * | AL26: * | AM26: * | AN26: * | AO26: 9.2 | AP26: * | AQ26: * | AR26: * | AS26: 328 | AT26: 30.7 | AU26: * | AV26: * | AW26: * | AX26: * | AY26: * | AZ26: * | BA26: 8 | BB26: 8 | BC26: 0.4 | BD26: * | BE26: 1.17 | BF26: * | BG26: * | BH26: *
A27: 25 | B27: 37882 | C27: 2012-12-12 | D27: 80 | E27: 300 | F27: 10.3 | G27: * | H27: * | I27: * | J27: * | K27: * | L27: * | M27: * | N27: * | O27: * | P27: * | Q27: * | R27: * | S27: * | T27: 403 | U27: * | V27: * | W27: 3.9 | X27: * | Y27: * | Z27: * | AA27: * | AB27: * | AC27: * | AD27: * | AE27: * | AF27: * | AG27: * | AH27: * | AI27: * | AJ27: * | AK27: * | AL27: * | AM27: * | AN27: * | AO27: 9.8 | AP27: * | AQ27: * | AR27: * | AS27: 275 | AT27: 531 | AU27: * | AV27: * | AW27: * | AX27: * | AY27: * | AZ27: * | BA27: 7.91 | BB27: 13.4 | BC27: 1.4 | BD27: * | BE27: 0.9 | BF27: * | BG27: * | BH27: *
A28: 26 | B28: 8852 | C28: 2013-03-20 | D28: 230 | E28: 700 | F28: <5 | G28: * | H28: * | I28: 0.16 | J28: * | K28: * | L28: * | M28: * | N28: * | O28: * | P28: * | Q28: * | R28: * | S28: * | T28: 622 | U28: * | V28: <0,05 | W28: 2.8 | X28: 0.1 | Y28: * | Z28: * | AA28: * | AB28: * | AC28: * | AD28: 2.76 | AE28: 0.07 | AF28: * | AG28: * | AH28: * | AI28: * | AJ28: <0,005 | AK28: <0,005 | AL28: * | AM28: * | AN28: * | AO28: 12.04 | AP28: * | AQ28: * | AR28: * | AS28: 408 | AT28: 87 | AU28: * | AV28: * | AW28: * | AX28: * | AY28: * | AZ28: * | BA28: 7.92 | BB28: 12.3 | BC28: <0,1 | BD28: * | BE28: 0.72 | BF28: * | BG28: * | BH28: *
A29: 27 | B29: 21364 | C29: 2013-06-26 | D29: 110 | E29: 220 | F29: <5 | G29: * | H29: * | I29: * | J29: * | K29: * | L29: * | M29: * | N29: * | O29: * | P29: * | Q29: * | R29: * | S29: * | T29: 681 | U29: * | V29: * | W29: 3.6 | X29: * | Y29: * | Z29: * | AA29: * | AB29: * | AC29: * | AD29: * | AE29: * | AF29: * | AG29: * | AH29: * | AI29: * | AJ29: * | AK29: * | AL29: * | AM29: * | AN29: * | AO29: 16.7 | AP29: * | AQ29: * | AR29: * | AS29: 390 | AT29: 20.6 | AU29: * | AV29: * | AW29: * | AX29: * | AY29: * | AZ29: * | BA29: 8.03 | BB29: 6.4 | BC29: 0.5 | BD29: * | BE29: 0.28 | BF29: * | BG29: * | BH29: *
A30: 28 | B30: 36008 | C30: 2013-09-25 | D30: 24 | E30: 230 | F30: <5 | G30: * | H30: * | I30: * | J30: * | K30: * | L30: * | M30: * | N30: * | O30: * | P30: * | Q30: * | R30: * | S30: * | T30: 595 | U30: * | V30: * | W30: 2.7 | X30: * | Y30: * | Z30: * | AA30: * | AB30: * | AC30: * | AD30: * | AE30: * | AF30: * | AG30: * | AH30: * | AI30: * | AJ30: * | AK30: * | AL30: * | AM30: * | AN30: 0.037 | AO30: 8.9 | AP30: * | AQ30: * | AR30: * | AS30: 362 | AT30: 36.4 | AU30: * | AV30: * | AW30: * | AX30: * | AY30: * | AZ30: * | BA30: 7.4 | BB30: 12 | BC30: <0,1 | BD30: * | BE30: * | BF30: * | BG30: * | BH30: *
A31: 29 | B31: 46820 | C31: 2013-12-04 | D31: 130 | E31: 500 | F31: <5 | G31: * | H31: * | I31: * | J31: * | K31: * | L31: * | M31: * | N31: * | O31: * | P31: * | Q31: * | R31: * | S31: * | T31: 415 | U31: * | V31: * | W31: 5.2 | X31: * | Y31: * | Z31: * | AA31: * | AB31: * | AC31: * | AD31: * | AE31: * | AF31: * | AG31: * | AH31: * | AI31: * | AJ31: * | AK31: * | AL31: * | AM31: * | AN31: * | AO31: 8.3 | AP31: * | AQ31: * | AR31: * | AS31: 351 | AT31: 202 | AU31: * | AV31: * | AW31: * | AX31: * | AY31: * | AZ31: * | BA31: 8.12 | BB31: 13.6 | BC31: 0.7 | BD31: * | BE31: 0.82 | BF31: * | BG31: * | BH31: *
A32: 30 | B32: 12293 | C32: 2014-03-26 | D32: 23 | E32: 23 | F32: * | G32: * | H32: * | I32: * | J32: * | K32: * | L32: * | M32: * | N32: * | O32: * | P32: * | Q32: * | R32: * | S32: * | T32: 484 | U32: * | V32: * | W32: 5.1 | X32: * | Y32: * | Z32: * | AA32: * | AB32: * | AC32: * | AD32: * | AE32: * | AF32: * | AG32: * | AH32: * | AI32: * | AJ32: * | AK32: * | AL32: * | AM32: * | AN32: * | AO32: 8.7 | AP32: * | AQ32: * | AR32: * | AS32: 355 | AT32: 68 | AU32: * | AV32: * | AW32: * | AX32: * | AY32: * | AZ32: * | BA32: 7.22 | BB32: 14.3 | BC32: 0.2 | BD32: * | BE32: 0.63 | BF32: * | BG32: * | BH32: *
A33: 31 | B33: 24936 | C33: 2014-06-18 | D33: * | E33: * | F33: * | G33: * | H33: * | I33: * | J33: * | K33: * | L33: * | M33: * | N33: * | O33: * | P33: * | Q33: * | R33: * | S33: * | T33: 574 | U33: * | V33: * | W33: 10.2 | X33: * | Y33: * | Z33: * | AA33: * | AB33: * | AC33: * | AD33: * | AE33: * | AF33: * | AG33: * | AH33: * | AI33: * | AJ33: * | AK33: * | AL33: * | AM33: * | AN33: * | AO33: 10.5 | AP33: * | AQ33: * | AR33: * | AS33: 281 | AT33: 66 | AU33: * | AV33: * | AW33: * | AX33: * | AY33: * | AZ33: * | BA33: 7.54 | BB33: 8.9 | BC33: * | BD33: * | BE33: * | BF33: * | BG33: * | BH33: *
A34: 32 | B34: 40055 | C34: 2014-09-29 | D34: 30 | E34: 1100 | F34: * | G34: * | H34: * | I34: * | J34: * | K34: * | L34: * | M34: * | N34: * | O34: * | P34: * | Q34: * | R34: * | S34: * | T34: 573 | U34: * | V34: * | W34: 4.7 | X34: * | Y34: * | Z34: * | AA34: * | AB34: * | AC34: * | AD34: * | AE34: * | AF34: * | AG34: * | AH34: * | AI34: * | AJ34: * | AK34: * | AL34: * | AM34: * | AN34: * | AO34: 9.7 | AP34: * | AQ34: * | AR34: * | AS34: 306 | AT34: 88 | AU34: * | AV34: * | AW34: * | AX34: * | AY34: * | AZ34: * | BA34: 7.76 | BB34: 13.7 | BC34: * | BD34: * | BE34: * | BF34: * | BG34: * | BH34: *
B35: - | C35: 2014-12-15 | D35: * | E35: * | F35: * | G35: * | H35: * | I35: * | J35: * | K35: * | L35: * | M35: * | N35: * | O35: * | P35: * | Q35: * | R35: * | S35: * | T35: * | U35: * | V35: * | W35: * | X35: * | Y35: * | Z35: * | AA35: * | AB35: * | AC35: * | AD35: * | AE35: * | AF35: * | AG35: * | AH35: * | AI35: * | AJ35: * | AK35: * | AL35: * | AM35: * | AN35: * | AO35: * | AP35: * | AQ35: * | AR35: * | AS35: * | AT35: * | AU35: * | AV35: * | AW35: * | AX35: * | AY35: * | AZ35: * | BA35: * | BB35: * | BC35: * | BD35: * | BE35: * | BF35: * | BG35: * | BH35: *
C38: Promedio | D38: =AVERAGE(D3:D27) -> 161.2916667 | E38: =AVERAGE(E3:E27) -> 1614 | F38: 11.33 | G38: 4.639047619 | H38: 0.85 | I38: 0.2566666667 | J38: 0.02304761905 | K38: 0.0149 | Q38: 40.72457143 | R38: 0.2433333333 | S38: 0.055 | T38: 473.4 | U38: 0.00332 | V38: 0.006355555556 | W38: 2.82 | X38: 0.3625 | AA38: 0.1 | AC38: 0.0494 | AD38: 6.902727273 | AE38: 0.09333333333 | AF38: 0.1938095238 | AG38: 0.03647058824 | AH38: 0.0035 | AJ38: 0.006517777778 | AK38: 0.005036666667 | AL38: 0.03 | AN38: 0.023 | AO38: 13.63708333 | AQ38: 0.01704736842 | AR38: 0.01238333333 | AS38: 284.2 | AT38: 155.36 | AW38: 90.48095238 | AX38: 0.43 | AY38: 0.05642857143 | AZ38: 0.02 | BA38: 7.6472 | BB38: 9.996 | BC38: 0.6666666667 | BE38: 1.01
C39: Percentil | D39: =PERCENTILE(D3:D27,0.66) -> 110 | E39: =PERCENTILE(E3:E27,0.66) -> 800 | F39: 10.3 | G39: 4.266 | H39: 0.9582 | I39: 0.1324 | J39: 0.02568 | K39: 0.016554 | Q39: 45.8028 | R39: 0.291 | S39: 0.0598 | T39: 531.28 | U39: 0.00332 | V39: 0.0037928 | W39: 3.076 | X39: 0.1582 | AA39: 0.1 | AC39: 0.0632 | AD39: 7.225 | AE39: 0.0988 | AF39: 0.164 | AG39: 0.04 | AH39: 0.00398 | AJ39: 0.0068128 | AK39: 0.00532 | AL39: 0.03 | AN39: 0.023 | AO39: 10.936 | AQ39: 0.016652 | AR39: 0.01286 | AS39: 320.2 | AT39: 143.24 | AW39: 105.4 | AX39: 0.43 | AY39: 0.07 | AZ39: 0.02 | BA39: 7.8924 | BB39: 10.888 | BC39: 0.72 | BE39: 1.1646

Sheet CA50 (hidden)
B1: Nro. Muestra | C1: Fecha Muestreo | D1: CF | E1: CT | F1: A y G | G1: Al | H1: Al Dis. | I1: NH4 | J1: As | K1: As Dis. | L1: B | M1: B Dis. | N1: Cd | O1: Cd Dis. | P1: CN | Q1: Cloruro | R1: Cu | S1: Cu Dis. | T1: Co. Esp. | U1: Cr Dis. | V1: Cromo total | W1: DBO5 | X1: Deterg. | Y1: Sn | Z1: Sn Dis. | AA1: Fluoruro | AB1: HCF | AC1: HCV | AD1: Fe | AE1: Fe Dis. | AF1: Mn | AG1: Mn Dis. | AH1: Hg | AI1: Hg Dis. | AJ1: Mo | AK1: Mo Dis. | AL1: Ni | AM1: Ni Dis. | AN1: Nitritos | AO1: O Dis. | AP1: RAS | AQ1: Pb | AR1: Pb Dis. | AS1: SDT | AT1: SST | AU1: Se | AV1: Se Dis. | AW1: Sulfatos | AX1: Sulfuros | AY1: Zn | AZ1: Zn Dis. | BA1: Ph | BB1: T° | BC1: P tot. | BD1: N tot. | BE1: Nitratos | BF1: N Kjeldahl | BG1: DQO | BH1: N amoniacal
D2: [NMP/100 ml] | E2: [NMP/100 ml] | F2: [mg/L] | G2: [mg/L] | H2: [mg/L] | I2: [mg/L] | J2: [mg/L] | K2: [mg/L] | L2: [mg/L] | M2: [mg/L] | N2: [mg/L] | O2: [mg/L] | P2: [mg/L] | Q2: [mg/L] | R2: [mg/L] | S2: [mg/L] | T2: [uS/cm] | U2: [mg/L] | V2: [mg/L] | W2: [mg/L] | X2: [mg/L] | Y2: [mg/L] | Z2: [mg/L] | AA2: [mg/L] | AB2: [mg/L] | AC2: [mg/L] | AD2: [mg/L] | AE2: [mg/L] | AF2: [mg/L] | AG2: [mg/L] | AH2: [mg/L] | AI2: [mg/L] | AJ2: [mg/L] | AK2: [mg/L] | AL2: [mg/L] | AM2: [mg/L] | AN2: [mg/L] | AO2: [mg/L] | AP2: [%] | AQ2: [mg/L] | AR2: [mg/L] | AS2: [mg/L] | AT2: [mg/L] | AU2: [mg/L] | AV2: [mg/L] | AW2: [mg/L] | AX2: [mg/L] | AY2: [mg/L] | AZ2: [mg/L] | BA2: [-] | BB2: [°C] | BC2: [mg/L] | BD2: [mg/L] | BE2: [mg/L] | BF2: [mg/L] | BG2: [mg/L] | BH2: [mg/L]
A3: 1 | B3: 6941 | C3: 2006-03-01 | D3: 200 | E3: 500 | F3: <5 | G3: 1.21 | H3: 0.21 | I3: 0.04 | J3: 0.0158 | K3: 0.0104 | L3: <0,1 | M3: <0,1 | N3: <0,004 | O3: <0,0040 | P3: <0,01 | Q3: 28.63 | R3: 0.45 | S3: 0.1 | T3: 422 | U3: <0,05 | V3: <0,05 | W3: 2.9 | X3: <0,05 | Y3: <0,1 | Z3: <0,1 | AA3: 0.1 | AB3: <5 | AC3: ND | AD3: 2.23 | AE3: <0,05 | AF3: 0.11 | AG3: 0.05 | AH3: <0,001 | AI3: <0,001 | AJ3: <0,1 | AK3: <0,1 | AL3: <0,02 | AM3: <0,02 | AN3: * | AO3: 9.1 | AP3: * | AQ3: 0.0137 | AR3: <0,0100 | AS3: 205 | AT3: 55 | AU3: <0,0050 | AV3: <0,0050 | AW3: 134 | AX3: 4.48 | AY3: <0,05 | AZ3: <0,05 | BA3: 8 | BB3: 17.9 | BC3: * | BD3: * | BE3: * | BF3: * | BG3: * | BH3: *
A4: 2 | B4: 18751 | C4: 2006-06-05 | D4: 800 | E4: 5000 | F4: 6 | G4: 0.23 | H4: 0.16 | I4: 0.69 | J4: 0.0201 | K4: 0.0197 | L4: <0,1 | M4: <0,1 | N4: <0,004 | O4: <0,0040 | P4: <0,01 | Q4: 48.93 | R4: 0.03 | S4: <0,03 | T4: 561 | U4: <0,05 | V4: <0,05 | W4: 2.5 | X4: <0,05 | Y4: * | Z4: * | AA4: <0,05 | AB4: * | AC4: * | AD4: 0.25 | AE4: <0,05 | AF4: 0.03 | AG4: <0,03 | AH4: <0,001 | AI4: <0,001 | AJ4: <0,1 | AK4: <0,1 | AL4: <0,02 | AM4: <0,02 | AN4: <0,01 | AO4: 10 | AP4: * | AQ4: 0.0152 | AR4: 0.0119 | AS4: 333 | AT4: <5 | AU4: <0,0050 | AV4: <0,0050 | AW4: 103 | AX4: <0,15 | AY4: <0,15 | AZ4: <0,05 | BA4: 7.7 | BB4: 11.3 | BC4: * | BD4: * | BE4: * | BF4: * | BG4: * | BH4: *
A5: 3 | B5: 30627 | C5: 2006-09-07 | D5: 170 | E5: 300 | F5: 7.1 | G5: 0.47 | H5: 0.13 | I5: 0.55 | J5: 0.0136 | K5: 0.0115 | L5: <0,1 | M5: <0,1 | N5: <0,004 | O5: <0,0040 | P5: <0,01 | Q5: 34.35 | R5: 0.19 | S5: 0.06 | T5: 446 | U5: <0,05 | V5: <0,05 | W5: 2.6 | X5: <0,05 | Y5: * | Z5: * | AA5: 0.1 | AB5: * | AC5: * | AD5: 0.62 | AE5: <0,05 | AF5: 0.07 | AG5: 0.05 | AH5: <0,001 | AI5: <0,001 | AJ5: <0,1 | AK5: <0,1 | AL5: <0,02 | AM5: <0,02 | AN5: <0,01 | AO5: 10.4 | AP5: * | AQ5: <0,01 | AR5: <0,0100 | AS5: 233 | AT5: 7.3 | AU5: <0,0050 | AV5: <0,0050 | AW5: 114 | AX5: <0,15 | AY5: <0,05 | AZ5: <0,05 | BA5: 7.7 | BB5: 13.5 | BC5: * | BD5: * | BE5: * | BF5: * | BG5: * | BH5: *
A6: 4 | B6: 42159 | C6: 2006-12-04 | D6: 500 | E6: 5000 | F6: 3.8 | G6: 1.83 | H6: 0.93 | I6: 0.08 | J6: 0.0202 | K6: 0.0079 | L6: <0,1 | M6: <0,1 | N6: <0,003 | O6: <0,0040 | P6: <0,01 | Q6: 18.25 | R6: 0.4 | S6: <0,03 | T6: 339 | U6: <0,01 | V6: <0,01 | W6: 2.5 | X6: <0,05 | Y6: * | Z6: * | AA6: 0.1 | AB6: * | AC6: * | AD6: 11.45 | AE6: 0.04 | AF6: 0.25 | AG6: 0.03 | AH6: <0,001 | AI6: <0,001 | AJ6: <0,1 | AK6: <0,1 | AL6: <0,02 | AM6: <0,02 | AN6: 0.03 | AO6: 10.4 | AP6: * | AQ6: 0.0152 | AR6: <0,0100 | AS6: 187 | AT6: 186 | AU6: <0,003 | AV6: <0,0050 | AW6: 59.7 | AX6: <0,15 | AY6: 0.06 | AZ6: <0,05 | BA6: 7.8 | BB6: 17.2 | BC6: * | BD6: * | BE6: * | BF6: * | BG6: * | BH6: *
A7: 5 | B7: 8632 | C7: 2007-03-12 | D7: 800 | E7: 3000 | F7: 6.4 | G7: 0.86 | H7: <0,1 | I7: 0.07 | J7: 0.0153 | K7: 0.0129 | L7: <0,1 | M7: <0,1 | N7: <0,003 | O7: <0,003 | P7: <0,01 | Q7: 28.9 | R7: 0.05 | S7: <0,03 | T7: 518 | U7: <0,002 | V7: <0,002 | W7: 10.4 | X7: <0,05 | Y7: <0,1 | Z7: <0,1 | AA7: 0.1 | AB7: * | AC7: * | AD7: 1.82 | AE7: <0,05 | AF7: 0.06 | AG7: <0,02 | AH7: <0,001 | AI7: <0,001 | AJ7: <0,003 | AK7: <0,003 | AL7: <0,02 | AM7: <0,02 | AN7: 0.05 | AO7: 7.9 | AP7: * | AQ7: 0.0165 | AR7: 0.011 | AS7: 210 | AT7: 37.3 | AU7: <0,003 | AV7: <0,003 | AW7: 103 | AX7: <0,15 | AY7: 0.02 | AZ7: <0,02 | BA7: 7.4 | BB7: 15 | BC7: * | BD7: * | BE7: * | BF7: * | BG7: * | BH7: *
A8: 6 | B8: 19588 | C8: 2007-06-18 | D8: 30 | E8: 800 | F8: <5 | G8: 0.35 | H8: <0,1 | I8: 1.36 | J8: 0.0186 | K8: 0.0179 | L8: <0,1 | M8: <0,1 | N8: <0,003 | O8: <0,003 | P8: <0,01 | Q8: 60.98 | R8: 0.1 | S8: 0.03 | T8: 639 | U8: <0,002 | V8: <0,002 | W8: 3.2 | X8: <0,05 | Y8: <0,1 | Z8: <0,1 | AA8: 0.1 | AB8: * | AC8: * | AD8: 0.51 | AE8: <0,05 | AF8: 0.04 | AG8: 0.03 | AH8: <0,001 | AI8: <0,001 | AJ8: <0,003 | AK8: <0,003 | AL8: <0,02 | AM8: <0,02 | AN8: <0,01 | AO8: 7.71 | AP8: * | AQ8: 0.0112 | AR8: <0,0100 | AS8: 334 | AT8: 7.7 | AU8: <0,003 | AV8: <0,003 | AW8: 98 | AX8: <0,15 | AY8: 0.03 | AZ8: <0,02 | BA8: 7.7 | BB8: 10 | BC8: * | BD8: * | BE8: * | BF8: * | BG8: * | BH8: *
A9: 7 | B9: 27860 | C9: 2007-09-10 | D9: 70 | E9: 110 | F9: 8.3 | G9: 1.86 | H9: 0.3 | I9: 0.18 | J9: 0.02 | K9: 0.0156 | L9: <0,1 | M9: <0,1 | N9: <0,003 | O9: <0,003 | P9: <0,01 | Q9: 38.81 | R9: 0.26 | S9: <0,03 | T9: 419 | U9: <0,002 | V9: <0,002 | W9: <2 | X9: <0,05 | Y9: <0,1 | Z9: <0,1 | AA9: 0.1 | AB9: * | AC9: * | AD9: 3.6 | AE9: <0,05 | AF9: 0.07 | AG9: 0.02 | AH9: <0,001 | AI9: <0,001 | AJ9: <0,003 | AK9: <0,003 | AL9: <0,02 | AM9: <0,02 | AN9: <0,01 | AO9: 10.6 | AP9: * | AQ9: 0.013 | AR9: <0,0100 | AS9: 230 | AT9: 52 | AU9: <0,003 | AV9: <0,003 | AW9: 65.4 | AX9: <0,15 | AY9: <0,02 | AZ9: <0,02 | BA9: 8.2 | BB9: 6 | BC9: * | BD9: * | BE9: * | BF9: * | BG9: * | BH9: *
A10: 8 | B10: 36037 | C10: 2007-12-03 | D10: 300 | E10: 9000 | F10: 15 | G10: 4.11 | H10: 1.54 | I10: 0.1 | J10: 0.0149 | K10: 0.0087 | L10: <0,1 | M10: <0,1 | N10: <0,003 | O10: <0,003 | P10: <0,01 | Q10: 30.41 | R10: 0.15 | S10: <0,03 | T10: 386 | U10: 0.02 | V10: 0.02 | W10: 3.3 | X10: <0,05 | Y10: <0,1 | Z10: <0,1 | AA10: 0.1 | AB10: * | AC10: * | AD10: 8.08 | AE10: <0,05 | AF10: 0.19 | AG10: <0,02 | AH10: <0,001 | AI10: <0,001 | AJ10: <0,003 | AK10: <0,003 | AL10: <0,02 | AM10: <0,02 | AN10: 0.04 | AO10: 8.3 | AP10: * | AQ10: 0.0202 | AR10: <0,0100 | AS10: 315 | AT10: 111 | AU10: <0,003 | AV10: <0,003 | AW10: 71.8 | AX10: <0,15 | AY10: 0.05 | AZ10: <0,02 | BA10: 8 | BB10: 15 | BC10: * | BD10: * | BE10: * | BF10: * | BG10: * | BH10: *
A11: 9 | B11: 6755 | C11: 2008-03-10 | D11: 1300 | E11: 7000 | F11: <5 | G11: 2.96 | H11: <0,5 | I11: 0.36 | J11: 0.0158 | K11: 0.0132 | L11: <0,1 | M11: <0,1 | N11: <0,003 | O11: <0,003 | P11: <0,01 | Q11: 44.86 | R11: 0.05 | S11: <0,03 | T11: 485 | U11: <0,002 | V11: 0.00487 | W11: 2.5 | X11: <0,05 | Y11: <0,1 | Z11: <0,1 | AA11: 0.1 | AB11: ND | AC11: ND | AD11: 1.56 | AE11: <0,05 | AF11: 0.07 | AG11: <0,02 | AH11: <0,001 | AI11: <0,001 | AJ11: 0.006 | AK11: 0.004 | AL11: <0,03 | AM11: <0,03 | AN11: 0.2 | AO11: 8.1 | AP11: * | AQ11: 0.0115 | AR11: <0,0100 | AS11: 308 | AT11: 58 | AU11: <0,003 | AV11: <0,003 | AW11: 91 | AX11: <0,15 | AY11: 0.03 | AZ11: <0,02 | BA11: 7.4 | BB11: 20.9 | BC11: * | BD11: * | BE11: * | BF11: * | BG11: * | BH11: *
A12: 10 | B12: 15541 | C12: 2008-06-09 | D12: 300 | E12: 1300 | F12: <5 | G12: 14.8 | H12: <0,5 | I12: 0.45 | J12: 0.0231 | K12: 0.0077 | L12: <0,1 | M12: <0,1 | N12: <0,003 | O12: <0,003 | P12: <0,01 | Q12: 26.91 | R12: 0.31 | S12: <0,03 | T12: 354 | U12: <0,002 | V12: <0,002 | W12: <2 | X12: 0.88 | Y12: <0,1 | Z12: <0,1 | AA12: 0.1 | AB12: ND | AC12: ND | AD12: 22.28 | AE12: <0,05 | AF12: 0.51 | AG12: 0.05 | AH12: 0.001 | AI12: <0,001 | AJ12: * | AK12: * | AL12: <0,03 | AM12: <0,03 | AN12: <0,01 | AO12: 11.6 | AP12: * | AQ12: <0,01 | AR12: <0,0100 | AS12: 121 | AT12: 406 | AU12: <0,003 | AV12: <0,003 | AW12: 55 | AX12: <0,15 | AY12: 0.1 | AZ12: <0,02 | BA12: 6.9 | BB12: 9 | BC12: * | BD12: * | BE12: * | BF12: * | BG12: * | BH12: *
A13: 11 | B13: 24080 | C13: 2008-09-01 | D13: 40 | E13: 1100 | F13: <5 | G13: 2.86 | H13: 0.0099 | I13: 0.49 | J13: 0.0151 | K13: <0,5 | L13: <0,1 | M13: <0,1 | N13: <0,003 | O13: <0,003 | P13: <0,01 | Q13: 30.6 | R13: 0.21 | S13: <0,03 | T13: 391 | U13: <0,002 | V13: <0,002 | W13: <2 | X13: <0,05 | Y13: <0,1 | Z13: <0,1 | AA13: 0.1 | AB13: * | AC13: * | AD13: 6.44 | AE13: <0,05 | AF13: 0.13 | AG13: 0.03 | AH13: <0,001 | AI13: <0,001 | AJ13: 0.0186 | AK13: <0,003 | AL13: <0,03 | AM13: <0,03 | AN13: 0.03 | AO13: 10.2 | AP13: * | AQ13: 0.0141 | AR13: <0,0100 | AS13: 189 | AT13: 89 | AU13: <0,003 | AV13: <0,003 | AW13: 49 | AX13: <0,15 | AY13: 0.03 | AZ13: <0,02 | BA13: 7.1 | BB13: 13.3 | BC13: * | BD13: * | BE13: * | BF13: * | BG13: * | BH13: *
A14: 12 | B14: 32986 | C14: 2008-12-01 | D14: 800 | E14: 24000 | F14: <5 | G14: 21.7 | H14: <0,5 | I14: 0.17 | J14: 0.0183 | K14: 0.0071 | L14: 0.24 | M14: <0,1 | N14: <0,003 | O14: <0,003 | P14: <0,01 | Q14: 20.4 | R14: 0.77 | S14: <0,03 | T14: 323 | U14: <0,002 | V14: 0.0022 | W14: <2 | X14: <0,05 | Y14: <0,1 | Z14: <0,1 | AA14: 0.1 | AB14: * | AC14: * | AD14: 32.65 | AE14: <0,05 | AF14: 0.77 | AG14: 0.04 | AH14: <0,001 | AI14: <0,001 | AJ14: 0.00439 | AK14: <0,003 | AL14: <0,03 | AM14: <0,03 | AN14: <0,015 | AO14: 9.9 | AP14: * | AQ14: 0.0333 | AR14: <0,0100 | AS14: 134 | AT14: 487 | AU14: <0,003 | AV14: <0,003 | AW14: 26 | AX14: <0,15 | AY14: 0.09 | AZ14: <0,02 | BA14: 7.4 | BB14: 4 | BC14: * | BD14: * | BE14: * | BF14: * | BG14: * | BH14: *
A15: 13 | B15: 7401 | C15: 2009-03-16 | D15: 3000 | E15: 7000 | F15: <5 | G15: 5.44 | H15: <0,5 | I15: 0.32 | J15: 0.0113 | K15: 0.0097 | L15: <0,1 | M15: <0,1 | N15: <0,003 | O15: <0,003 | P15: <0,01 | Q15: 31.49 | R15: 0.04 | S15: <0,03 | T15: 415 | U15: <0,002 | V15: 0.00256 | W15: <2 | X15: <0,05 | Y15: <0,1 | Z15: <0,1 | AA15: 0.1 | AB15: * | AC15: * | AD15: 3.79 | AE15: <0,05 | AF15: 0.15 | AG15: <0,02 | AH15: <0,001 | AI15: <0,001 | AJ15: 0.00316 | AK15: <0,003 | AL15: <0,03 | AM15: <0,03 | AN15: 0.128 | AO15: 8.1 | AP15: * | AQ15: 0.0169 | AR15: <0,0100 | AS15: 252 | AT15: 118 | AU15: <0,003 | AV15: <0,003 | AW15: 86 | AX15: <0,15 | AY15: 0.03 | AZ15: <0,02 | BA15: 7.6 | BB15: 13 | BC15: * | BD15: * | BE15: * | BF15: * | BG15: * | BH15: *
A16: 14 | B16: 14861 | C16: 2009-06-01 | D16: 500 | E16: 1700 | F16: <5 | G16: 1.33 | H16: <0,5 | I16: 0.49 | J16: 0.0163 | K16: 0.0146 | L16: 0.96 | M16: <0,1 | N16: <0,003 | O16: <0,003 | P16: <0,01 | Q16: 53.08 | R16: * | S16: <0,03 | T16: 565 | U16: <0,002 | V16: <0,002 | W16: <2 | X16: <0,05 | Y16: <0,1 | Z16: <0,1 | AA16: 0.1 | AB16: * | AC16: * | AD16: 1.29 | AE16: <0,05 | AF16: 0.05 | AG16: <0,02 | AH16: <0,001 | AI16: <0,001 | AJ16: 0.00623 | AK16: 0.00314 | AL16: <0,03 | AM16: <0,03 | AN16: 0.153 | AO16: 11.4 | AP16: * | AQ16: 0.0114 | AR16: <0,0100 | AS16: 329 | AT16: 31.2 | AU16: <0,003 | AV16: <0,003 | AW16: 104 | AX16: <0,15 | AY16: <0,02 | AZ16: <0,02 | BA16: 7.3 | BB16: 13.5 | BC16: * | BD16: * | BE16: * | BF16: * | BG16: * | BH16: *
A17: 15 | B17: 23277 | C17: 2009-09-01 | D17: 140 | E17: 2300 | F17: 8 | G17: 3.19 | H17: <0,5 | I17: 1.51 | J17: 0.0149 | K17: 0.0129 | L17: <0,1 | M17: <,01 | N17: <0,003 | O17: <0,003 | P17: <0,01 | Q17: 39.51 | R17: 0.12 | S17: <0,03 | T17: 409 | U17: <0,002 | V17: <0,002 | W17: <2 | X17: <0,05 | Y17: <0,1 | Z17: <0,1 | AA17: 0.1 | AB17: * | AC17: * | AD17: 2.77 | AE17: <0,05 | AF17: 0.08 | AG17: <0,02 | AH17: <0,001 | AI17: <0,001 | AJ17: <0,003 | AK17: <0,003 | AL17: <0,03 | AM17: <0,03 | AN17: 0.071 | AO17: 10 | AP17: * | AQ17: 0.0117 | AR17: <0,0100 | AS17: 254 | AT17: 52 | AU17: <0,003 | AV17: <0,003 | AW17: 63 | AX17: <0,15 | AY17: <0,02 | AZ17: <0,02 | BA17: 8.2 | BB17: 15.1 | BC17: * | BD17: * | BE17: * | BF17: * | BG17: * | BH17: *
A18: 16 | B18: 32347 | C18: 2009-12-01 | D18: 13000 | E18: 24000 | F18: <5 | G18: 9.88 | H18: <0,5 | I18: 0.32 | J18: 0.0229 | K18: 0.0121 | L18: <0,1 | M18: <,01 | N18: <0,003 | O18: <0,003 | P18: <0,01 | Q18: 31.43 | R18: 0.28 | S18: <0,03 | T18: 364 | U18: <0,002 | V18: <0,002 | W18: <2 | X18: <0,05 | Y18: <0,1 | Z18: <0,1 | AA18: 0.1 | AB18: * | AC18: * | AD18: 15.11 | AE18: <0,05 | AF18: 0.35 | AG18: <0,02 | AH18: <0,001 | AI18: <0,001 | AJ18: <0,003 | AK18: <0,003 | AL18: <0,03 | AM18: <0,03 | AN18: 0.223 | AO18: 9.2 | AP18: * | AQ18: 0.0183 | AR18: <0,0100 | AS18: 229 | AT18: 247 | AU18: <0,003 | AV18: <0,003 | AW18: 25 | AX18: <0,15 | AY18: 0.06 | AZ18: <0,02 | BA18: 8 | BB18: 17.4 | BC18: * | BD18: * | BE18: * | BF18: * | BG18: * | BH18: *
A19: 17 | B19: 27552 | C19: 2010-09-27 | D19: 2300 | E19: 9000 | F19: 5.1 | G19: 1.38 | H19: <0,5 | I19: 3.08 | J19: 0.0158 | K19: 0.0145 | L19: <0,1 | M19: <,01 | N19: <0,003 | O19: <0,003 | P19: <0,01 | Q19: 74.01 | R19: 0.07 | S19: <0,03 | T19: 661 | U19: 0.004 | V19: 0.006 | W19: 8.1 | X19: <0,05 | Y19: <0,1 | Z19: <0,1 | AA19: 0.1 | AB19: * | AC19: * | AD19: 1.52 | AE19: <0,05 | AF19: 0.05 | AG19: <0,02 | AH19: <0,001 | AI19: <0,001 | AJ19: 0.006 | AK19: 0.005 | AL19: <0,03 | AM19: <0,03 | AN19: 1.185 | AO19: 8.8 | AP19: * | AQ19: 0.0179 | AR19: 0.0125 | AS19: 414 | AT19: 24.3 | AU19: <0,003 | AV19: <0,003 | AW19: 92 | AX19: <0,15 | AY19: 0.02 | AZ19: 0.03 | BA19: 7.7 | BB19: 16.2 | BC19: * | BD19: * | BE19: * | BF19: * | BG19: * | BH19: *
A20: 18 | B20: 9054 | C20: 2011-03-01 | D20: 80 | E20: 3000 | F20: <5 | G20: 0.4 | H20: <0,5 | I20: 0.11 | J20: 0.0121 | K20: 0.0116 | L20: <0,1 | M20: <0,1 | N20: <0,003 | O20: <0,003 | P20: <0,01 | Q20: 61.46 | R20: <0,03 | S20: <0,03 | T20: 616 | U20: 0.00273 | V20: 0.00287 | W20: 2 | X20: 0.18 | Y20: <0,1 | Z20: <0,1 | AA20: 0.1 | AB20: * | AC20: * | AD20: 0.24 | AE20: <0,05 | AF20: <0,02 | AG20: <0,02 | AH20: <0,001 | AI20: <0,001 | AJ20: 0.0045 | AK20: 0.00436 | AL20: <0,03 | AM20: <0,03 | AN20: 0.171 | AO20: 9.3 | AP20: * | AQ20: 0.0137 | AR20: 0.013 | AS20: 438 | AT20: 11.1 | AU20: <0,003 | AV20: <0,003 | AW20: 108 | AX20: <0,15 | AY20: 0.02 | AZ20: <0,02 | BA20: 9.4 | BB20: 21.4 | BC20: * | BD20: * | BE20: * | BF20: * | BG20: * | BH20: *
A21: 19 | B21: 17333 | C21: 2011-06-01 | D21: 170 | E21: 1100 | F21: 14.5 | G21: 0.55 | H21: <0,5 | I21: <0,03 | J21: 0.00315 | K21: 0.0214 | L21: <0,5 | M21: <0,5 | N21: <0,003 | O21: <0,003 | P21: <0,05 | Q21: 85.91 | R21: <0,03 | S21: <0,03 | T21: 713 | U21: <0,002 | V21: <0,002 | W21: <2 | X21: <0,1 | Y21: <0,5 | Z21: <0,5 | AA21: 0.2 | AB21: * | AC21: * | AD21: 0.64 | AE21: 0.78 | AF21: 0.03 | AG21: <0,02 | AH21: <0,001 | AI21: <0,001 | AJ21: 0.00471 | AK21: 0.00306 | AL21: 0.06 | AM21: <0,03 | AN21: 0.232 | AO21: 10.77 | AP21: * | AQ21: 0.0147 | AR21: 0.0121 | AS21: 465 | AT21: 25.3 | AU21: * | AV21: * | AW21: 42 | AX21: <1 | AY21: 4 | AZ21: <0,02 | BA21: 8.5 | BB21: 12.5 | BC21: * | BD21: * | BE21: * | BF21: * | BG21: * | BH21: *
A22: 20 | B22: 29360 | C22: 2011-09-01 | D22: 3000 | E22: 3000 | F22: 15.6 | G22: 4.15 | H22: <0,5 | I22: 1.11 | J22: 0.0235 | K22: 0.0143 | L22: 0.46 | M22: 0.35 | N22: <0,003 | O22: <0,003 | P22: <0,02 | Q22: 55.87 | R22: 0.1 | S22: <0,03 | T22: 499 | U22: <0,002 | V22: <0,002 | W22: 5.9 | X22: <0,1 | Y22: <0,5 | Z22: <0,5 | AA22: 0.2 | AB22: * | AC22: * | AD22: 3.22 | AE22: <0,05 | AF22: 0.13 | AG22: <0,02 | AH22: <0,001 | AI22: <0,001 | AJ22: <0,003 | AK22: <0,003 | AL22: <0,03 | AM22: <0,03 | AN22: 4.57 | AO22: 8.2 | AP22: * | AQ22: <0,0100 | AR22: <0,0100 | AS22: 290 | AT22: 114 | AU22: <0,003 | AV22: <0,003 | AW22: 82 | AX22: <1 | AY22: 0.05 | AZ22: <0,02 | BA22: 7.3 | BB22: 18.2 | BC22: * | BD22: * | BE22: * | BF22: * | BG22: * | BH22: *
A23: 21 | B23: 36386 | C23: 2011-12-22 | D23: 1300 | E23: 24000 | F23: <5 | G23: 9.64 | H23: <0,5 | I23: 0.27 | J23: 0.023 | K23: 0.009 | L23: 0.23 | M23: 0.21 | N23: <0,003 | O23: <0,003 | P23: <0,05 | Q23: 30.89 | R23: 0.16 | S23: <0,03 | T23: 416 | U23: 0.00318 | V23: 0.00399 | W23: 2.9 | X23: <0,1 | Y23: <0,01 | Z23: <0,5 | AA23: 0.1 | AB23: * | AC23: * | AD23: 9.66 | AE23: <0,05 | AF23: 0.29 | AG23: <0,02 | AH23: <0,001 | AI23: <0,001 | AJ23: 0.00394 | AK23: <0,003 | AL23: <0,03 | AM23: <0,03 | AN23: 0.249 | AO23: 7.9 | AP23: * | AQ23: 0.0173 | AR23: <0,0100 | AS23: 311 | AT23: 270 | AU23: <0,003 | AV23: <0,003 | AW23: 55 | AX23: <1 | AY23: 0.05 | AZ23: <0,02 | BA23: 7.5 | BB23: 11 | BC23: * | BD23: * | BE23: * | BF23: * | BG23: * | BH23: *
A24: 22 | B24: 9433 | C24: 2012-03-28 | D24: 210 | E24: 3500 | F24: <10 | G24: * | H24: * | I24: 0.55 | J24: * | K24: * | L24: * | M24: * | N24: * | O24: * | P24: * | Q24: 54.48 | R24: * | S24: * | T24: 597 | U24: * | V24: * | W24: <2 | X24: <0,1 | Y24: * | Z24: * | AA24: * | AB24: * | AC24: * | AD24: 0.26 | AE24: <0,05 | AF24: * | AG24: * | AH24: * | AI24: * | AJ24: 0.01 | AK24: 0.007 | AL24: * | AM24: * | AN24: * | AO24: 14.4 | AP24: * | AQ24: * | AR24: * | AS24: 103 | AT24: 7.6 | AU24: * | AV24: * | AW24: * | AX24: * | AY24: * | AZ24: * | BA24: 9.3 | BB24: 21.4 | BC24: <0,2 | BD24: * | BE24: 12.99 | BF24: * | BG24: * | BH24: *
A25: 23 | B25: 17696 | C25: 2012-06-11 | D25: 170 | E25: 8000 | F25: <10 | G25: * | H25: * | I25: * | J25: * | K25: * | L25: * | M25: * | N25: * | O25: * | P25: * | Q25: * | R25: * | S25: * | T25: 637 | U25: * | V25: * | W25: <2 | X25: * | Y25: * | Z25: * | AA25: * | AB25: * | AC25: * | AD25: * | AE25: * | AF25: * | AG25: * | AH25: * | AI25: * | AJ25: * | AK25: * | AL25: * | AM25: * | AN25: * | AO25: 26.5 | AP25: * | AQ25: * | AR25: * | AS25: 405 | AT25: 14.9 | AU25: * | AV25: * | AW25: * | AX25: * | AY25: * | AZ25: * | BA25: 7.52 | BB25: 11.5 | BC25: 0.4 | BD25: 2.35 | BE25: 3.99 | BF25: * | BG25: * | BH25: *
A26: 24 | B26: 29569 | C26: 01-10-2012 | D26: 8000 | E26: 8000 | F26: <5 | G26: * | H26: * | I26: * | J26: * | K26: * | L26: * | M26: * | N26: * | O26: * | P26: * | Q26: * | R26: * | S26: * | T26: 575 | U26: * | V26: * | W26: 5.1 | X26: * | Y26: * | Z26: * | AA26: * | AB26: * | AC26: * | AD26: * | AE26: * | AF26: * | AG26: * | AH26: * | AI26: * | AJ26: * | AK26: * | AL26: * | AM26: * | AN26: * | AO26: 9 | AP26: * | AQ26: * | AR26: * | AS26: 406 | AT26: 41.3 | AU26: * | AV26: * | AW26: * | AX26: * | AY26: * | AZ26: * | BA26: 8 | BB26: 7 | BC26: 0.7 | BD26: * | BE26: 13.19 | BF26: * | BG26: * | BH26: *
A27: 25 | B27: 38019 | C27: 2012-12-12 | D27: 500 | E27: 13000 | F27: <5 | G27: * | H27: * | I27: * | J27: * | K27: * | L27: * | M27: * | N27: * | O27: * | P27: * | Q27: * | R27: * | S27: * | T27: 448 | U27: * | V27: * | W27: 2.8 | X27: * | Y27: * | Z27: * | AA27: * | AB27: * | AC27: * | AD27: * | AE27: * | AF27: * | AG27: * | AH27: * | AI27: * | AJ27: * | AK27: * | AL27: * | AM27: * | AN27: 0.142 | AO27: 7.4 | AP27: * | AQ27: * | AR27: * | AS27: 323 | AT27: 283 | AU27: * | AV27: * | AW27: * | AX27: * | AY27: * | AZ27: * | BA27: 7.75 | BB27: 21 | BC27: 1 | BD27: 1.83 | BE27: 3.99 | BF27: <1 | BG27: * | BH27: *
A28: 26 | B28: 8954 | C28: 2013-03-20 | D28: 1300 | E28: >1,60e+4 | F28: <5 | G28: * | H28: * | I28: 0.33 | J28: * | K28: * | L28: 0.33 | M28: 0.27 | N28: * | O28: * | P28: * | Q28: * | R28: * | S28: * | T28: 595 | U28: * | V28: * | W28: 3.3 | X28: <0,1 | Y28: * | Z28: * | AA28: * | AB28: * | AC28: * | AD28: 0.79 | AE28: <0,01 | AF28: * | AG28: * | AH28: * | AI28: * | AJ28: <0,005 | AK28: <0,005 | AL28: * | AM28: * | AN28: * | AO28: 8.43 | AP28: * | AQ28: * | AR28: * | AS28: 464 | AT28: 32.1 | AU28: * | AV28: * | AW28: * | AX28: * | AY28: * | AZ28: * | BA28: 9.13 | BB28: 21.4 | BC28: 0.8 | BD28: * | BE28: 12.84 | BF28: * | BG28: * | BH28: *
A29: 27 | B29: 21507 | C29: 2013-06-26 | D29: 26 | E29: >1,60e+3 | F29: <5 | G29: * | H29: * | I29: * | J29: * | K29: * | L29: * | M29: * | N29: * | O29: * | P29: * | Q29: * | R29: * | S29: * | T29: 675 | U29: * | V29: * | W29: 3.7 | X29: * | Y29: * | Z29: * | AA29: * | AB29: * | AC29: * | AD29: * | AE29: * | AF29: * | AG29: * | AH29: * | AI29: * | AJ29: * | AK29: * | AL29: * | AM29: * | AN29: 0.12 | AO29: 12.46 | AP29: * | AQ29: * | AR29: * | AS29: 411 | AT29: 72 | AU29: * | AV29: * | AW29: * | AX29: * | AY29: * | AZ29: * | BA29: 8.07 | BB29: 8.5 | BC29: 0.3 | BD29: 1.77 | BE29: 0.58 | BF29: 1.6 | BG29: * | BH29: *
A30: 28 | B30: 36179 | C30: 2013-09-25 | D30: 8 | E30: 5000 | F30: <5 | G30: * | H30: * | I30: * | J30: * | K30: * | L30: * | M30: * | N30: * | O30: * | P30: * | Q30: * | R30: * | S30: * | T30: 664 | U30: * | V30: * | W30: 3 | X30: * | Y30: * | Z30: * | AA30: * | AB30: * | AC30: * | AD30: * | AE30: * | AF30: * | AG30: * | AH30: * | AI30: * | AJ30: * | AK30: * | AL30: * | AM30: * | AN30: <0,015 | AO30: 7.4 | AP30: * | AQ30: * | AR30: * | AS30: 443 | AT30: <5 | AU30: * | AV30: * | AW30: * | AX30: * | AY30: * | AZ30: * | BA30: 7.27 | BB30: 19 | BC30: <0,1 | BD30: 3.2 | BE30: 14.17 | BF30: <0,2 | BG30: * | BH30: *
A31: 29 | B31: 47014 | C31: 2013-12-04 | D31: 230 | E31: 2400 | F31: <5 | G31: * | H31: * | I31: * | J31: * | K31: * | L31: * | M31: * | N31: * | O31: * | P31: * | Q31: * | R31: * | S31: * | T31: 622 | U31: * | V31: * | W31: 5.9 | X31: * | Y31: * | Z31: * | AA31: * | AB31: * | AC31: * | AD31: * | AE31: * | AF31: * | AG31: * | AH31: * | AI31: * | AJ31: * | AK31: * | AL31: * | AM31: * | AN31: 0.062 | AO31: 6.3 | AP31: * | AQ31: * | AR31: * | AS31: 448 | AT31: 48.1 | AU31: * | AV31: * | AW31: * | AX31: * | AY31: * | AZ31: * | BA31: 7.5 | BB31: 19.8 | BC31: 0.7 | BD31: 2.94 | BE31: 11.77 | BF31: <1 | BG31: * | BH31: *
A32: 30 | B32: 12444 | C32: 2014-03-26 | D32: 23 | E32: 23 | F32: <5 | G32: * | H32: * | I32: * | J32: 0.012 | K32: 0.009 | L32: * | M32: * | N32: * | O32: * | P32: <0,02 | Q32: 51.05 | R32: * | S32: * | T32: 640 | U32: * | V32: * | W32: 5.8 | X32: <0,1 | Y32: * | Z32: * | AA32: * | AB32: * | AC32: * | AD32: * | AE32: * | AF32: * | AG32: * | AH32: * | AI32: * | AJ32: * | AK32: * | AL32: * | AM32: * | AN32: 0.483 | AO32: 12.3 | AP32: * | AQ32: * | AR32: * | AS32: 448 | AT32: <5 | AU32: * | AV32: * | AW32: * | AX32: * | AY32: * | AZ32: * | BA32: 7.64 | BB32: 19.7 | BC32: 0.3 | BD32: 3.73 | BE32: 15.86 | BF32: <0,2 | BG32: 10 | BH32: *
A33: 31 | B33: 25092 | C33: 2014-06-18 | D33: * | E33: * | F33: <5 | G33: * | H33: * | I33: * | J33: * | K33: * | L33: * | M33: * | N33: * | O33: * | P33: * | Q33: 52.27 | R33: * | S33: * | T33: 641 | U33: * | V33: * | W33: 4.1 | X33: <0,1 | Y33: * | Z33: * | AA33: * | AB33: * | AC33: * | AD33: * | AE33: * | AF33: * | AG33: * | AH33: * | AI33: * | AJ33: * | AK33: * | AL33: * | AM33: * | AN33: * | AO33: 9.7 | AP33: * | AQ33: * | AR33: * | AS33: 404 | AT33: 37.1 | AU33: * | AV33: * | AW33: * | AX33: * | AY33: * | AZ33: * | BA33: 7.53 | BB33: 13.5 | BC33: <0,1 | BD33: * | BE33: 11.18 | BF33: * | BG33: * | BH33: *
A34: 32 | B34: 40114 | C34: 2014-09-29 | D34: 700 | E34: 2800 | F34: <10 | G34: * | H34: * | I34: * | J34: * | K34: * | L34: * | M34: * | N34: * | O34: * | P34: * | Q34: 63.93 | R34: * | S34: * | T34: 653 | U34: * | V34: * | W34: 9.3 | X34: <0,1 | Y34: * | Z34: * | AA34: * | AB34: * | AC34: * | AD34: * | AE34: * | AF34: * | AG34: * | AH34: * | AI34: * | AJ34: * | AK34: * | AL34: * | AM34: * | AN34: * | AO34: 8.8 | AP34: * | AQ34: * | AR34: * | AS34: 379 | AT34: 54 | AU34: * | AV34: * | AW34: * | AX34: * | AY34: * | AZ34: * | BA34: 7.55 | BB34: 17.3 | BC34: 0.6 | BD34: * | BE34: 8.89 | BF34: * | BG34: * | BH34: *
B35: 53302 | C35: 2014-12-16 | D35: 13 | E35: 19 | F35: * | G35: * | H35: * | I35: <0,03 | J35: * | K35: * | L35: * | M35: * | N35: * | O35: * | P35: * | Q35: * | R35: * | S35: * | T35: 642 | U35: * | V35: * | W35: * | X35: * | Y35: * | Z35: * | AA35: * | AB35: * | AC35: * | AD35: * | AE35: * | AF35: * | AG35: * | AH35: * | AI35: * | AJ35: * | AK35: * | AL35: * | AM35: * | AN35: 0.058 | AO35: 10.5 | AP35: * | AQ35: * | AR35: * | AS35: 384 | AT35: 55 | AU35: * | AV35: * | AW35: * | AX35: * | AY35: * | AZ35: * | BA35: 7.42 | BB35: 17.9 | BC35: 0.3 | BD35: * | BE35: 10.87 | BF35: 0.6 | BG35: * | BH35: *
C38: Promedio | D38: =AVERAGE(D3:D27) -> 1507.2 | E38: =AVERAGE(E3:E27) -> 6588.4 | F38: 8.98 | G38: 4.247619048 | H38: 0.4685571429 | I38: 0.5857142857 | J38: 0.0168452381 | K38: 0.012635 | L38: 0.4725 | M38: 0.28 | Q38: 42.28 | R38: 0.2077777778 | S38: 0.06333333333 | T38: 487.92 | U38: 0.0074775 | V38: 0.00607 | W38: 4.05 | X38: 0.53 | AA38: 0.11 | AD38: 5.908636364 | AE38: 0.41 | AF38: 0.1715 | AG38: 0.0375 | AH38: 0.001 | AJ38: 0.006753 | AK38: 0.004426666667 | AL38: 0.06 | AN38: 0.4982666667 | AO38: 10.2072 | AQ38: 0.01587777778 | AR38: 0.0121 | AS38: 280.72 | AT38: 114 | AW38: 77.47142857 | AX38: 4.48 | AY38: 0.3093333333 | AZ38: 0.03 | BA38: 7.8148 | BB38: 14.092 | BC38: 0.7 | BD38: 2.09 | BE38: 8.54
C39: Percentil | D39: =PERCENTILE(D3:D27,0.66) -> 800 | E39: =PERCENTILE(E3:E27,0.66) -> 7000 | F39: 8.282 | G39: 3.374 | H39: 0.2964 | I39: 0.502 | J39: 0.01888 | K39: 0.013794 | L39: 0.4556 | M39: 0.3024 | Q39: 48.3602 | R39: 0.221 | S39: 0.0728 | T39: 554.12 | U39: 0.0039836 | V39: 0.0048348 | W39: 3.258 | X39: 0.642 | AA39: 0.1 | AD39: 3.7634 | AE39: 0.5284 | AF39: 0.1408 | AG39: 0.0462 | AH39: 0.001 | AJ39: 0.006 | AK39: 0.004552 | AL39: 0.06 | AN39: 0.20552 | AO39: 10.168 | AQ39: 0.016588 | AR39: 0.012356 | AS39: 321.72 | AT39: 111.54 | AW39: 93.2 | AX39: 4.48 | AY39: 0.0524 | AZ39: 0.03 | BA39: 7.968 | BB39: 16.024 | BC39: 0.796 | BD39: 2.1732 | BE39: 12.81

Sheet CA60 (hidden)
B1: Nro. Muestra | C1: Fecha Muestreo | D1: CF | E1: CT | F1: A y G | G1: Al | H1: Al Dis. | I1: NH4 | J1: As | K1: As Dis. | L1: B | M1: B Dis. | N1: Cd | O1: Cd Dis. | P1: CN | Q1: Cloruro | R1: Cu | S1: Cu Dis. | T1: Co. Esp. | U1: Cr Dis. | V1: Cromo total | W1: DBO5 | X1: Deterg. | Y1: Sn | Z1: Sn Dis. | AA1: Fluoruro | AB1: HCF | AC1: HCV | AD1: Fe | AE1: Fe Dis. | AF1: Mn | AG1: Mn Dis. | AH1: Hg | AI1: Hg Dis. | AJ1: Mo | AK1: Mo Dis. | AL1: Ni | AM1: Ni Dis. | AN1: Nitritos | AO1: O Dis. | AP1: RAS | AQ1: Pb | AR1: Pb Dis. | AS1: SDT | AT1: SST | AU1: Se | AV1: Se Dis. | AW1: Sulfatos | AX1: Sulfuros | AY1: Zn | AZ1: Zn Dis. | BA1: Ph | BB1: T° | BC1: P tot. | BD1: N tot. | BE1: Nitratos | BF1: N Kjeldahl | BG1: DQO | BH1: N amoniacal
D2: [NMP/100 ml] | E2: [NMP/100 ml] | F2: [mg/L] | G2: [mg/L] | H2: [mg/L] | I2: [mg/L] | J2: [mg/L] | K2: [mg/L] | L2: [mg/L] | M2: [mg/L] | N2: [mg/L] | O2: [mg/L] | P2: [mg/L] | Q2: [mg/L] | R2: [mg/L] | S2: [mg/L] | T2: [uS/cm] | U2: [mg/L] | V2: [mg/L] | W2: [mg/L] | X2: [mg/L] | Y2: [mg/L] | Z2: [mg/L] | AA2: [mg/L] | AB2: [mg/L] | AC2: [mg/L] | AD2: [mg/L] | AE2: [mg/L] | AF2: [mg/L] | AG2: [mg/L] | AH2: [mg/L] | AI2: [mg/L] | AJ2: [mg/L] | AK2: [mg/L] | AL2: [mg/L] | AM2: [mg/L] | AN2: [mg/L] | AO2: [mg/L] | AP2: [%] | AQ2: [mg/L] | AR2: [mg/L] | AS2: [mg/L] | AT2: [mg/L] | AU2: [mg/L] | AV2: [mg/L] | AW2: [mg/L] | AX2: [mg/L] | AY2: [mg/L] | AZ2: [mg/L] | BA2: [-] | BB2: [°C] | BC2: [mg/L] | BD2: [mg/L] | BE2: [mg/L] | BF2: [mg/L] | BG2: [mg/L] | BH2: [mg/L]
A3: 1 | B3: 6942 | C3: 2006-03-01 | D3: 500 | E3: 5000 | F3: 6 | G3: 0.77 | H3: 0.21 | I3: <0,03 | J3: 0.0132 | K3: <0,0100 | L3: <0,1 | M3: <0,1 | N3: <0,0040 | O3: <0,0040 | P3: <0,01 | Q3: 29.72 | R3: 0.21 | S3: 0.06 | T3: 486 | U3: <0,05 | V3: <0,05 | W3: 2.4 | X3: <0,05 | Y3: <0,1 | Z3: <0,1 | AA3: 0.1 | AB3: <5 | AC3: ND | AD3: 2.17 | AE3: 0.05 | AF3: 0.09 | AG3: <0,03 | AH3: <0,001 | AI3: <0,001 | AJ3: <0,1 | AK3: <0,1 | AL3: <0,02 | AM3: <0,02 | AN3: * | AO3: 9.5 | AP3: * | AQ3: 0.0233 | AR3: <0,01 | AS3: 271 | AT3: 46.8 | AU3: <0,0050 | AV3: <0,0050 | AW3: 120 | AX3: <0,1 | AY3: 0.05 | AZ3: <0,05 | BA3: 8.2 | BB3: 20.8 | BC3: * | BD3: * | BE3: * | BF3: * | BG3: * | BH3: *
A4: 2 | B4: 18752 | C4: 2006-06-05 | D4: 3000 | E4: 8000 | F4: 6 | G4: 0.86 | H4: 0.16 | I4: 0.09 | J4: 0.011 | K4: <0,0100 | L4: <0,1 | M4: <0,1 | N4: <0,0040 | O4: <0,0040 | P4: <0,01 | Q4: 36.96 | R4: 0.06 | S4: <0,03 | T4: 575 | U4: <0,05 | V4: <0,05 | W4: 2.3 | X4: <0,05 | Y4: * | Z4: * | AA4: 0.1 | AB4: * | AC4: * | AD4: 1.66 | AE4: 0.12 | AF4: 0.06 | AG4: <0,03 | AH4: <0,001 | AI4: <0,001 | AJ4: <0,1 | AK4: <0,1 | AL4: <0,02 | AM4: <0,02 | AN4: 0.03 | AO4: 8.9 | AP4: * | AQ4: 0.0206 | AR4: <0,01 | AS4: 364 | AT4: 19.3 | AU4: * | AV4: * | AW4: 53.5 | AX4: <0,15 | AY4: 0.15 | AZ4: <0,05 | BA4: 7.7 | BB4: 13.1 | BC4: * | BD4: * | BE4: * | BF4: * | BG4: * | BH4: *
A5: 3 | B5: 30628 | C5: 2006-09-04 | D5: 130 | E5: 230 | F5: 2.1 | G5: 0.47 | H5: <0,1 | I5: 0.36 | J5: <0,01 | K5: <0,0100 | L5: <0,1 | M5: <0,1 | N5: <0,0040 | O5: <0,0040 | P5: <0,01 | Q5: 30.53 | R5: 0.07 | S5: 0.03 | T5: 509 | U5: <0,05 | V5: <0,05 | W5: 3.4 | X5: <0,05 | Y5: * | Z5: * | AA5: 0.1 | AB5: * | AC5: * | AD5: 0.43 | AE5: <0,05 | AF5: 0.03 | AG5: <0,03 | AH5: <0,001 | AI5: <0,001 | AJ5: <0,1 | AK5: <0,1 | AL5: <0,02 | AM5: <0,02 | AN5: <0,01 | AO5: * | AP5: * | AQ5: <0,01 | AR5: <0,01 | AS5: 260 | AT5: 9.3 | AU5: <0,0050 | AV5: <0,0050 | AW5: 115 | AX5: <0,15 | AY5: 0.05 | AZ5: <0,05 | BA5: 8.5 | BB5: 14.5 | BC5: * | BD5: * | BE5: * | BF5: * | BG5: * | BH5: *
A6: 4 | B6: 42161 | C6: 2006-12-04 | D6: 130 | E6: 1300 | F6: 10.4 | G6: 1.79 | H6: 0.67 | I6: 0.09 | J6: 0.0143 | K6: 0.008 | L6: <0,1 | M6: <0,1 | N6: <0,003 | O6: <0,0040 | P6: <0,01 | Q6: 22.94 | R6: 0.39 | S6: <0,03 | T6: 395 | U6: <0,01 | V6: <0,01 | W6: 2.1 | X6: <0,05 | Y6: * | Z6: * | AA6: 0.1 | AB6: * | AC6: * | AD6: 9.2 | AE6: 0.06 | AF6: 0.21 | AG6: <0,02 | AH6: <0,001 | AI6: <0,001 | AJ6: <0,1 | AK6: <0,1 | AL6: <0,02 | AM6: <0,02 | AN6: 0.04 | AO6: 8.72 | AP6: * | AQ6: 0.0163 | AR6: <0,01 | AS6: 237 | AT6: 161 | AU6: <0,003 | AV6: <0,0050 | AW6: 70.4 | AX6: <0,15 | AY6: <0,06 | AZ6: <0,05 | BA6: 8.4 | BB6: 22.1 | BC6: * | BD6: * | BE6: * | BF6: * | BG6: * | BH6: *
A7: 5 | B7: 8633 | C7: 2007-03-12 | D7: 13000 | E7: 50000 | F7: 7.9 | G7: 0.57 | H7: <0,1 | I7: <0,03 | J7: 0.0086 | K7: 0.0069 | L7: <0,1 | M7: <0,1 | N7: <0,003 | O7: <0,003 | P7: <0,01 | Q7: 30.46 | R7: 0.04 | S7: <0,03 | T7: 618 | U7: <0,002 | V7: <0,002 | W7: 4.9 | X7: <0,05 | Y7: <0,1 | Z7: <0,1 | AA7: 0.1 | AB7: * | AC7: * | AD7: 1.36 | AE7: <0,05 | AF7: 0.04 | AG7: <0,02 | AH7: <0,001 | AI7: <0,001 | AJ7: <0,003 | AK7: <0,003 | AL7: <0,02 | AM7: <0,02 | AN7: <0,01 | AO7: 8.2 | AP7: * | AQ7: 0.019 | AR7: 0.0163 | AS7: 271 | AT7: 34.2 | AU7: <0,003 | AV7: <0,003 | AW7: 125 | AX7: <0,15 | AY7: 0.02 | AZ7: <0,02 | BA7: 8 | BB7: 19 | BC7: * | BD7: * | BE7: * | BF7: * | BG7: * | BH7: *
A8: 6 | B8: 19589 | C8: 2007-06-18 | D8: 2400 | E8: 2400 | F8: <5 | G8: 0.35 | H8: <0,1 | I8: 0.19 | J8: 0.0109 | K8: 0.0056 | L8: <0,1 | M8: <0,1 | N8: <0,003 | O8: <0,003 | P8: <0,01 | Q8: 38.67 | R8: <0,03 | S8: <0,03 | T8: 623 | U8: <0,002 | V8: <0,002 | W8: <2 | X8: <0,05 | Y8: <0,1 | Z8: <0,1 | AA8: 0.1 | AB8: * | AC8: * | AD8: 0.62 | AE8: <0,05 | AF8: 0.02 | AG8: <0,02 | AH8: <0,001 | AI8: <0,001 | AJ8: <0,003 | AK8: <0,003 | AL8: <0,02 | AM8: <0,02 | AN8: <0,01 | AO8: 7.54 | AP8: * | AQ8: 0.0137 | AR8: <0,01 | AS8: 352 | AT8: 10.7 | AU8: <0,003 | AV8: <0,003 | AW8: 98 | AX8: <0,15 | AY8: <0,03 | AZ8: 0.03 | BA8: 7.9 | BB8: 11 | BC8: * | BD8: * | BE8: * | BF8: * | BG8: * | BH8: *
A9: 7 | B9: 27862 | C9: 2007-09-10 | D9: 80 | E9: 360 | F9: <5 | G9: 0.48 | H9: 0.12 | I9: 0.13 | J9: 0.009 | K9: 0.0088 | L9: <0,1 | M9: <0,1 | N9: <0,003 | O9: <0,003 | P9: <0,01 | Q9: 31.1 | R9: 0.08 | S9: <0,03 | T9: 468 | U9: <0,002 | V9: <0,002 | W9: <2 | X9: <0,05 | Y9: <0,1 | Z9: <0,1 | AA9: 0.1 | AB9: * | AC9: * | AD9: 1.55 | AE9: <0,05 | AF9: 0.04 | AG9: <0,02 | AH9: <0,001 | AI9: <0,001 | AJ9: <0,003 | AK9: <0,003 | AL9: <0,02 | AM9: <0,02 | AN9: <0,01 | AO9: 11.4 | AP9: * | AQ9: 0.0128 | AR9: 0.0103 | AS9: 246 | AT9: 36.2 | AU9: <0,003 | AV9: <0,003 | AW9: 83.1 | AX9: <0,15 | AY9: 0.02 | AZ9: <0,02 | BA9: 7.7 | BB9: 7 | BC9: * | BD9: * | BE9: * | BF9: * | BG9: * | BH9: *
A10: 8 | B10: 36038 | C10: 2007-12-03 | D10: 130 | E10: 16000 | F10: 6.6 | G10: 2.44 | H10: 1.22 | I10: 0.09 | J10: 0.0102 | K10: 0.0059 | L10: <0,1 | M10: <0,1 | N10: <0,003 | O10: <0,003 | P10: <0,01 | Q10: 31.54 | R10: 0.08 | S10: <0,03 | T10: 414 | U10: <0,002 | V10: <0,002 | W10: 2 | X10: <0,05 | Y10: <0,1 | Z10: <0,1 | AA10: 0.1 | AB10: * | AC10: * | AD10: 3.35 | AE10: 0.05 | AF10: 0.09 | AG10: <0,02 | AH10: <0,001 | AI10: <0,001 | AJ10: <0,003 | AK10: <0,003 | AL10: <0,02 | AM10: <0,02 | AN10: 0.02 | AO10: 9.5 | AP10: * | AQ10: 0.0187 | AR10: 0.0128 | AS10: 315 | AT10: 98 | AU10: <0,003 | AV10: <0,003 | AW10: 83.6 | AX10: <0,15 | AY10: 0.02 | AZ10: <0,02 | BA10: 8.5 | BB10: 15 | BC10: * | BD10: * | BE10: * | BF10: * | BG10: * | BH10: *
A11: 9 | B11: 6756 | C11: 2008-03-10 | D11: 1100 | E11: 16000 | F11: <5 | G11: 1.55 | H11: <0,5 | I11: 0.17 | J11: 0.0091 | K11: 0.0067 | L11: <0,1 | M11: <0,1 | N11: <0,003 | O11: <0,003 | P11: <0,01 | Q11: 39.38 | R11: 0.03 | S11: <0,03 | T11: 575 | U11: <0,002 | V11: <0,002 | W11: <2 | X11: <0,05 | Y11: ND | Z11: ND | AA11: 0.1 | AB11: ND | AC11: ND | AD11: 1.6 | AE11: <0,05 | AF11: 0.03 | AG11: <0,02 | AH11: <0,001 | AI11: <0,001 | AJ11: 0.004 | AK11: <0,003 | AL11: <0,03 | AM11: <0,03 | AN11: 0.03 | AO11: 10.1 | AP11: * | AQ11: 0.0172 | AR11: 0.01 | AS11: 299 | AT11: 31.8 | AU11: <0,003 | AV11: <0,003 | AW11: 94 | AX11: <0,15 | AY11: 0.02 | AZ11: <0,02 | BA11: 8.2 | BB11: 20.7 | BC11: * | BD11: * | BE11: * | BF11: * | BG11: * | BH11: *
A12: 10 | B12: 15542 | C12: 2008-06-09 | D12: 9000 | E12: 16000 | F12: <5 | G12: 6.23 | H12: <0,5 | I12: 0.32 | J12: 0.0103 | K12: 0.0048 | L12: <0,1 | M12: <0,1 | N12: <0,003 | O12: <0,003 | P12: <0,01 | Q12: 25.01 | R12: 0.11 | S12: <0,03 | T12: 436 | U12: <0,002 | V12: <0,002 | W12: <2 | X12: <0,05 | Y12: ND | Z12: ND | AA12: 0.1 | AB12: ND | AC12: ND | AD12: 8.88 | AE12: <0,05 | AF12: 0.24 | AG12: 0.05 | AH12: <0,001 | AI12: <0,001 | AJ12: * | AK12: * | AL12: <0,03 | AM12: <0,03 | AN12: <0,01 | AO12: 11.1 | AP12: * | AQ12: <0,01 | AR12: <0,01 | AS12: 186 | AT12: 177 | AU12: <0,003 | AV12: <0,003 | AW12: 66 | AX12: <0,15 | AY12: <0,04 | AZ12: <0,02 | BA12: 7.1 | BB12: 11.3 | BC12: * | BD12: * | BE12: * | BF12: * | BG12: * | BH12: *
A13: 11 | B13: 24081 | C13: 2008-09-01 | D13: 40 | E13: 1300 | F13: 11.3 | G13: 1.62 | H13: <0,5 | I13: 0.37 | J13: 0.0104 | K13: 0.0086 | L13: <0,1 | M13: <0,1 | N13: <0,003 | O13: <0,003 | P13: <0,01 | Q13: 31.09 | R13: 0.12 | S13: <0,03 | T13: 435 | U13: <0,002 | V13: 0.00261 | W13: <2 | X13: <0,05 | Y13: * | Z13: * | AA13: 0.1 | AB13: * | AC13: * | AD13: 2.59 | AE13: <0,05 | AF13: 0.07 | AG13: 0.03 | AH13: <0,001 | AI13: <0,001 | AJ13: 0.00892 | AK13: <0,003 | AL13: <0,03 | AM13: <0,03 | AN13: 0.03 | AO13: 10.2 | AP13: * | AQ13: 0.0129 | AR13: <0,01 | AS13: 223 | AT13: 34.2 | AU13: <0,003 | AV13: <0,003 | AW13: 60 | AX13: <0,15 | AY13: 0.02 | AZ13: <0,02 | BA13: 7.6 | BB13: 14.4 | BC13: * | BD13: * | BE13: * | BF13: * | BG13: * | BH13: *
A14: 12 | B14: 32987 | C14: 2008-12-01 | D14: 500 | E14: 5000 | F14: <5 | G14: 26.2 | H14: <0,5 | I14: 0.12 | J14: 0.0209 | K14: 0.0055 | L14: <0,1 | M14: <0,1 | N14: <0,003 | O14: <0,003 | P14: <0,01 | Q14: 22.34 | R14: 0.83 | S14: 0.04 | T14: 361 | U14: <0,002 | V14: <0,002 | W14: <2 | X14: <0,05 | Y14: * | Z14: * | AA14: 0.1 | AB14: * | AC14: * | AD14: 35.45 | AE14: 0.09 | AF14: 0.83 | AG14: <0,02 | AH14: <0,001 | AI14: <0,001 | AJ14: 0.00482 | AK14: <0,003 | AL14: <0,03 | AM14: <0,03 | AN14: 0.019 | AO14: 8.4 | AP14: * | AQ14: 0.0351 | AR14: <0,01 | AS14: 140 | AT14: 577 | AU14: <0,003 | AV14: <0,003 | AW14: 28 | AX14: <0,15 | AY14: <0,12 | AZ14: <0,02 | BA14: 7.7 | BB14: 12 | BC14: * | BD14: * | BE14: * | BF14: * | BG14: * | BH14: *
A15: 13 | B15: 7402 | C15: 2009-03-16 | D15: 3000 | E15: 22000 | F15: <5 | G15: 2.01 | H15: <0,5 | I15: 0.13 | J15: 0.0087 | K15: 0.0068 | L15: <0,1 | M15: <0,1 | N15: <0,003 | O15: <0,003 | P15: <0,01 | Q15: 33.5 | R15: <0,03 | S15: <0,03 | T15: 529 | U15: <0,002 | V15: 0.00845 | W15: <2 | X15: <0,05 | Y15: * | Z15: * | AA15: 0.1 | AB15: * | AC15: * | AD15: 1.85 | AE15: <0,05 | AF15: 0.07 | AG15: <0,02 | AH15: <0,001 | AI15: <0,001 | AJ15: <0,003 | AK15: <0,003 | AL15: <0,03 | AM15: <0,03 | AN15: <0,015 | AO15: 8.4 | AP15: * | AQ15: 0.0166 | AR15: 0.0105 | AS15: 294 | AT15: 60 | AU15: <0,003 | AV15: <0,003 | AW15: 94 | AX15: <0,15 | AY15: 0.03 | AZ15: <0,02 | BA15: 8.2 | BB15: 10 | BC15: * | BD15: * | BE15: * | BF15: * | BG15: * | BH15: *
A16: 14 | B16: 14862 | C16: 2009-06-01 | D16: 1400 | E16: 11000 | F16: <5 | G16: 1.09 | H16: <0,5 | I16: 0.26 | J16: 0.0096 | K16: 0.0074 | L16: 0.55 | M16: <0,1 | N16: <0,003 | O16: <0,003 | P16: <0,01 | Q16: 39.11 | R16: <0,03 | S16: <0,03 | T16: 588 | U16: <0,002 | V16: <0,002 | W16: 7.5 | X16: <0,05 | Y16: * | Z16: * | AA16: 0.1 | AB16: * | AC16: * | AD16: 1.14 | AE16: <0,05 | AF16: 0.04 | AG16: <0,02 | AH16: <0,001 | AI16: <0,001 | AJ16: <0,003 | AK16: <0,003 | AL16: <0,03 | AM16: <0,03 | AN16: 0.076 | AO16: 10.7 | AP16: * | AQ16: 0.0127 | AR16: <0,0100 | AS16: 346 | AT16: 25.8 | AU16: <0,003 | AV16: <0,003 | AW16: 102 | AX16: <0,15 | AY16: <0,02 | AZ16: <0,02 | BA16: 7.9 | BB16: 14 | BC16: * | BD16: * | BE16: * | BF16: * | BG16: * | BH16: *
A17: 15 | B17: 23278 | C17: 2009-09-01 | D17: 1700 | E17: 5000 | F17: 6.4 | G17: 3.39 | H17: <0,5 | I17: 0.83 | J17: 0.0115 | K17: 0.0109 | L17: <0,1 | M17: <0,1 | N17: <0,003 | O17: <0,003 | P17: <0,01 | Q17: 36.69 | R17: 0.13 | S17: <0,03 | T17: 460 | U17: <0,002 | V17: <0,002 | W17: <2 | X17: <0,05 | Y17: * | Z17: * | AA17: 0.1 | AB17: * | AC17: * | AD17: 3.75 | AE17: <0,05 | AF17: 0.1 | AG17: <0,02 | AH17: <0,001 | AI17: <0,001 | AJ17: <0,003 | AK17: <0,003 | AL17: <0,03 | AM17: <0,03 | AN17: 0.082 | AO17: 9.9 | AP17: * | AQ17: <0,0100 | AR17: <0,0100 | AS17: 295 | AT17: 87 | AU17: <0,003 | AV17: <0,003 | AW17: 63 | AX17: <0,15 | AY17: 0.02 | AZ17: <0,02 | BA17: 8 | BB17: 14.1 | BC17: * | BD17: * | BE17: * | BF17: * | BG17: * | BH17: *
A18: 16 | B18: 32348 | C18: 2009-12-01 | D18: 5000 | E18: 11000 | F18: <5 | G18: 5.5 | H18: <0,5 | I18: 0.18 | J18: 0.015 | K18: 0.0096 | L18: <0,1 | M18: <0,1 | N18: <0,003 | O18: <0,003 | P18: <0,01 | Q18: 34.92 | R18: 0.17 | S18: <0,03 | T18: 447 | U18: <0,002 | V18: <0,002 | W18: 2.1 | X18: <0,05 | Y18: * | Z18: * | AA18: 0.1 | AB18: * | AC18: * | AD18: 7.71 | AE18: 0.06 | AF18: 0.19 | AG18: <0,02 | AH18: <0,001 | AI18: <0,001 | AJ18: <0,003 | AK18: <0,003 | AL18: <0,03 | AM18: <0,03 | AN18: 0.169 | AO18: 9.4 | AP18: * | AQ18: 0.0157 | AR18: <0,0100 | AS18: 282 | AT18: 157 | AU18: <0,003 | AV18: <0,003 | AW18: 10 | AX18: <0,15 | AY18: 0.04 | AZ18: <0,02 | BA18: 8 | BB18: 16.9 | BC18: * | BD18: * | BE18: * | BF18: * | BG18: * | BH18: *
A19: 17 | B19: 27553 | C19: 2010-09-27 | D19: 5000 | E19: 14000 | F19: <5 | G19: 1.23 | H19: <0,5 | I19: 0.06 | J19: 0.0064 | K19: 0.0053 | L19: <0,1 | M19: <0,1 | N19: <0,003 | O19: <0,003 | P19: <0,01 | Q19: 39.31 | R19: 0.04 | S19: <0,03 | T19: 624 | U19: <0,002 | V19: <0,002 | W19: <2 | X19: <0,05 | Y19: * | Z19: * | AA19: 0.1 | AB19: * | AC19: * | AD19: 1.67 | AE19: <0,05 | AF19: 0.05 | AG19: <0,02 | AH19: <0,001 | AI19: <0,001 | AJ19: <0,003 | AK19: <0,003 | AL19: <0,03 | AM19: <0,03 | AN19: <0,015 | AO19: 9.5 | AP19: * | AQ19: 0.0206 | AR19: 0.0106 | AS19: 438 | AT19: 43.3 | AU19: <0,003 | AV19: <0,003 | AW19: 93 | AX19: <0,15 | AY19: 0.03 | AZ19: <0,02 | BA19: 7.9 | BB19: 17.2 | BC19: * | BD19: * | BE19: * | BF19: * | BG19: * | BH19: *
A20: 18 | B20: 9055 | C20: 2011-03-01 | D20: 2300 | E20: 24000 | F20: <5 | G20: 0.49 | H20: <0,5 | I20: 0.1 | J20: 0.0043 | K20: 0.0041 | L20: <0,1 | M20: <0,1 | N20: <0,003 | O20: <0,003 | P20: <0,01 | Q20: 37.71 | R20: <0,03 | S20: <0,03 | T20: 639 | U20: <0,002 | V20: 0.00204 | W20: <2 | X20: 0.07 | Y20: * | Z20: * | AA20: <0,05 | AB20: * | AC20: * | AD20: 0.5 | AE20: 0.06 | AF20: 0.03 | AG20: <0,02 | AH20: <0,001 | AI20: <0,001 | AJ20: 0.0031 | AK20: <0,003 | AL20: <0,03 | AM20: <0,03 | AN20: <0,015 | AO20: 9.9 | AP20: * | AQ20: 0.0181 | AR20: 0.0146 | AS20: 468 | AT20: 13.3 | AU20: <0,003 | AV20: <0,003 | AW20: 89 | AX20: <0,15 | AY20: 0.02 | AZ20: <0,02 | BA20: 8.5 | BB20: 19.6 | BC20: * | BD20: * | BE20: * | BF20: * | BG20: * | BH20: *
A21: 19 | B21: 17334 | C21: 2011-06-01 | D21: 230 | E21: 3000 | F21: 11.1 | G21: 0.18 | H21: <0,5 | I21: <0,03 | J21: 0.0098 | K21: 0.0096 | L21: <0,5 | M21: <0,5 | N21: <0,003 | O21: <0,003 | P21: <0,05 | Q21: 49.59 | R21: <0,03 | S21: <0,03 | T21: 664 | U21: <0,002 | V21: <0,002 | W21: <2 | X21: 0.15 | Y21: * | Z21: * | AA21: 0.1 | AB21: * | AC21: * | AD21: 0.27 | AE21: <0,05 | AF21: <0,02 | AG21: <0,02 | AH21: <0,001 | AI21: <0,001 | AJ21: 0.00572 | AK21: 0.00349 | AL21: <0,03 | AM21: <0,03 | AN21: 0.036 | AO21: 11.66 | AP21: * | AQ21: 0.0204 | AR21: 0.0139 | AS21: 428 | AT21: 9.4 | AU21: <0,003 | AV21: <0,003 | AW21: 91 | AX21: <1 | AY21: <0,02 | AZ21: 0.02 | BA21: 8.8 | BB21: 13.4 | BC21: * | BD21: * | BE21: * | BF21: * | BG21: * | BH21: *
A22: 20 | B22: 29361 | C22: 2011-09-01 | D22: 188 | E22: 2300 | F22: <5 | G22: 2.04 | H22: <0,5 | I22: 0.03 | J22: 0.0082 | K22: 0.0059 | L22: 0.23 | M22: 0.22 | N22: <0,003 | O22: <0,003 | P22: <0,02 | Q22: 39.81 | R22: <0,03 | S22: <0,03 | T22: 591 | U22: <0,002 | V22: <0,002 | W22: 4.4 | X22: <0,1 | Y22: * | Z22: * | AA22: 0.1 | AB22: * | AC22: * | AD22: 1.66 | AE22: <0,05 | AF22: 0.07 | AG22: <0,02 | AH22: <0,001 | AI22: <0,001 | AJ22: <0,003 | AK22: <0,003 | AL22: <0,03 | AM22: <0,03 | AN22: <0,015 | AO22: 9.9 | AP22: * | AQ22: 0.0142 | AR22: 0.0118 | AS22: 362 | AT22: 59 | AU22: <0,003 | AV22: <0,003 | AW22: 103 | AX22: <1 | AY22: 0.04 | AZ22: <0,02 | BA22: 8.1 | BB22: 19.1 | BC22: * | BD22: * | BE22: * | BF22: * | BG22: * | BH22: *
A23: 21 | B23: 36387 | C23: 2011-12-22 | D23: 700 | E23: 24000 | F23: <5 | G23: 1.5 | H23: <0,5 | I23: 0.3 | J23: 0.0048 | K23: <0,003 | L23: 0.28 | M23: 0.22 | N23: <0,003 | O23: <0,003 | P23: <0,05 | Q23: 36.5 | R23: <0,03 | S23: <0,03 | T23: 616 | U23: <0,002 | V23: <0,002 | W23: <2 | X23: <0,1 | Y23: * | Z23: * | AA23: 0.1 | AB23: * | AC23: * | AD23: 1.08 | AE23: <0,05 | AF23: 0.05 | AG23: <0,02 | AH23: <0,001 | AI23: <0,001 | AJ23: <0,003 | AK23: <0,003 | AL23: <0,03 | AM23: <0,03 | AN23: 0.119 | AO23: 9.4 | AP23: * | AQ23: 0.0197 | AR23: 0.0136 | AS23: 437 | AT23: 38.3 | AU23: <0,003 | AV23: <0,003 | AW23: 64 | AX23: <1 | AY23: <0,02 | AZ23: <0,02 | BA23: 8.6 | BB23: 7 | BC23: * | BD23: * | BE23: * | BF23: * | BG23: * | BH23: *
A24: 22 | B24: 9434 | C24: 2012-03-28 | D24: 2200 | E24: 50000 | F24: <10 | G24: * | H24: * | I24: 0.4 | J24: * | K24: * | L24: 0.27 | M24: 0.14 | N24: * | O24: * | P24: * | Q24: 39.11 | R24: * | S24: * | T24: 633 | U24: * | V24: * | W24: <2 | X24: <0,1 | Y24: * | Z24: * | AA24: * | AB24: * | AC24: * | AD24: 0.62 | AE24: <0,05 | AF24: * | AG24: * | AH24: * | AI24: * | AJ24: 0.006 | AK24: 0.006 | AL24: * | AM24: * | AN24: * | AO24: 11.4 | AP24: * | AQ24: * | AR24: * | AS24: 450 | AT24: 16.8 | AU24: * | AV24: * | AW24: * | AX24: * | AY24: * | AZ24: * | BA24: 7.9 | BB24: 19.5 | BC24: <0,2 | BD24: * | BE24: 13.63 | BF24: * | BG24: * | BH24: *
A25: 23 | B25: 17697 | C25: 2012-06-11 | D25: 400 | E25: 13000 | F25: <10 | G25: * | H25: * | I25: * | J25: * | K25: * | L25: * | M25: * | N25: * | O25: * | P25: * | Q25: * | R25: * | S25: * | T25: 639 | U25: * | V25: * | W25: 2.2 | X25: <0,1 | Y25: * | Z25: * | AA25: * | AB25: * | AC25: * | AD25: * | AE25: * | AF25: * | AG25: * | AH25: * | AI25: * | AJ25: * | AK25: * | AL25: * | AM25: * | AN25: * | AO25: 27.9 | AP25: * | AQ25: * | AR25: * | AS25: 457 | AT25: 20.1 | AU25: * | AV25: * | AW25: * | AX25: * | AY25: * | AZ25: * | BA25: 7.97 | BB25: 13 | BC25: 0.1 | BD25: * | BE25: 11.94 | BF25: * | BG25: * | BH25: *
A26: 24 | B26: 29570 | C26: 01-10-2012 | D26: 8000 | E26: 22000 | F26: <5 | G26: * | H26: * | I26: * | J26: * | K26: * | L26: * | M26: * | N26: * | O26: * | P26: * | Q26: * | R26: * | S26: * | T26: 645 | U26: * | V26: * | W26: <2 | X26: 0.2 | Y26: * | Z26: * | AA26: * | AB26: * | AC26: * | AD26: * | AE26: * | AF26: * | AG26: * | AH26: * | AI26: * | AJ26: * | AK26: * | AL26: * | AM26: * | AN26: * | AO26: 8.5 | AP26: * | AQ26: * | AR26: * | AS26: 445 | AT26: 97 | AU26: * | AV26: * | AW26: * | AX26: * | AY26: * | AZ26: * | BA26: 7.9 | BB26: 7 | BC26: 0.6 | BD26: * | BE26: 15.35 | BF26: * | BG26: * | BH26: *
A27: 25 | B27: 38020 | C27: 2012-12-12 | D27: 300 | E27: 24000 | F27: 7 | G27: * | H27: * | I27: * | J27: * | K27: * | L27: * | M27: * | N27: * | O27: * | P27: * | Q27: * | R27: * | S27: * | T27: 544 | U27: * | V27: * | W27: 2.7 | X27: <0,1 | Y27: * | Z27: * | AA27: * | AB27: * | AC27: * | AD27: * | AE27: * | AF27: * | AG27: * | AH27: * | AI27: * | AJ27: * | AK27: * | AL27: * | AM27: * | AN27: * | AO27: 7.6 | AP27: * | AQ27: * | AR27: * | AS27: 379 | AT27: 131 | AU27: * | AV27: * | AW27: * | AX27: * | AY27: * | AZ27: * | BA27: 8.4 | BB27: 23 | BC27: 0.9 | BD27: * | BE27: 10.58 | BF27: * | BG27: * | BH27: *
A28: 26 | B28: 8955 | C28: 2013-03-20 | D28: 5000 | E28: >1,60e+4 | F28: <5 | G28: * | H28: * | I28: 0.11 | J28: * | K28: * | L28: 0.22 | M28: 0.15 | N28: * | O28: * | P28: * | Q28: * | R28: * | S28: * | T28: 623 | U28: * | V28: * | W28: 3.1 | X28: <0,1 | Y28: * | Z28: * | AA28: 0.1 | AB28: * | AC28: * | AD28: 0.44 | AE28: <0,01 | AF28: * | AG28: * | AH28: * | AI28: * | AJ28: <0,005 | AK28: <0,005 | AL28: * | AM28: * | AN28: * | AO28: 8.4 | AP28: * | AQ28: * | AR28: * | AS28: 521 | AT28: 14 | AU28: * | AV28: * | AW28: * | AX28: * | AY28: * | AZ28: * | BA28: 8.52 | BB28: 19.7 | BC28: 0.7 | BD28: * | BE28: 14.48 | BF28: * | BG28: * | BH28: *
A29: 27 | B29: 21508 | C29: 2013-06-26 | D29: 500 | E29: 5000 | F29: <5 | G29: * | H29: * | I29: * | J29: * | K29: * | L29: * | M29: * | N29: * | O29: * | P29: * | Q29: * | R29: * | S29: * | T29: 658 | U29: * | V29: * | W29: 3.9 | X29: * | Y29: * | Z29: * | AA29: * | AB29: * | AC29: * | AD29: * | AE29: * | AF29: * | AG29: * | AH29: * | AI29: * | AJ29: * | AK29: * | AL29: * | AM29: * | AN29: * | AO29: 12.92 | AP29: * | AQ29: * | AR29: * | AS29: 399 | AT29: 15.6 | AU29: * | AV29: * | AW29: * | AX29: * | AY29: * | AZ29: * | BA29: 8.09 | BB29: 11.4 | BC29: <0,1 | BD29: * | BE29: 2.89 | BF29: * | BG29: * | BH29: *
A30: 28 | B30: 36178 | C30: 2013-09-25 | D30: 600 | E30: 9000 | F30: <5 | G30: * | H30: * | I30: * | J30: * | K30: * | L30: * | M30: * | N30: * | O30: * | P30: * | Q30: * | R30: * | S30: * | T30: 664 | U30: * | V30: * | W30: 2.7 | X30: <0,1 | Y30: * | Z30: * | AA30: * | AB30: * | AC30: * | AD30: * | AE30: * | AF30: * | AG30: * | AH30: * | AI30: * | AJ30: * | AK30: * | AL30: * | AM30: * | AN30: 0.043 | AO30: 9.2 | AP30: * | AQ30: * | AR30: * | AS30: 440 | AT30: 21.6 | AU30: * | AV30: * | AW30: * | AX30: * | AY30: * | AZ30: * | BA30: 8.72 | BB30: 17.9 | BC30: * | BD30: * | BE30: * | BF30: * | BG30: * | BH30: *
A31: 29 | B31: 47015 | C31: 2013-12-04 | D31: 500 | E31: >1,6E+4 | F31: <5 | G31: * | H31: * | I31: * | J31: * | K31: * | L31: * | M31: * | N31: * | O31: * | P31: * | Q31: * | R31: * | S31: * | T31: 644 | U31: * | V31: * | W31: 6.8 | X31: <0,1 | Y31: * | Z31: * | AA31: * | AB31: * | AC31: * | AD31: * | AE31: * | AF31: * | AG31: * | AH31: * | AI31: * | AJ31: * | AK31: * | AL31: * | AM31: * | AN31: * | AO31: 8.6 | AP31: * | AQ31: * | AR31: * | AS31: 519 | AT31: 13.1 | AU31: * | AV31: * | AW31: * | AX31: * | AY31: * | AZ31: * | BA31: 8.59 | BB31: 22.4 | BC31: 0.3 | BD31: * | BE31: 16.46 | BF31: * | BG31: * | BH31: *
A32: 30 | B32: 12445 | C32: 2014-03-26 | D32: 800 | E32: 800 | F32: * | G32: * | H32: * | I32: * | J32: * | K32: * | L32: * | M32: * | N32: * | O32: * | P32: * | Q32: * | R32: * | S32: * | T32: 679 | U32: * | V32: * | W32: 5.1 | X32: * | Y32: <0,5 | Z32: <0,5 | AA32: 0.1 | AB32: <5 | AC32: <0,2 | AD32: * | AE32: * | AF32: * | AG32: * | AH32: <0,0005 | AI32: <0,0005 | AJ32: * | AK32: * | AL32: * | AM32: * | AN32: * | AO32: 9.7 | AP32: * | AQ32: * | AR32: * | AS32: 519 | AT32: 10.6 | AU32: <0,001 | AV32: <0,001 | AW32: * | AX32: <0,2 | AY32: * | AZ32: * | BA32: 7.42 | BB32: 18.8 | BC32: 0.1 | BD32: * | BE32: 14.31 | BF32: * | BG32: * | BH32: *
A33: 31 | B33: 25093 | C33: 2014-06-18 | D33: * | E33: * | F33: * | G33: * | H33: * | I33: * | J33: * | K33: * | L33: * | M33: * | N33: * | O33: * | P33: * | Q33: * | R33: * | S33: * | T33: 617 | U33: * | V33: * | W33: 4.3 | X33: * | Y33: * | Z33: * | AA33: * | AB33: * | AC33: * | AD33: * | AE33: * | AF33: * | AG33: * | AH33: * | AI33: * | AJ33: * | AK33: * | AL33: * | AM33: * | AN33: * | AO33: 10.6 | AP33: * | AQ33: * | AR33: * | AS33: 352 | AT33: 65 | AU33: * | AV33: * | AW33: * | AX33: * | AY33: * | AZ33: * | BA33: 7.8 | BB33: 12.2 | BC33: 0.7 | BD33: * | BE33: 9.51 | BF33: * | BG33: * | BH33: *
A34: 32 | B34: 40115 | C34: 2014-09-29 | D34: 2300 | E34: 24000 | F34: * | G34: * | H34: * | I34: * | J34: * | K34: * | L34: * | M34: * | N34: * | O34: * | P34: * | Q34: * | R34: * | S34: * | T34: 664 | U34: * | V34: * | W34: 4.7 | X34: * | Y34: * | Z34: * | AA34: * | AB34: * | AC34: * | AD34: * | AE34: * | AF34: * | AG34: * | AH34: * | AI34: * | AJ34: * | AK34: * | AL34: * | AM34: * | AN34: * | AO34: 9.6 | AP34: * | AQ34: * | AR34: * | AS34: 415 | AT34: 31.8 | AU34: * | AV34: * | AW34: * | AX34: * | AY34: * | AZ34: * | BA34: 8.16 | BB34: 16.8 | BC34: <0,1 | BD34: * | BE34: 13.37 | BF34: * | BG34: * | BH34: *
B35: - | C35: 2014-12-15 | D35: * | E35: * | F35: * | G35: * | H35: * | I35: * | J35: * | K35: * | L35: * | M35: * | N35: * | O35: * | P35: * | Q35: * | R35: * | S35: * | T35: * | U35: * | V35: * | W35: * | X35: * | Y35: * | Z35: * | AA35: * | AB35: * | AC35: * | AD35: * | AE35: * | AF35: * | AG35: * | AH35: * | AI35: * | AJ35: * | AK35: * | AL35: * | AM35: * | AN35: * | AO35: * | AP35: * | AQ35: * | AR35: * | AS35: * | AT35: * | AU35: * | AV35: * | AW35: * | AX35: * | AY35: * | AZ35: * | BA35: * | BB35: * | BC35: * | BD35: * | BE35: * | BF35: * | BG35: * | BH35: *
C38: Promedio | D38: =AVERAGE(D3:D27) -> 2417.12 | E38: =AVERAGE(E3:E27) -> 13875.6 | F38: 7.48 | G38: 2.893333333 | H38: 0.476 | I38: 0.2221052632 | J38: 0.01031 | K38: 0.007082352941 | L38: 0.3325 | M38: 0.1933333333 | Q38: 34.20380952 | R38: 0.1685714286 | S38: 0.04333333333 | T38: 540.56 | V38: 0.004366666667 | W38: 3.272727273 | X38: 0.14 | AA38: 0.1 | AD38: 4.050454545 | AE38: 0.07 | AF38: 0.1175 | AG38: 0.04 | AJ38: 0.005426666667 | AK38: 0.004745 | AN38: 0.05918181818 | AO38: 10.32166667 | AQ38: 0.0182 | AR38: 0.01244 | AS38: 329.8 | AT38: 79.74 | AW38: 81.21904762 | AY38: 0.03785714286 | AZ38: 0.025 | BA38: 8.0668 | BB38: 14.988 | BC38: 0.5333333333 | BE38: 12.875
C39: Percentil | D39: =PERCENTILE(D3:D27,0.66) -> 2284 | E39: =PERCENTILE(E3:E27,0.66) -> 16000 | F39: 7.846 | G39: 1.834 | H39: 0.5044 | I39: 0.2516 | J39: 0.01067 | K39: 0.007736 | L39: 0.2798 | M39: 0.22 | Q39: 37.302 | R39: 0.1258 | S39: 0.0464 | T39: 612 | V39: 0.0044788 | W39: 3.12 | X39: 0.166 | AA39: 0.1 | AD39: 2.1252 | AE39: 0.06 | AF39: 0.0808 | AG39: 0.0432 | AJ39: 0.005804 | AK39: 0.0051466 | AN39: 0.0616 | AO39: 9.936 | AQ39: 0.019154 | AR39: 0.013552 | AS39: 363.68 | AT39: 59.84 | AW39: 94 | AY39: 0.0358 | AZ39: 0.0266 | BA39: 8.2 | BB39: 17.152 | BC39: 0.696 | BE39: 13.5962

Sheet CA70 (hidden)
B1: Nro. Muestra | C1: Fecha Muestreo | D1: CF | E1: CT | F1: A y G | G1: Al | H1: Al Dis. | I1: NH4 | J1: As | K1: As Dis. | L1: B | M1: B Dis. | N1: Cd | O1: Cd Dis. | P1: CN | Q1: Cloruro | R1: Cu | S1: Cu Dis. | T1: Co. Esp. | U1: Cr Dis. | V1: Cromo total | W1: DBO5 | X1: Deterg. | Y1: Sn | Z1: Sn Dis. | AA1: Fluoruro | AB1: HCF | AC1: HCV | AD1: Fe | AE1: Fe Dis. | AF1: Mn | AG1: Mn Dis. | AH1: Hg | AI1: Hg Dis. | AJ1: Mo | AK1: Mo Dis. | AL1: Ni | AM1: Ni Dis. | AN1: Nitritos | AO1: O Dis. | AP1: RAS | AQ1: Pb | AR1: Pb Dis. | AS1: SDT | AT1: SST | AU1: Se | AV1: Se Dis. | AW1: Sulfatos | AX1: Sulfuros | AY1: Zn | AZ1: Zn Dis. | BA1: Ph | BB1: T° | BC1: P tot. | BD1: N tot. | BE1: Nitratos | BF1: N Kjeldahl | BG1: DQO | BH1: N amoniacal
D2: [NMP/100 ml] | E2: [NMP/100 ml] | F2: [mg/L] | G2: [mg/L] | H2: [mg/L] | I2: [mg/L] | J2: [mg/L] | K2: [mg/L] | L2: [mg/L] | M2: [mg/L] | N2: [mg/L] | O2: [mg/L] | P2: [mg/L] | Q2: [mg/L] | R2: [mg/L] | S2: [mg/L] | T2: [uS/cm] | U2: [mg/L] | V2: [mg/L] | W2: [mg/L] | X2: [mg/L] | Y2: [mg/L] | Z2: [mg/L] | AA2: [mg/L] | AB2: [mg/L] | AC2: [mg/L] | AD2: [mg/L] | AE2: [mg/L] | AF2: [mg/L] | AG2: [mg/L] | AH2: [mg/L] | AI2: [mg/L] | AJ2: [mg/L] | AK2: [mg/L] | AL2: [mg/L] | AM2: [mg/L] | AN2: [mg/L] | AO2: [mg/L] | AP2: [%] | AQ2: [mg/L] | AR2: [mg/L] | AS2: [mg/L] | AT2: [mg/L] | AU2: [mg/L] | AV2: [mg/L] | AW2: [mg/L] | AX2: [mg/L] | AY2: [mg/L] | AZ2: [mg/L] | BA2: [-] | BB2: [°C] | BC2: [mg/L] | BD2: [mg/L] | BE2: [mg/L] | BF2: [mg/L] | BG2: [mg/L] | BH2: [mg/L]
A3: 1 | B3: 6943 | C3: 2006-03-01 | D3: 5000 | E3: >1,60E+4 | F3: 6.8 | G3: 1.1 | H3: <0,1 | I3: <0,03 | J3: 0.0112 | K3: <0,01 | L3: <0,1 | M3: <0,1 | N3: <0,0040 | O3: <0,0040 | P3: <0,01 | Q3: 39.67 | R3: 0.16 | S3: 0.15 | T3: 464 | U3: <0,05 | V3: <0,05 | W3: 4.8 | X3: <0,05 | Y3: <0,1 | Z3: <0,1 | AA3: 0.1 | AB3: <5 | AC3: 0.02 | AD3: 2.16 | AE3: 1.92 | AF3: 0.08 | AG3: 0.08 | AH3: <0,001 | AI3: <0,001 | AJ3: <0,1 | AK3: <0,1 | AL3: <0,02 | AM3: <0,02 | AN3: * | AO3: 9.1 | AP3: * | AQ3: 0.0146 | AR3: 0.0119 | AS3: 251 | AT3: 57 | AU3: <0,0050 | AV3: <0,0050 | AW3: 104 | AX3: 9.06 | AY3: <0,05 | AZ3: <0,05 | BA3: 8.2 | BB3: 8.2 | BC3: * | BD3: * | BE3: * | BF3: * | BG3: * | BH3: *
A4: 2 | B4: 18750 | C4: 2006-06-05 | D4: 5000 | E4: >1,60E+4 | F4: 24.2 | G4: 0.93 | H4: 0.71 | I4: 0.12 | J4: <0,01 | K4: <0,01 | L4: <0,1 | M4: <0,1 | N4: <0,0040 | O4: <0,0040 | P4: <0,01 | Q4: 37.06 | R4: 0.04 | S4: <0,03 | T4: 560 | U4: <0,05 | V4: <0,05 | W4: 2.5 | X4: <0,05 | Y4: * | Z4: * | AA4: 0.1 | AB4: * | AC4: * | AD4: 0.95 | AE4: <0,05 | AF4: 0.05 | AG4: <0,03 | AH4: * | AI4: * | AJ4: * | AK4: * | AL4: <0,02 | AM4: <0,02 | AN4: 0.06 | AO4: 9.5 | AP4: * | AQ4: 0.0167 | AR4: 0.0167 | AS4: 343 | AT4: * | AU4: <0,0050 | AV4: <0,0050 | AW4: 117 | AX4: <0,15 | AY4: <0,05 | AZ4: <0,05 | BA4: 7.8 | BB4: 13.4 | BC4: * | BD4: * | BE4: * | BF4: * | BG4: * | BH4: *
A5: 3 | B5: 30629 | C5: 2006-09-04 | D5: 4 | E5: 23 | F5: 3.1 | G5: 0.54 | H5: <0,1 | I5: 0.18 | J5: <0,01 | K5: <0,01 | L5: <0,1 | M5: <0,1 | N5: <0,0040 | O5: <0,0040 | P5: <0,1 | Q5: 30.03 | R5: 0.07 | S5: <0,03 | T5: 492 | U5: <0,05 | V5: <0,05 | W5: 2 | X5: <0,05 | Y5: * | Z5: * | AA5: 0.1 | AB5: * | AC5: * | AD5: 0.55 | AE5: <0,05 | AF5: 0.04 | AG5: <0,03 | AH5: * | AI5: * | AJ5: <0,1 | AK5: <0,1 | AL5: <0,02 | AM5: <0,02 | AN5: <0,01 | AO5: 10.4 | AP5: * | AQ5: <0,0100 | AR5: <0,01 | AS5: 249 | AT5: 18.9 | AU5: <0,0050 | AV5: <0,0050 | AW5: 78.2 | AX5: <0,15 | AY5: <0,05 | AZ5: <0,05 | BA5: 8.3 | BB5: 14.6 | BC5: * | BD5: * | BE5: * | BF5: * | BG5: * | BH5: *
A6: 4 | B6: 42160 | C6: 2006-12-04 | D6: 800 | E6: 2400 | F6: 3.9 | G6: 1.06 | H6: 0.49 | I6: 0.08 | J6: 0.0136 | K6: 0.0058 | L6: <0,1 | M6: <0,1 | N6: <0,003 | O6: <0,0040 | P6: <0,01 | Q6: 21.87 | R6: 0.24 | S6: <0,03 | T6: 427 | U6: <0,01 | V6: <0,01 | W6: 4.5 | X6: <0,05 | Y6: * | Z6: * | AA6: 0.1 | AB6: * | AC6: * | AD6: 6.11 | AE6: 0.04 | AF6: 0.15 | AG6: <0,02 | AH6: * | AI6: * | AJ6: <0,1 | AK6: <0,1 | AL6: <0,02 | AM6: <0,02 | AN6: 0.03 | AO6: 8.29 | AP6: * | AQ6: 0.0139 | AR6: 0.0104 | AS6: 260 | AT6: 119 | AU6: <0,003 | AV6: <0,0050 | AW6: 73.3 | AX6: <0,15 | AY6: <0,05 | AZ6: <0,05 | BA6: 8.5 | BB6: 20.5 | BC6: * | BD6: * | BE6: * | BF6: * | BG6: * | BH6: *
A7: 5 | B7: 8634 | C7: 2007-03-12 | D7: 800 | E7: 28000 | F7: 5 | G7: 0.48 | H7: <0,1 | I7: <0,03 | J7: 0.0084 | K7: 0.0066 | L7: <0,1 | M7: <0,1 | N7: <0,003 | O7: <0,003 | P7: <0,01 | Q7: 29.22 | R7: 0.05 | S7: <0,03 | T7: 624 | U7: <0,002 | V7: <0,002 | W7: 6.5 | X7: <0,05 | Y7: <0,1 | Z7: <0,1 | AA7: 0.1 | AB7: <5 | AC7: ND | AD7: 1.71 | AE7: <0,05 | AF7: 0.07 | AG7: <0,02 | AH7: <0,001 | AI7: <0,001 | AJ7: <0,003 | AK7: <0,003 | AL7: <0,02 | AM7: <0,02 | AN7: 0.02 | AO7: 8.3 | AP7: * | AQ7: 0.0173 | AR7: 0.0149 | AS7: 309 | AT7: 25.3 | AU7: <0,003 | AV7: <0,003 | AW7: 92.2 | AX7: 0.02 | AY7: <0,02 | AZ7: <0,02 | BA7: 7.9 | BB7: 18 | BC7: * | BD7: * | BE7: * | BF7: * | BG7: * | BH7: *
A8: 6 | B8: 19590 | C8: 2007-06-18 | D8: 500 | E8: 800 | F8: 5 | G8: 0.32 | H8: <0,1 | I8: 0.16 | J8: 0.0115 | K8: 0.0088 | L8: <0,1 | M8: <0,1 | N8: <0,003 | O8: <0,003 | P8: <0,01 | Q8: 38.71 | R8: 0.04 | S8: <0,03 | T8: 598 | U8: <0,002 | V8: <0,002 | W8: <2 | X8: 0.06 | Y8: <0,1 | Z8: <0,1 | AA8: 0.1 | AB8: <5 | AC8: ND | AD8: 0.59 | AE8: <0,05 | AF8: 0.03 | AG8: <0,02 | AH8: <0,001 | AI8: <0,001 | AJ8: <0,003 | AK8: <0,003 | AL8: <0,02 | AM8: <0,02 | AN8: <0,01 | AO8: 8.17 | AP8: * | AQ8: 0.0137 | AR8: <0,01 | AS8: 319 | AT8: 9.4 | AU8: <0,003 | AV8: <0,003 | AW8: 97.5 | AX8: <0,01 | AY8: <0,02 | AZ8: <0,02 | BA8: 7.9 | BB8: 11 | BC8: * | BD8: * | BE8: * | BF8: * | BG8: * | BH8: *
A9: 7 | B9: 27861 | C9: 2007-09-10 | D9: 800 | E9: 2400 | F9: 74.8 | G9: 0.84 | H9: <0,1 | I9: 0.48 | J9: 0.013 | K9: 0.0113 | L9: <0,1 | M9: <0,1 | N9: <0,003 | O9: <0,003 | P9: <0,01 | Q9: 35.97 | R9: 0.09 | S9: <0,03 | T9: 470 | U9: <0,002 | V9: <0,002 | W9: <2 | X9: <0,05 | Y9: <0,1 | Z9: <0,1 | AA9: 0.1 | AB9: <5 | AC9: <0,005 | AD9: 1.73 | AE9: 0.08 | AF9: 0.04 | AG9: <0,02 | AH9: <0,001 | AI9: <0,001 | AJ9: <0,003 | AK9: <0,003 | AL9: <0,02 | AM9: <0,02 | AN9: <0,01 | AO9: 12.5 | AP9: * | AQ9: 0.0154 | AR9: 0.0122 | AS9: 258 | AT9: 30.8 | AU9: <0,003 | AV9: <0,003 | AW9: 89.1 | AX9: <0,01 | AY9: 0.04 | AZ9: <0,02 | BA9: 8.4 | BB9: 6 | BC9: * | BD9: * | BE9: * | BF9: * | BG9: * | BH9: *
A10: 8 | B10: 36039 | C10: 2007-12-03 | D10: 300 | E10: 9000 | F10: 16.6 | G10: 2.12 | H10: 0.96 | I10: 0.09 | J10: 0.0085 | K10: 0.0067 | L10: <0,1 | M10: <0,1 | N10: <0,003 | O10: <0,003 | P10: <0,01 | Q10: 32.92 | R10: 0.04 | S10: <0,03 | T10: 487 | U10: <0,002 | V10: <0,002 | W10: 2.7 | X10: <0,05 | Y10: <0,1 | Z10: <0,1 | AA10: 0.1 | AB10: <5 | AC10: ND | AD10: 1.8 | AE10: 0.06 | AF10: 0.06 | AG10: <0,02 | AH10: <0,001 | AI10: <0,001 | AJ10: <0,003 | AK10: <0,003 | AL10: <0,02 | AM10: <0,02 | AN10: 0.03 | AO10: 10 | AP10: * | AQ10: 0.0189 | AR10: 0.0168 | AS10: 439 | AT10: 63 | AU10: <0,003 | AV10: <0,003 | AW10: 81.9 | AX10: 0.03 | AY10: <0,02 | AZ10: 0.04 | BA10: 8.4 | BB10: 15 | BC10: * | BD10: * | BE10: * | BF10: * | BG10: * | BH10: *
A11: 9 | B11: 6757 | C11: 2008-03-10 | D11: 300 | E11: 5000 | F11: 9 | G11: 2.87 | H11: <0,5 | I11: 0.15 | J11: 0.009 | K11: <0,003 | L11: <0,1 | M11: <0,1 | N11: <0,003 | O11: <0,003 | P11: <0,01 | Q11: 36.64 | R11: 0.03 | S11: <0,03 | T11: 541 | U11: <0,002 | V11: 0.0023 | W11: <2 | X11: <0,05 | Y11: <0,1 | Z11: <0,1 | AA11: 0.1 | AB11: <5 | AC11: ND | AD11: 1.26 | AE11: <0,05 | AF11: 0.06 | AG11: <0,02 | AH11: <0,001 | AI11: <0,001 | AJ11: 0.012 | AK11: 0.012 | AL11: <0,03 | AM11: <0,03 | AN11: 0.04 | AO11: 9.1 | AP11: * | AQ11: 0.0128 | AR11: 0.0113 | AS11: 241 | AT11: 42.7 | AU11: <0,003 | AV11: <0,003 | AW11: 105 | AX11: <0,15 | AY11: <0,02 | AZ11: <0,02 | BA11: 7.6 | BB11: 21.5 | BC11: * | BD11: * | BE11: * | BF11: * | BG11: * | BH11: *
A12: 10 | B12: 15543 | C12: 2008-06-09 | D12: 5000 | E12: 9000 | F12: <5 | G12: 7.67 | H12: <0,5 | I12: 0.22 | J12: 0.0136 | K12: 0.0051 | L12: <0,1 | M12: <0,1 | N12: <0,003 | O12: <0,003 | P12: <0,01 | Q12: 24.72 | R12: 0.18 | S12: <0,03 | T12: 406 | U12: <0,002 | V12: 0.0023 | W12: <2 | X12: <0,05 | Y12: <0,1 | Z12: <0,1 | AA12: 0.1 | AB12: <5 | AC12: 0.18 | AD12: 13.28 | AE12: <0,05 | AF12: 0.33 | AG12: 0.05 | AH12: 0.001 | AI12: <0,001 | AJ12: * | AK12: * | AL12: <0,03 | AM12: <0,03 | AN12: <0,01 | AO12: 11.7 | AP12: * | AQ12: <0,0100 | AR12: <0,01 | AS12: 40 | AT12: 227 | AU12: <0,003 | AV12: <0,003 | AW12: 58 | AX12: <0,15 | AY12: 0.07 | AZ12: <0,02 | BA12: 7.2 | BB12: 10.1 | BC12: * | BD12: * | BE12: * | BF12: * | BG12: * | BH12: *
A13: 11 | B13: 24082 | C13: 2008-09-01 | D13: 470 | E13: 9000 | F13: <5 | G13: 1.21 | H13: <0,5 | I13: 0.26 | J13: 0.008 | K13: 0.0049 | L13: <0,1 | M13: <0,1 | N13: <0,003 | O13: <0,003 | P13: <0,01 | Q13: 23.8 | R13: 0.06 | S13: <0,03 | T13: 447 | U13: <0,002 | V13: <0,002 | W13: <2 | X13: <0,05 | Y13: <0,1 | Z13: <0,1 | AA13: 0.1 | AB13: <5 | AC13: ND | AD13: 1.72 | AE13: <0,05 | AF13: 0.09 | AG13: 0.05 | AH13: <0,001 | AI13: <0,001 | AJ13: 0.00605 | AK13: <0,003 | AL13: <0,03 | AM13: <0,03 | AN13: 0.03 | AO13: 9.9 | AP13: * | AQ13: 0.0131 | AR13: <0,01 | AS13: 231 | AT13: 35 | AU13: <0,003 | AV13: <0,003 | AW13: 52 | AX13: <0,15 | AY13: <0,02 | AZ13: <0,02 | BA13: 7.2 | BB13: 14.7 | BC13: * | BD13: * | BE13: * | BF13: * | BG13: * | BH13: *
A14: 12 | B14: 32988 | C14: 2008-12-01 | D14: 3000 | E14: >1,60E+4 | F14: <5 | G14: 5.05 | H14: <0,5 | I14: 0.21 | J14: 0.0151 | K14: 0.006 | L14: 0.15 | M14: <0,1 | N14: <0,003 | O14: <0,003 | P14: <0,01 | Q14: 25.26 | R14: 0.19 | S14: <0,03 | T14: 429 | U14: <0,002 | V14: <0,002 | W14: <2 | X14: <0,05 | Y14: <0,1 | Z14: <0,1 | AA14: 0.1 | AB14: <5 | AC14: ND | AD14: 15.65 | AE14: 0.08 | AF14: 0.39 | AG14: <0,02 | AH14: <0,001 | AI14: <0,001 | AJ14: 0.00355 | AK14: <0,003 | AL14: <0,03 | AM14: <0,03 | AN14: <0,015 | AO14: 8.1 | AP14: * | AQ14: 0.0202 | AR14: <0,01 | AS14: 245 | AT14: 264 | AU14: <0,003 | AV14: <0,003 | AW14: 51 | AX14: <0,15 | AY14: 0.06 | AZ14: <0,02 | BA14: 7.7 | BB14: 15 | BC14: * | BD14: * | BE14: * | BF14: * | BG14: * | BH14: *
A15: 13 | B15: 7403 | C15: 2009-03-16 | D15: 1100 | E15: 8000 | F15: <5 | G15: 1.03 | H15: <0,5 | I15: 0.07 | J15: 0.0056 | K15: 0.0045 | L15: <0,1 | M15: <0,1 | N15: <0,003 | O15: <0,003 | P15: <0,01 | Q15: 32.83 | R15: <0,03 | S15: <0,03 | T15: 559 | U15: <0,002 | V15: <0,002 | W15: <2 | X15: <0,05 | Y15: <0,1 | Z15: <0,1 | AA15: 0.1 | AB15: <5 | AC15: ND | AD15: 0.95 | AE15: <0,05 | AF15: 0.04 | AG15: <0,02 | AH15: <0,001 | AI15: <0,001 | AJ15: 0.00302 | AK15: <0,003 | AL15: <0,03 | AM15: <0,03 | AN15: 0.035 | AO15: 8.8 | AP15: * | AQ15: 0.0132 | AR15: 0.0102 | AS15: 316 | AT15: 21.6 | AU15: <0,003 | AV15: <0,003 | AW15: 88 | AX15: <0,15 | AY15: <0,02 | AZ15: <0,02 | BA15: 7.9 | BB15: 11 | BC15: * | BD15: * | BE15: * | BF15: * | BG15: * | BH15: *
A16: 14 | B16: 14683 | C16: 2009-06-01 | D16: 500 | E16: 1300 | F16: <5 | G16: 1.13 | H16: <0,5 | I16: 0.26 | J16: 0.0076 | K16: 0.0068 | L16: 0.57 | M16: <0,1 | N16: <0,003 | O16: <0,003 | P16: <0,01 | Q16: 37.02 | R16: <0,03 | S16: <0,03 | T16: 589 | U16: <0,002 | V16: 0.00202 | W16: 7.5 | X16: <0,05 | Y16: <0,1 | Z16: <0,1 | AA16: 0.1 | AB16: <5 | AC16: ND | AD16: 1.2 | AE16: <0,05 | AF16: 0.05 | AG16: <0,02 | AH16: <0,001 | AI16: <0,001 | AJ16: 0.00361 | AK16: <0,003 | AL16: <0,03 | AM16: <0,03 | AN16: 0.111 | AO16: 10.4 | AP16: * | AQ16: 0.0133 | AR16: <0,0100 | AS16: 377 | AT16: 27.7 | AU16: <0,003 | AV16: <0,003 | AW16: 95 | AX16: <0,15 | AY16: <0,02 | AZ16: <0,02 | BA16: 7.9 | BB16: 14.4 | BC16: * | BD16: * | BE16: * | BF16: * | BG16: * | BH16: *
A17: 15 | B17: 23279 | C17: 2009-09-01 | D17: 1300 | E17: 2800 | F17: <5 | G17: 2.26 | H17: <0,5 | I17: 0.55 | J17: 0.0084 | K17: 0.0073 | L17: <0,1 | M17: <0,1 | N17: <0,003 | O17: <0,003 | P17: <0,01 | Q17: 31.75 | R17: 0.08 | S17: <0,03 | T17: 486 | U17: <0,002 | V17: <0,002 | W17: <2 | X17: <0,05 | Y17: <0,1 | Z17: <0,1 | AA17: 0.1 | AB17: <5 | AC17: 0.116 | AD17: 2.48 | AE17: <0,05 | AF17: 0.09 | AG17: 0.03 | AH17: <0,001 | AI17: <0,001 | AJ17: <0,003 | AK17: <0,003 | AL17: <0,03 | AM17: <0,03 | AN17: 0.125 | AO17: 10 | AP17: * | AQ17: 0.0129 | AR17: <0,0100 | AS17: 395 | AT17: 49.4 | AU17: <0,003 | AV17: <0,003 | AW17: 76 | AX17: <0,15 | AY17: 0.04 | AZ17: <0,02 | BA17: 7.9 | BB17: 14.1 | BC17: * | BD17: * | BE17: * | BF17: * | BG17: * | BH17: *
A18: 16 | B18: 32447 | C18: 2009-12-02 | D18: 300 | E18: 14000 | F18: <5 | G18: 2.4 | H18: <0,5 | I18: 0.2 | J18: 0.0089 | K18: 0.0065 | L18: <0,1 | M18: <0,1 | N18: <0,003 | O18: <0,003 | P18: <0,01 | Q18: 33.52 | R18: 0.07 | S18: <0,03 | T18: 524 | U18: <0,002 | V18: <0,002 | W18: <2 | X18: <0,05 | Y18: <0,1 | Z18: <0,1 | AA18: 0.1 | AB18: <5 | AC18: 0.026 | AD18: 3.2 | AE18: <0,05 | AF18: 0.11 | AG18: <0,02 | AH18: <0,001 | AI18: <0,001 | AJ18: <0,003 | AK18: <0,003 | AL18: <0,03 | AM18: <0,03 | AN18: 0.027 | AO18: 9 | AP18: * | AQ18: 0.0127 | AR18: <0,0100 | AS18: 341 | AT18: 63 | AU18: <0,003 | AV18: <0,003 | AW18: 7 | AX18: <0,15 | AY18: <0,02 | AZ18: <0,02 | BA18: 8.1 | BB18: 19 | BC18: * | BD18: * | BE18: * | BF18: * | BG18: * | BH18: *
A19: 17 | B19: 27554 | C19: 2010-09-27 | D19: 700 | E19: 24000 | F19: <5 | G19: 1.48 | H19: <0,5 | I19: 0.07 | J19: 0.0067 | K19: 0.0053 | L19: <0,1 | M19: <0,1 | N19: <0,003 | O19: <0,003 | P19: <0,01 | Q19: 36.5 | R19: 0.05 | S19: <0,03 | T19: 616 | U19: <0,002 | V19: <0,002 | W19: <2 | X19: <0,05 | Y19: <0,1 | Z19: <0,1 | AA19: 0.2 | AB19: <5 | AC19: 0.036 | AD19: 1.92 | AE19: <0,05 | AF19: 0.1 | AG19: 0.02 | AH19: <0,001 | AI19: <0,001 | AJ19: 0.004 | AK19: 0.004 | AL19: <0,03 | AM19: <0,03 | AN19: 0.055 | AO19: 10.2 | AP19: * | AQ19: 0.0189 | AR19: 0.0141 | AS19: 410 | AT19: 38 | AU19: <0,003 | AV19: <0,003 | AW19: 93 | AX19: <0,15 | AY19: 0.03 | AZ19: <0,02 | BA19: * | BB19: * | BC19: * | BD19: * | BE19: * | BF19: * | BG19: * | BH19: *
A20: 18 | B20: 9056 | C20: 2011-03-01 | D20: 800 | E20: 8000 | F20: <5 | G20: 0.18 | H20: <0,5 | I20: 0.09 | J20: 0.0038 | K20: 0.0036 | L20: <0,1 | M20: <0,1 | N20: <0,003 | O20: <0,003 | P20: <0,01 | Q20: 36.32 | R20: <0,03 | S20: <0,03 | T20: 641 | U20: <0,002 | V20: <0,002 | W20: <2 | X20: 0.12 | Y20: <0,1 | Z20: <0,1 | AA20: <0,05 | AB20: <5 | AC20: 0.048 | AD20: 0.17 | AE20: <0,05 | AF20: <0,02 | AG20: <0,02 | AH20: <0,001 | AI20: <0,001 | AJ20: <0,003 | AK20: <0,003 | AL20: <0,03 | AM20: <0,03 | AN20: <0,015 | AO20: 10.6 | AP20: * | AQ20: 0.016 | AR20: 0.0143 | AS20: 413 | AT20: 5.9 | AU20: <0,003 | AV20: <0,003 | AW20: 98 | AX20: <0,15 | AY20: <0,02 | AZ20: <0,02 | BA20: 8.5 | BB20: 19.5 | BC20: * | BD20: * | BE20: * | BF20: * | BG20: * | BH20: *
A21: 19 | B21: 17335 | C21: 2011-06-01 | D21: 70 | E21: 1400 | F21: <5 | G21: 0.07 | H21: <0,5 | I21: <0,03 | J21: 0.0089 | K21: 0.0087 | L21: <0,5 | M21: <0,5 | N21: <0,003 | O21: <0,003 | P21: <0,05 | Q21: 47.49 | R21: <0,03 | S21: <0,03 | T21: 641 | U21: <0,002 | V21: <0,002 | W21: <2 | X21: <0,1 | Y21: <0,5 | Z21: <0,5 | AA21: 0.1 | AB21: <10 | AC21: <1 | AD21: 0.13 | AE21: <0,05 | AF21: <0,02 | AG21: <0,02 | AH21: <0,001 | AI21: <0,001 | AJ21: 0.00497 | AK21: 0.00347 | AL21: <0,03 | AM21: <0,03 | AN21: 0.057 | AO21: 12.74 | AP21: * | AQ21: 0.0168 | AR21: 0.0125 | AS21: 437 | AT21: 26 | AU21: <0,003 | AV21: <0,003 | AW21: 93 | AX21: <1 | AY21: <0,02 | AZ21: <0,02 | BA21: 9.1 | BB21: 13.6 | BC21: * | BD21: * | BE21: * | BF21: * | BG21: * | BH21: *
A22: 20 | B22: 29362 | C22: 2011-09-01 | D22: 800 | E22: 1300 | F22: <5 | G22: 0.83 | H22: <0,5 | I22: <0,03 | J22: 0.0069 | K22: 0.006 | L22: 0.26 | M22: 0.22 | N22: <0,003 | O22: <0,003 | P22: <0,02 | Q22: 37.71 | R22: <0,03 | S22: <0,03 | T22: 559 | U22: <0,002 | V22: 0.00271 | W22: 7.2 | X22: <0,1 | Y22: <0,5 | Z22: <0,5 | AA22: 0.1 | AB22: <10 | AC22: <1 | AD22: 0.61 | AE22: <0,05 | AF22: 0.04 | AG22: <0,02 | AH22: <0,001 | AI22: <0,001 | AJ22: <0,003 | AK22: <0,003 | AL22: <0,03 | AM22: <0,03 | AN22: 0.026 | AO22: 12.6 | AP22: * | AQ22: 0.0132 | AR22: 0.0109 | AS22: 338 | AT22: 24.7 | AU22: <0,003 | AV22: <0,003 | AW22: 96 | AX22: <1 | AY22: <0,02 | AZ22: <0,02 | BA22: 8.2 | BB22: 19.4 | BC22: * | BD22: * | BE22: * | BF22: * | BG22: * | BH22: *
A23: 21 | B23: 36388 | C23: 2011-12-22 | D23: 170 | E23: 24000 | F23: <5 | G23: 0.66 | H23: <0,5 | I23: 0.04 | J23: 0.0045 | K23: 0.0046 | L23: 0.27 | M23: 0.24 | N23: <0,003 | O23: <0,003 | P23: <0,05 | Q23: 38.61 | R23: <0,03 | S23: <0,03 | T23: 598 | U23: <0,002 | V23: 0.00394 | W23: <2 | X23: <0,1 | Y23: <0,01 | Z23: <0,5 | AA23: 0.1 | AB23: <10 | AC23: <1 | AD23: 0.37 | AE23: <0,05 | AF23: 0.04 | AG23: <0,02 | AH23: <0,001 | AI23: <0,001 | AJ23: 0.00472 | AK23: <0,003 | AL23: <0,03 | AM23: <0,03 | AN23: 0.124 | AO23: 10.7 | AP23: * | AQ23: 0.0171 | AR23: 0.0139 | AS23: 462 | AT23: 13.4 | AU23: <0,003 | AV23: <0,003 | AW23: 61 | AX23: <1 | AY23: <0,02 | AZ23: <0,02 | BA23: 8.7 | BB23: 15 | BC23: * | BD23: * | BE23: * | BF23: * | BG23: * | BH23: *
A24: 22 | B24: 9435 | C24: 2012-03-28 | D24: 1400 | E24: 50000 | F24: <10 | G24: 0.62 | H24: <0,5 | I24: 0.15 | J24: 0.0049 | K24: 0.0043 | L24: 0.25 | M24: 0.15 | N24: <0,003 | O24: <0,003 | P24: <0,002 | Q24: 39.81 | R24: <0,03 | S24: <0,03 | T24: 677 | U24: * | V24: 0.003 | W24: <2 | X24: <0,1 | Y24: * | Z24: * | AA24: 0.1 | AB24: * | AC24: * | AD24: 0.65 | AE24: <0,05 | AF24: 0.06 | AG24: <0,02 | AH24: * | AI24: * | AJ24: 0.006 | AK24: 0.005 | AL24: <0,03 | AM24: <0,03 | AN24: * | AO24: 12.1 | AP24: * | AQ24: 0.0156 | AR24: 0.0144 | AS24: 426 | AT24: 22.8 | AU24: <0,003 | AV24: <0,003 | AW24: 95 | AX24: * | AY24: <0,02 | AZ24: <0,02 | BA24: 8.4 | BB24: 20.5 | BC24: <0,2 | BD24: * | BE24: 9.18 | BF24: * | BG24: * | BH24: *
A25: 23 | B25: 17698 | C25: 2012-06-11 | D25: 8000 | E25: 24000 | F25: <10 | G25: * | H25: * | I25: * | J25: * | K25: * | L25: * | M25: * | N25: * | O25: * | P25: * | Q25: * | R25: <0,03 | S25: <0,03 | T25: 644 | U25: * | V25: * | W25: 2.2 | X25: * | Y25: * | Z25: * | AA25: * | AB25: * | AC25: * | AD25: 0.3 | AE25: <0,05 | AF25: * | AG25: * | AH25: * | AI25: * | AJ25: * | AK25: * | AL25: * | AM25: * | AN25: * | AO25: 29.2 | AP25: * | AQ25: * | AR25: * | AS25: 467 | AT25: 24.3 | AU25: * | AV25: * | AW25: * | AX25: * | AY25: * | AZ25: * | BA25: 7.75 | BB25: 12.6 | BC25: 0.3 | BD25: 3.53 | BE25: 12.25 | BF25: * | BG25: * | BH25: *
A26: 24 | B26: 29571 | C26: 01-10-2012 | D26: 8000 | E26: 30000 | F26: 9.2 | G26: * | H26: * | I26: * | J26: * | K26: * | L26: * | M26: * | N26: * | O26: * | P26: * | Q26: * | R26: 0.09 | S26: <0,03 | T26: 646 | U26: * | V26: * | W26: <2 | X26: * | Y26: * | Z26: * | AA26: * | AB26: * | AC26: * | AD26: 2.82 | AE26: < 0,05 | AF26: * | AG26: * | AH26: * | AI26: * | AJ26: * | AK26: * | AL26: * | AM26: * | AN26: * | AO26: 8.8 | AP26: * | AQ26: * | AR26: * | AS26: 456 | AT26: 111 | AU26: * | AV26: * | AW26: * | AX26: * | AY26: * | AZ26: * | BA26: 8 | BB26: 7 | BC26: 0.4 | BD26: * | BE26: 14.64 | BF26: * | BG26: * | BH26: *
A27: 25 | B27: 38021 | C27: 2012-12-12 | D27: 5000 | E27: >1,60E+4 | F27: 11.5 | G27: * | H27: * | I27: * | J27: * | K27: * | L27: * | M27: * | N27: * | O27: * | P27: * | Q27: * | R27: 0.12 | S27: 0.1 | T27: 590 | U27: * | V27: * | W27: 3.6 | X27: * | Y27: * | Z27: * | AA27: * | AB27: * | AC27: * | AD27: 2.7 | AE27: 1.15 | AF27: * | AG27: * | AH27: * | AI27: * | AJ27: * | AK27: * | AL27: * | AM27: * | AN27: 0.078 | AO27: 7.8 | AP27: * | AQ27: * | AR27: * | AS27: 406 | AT27: 77 | AU27: * | AV27: * | AW27: * | AX27: * | AY27: * | AZ27: * | BA27: 7.94 | BB27: 22.5 | BC27: 0.7 | BD27: 3.94 | BE27: 11.89 | BF27: 1.23 | BG27: * | BH27: *
A28: 26 | B28: 8952 | C28: 2013-03-20 | D28: 700 | E28: >1,60e+4 | F28: <5 | G28: <0,5 | H28: <0,5 | I28: 0.08 | J28: <0,001 | K28: <0,001 | L28: 0.23 | M28: 0.16 | N28: <0,01 | O28: <0,01 | P28: <0,02 | Q28: 38.71 | R28: 0.03 | S28: <0,01 | T28: 608 | U28: * | V28: <0,05 | W28: 3.1 | X28: <0,1 | Y28: * | Z28: * | AA28: 0.1 | AB28: * | AC28: * | AD28: 0.32 | AE28: <0,01 | AF28: 0.03 | AG28: <0,01 | AH28: * | AI28: * | AJ28: <0,005 | AK28: <0,005 | AL28: <0,05 | AM28: <0,05 | AN28: * | AO28: 7.94 | AP28: * | AQ28: <0,01 | AR28: <0,01 | AS28: 427 | AT28: 14.2 | AU28: <0,001 | AV28: <0,001 | AW28: 46 | AX28: * | AY28: <0,01 | AZ28: * | BA28: 8.38 | BB28: 21.3 | BC28: 0.4 | BD28: * | BE28: 11.15 | BF28: * | BG28: * | BH28: *
A29: 27 | B29: 21509 | C29: 2013-06-26 | D29: 700 | E29: >1,60e+4 | F29: <5 | G29: * | H29: * | I29: * | J29: * | K29: * | L29: * | M29: * | N29: * | O29: * | P29: * | Q29: * | R29: 0.03 | S29: <0,03 | T29: 637 | U29: * | V29: * | W29: 3.3 | X29: * | Y29: * | Z29: * | AA29: * | AB29: * | AC29: * | AD29: 0.51 | AE29: <0,05 | AF29: * | AG29: * | AH29: * | AI29: * | AJ29: * | AK29: * | AL29: * | AM29: * | AN29: 0.207 | AO29: 12.02 | AP29: * | AQ29: * | AR29: * | AS29: 401 | AT29: 22.6 | AU29: * | AV29: * | AW29: * | AX29: * | AY29: * | AZ29: * | BA29: 8.02 | BB29: 10.9 | BC29: <0,1 | BD29: 1.76 | BE29: 2.66 | BF29: 1.1 | BG29: * | BH29: *
A30: 28 | B30: 36177 | C30: 2013-09-25 | D30: 500 | E30: 220 | F30: <5 | G30: * | H30: * | I30: * | J30: * | K30: * | L30: * | M30: * | N30: * | O30: * | P30: * | Q30: * | R30: 0.03 | S30: <0,01 | T30: 648 | U30: * | V30: * | W30: 3.6 | X30: * | Y30: * | Z30: * | AA30: * | AB30: * | AC30: * | AD30: 0.77 | AE30: 0.26 | AF30: * | AG30: * | AH30: * | AI30: * | AJ30: * | AK30: * | AL30: * | AM30: * | AN30: 0.051 | AO30: 9.9 | AP30: * | AQ30: * | AR30: * | AS30: 439 | AT30: 19.8 | AU30: * | AV30: * | AW30: * | AX30: * | AY30: * | AZ30: * | BA30: 8.38 | BB30: 19 | BC30: 0.1 | BD30: 3.04 | BE30: 12.49 | BF30: 0.2 | BG30: * | BH30: *
A31: 29 | B31: 47016 | C31: 2013-12-04 | D31: 1300 | E31: 16000 | F31: <5 | G31: * | H31: * | I31: * | J31: * | K31: * | L31: * | M31: * | N31: * | O31: * | P31: * | Q31: * | R31: 1.32 | S31: <0<01 | T31: 612 | U31: * | V31: * | W31: 7.8 | X31: * | Y31: * | Z31: * | AA31: * | AB31: * | AC31: * | AD31: 3.39 | AE31: 2.99 | AF31: * | AG31: * | AH31: * | AI31: * | AJ31: * | AK31: * | AL31: * | AM31: * | AN31: 0.154 | AO31: 8.93 | AP31: * | AQ31: * | AR31: * | AS31: 456 | AT31: 8.8 | AU31: * | AV31: * | AW31: * | AX31: * | AY31: * | AZ31: * | BA31: 8.6 | BB31: 17.6 | BC31: 0.1 | BD31: 2.68 | BE31: 8.52 | BF31: <1 | BG31: * | BH31: *
A32: 30 | B32: 12446 | C32: 2014-03-26 | D32: 500 | E32: 500 | F32: * | G32: <0,05 | H32: <0,05 | I32: * | J32: * | K32: * | L32: 0.22 | M32: 0.2 | N32: * | O32: * | P32: * | Q32: * | R32: <0,01 | S32: <0,01 | T32: 674 | U32: * | V32: <0,05 | W32: 6 | X32: * | Y32: * | Z32: * | AA32: * | AB32: * | AC32: * | AD32: 0.26 | AE32: 0.04 | AF32: 0.03 | AG32: * | AH32: * | AI32: * | AJ32: <0,005 | AK32: <0,005 | AL32: * | AM32: * | AN32: 0.115 | AO32: 10.7 | AP32: * | AQ32: <0,01 | AR32: <0,01 | AS32: 456 | AT32: 11.5 | AU32: * | AV32: * | AW32: * | AX32: * | AY32: <0,01 | AZ32: <0,01 | BA32: 7.44 | BB32: 20.3 | BC32: 0.2 | BD32: 2.02 | BE32: 8.81 | BF32: <0,2 | BG32: * | BH32: *
A33: 31 | B33: 25094 | C33: 2014-06-18 | D33: * | E33: * | F33: * | G33: * | H33: * | I33: * | J33: * | K33: * | L33: * | M33: * | N33: * | O33: * | P33: * | Q33: * | R33: * | S33: * | T33: 649 | U33: * | V33: * | W33: 4 | X33: * | Y33: * | Z33: * | AA33: * | AB33: * | AC33: * | AD33: * | AE33: * | AF33: * | AG33: * | AH33: * | AI33: * | AJ33: * | AK33: * | AL33: * | AM33: * | AN33: * | AO33: 9.6 | AP33: * | AQ33: * | AR33: * | AS33: 439 | AT33: 31.8 | AU33: * | AV33: * | AW33: * | AX33: * | AY33: * | AZ33: * | BA33: 7.87 | BB33: 13.7 | BC33: 0.3 | BD33: * | BE33: 13.36 | BF33: * | BG33: * | BH33: *
A34: 32 | B34: 40116 | C34: 2014-09-29 | D34: 300 | E34: 2800 | F34: * | G34: * | H34: * | I34: * | J34: * | K34: * | L34: * | M34: * | N34: * | O34: * | P34: * | Q34: * | R34: * | S34: * | T34: 633 | U34: * | V34: * | W34: 4.2 | X34: * | Y34: * | Z34: * | AA34: * | AB34: * | AC34: * | AD34: * | AE34: * | AF34: * | AG34: * | AH34: * | AI34: * | AJ34: * | AK34: * | AL34: * | AM34: * | AN34: * | AO34: 9.6 | AP34: * | AQ34: * | AR34: * | AS34: 381 | AT34: 12.1 | AU34: * | AV34: * | AW34: * | AX34: * | AY34: * | AZ34: * | BA34: 8.06 | BB34: 16.8 | BC34: <0,1 | BD34: * | BE34: 12.22 | BF34: * | BG34: * | BH34: *
B35: 53306 | C35: 2014-12-16 | D35: 11 | E35: 19 | F35: * | G35: * | H35: * | I35: <0,03 | J35: * | K35: * | L35: * | M35: * | N35: * | O35: * | P35: * | Q35: * | R35: * | S35: * | T35: 614 | U35: * | V35: * | W35: * | X35: * | Y35: * | Z35: * | AA35: * | AB35: * | AC35: * | AD35: * | AE35: * | AF35: * | AG35: * | AH35: * | AI35: * | AJ35: * | AK35: * | AL35: * | AM35: * | AN35: <0,015 | AO35: 10.7 | AP35: * | AQ35: * | AR35: * | AS35: 377 | AT35: 27.7 | AU35: * | AV35: * | AW35: * | AX35: * | AY35: * | AZ35: * | BA35: 8.17 | BB35: 21.1 | BC35: 0.1 | BD35: * | BE35: 10.9 | BF35: 0.6 | BG35: * | BH35: *
C38: Promedio | D38: =AVERAGE(D3:D27) -> 2004.56 | E38: =AVERAGE(E3:E27) -> 12115.38095 | F38: 15.37272727 | G38: 1.584090909 | H38: 0.72 | I38: 0.1877777778 | J38: 0.008905 | K38: 0.006266666667 | L38: 0.3 | M38: 0.2033333333 | Q38: 33.97409091 | R38: 0.09411764706 | S38: 0.125 | T38: 548.6 | V38: 0.002711666667 | W38: 4.35 | X38: 0.09 | AA38: 0.1047619048 | AC38: 0.071 | AD38: 2.6004 | AE38: 0.555 | AF38: 0.096 | AG38: 0.046 | AH38: 0.001 | AJ38: 0.005324444444 | AK38: 0.0061175 | AN38: 0.05653333333 | AO38: 10.72 | AQ38: 0.015315 | AR38: 0.01317857143 | AS38: 337.16 | AT38: 58.20416667 | AW38: 81.87272727 | AX38: 3.036666667 | AY38: 0.048 | AZ38: 0.04 | BA38: 8.062083333 | BB38: 14.85833333 | BC38: 0.4666666667 | BD38: 3.735 | BE38: 11.99 | BF38: 1.23
C39: Percentil | D39: =PERCENTILE(D3:D27,0.66) -> 1268 | E39: =PERCENTILE(E3:E27,0.66) -> 10000 | F39: 10.58 | G39: 1.1988 | H39: 0.79 | I39: 0.2022 | J39: 0.008954 | K39: 0.006622 | L39: 0.2664 | M39: 0.2264 | Q39: 36.9668 | R39: 0.09 | S39: 0.133 | T39: 596.72 | V39: 0.002797 | W39: 4.782 | X39: 0.0996 | AA39: 0.1 | AC39: 0.0684 | AD39: 1.9008 | AE39: 0.401 | AF39: 0.0854 | AG39: 0.05 | AH39: 0.001 | AJ39: 0.0052584 | AK39: 0.00498 | AN39: 0.05772 | AO39: 10.4 | AQ39: 0.016378 | AR39: 0.014216 | AS39: 404.24 | AT39: 50.768 | AW39: 94.72 | AX39: 2.9196 | AY39: 0.0528 | AZ39: 0.04 | BA39: 8.218 | BB39: 15.54 | BC39: 0.496 | BD39: 3.8006 | BE39: 12.2428 | BF39: 1.23

Sheet PA10 (hidden)
B1: Nro. Muestra | C1: Fecha Muestreo | D1: CF | E1: CT | F1: A y G | G1: Al | H1: Al Dis. | I1: NH4 | J1: As | K1: As Dis. | L1: B | M1: B Dis. | N1: Cd | O1: Cd Dis. | P1: CN | Q1: Cloruro | R1: Cu | S1: Cu Dis. | T1: Co. Esp. | U1: Cr Dis. | V1: Cromo total | W1: DBO5 | X1: Deterg. | Y1: Sn | Z1: Sn Dis. | AA1: Fluoruro | AB1: HCF | AC1: HCV | AD1: Fe | AE1: Fe Dis. | AF1: Mn | AG1: Mn Dis. | AH1: Hg | AI1: Hg Dis. | AJ1: Mo | AK1: Mo Dis. | AL1: Ni | AM1: Ni Dis. | AN1: Nitritos | AO1: O Dis. | AP1: RAS | AQ1: Pb | AR1: Pb Dis. | AS1: SDT | AT1: SST | AU1: Se | AV1: Se Dis. | AW1: Sulfatos | AX1: Sulfuros | AY1: Zn | AZ1: Zn Dis. | BA1: Ph | BB1: T° | BC1: P tot. | BD1: N tot. | BE1: Nitratos | BF1: N Kjeldahl | BG1: DQO | BH1: N amoniacal
D2: [NMP/100 ml] | E2: [NMP/100 ml] | F2: [mg/L] | G2: [mg/L] | H2: [mg/L] | I2: [mg/L] | J2: [mg/L] | K2: [mg/L] | L2: [mg/L] | M2: [mg/L] | N2: [mg/L] | O2: [mg/L] | P2: [mg/L] | Q2: [mg/L] | R2: [mg/L] | S2: [mg/L] | T2: [uS/cm] | U2: [mg/L] | V2: [mg/L] | W2: [mg/L] | X2: [mg/L] | Y2: [mg/L] | Z2: [mg/L] | AA2: [mg/L] | AB2: [mg/L] | AC2: [mg/L] | AD2: [mg/L] | AE2: [mg/L] | AF2: [mg/L] | AG2: [mg/L] | AH2: [mg/L] | AI2: [mg/L] | AJ2: [mg/L] | AK2: [mg/L] | AL2: [mg/L] | AM2: [mg/L] | AN2: [mg/L] | AO2: [mg/L] | AP2: [%] | AQ2: [mg/L] | AR2: [mg/L] | AS2: [mg/L] | AT2: [mg/L] | AU2: [mg/L] | AV2: [mg/L] | AW2: [mg/L] | AX2: [mg/L] | AY2: [mg/L] | AZ2: [mg/L] | BA2: [-] | BB2: [°C] | BC2: [mg/L] | BD2: [mg/L] | BE2: [mg/L] | BF2: [mg/L] | BG2: [mg/L] | BH2: [mg/L]
A3: 1 | B3: 6934 | C3: 2006-03-01 | D3: * | E3: * | F3: * | G3: 0.96 | H3: <0,1 | I3: * | J3: 0.0125 | K3: <0,0100 | L3: <0,1 | M3: <0,1 | N3: * | O3: * | P3: * | Q3: * | R3: <0,03 | S3: <0,03 | T3: 319 | U3: * | V3: * | W3: <2 | X3: * | Y3: <0,1 | Z3: <0,1 | AA3: * | AB3: <5 | AC3: 0.01 | AD3: 1.3 | AE3: <0,05 | AF3: 0.05 | AG3: <0,03 | AH3: <0,001 | AI3: <0,001 | AJ3: <0,1 | AK3: 0.1 | AL3: * | AM3: * | AN3: * | AO3: * | AP3: * | AQ3: 0.0119 | AR3: <0,0100 | AS3: 178 | AT3: 22.2 | AU3: * | AV3: * | AW3: 100 | AX3: * | AY3: * | AZ3: * | BA3: 8 | BB3: 11.5 | BC3: * | BD3: * | BE3: * | BF3: * | BG3: * | BH3: *
A4: 2 | B4: 18575 | C4: 2006-06-05 | D4: 2 | E4: 300 | F4: 9 | G4: 0.19 | H4: 0.16 | I4: 0.01 | J4: 0.0107 | K4: <0,0100 | L4: <0,1 | M4: <0,1 | N4: <0,0040 | O4: <0,0040 | P4: <0,01 | Q4: 16.31 | R4: 0.04 | S4: 0.03 | T4: 390 | U4: <0,05 | V4: <0,05 | W4: <2 | X4: <0,05 | Y4: * | Z4: * | AA4: 0.1 | AB4: * | AC4: * | AD4: 0.06 | AE4: <0,05 | AF4: <0,03 | AG4: <0,03 | AH4: * | AI4: * | AJ4: <0,1 | AK4: <0,1 | AL4: <0,2 | AM4: <0,2 | AN4: <0,01 | AO4: 11.4 | AP4: * | AQ4: 0.0105 | AR4: <0,0100 | AS4: 194 | AT4: <5 | AU4: <0,0050 | AV4: <0,0050 | AW4: 107 | AX4: <0,15 | AY4: <0,05 | AZ4: <0,05 | BA4: 7.7 | BB4: 10 | BC4: * | BD4: * | BE4: * | BF4: * | BG4: * | BH4: *
A5: 3 | B5: 30509 | C5: 2006-09-04 | D5: * | E5: * | F5: * | G5: 0.11 | H5: <0,1 | I5: * | J5: <0,0100 | K5: <0,0100 | L5: * | M5: * | N5: * | O5: * | P5: * | Q5: * | R5: 0.05 | S5: <0,03 | T5: 278 | U5: * | V5: * | W5: <2 | X5: * | Y5: * | Z5: * | AA5: * | AB5: * | AC5: * | AD5: 0.82 | AE5: <0,05 | AF5: 0.03 | AG5: <0,03 | AH5: <0,001 | AI5: <0,001 | AJ5: <0,1 | AK5: <0,1 | AL5: * | AM5: * | AN5: * | AO5: 10.7 | AP5: * | AQ5: <0,0100 | AR5: <0,0100 | AS5: 239 | AT5: 10.9 | AU5: * | AV5: * | AW5: 70.4 | AX5: * | AY5: * | AZ5: * | BA5: 8.4 | BB5: 9.1 | BC5: * | BD5: * | BE5: * | BF5: * | BG5: * | BH5: *
A6: 4 | B6: 41975 | C6: 2006-12-04 | D6: * | E6: * | F6: * | G6: 8.49 | H6: 2.24 | I6: * | J6: 0.0164 | K6: 0.0061 | L6: * | M6: * | N6: * | O6: * | P6: * | Q6: * | R6: <0,03 | S6: <0,03 | T6: 235 | U6: * | V6: * | W6: <2 | X6: * | Y6: * | Z6: * | AA6: * | AB6: * | AC6: * | AD6: 9.3 | AE6: 0.03 | AF6: 0.23 | AG6: 0.02 | AH6: <0,001 | AI6: <0,001 | AJ6: <0,1 | AK6: <0,1 | AL6: * | AM6: * | AN6: * | AO6: 12.34 | AP6: * | AQ6: 7.1 | AR6: 0.0123 | AS6: 81 | AT6: 173 | AU6: * | AV6: * | AW6: 56.4 | AX6: * | AY6: * | AZ6: * | BA6: 8.4 | BB6: 9.5 | BC6: * | BD6: * | BE6: * | BF6: * | BG6: * | BH6: *
A7: 5 | B7: 8466 | C7: 2007-03-12 | D7: 50 | E7: * | F7: * | G7: 0.48 | H7: 0.11 | I7: * | J7: 0.0139 | K7: 0.0093 | L7: <0,1 | M7: <0,1 | N7: * | O7: * | P7: * | Q7: * | R7: <0,03 | S7: <0,03 | T7: 381 | U7: * | V7: * | W7: <2 | X7: <0,05 | Y7: <0,1 | Z7: <0,1 | AA7: * | AB7: <5 | AC7: ND | AD7: 1.32 | AE7: <0,05 | AF7: 0.04 | AG7: <0,02 | AH7: <0,001 | AI7: <0,001 | AJ7: <0,003 | AK7: <0,003 | AL7: * | AM7: * | AN7: * | AO7: * | AP7: * | AQ7: 0.0118 | AR7: 0.0105 | AS7: 210 | AT7: 24.5 | AU7: * | AV7: * | AW7: 64.6 | AX7: * | AY7: * | AZ7: * | BA7: 7.5 | BB7: 8 | BC7: * | BD7: * | BE7: * | BF7: * | BG7: * | BH7: *
A8: 6 | B8: 19453 | C8: 2007-06-18 | D8: 29 | E8: * | F8: * | G8: <0,1 | H8: <0,1 | I8: * | J8: 0.0099 | K8: 0.0086 | L8: <0,1 | M8: <0,1 | N8: * | O8: * | P8: * | Q8: * | R8: <0,03 | S8: <0,03 | T8: 339 | U8: * | V8: * | W8: 5 | X8: <0,05 | Y8: <0,1 | Z8: <0,1 | AA8: * | AB8: <5 | AC8: 0.32 | AD8: 0.06 | AE8: <0,05 | AF8: <0,02 | AG8: <0,02 | AH8: <0,001 | AI8: <0,001 | AJ8: <0,003 | AK8: <0,003 | AL8: * | AM8: * | AN8: * | AO8: * | AP8: * | AQ8: <0,0100 | AR8: <0,0100 | AS8: 313 | AT8: <5 | AU8: * | AV8: * | AW8: 79.9 | AX8: * | AY8: * | AZ8: * | BA8: 7.8 | BB8: 8 | BC8: * | BD8: * | BE8: * | BF8: * | BG8: * | BH8: *
A9: 7 | B9: 27722 | C9: 2007-09-10 | D9: 4 | E9: * | F9: * | G9: <0,1 | H9: <0,1 | I9: * | J9: 0.0053 | K9: 0.0053 | L9: <0,1 | M9: <0,1 | N9: * | O9: * | P9: * | Q9: * | R9: <0,03 | S9: <0,03 | T9: 250 | U9: * | V9: * | W9: <2 | X9: 0.06 | Y9: <0,1 | Z9: <0,1 | AA9: * | AB9: <5 | AC9: 0.16 | AD9: 0.19 | AE9: <0,05 | AF9: <0,02 | AG9: <0,02 | AH9: <0,001 | AI9: <0,001 | AJ9: <0,003 | AK9: <0,003 | AL9: * | AM9: * | AN9: * | AO9: * | AP9: * | AQ9: <0,0100 | AR9: <0,01 | AS9: 171 | AT9: <5 | AU9: * | AV9: * | AW9: 44 | AX9: * | AY9: * | AZ9: * | BA9: 7.7 | BB9: 8 | BC9: * | BD9: * | BE9: * | BF9: * | BG9: * | BH9: *
A10: 8 | B10: 35837 | C10: 2007-12-03 | D10: 11 | E10: * | F10: * | G10: 1.11 | H10: 0.68 | I10: * | J10: 0.012 | K10: 0.0096 | L10: <0,1 | M10: <0,1 | N10: * | O10: * | P10: * | Q10: * | R10: <0,03 | S10: <0,03 | T10: 251 | U10: * | V10: * | W10: <2 | X10: <0,05 | Y10: <0,1 | Z10: <0,1 | AA10: * | AB10: <5 | AC10: ND | AD10: 2.55 | AE10: 0.09 | AF10: 0.08 | AG10: <0,02 | AH10: <0,001 | AI10: <0,001 | AJ10: <0,003 | AK10: <0,003 | AL10: * | AM10: * | AN10: * | AO10: * | AP10: * | AQ10: 0.0156 | AR10: 0.0114 | AS10: 166 | AT10: 27.1 | AU10: * | AV10: * | AW10: 70 | AX10: * | AY10: * | AZ10: * | BA10: 7.7 | BB10: 16 | BC10: * | BD10: * | BE10: * | BF10: * | BG10: * | BH10: *
A11: 9 | B11: 6666 | C11: 2008-03-10 | D11: 75 | E11: ND | F11: 7.1 | G11: <0,5 | H11: <0,5 | I11: ND | J11: 0.0106 | K11: 0.003 | L11: ND | M11: ND | N11: ND | O11: ND | P11: ND | Q11: ND | R11: <0,03 | S11: <0,03 | T11: 312 | U11: ND | V11: ND | W11: <2 | X11: <0,05 | Y11: <0,1 | Z11: <0,1 | AA11: ND | AB11: <5 | AC11: ND | AD11: 0.23 | AE11: <0,05 | AF11: <0,02 | AG11: <0,02 | AH11: <0,001 | AI11: <0,001 | AJ11: 0.008 | AK11: 0.008 | AL11: ND | AM11: ND | AN11: ND | AO11: ND | AP11: * | AQ11: 0.0114 | AR11: <0,0100 | AS11: 163 | AT11: <5 | AU11: ND | AV11: ND | AW11: 63 | AX11: ND | AY11: ND | AZ11: ND | BA11: 7.6 | BB11: 13 | BC11: * | BD11: * | BE11: * | BF11: * | BG11: * | BH11: *
A12: 10 | B12: 15996 | C12: 2008-06-13 | D12: 8 | E12: ND | F12: <5 | G12: 2 | H12: 1.1 | I12: ND | J12: 0.0135 | K12: 0.0131 | L12: ND | M12: ND | N12: ND | O12: ND | P12: ND | Q12: ND | R12: <0,03 | S12: <0,03 | T12: 350 | U12: ND | V12: ND | W12: <2 | X12: <0,05 | Y12: <0,1 | Z12: <0,1 | AA12: ND | AB12: <5 | AC12: ND | AD12: 0.64 | AE12: <0,05 | AF12: <0,02 | AG12: <0,02 | AH12: <0,001 | AI12: <0,001 | AJ12: * | AK12: * | AL12: ND | AM12: ND | AN12: ND | AO12: ND | AP12: * | AQ12: 0.0105 | AR12: <0,0100 | AS12: 218 | AT12: 11.2 | AU12: ND | AV12: ND | AW12: 61 | AX12: ND | AY12: ND | AZ12: ND | BA12: 8 | BB12: 6.2 | BC12: * | BD12: * | BE12: * | BF12: * | BG12: * | BH12: *
A13: 11 | B13: 23932 | C13: 2008-09-01 | D13: 2 | E13: * | F13: <5 | G13: 0.19 | H13: <0,5 | I13: * | J13: 0.0064 | K13: 0.0063 | L13: * | M13: * | N13: * | O13: * | P13: * | Q13: * | R13: <0,03 | S13: <0,03 | T13: 277 | U13: * | V13: * | W13: <2 | X13: <0,05 | Y13: <0,1 | Z13: <0,1 | AA13: * | AB13: <5 | AC13: ND | AD13: 0.33 | AE13: <0,05 | AF13: <0,02 | AG13: <0,02 | AH13: <0,001 | AI13: <0,001 | AJ13: 0.00469 | AK13: <0,003 | AL13: * | AM13: * | AN13: * | AO13: * | AP13: * | AQ13: <0,0100 | AR13: <0,0100 | AS13: 162 | AT13: <5 | AU13: * | AV13: * | AW13: 44 | AX13: * | AY13: * | AZ13: * | BA13: 7.6 | BB13: 7.9 | BC13: * | BD13: * | BE13: * | BF13: * | BG13: * | BH13: *
A14: 12 | B14: 32856 | C14: 2008-12-01 | D14: 23 | E14: * | F14: <5 | G14: 9.87 | H14: <0,5 | I14: * | J14: 0.0121 | K14: 0.0068 | L14: * | M14: * | N14: * | O14: * | P14: * | Q14: * | R14: <0,03 | S14: <0,03 | T14: 219 | U14: * | V14: * | W14: <2 | X14: <0,05 | Y14: <0,1 | Z14: <0,1 | AA14: * | AB14: <5 | AC14: ND | AD14: 4.57 | AE14: 0.12 | AF14: 0.18 | AG14: <0,02 | AH14: <0,001 | AI14: <0,001 | AJ14: <0,003 | AK14: <0,003 | AL14: * | AM14: * | AN14: * | AO14: 11.9 | AP14: * | AQ14: 0.0112 | AR14: <0,0100 | AS14: 116 | AT14: 178 | AU14: * | AV14: * | AW14: 11 | AX14: * | AY14: * | AZ14: * | BA14: 7.7 | BB14: 13 | BC14: * | BD14: * | BE14: * | BF14: * | BG14: * | BH14: *
A15: 13 | B15: 7239 | C15: 2009-03-16 | D15: 50 | E15: * | F15: <5 | G15: 1.38 | H15: <0,5 | I15: * | J15: 0.0111 | K15: 0.0096 | L15: * | M15: * | N15: * | O15: * | P15: * | Q15: * | R15: <0,03 | S15: <0,03 | T15: 308 | U15: * | V15: * | W15: <2 | X15: <0,05 | Y15: <0,1 | Z15: <0,1 | AA15: * | AB15: <5 | AC15: ND | AD15: 0.84 | AE15: <0,05 | AF15: 0.03 | AG15: <0,02 | AH15: <0,001 | AI15: <0,001 | AJ15: <0,003 | AK15: <0,003 | AL15: * | AM15: * | AN15: * | AO15: * | AP15: * | AQ15: <0,0100 | AR15: <0,0100 | AS15: 183 | AT15: 24.2 | AU15: * | AV15: * | AW15: 56 | AX15: * | AY15: * | AZ15: * | BA15: 6.9 | BB15: 11 | BC15: * | BD15: * | BE15: * | BF15: * | BG15: * | BH15: *
A16: 14 | B16: 14803 | C16: 2009-06-02 | D16: 8 | E16: * | F16: <5 | G16: * | H16: <0,5 | I16: * | J16: 0.0033 | K16: 0.0045 | L16: * | M16: * | N16: * | O16: * | P16: * | Q16: * | R16: <0,03 | S16: <0,03 | T16: 289 | U16: * | V16: * | W16: <2 | X16: <0,05 | Y16: <0,1 | Z16: <0,1 | AA16: * | AB16: <5 | AC16: ND | AD16: 0.12 | AE16: <0,05 | AF16: <0,02 | AG16: <0,02 | AH16: <0,001 | AI16: <0,001 | AJ16: 0.00628 | AK16: 0.00586 | AL16: * | AM16: * | AN16: * | AO16: * | AP16: * | AQ16: <0,0100 | AR16: <0,0100 | AS16: 161 | AT16: <5 | AU16: * | AV16: * | AW16: 62 | AX16: * | AY16: * | AZ16: * | BA16: 7.8 | BB16: 10 | BC16: * | BD16: * | BE16: * | BF16: * | BG16: * | BH16: *
A17: 15 | B17: 23320 | C17: 2009-09-01 | D17: 4 | E17: * | F17: <5 | G17: 0.25 | H17: <0,5 | I17: * | J17: 0.0039 | K17: 0.0037 | L17: * | M17: * | N17: * | O17: * | P17: * | Q17: * | R17: <0,03 | S17: <0,03 | T17: 266 | U17: * | V17: * | W17: <2 | X17: 0.07 | Y17: <0,1 | Z17: <0,1 | AA17: * | AB17: <5 | AC17: 0.072 | AD17: 0.19 | AE17: <0,05 | AF17: <0,02 | AG17: <0,02 | AH17: <0,001 | AI17: <0,001 | AJ17: <0,003 | AK17: <0,003 | AL17: * | AM17: * | AN17: * | AO17: * | AP17: * | AQ17: <0,0100 | AR17: <0,0100 | AS17: 127 | AT17: 5.5 | AU17: * | AV17: * | AW17: 47 | AX17: * | AY17: * | AZ17: * | BA17: 7.9 | BB17: 9.6 | BC17: * | BD17: * | BE17: * | BF17: * | BG17: * | BH17: *
A18: 16 | B18: 32279 | C18: 2009-12-01 | D18: 170 | E18: * | F18: <5 | G18: 16.24 | H18: <0,5 | I18: * | J18: 0.0199 | K18: 0.0086 | L18: * | M18: * | N18: * | O18: * | P18: * | Q18: * | R18: 0.06 | S18: <0,03 | T18: 238 | U18: * | V18: * | W18: <2 | X18: <0,05 | Y18: <0,1 | Z18: <0,1 | AA18: * | AB18: <5 | AC18: 0.012 | AD18: 19.86 | AE18: 0.08 | AF18: 0.58 | AG18: <0,02 | AH18: <0,001 | AI18: <0,001 | AJ18: <0,003 | AK18: <0,003 | AL18: * | AM18: * | AN18: * | AO18: * | AP18: * | AQ18: 0.0161 | AR18: <0,0100 | AS18: 141 | AT18: 588 | AU18: * | AV18: * | AW18: 15 | AX18: * | AY18: * | AZ18: * | BA18: 8 | BB18: 8.6 | BC18: * | BD18: * | BE18: * | BF18: * | BG18: * | BH18: *
A19: 17 | B19: 27456 | C19: 2010-09-27 | D19: 50 | E19: * | F19: <5 | G19: 0.2 | H19: <0,5 | I19: * | J19: 0.0085 | K19: 0.0073 | L19: * | M19: * | N19: * | O19: * | P19: * | Q19: * | R19: <0,03 | S19: <0,03 | T19: 313 | U19: * | V19: * | W19: <2 | X19: <0,05 | Y19: <0,1 | Z19: <0,1 | AA19: * | AB19: <5 | AC19: 0.064 | AD19: 0.12 | AE19: <0,05 | AF19: <0,02 | AG19: <0,02 | AH19: <0,001 | AI19: <0,001 | AJ19: <0,003 | AK19: <0,003 | AL19: * | AM19: * | AN19: * | AO19: * | AP19: * | AQ19: 0.0141 | AR19: <0,0100 | AS19: 182 | AT19: <5 | AU19: * | AV19: * | AW19: 54 | AX19: * | AY19: * | AZ19: * | BA19: 7.7 | BB19: 11.7 | BC19: * | BD19: * | BE19: * | BF19: * | BG19: * | BH19: *
A20: 18 | B20: 8979 | C20: 2011-03-01 | D20: 30 | E20: * | F20: <5 | G20: 0.15 | H20: <0,5 | I20: * | J20: 0.0081 | K20: 0.0078 | L20: * | M20: * | N20: * | O20: * | P20: * | Q20: * | R20: <0,03 | S20: <0,03 | T20: 353 | U20: * | V20: * | W20: <2 | X20: 0.13 | Y20: <0,1 | Z20: <0,1 | AA20: * | AB20: <5 | AC20: 0.062 | AD20: 3.25 | AE20: <0,06 | AF20: <0,02 | AG20: <0,02 | AH20: <0,001 | AI20: <0,001 | AJ20: <0,003 | AK20: <0,003 | AL20: * | AM20: * | AN20: * | AO20: * | AP20: * | AQ20: 0.001 | AR20: <0,001 | AS20: 238 | AT20: <5 | AU20: * | AV20: * | AW20: 78 | AX20: * | AY20: * | AZ20: * | BA20: 8 | BB20: 10.3 | BC20: * | BD20: * | BE20: * | BF20: * | BG20: * | BH20: *
A21: 19 | B21: 17227 | C21: 2011-06-01 | D21: 23 | E21: * | F21: <5 | G21: 0.04 | H21: <0,5 | I21: * | J21: 0.0107 | K21: 0.0106 | L21: * | M21: * | N21: * | O21: * | P21: * | Q21: * | R21: <0,03 | S21: <0,03 | T21: 376 | U21: * | V21: * | W21: <2 | X21: <0,1 | Y21: <0,5 | Z21: <0,5 | AA21: * | AB21: <10 | AC21: <1 | AD21: 0.1 | AE21: <0,05 | AF21: <0,02 | AG21: <0,02 | AH21: <0,001 | AI21: <0,001 | AJ21: 0.00403 | AK21: <0,003 | AL21: * | AM21: * | AN21: * | AO21: 9.8 | AP21: * | AQ21: 0.0156 | AR21: <0,0100 | AS21: 265 | AT21: <5 | AU21: * | AV21: * | AW21: * | AX21: * | AY21: * | AZ21: * | BA21: 8 | BB21: 8.1 | BC21: * | BD21: * | BE21: * | BF21: * | BG21: * | BH21: *
A22: 20 | B22: 29249 | C22: 2011-09-01 | D22: 8 | E22: * | F22: <5 | G22: 0.17 | H22: <0,5 | I22: * | J22: 0.0061 | K22: 0.0053 | L22: * | M22: * | N22: * | O22: * | P22: * | Q22: * | R22: <0,03 | S22: <0,03 | T22: 313 | U22: * | V22: * | W22: <2 | X22: <0,1 | Y22: <0,5 | Z22: <0,5 | AA22: * | AB22: <10 | AC22: <1 | AD22: 0.41 | AE22: <0,05 | AF22: 0.03 | AG22: <0,02 | AH22: <0,001 | AI22: <0,001 | AJ22: <0,003 | AK22: <0,003 | AL22: * | AM22: * | AN22: * | AO22: * | AP22: * | AQ22: <0,0100 | AR22: <0,0100 | AS22: 202 | AT22: 5.2 | AU22: * | AV22: * | AW22: 62 | AX22: * | AY22: * | AZ22: * | BA22: 7.4 | BB22: 11.5 | BC22: * | BD22: * | BE22: * | BF22: * | BG22: * | BH22: *
A23: 21 | B23: 36294 | C23: 2011-12-22 | D23: 30 | E23: * | F23: <5 | G23: 12.4 | H23: <0,5 | I23: * | J23: 0.039 | K23: 0.006 | L23: * | M23: * | N23: * | O23: * | P23: * | Q23: * | R23: 0.03 | S23: <0,03 | T23: 318 | U23: * | V23: * | W23: <2 | X23: <0,1 | Y23: <0,01 | Z23: <0,5 | AA23: * | AB23: <10 | AC23: <1 | AD23: 14.81 | AE23: 0.06 | AF23: 0.37 | AG23: <0,02 | AH23: <0,001 | AI23: <0,001 | AJ23: <0,003 | AK23: <0,003 | AL23: * | AM23: * | AN23: * | AO23: 9.7 | AP23: * | AQ23: 0.0179 | AR23: <0,0100 | AS23: 221 | AT23: 398 | AU23: * | AV23: * | AW23: 52 | AX23: * | AY23: * | AZ23: * | BA23: 8 | BB23: 14 | BC23: * | BD23: * | BE23: * | BF23: * | BG23: * | BH23: *
A24: 22 | B24: 9334 | C24: 2012-03-28 | D24: 30 | E24: * | F24: * | G24: 0.11 | H24: <0,5 | I24: * | J24: 0.0078 | K24: 0.0066 | L24: * | M24: * | N24: * | O24: * | P24: * | Q24: * | R24: <0,03 | S24: <0,03 | T24: 359 | U24: * | V24: * | W24: 2 | X24: * | Y24: * | Z24: * | AA24: * | AB24: * | AC24: * | AD24: 0.36 | AE24: <0,05 | AF24: 0.18 | AG24: <0,02 | AH24: * | AI24: * | AJ24: 0.01 | AK24: <0,003 | AL24: * | AM24: * | AN24: * | AO24: 10.1 | AP24: * | AQ24: <0,0100 | AR24: <0,0100 | AS24: 261 | AT24: <5 | AU24: * | AV24: * | AW24: 61 | AX24: * | AY24: * | AZ24: * | BA24: 7.1 | BB24: 12.7 | BC24: <0,2 | BD24: * | BE24: * | BF24: * | BG24: * | BH24: *
A25: 23 | B25: 17474 | C25: 2012-06-11 | D25: * | E25: * | F25: * | G25: * | H25: * | I25: * | J25: * | K25: * | L25: * | M25: * | N25: * | O25: * | P25: * | Q25: * | R25: * | S25: * | T25: 336 | U25: * | V25: * | W25: * | X25: * | Y25: * | Z25: * | AA25: * | AB25: * | AC25: * | AD25: * | AE25: * | AF25: * | AG25: * | AH25: * | AI25: * | AJ25: * | AK25: * | AL25: * | AM25: * | AN25: * | AO25: 24.6 | AP25: * | AQ25: * | AR25: * | AS25: 192 | AT25: 11.4 | AU25: * | AV25: * | AW25: * | AX25: * | AY25: * | AZ25: * | BA25: 7.11 | BB25: 12 | BC25: <0,1 | BD25: * | BE25: * | BF25: * | BG25: * | BH25: *
A26: 24 | B26: 29562 | C26: 01-10-2012 | D26: * | E26: * | F26: * | G26: * | H26: * | I26: * | J26: * | K26: * | L26: * | M26: * | N26: * | O26: * | P26: * | Q26: * | R26: * | S26: * | T26: 331 | U26: * | V26: * | W26: * | X26: * | Y26: * | Z26: * | AA26: * | AB26: * | AC26: * | AD26: * | AE26: * | AF26: * | AG26: * | AH26: * | AI26: * | AJ26: * | AK26: * | AL26: * | AM26: * | AN26: * | AO26: 9.4 | AP26: * | AQ26: * | AR26: * | AS26: 227 | AT26: 6.1 | AU26: * | AV26: * | AW26: * | AX26: * | AY26: * | AZ26: * | BA26: 7.9 | BB26: 10 | BC26: 0.3 | BD26: * | BE26: * | BF26: * | BG26: * | BH26: *
A27: 25 | B27: 37885 | C27: 2012-12-12 | D27: * | E27: * | F27: * | G27: * | H27: * | I27: * | J27: * | K27: * | L27: * | M27: * | N27: * | O27: * | P27: * | Q27: * | R27: * | S27: * | T27: 317 | U27: * | V27: * | W27: * | X27: * | Y27: * | Z27: * | AA27: * | AB27: * | AC27: * | AD27: * | AE27: * | AF27: * | AG27: * | AH27: * | AI27: * | AJ27: * | AK27: * | AL27: * | AM27: * | AN27: * | AO27: 9.7 | AP27: * | AQ27: * | AR27: * | AS27: 209 | AT27: 897 | AU27: * | AV27: * | AW27: * | AX27: * | AY27: * | AZ27: * | BA27: 7.97 | BB27: 12.5 | BC27: 2.3 | BD27: * | BE27: * | BF27: * | BG27: * | BH27: *
A28: 26 | B28: 8855 | C28: 2013-03-20 | D28: * | E28: * | F28: * | G28: <0,5 | H28: <0,5 | I28: * | J28: 0.01 | K28: 0.008 | L28: * | M28: * | N28: * | O28: * | P28: * | Q28: * | R28: <0,01 | S28: <0,01 | T28: 327 | U28: * | V28: * | W28: 2.9 | X28: * | Y28: * | Z28: * | AA28: * | AB28: * | AC28: * | AD28: <0,01 | AE28: <0,01 | AF28: <0,01 | AG28: <0,01 | AH28: * | AI28: * | AJ28: <0,005 | AK28: <0,005 | AL28: * | AM28: * | AN28: * | AO28: 8.37 | AP28: * | AQ28: <0,01 | AR28: <0,01 | AS28: 226 | AT28: <5 | AU28: * | AV28: * | AW28: 40 | AX28: * | AY28: * | AZ28: * | BA28: 7.78 | BB28: 12.2 | BC28: <0,1 | BD28: * | BE28: * | BF28: * | BG28: * | BH28: *
A29: 27 | B29: 21367 | C29: 2013-06-26 | D29: * | E29: * | F29: * | G29: * | H29: * | I29: * | J29: * | K29: * | L29: * | M29: * | N29: * | O29: * | P29: * | Q29: * | R29: * | S29: * | T29: 355 | U29: * | V29: * | W29: * | X29: * | Y29: * | Z29: * | AA29: * | AB29: * | AC29: * | AD29: * | AE29: * | AF29: * | AG29: * | AH29: * | AI29: * | AJ29: * | AK29: * | AL29: * | AM29: * | AN29: * | AO29: 11.29 | AP29: * | AQ29: * | AR29: * | AS29: 218 | AT29: <5 | AU29: * | AV29: * | AW29: * | AX29: * | AY29: * | AZ29: * | BA29: 8.21 | BB29: 8.9 | BC29: <0,1 | BD29: * | BE29: * | BF29: * | BG29: * | BH29: *
A30: 28 | B30: 36006 | C30: 2013-09-25 | D30: * | E30: * | F30: * | G30: * | H30: * | I30: * | J30: * | K30: * | L30: * | M30: * | N30: * | O30: * | P30: * | Q30: * | R30: * | S30: * | T30: 345 | U30: * | V30: * | W30: * | X30: * | Y30: * | Z30: * | AA30: * | AB30: * | AC30: * | AD30: * | AE30: * | AF30: * | AG30: * | AH30: * | AI30: * | AJ30: * | AK30: * | AL30: * | AM30: * | AN30: * | AO30: 7.1 | AP30: * | AQ30: * | AR30: * | AS30: 231 | AT30: <5 | AU30: * | AV30: * | AW30: * | AX30: * | AY30: * | AZ30: * | BA30: 7.66 | BB30: 8.1 | BC30: <0,1 | BD30: * | BE30: * | BF30: * | BG30: * | BH30: *
A31: 29 | B31: 46825 | C31: 2013-12-04 | D31: * | E31: * | F31: * | G31: * | H31: * | I31: * | J31: * | K31: * | L31: * | M31: * | N31: * | O31: * | P31: * | Q31: * | R31: * | S31: * | T31: 319 | U31: * | V31: * | W31: * | X31: * | Y31: * | Z31: * | AA31: * | AB31: * | AC31: * | AD31: * | AE31: * | AF31: * | AG31: * | AH31: * | AI31: * | AJ31: * | AK31: * | AL31: * | AM31: * | AN31: * | AO31: 8.7 | AP31: * | AQ31: * | AR31: * | AS31: 225 | AT31: 144 | AU31: * | AV31: * | AW31: * | AX31: * | AY31: * | AZ31: * | BA31: 7.95 | BB31: 8.8 | BC31: 0.6 | BD31: * | BE31: * | BF31: * | BG31: * | BH31: *
A32: 30 | B32: 12290 | C32: 2014-03-26 | D32: * | E32: * | F32: * | G32: * | H32: * | I32: * | J32: * | K32: * | L32: * | M32: * | N32: * | O32: * | P32: * | Q32: * | R32: * | S32: * | T32: 353 | U32: * | V32: * | W32: * | X32: * | Y32: * | Z32: * | AA32: * | AB32: * | AC32: * | AD32: * | AE32: * | AF32: * | AG32: * | AH32: * | AI32: * | AJ32: * | AK32: * | AL32: * | AM32: * | AN32: * | AO32: 9 | AP32: * | AQ32: * | AR32: * | AS32: 225 | AT32: <5 | AU32: * | AV32: * | AW32: * | AX32: * | AY32: * | AZ32: * | BA32: 7.03 | BB32: 12.1 | BC32: * | BD32: * | BE32: * | BF32: * | BG32: * | BH32: *
A33: 31 | B33: 24933 | C33: 2014-06-18 | D33: * | E33: * | F33: * | G33: * | H33: * | I33: * | J33: * | K33: * | L33: * | M33: * | N33: * | O33: * | P33: * | Q33: * | R33: * | S33: * | T33: 354 | U33: * | V33: * | W33: * | X33: * | Y33: * | Z33: * | AA33: * | AB33: * | AC33: * | AD33: * | AE33: * | AF33: * | AG33: * | AH33: * | AI33: * | AJ33: * | AK33: * | AL33: * | AM33: * | AN33: * | AO33: 10.3 | AP33: * | AQ33: * | AR33: * | AS33: 234 | AT33: <5 | AU33: * | AV33: * | AW33: * | AX33: * | AY33: * | AZ33: * | BA33: 7.19 | BB33: 8.2 | BC33: * | BD33: * | BE33: * | BF33: * | BG33: * | BH33: *
A34: 32 | B34: 40058 | C34: 2014-09-29 | D34: * | E34: * | F34: * | G34: * | H34: * | I34: * | J34: * | K34: * | L34: * | M34: * | N34: * | O34: * | P34: * | Q34: * | R34: * | S34: * | T34: 366 | U34: * | V34: * | W34: * | X34: * | Y34: * | Z34: * | AA34: * | AB34: * | AC34: * | AD34: * | AE34: * | AF34: * | AG34: * | AH34: * | AI34: * | AJ34: * | AK34: * | AL34: * | AM34: * | AN34: * | AO34: 9.8 | AP34: * | AQ34: * | AR34: * | AS34: 196 | AT34: <5 | AU34: * | AV34: * | AW34: * | AX34: * | AY34: * | AZ34: * | BA34: 8.4 | BB34: 11.5 | BC34: * | BD34: * | BE34: * | BF34: * | BG34: * | BH34: *
B35: - | C35: 2014-12-15 | D35: * | E35: * | F35: * | G35: * | H35: * | I35: * | J35: * | K35: * | L35: * | M35: * | N35: * | O35: * | P35: * | Q35: * | R35: * | S35: * | T35: * | U35: * | V35: * | W35: * | X35: * | Y35: * | Z35: * | AA35: * | AB35: * | AC35: * | AD35: * | AE35: * | AF35: * | AG35: * | AH35: * | AI35: * | AJ35: * | AK35: * | AL35: * | AM35: * | AN35: * | AO35: * | AP35: * | AQ35: * | AR35: * | AS35: * | AT35: * | AU35: * | AV35: * | AW35: * | AX35: * | AY35: * | AZ35: * | BA35: * | BB35: * | BC35: * | BD35: * | BE35: * | BF35: * | BG35: * | BH35: *
C38: Promedio | D38: =AVERAGE(D3:D27) -> 31.94736842 | E38: =AVERAGE(E3:E27) -> 300 | F38: 8.05 | G38: 3.018888889 | H38: 0.858 | I38: 0.01 | J38: 0.01150952381 | K38: 0.007268421053 | Q38: 16.31 | R38: 0.045 | S38: 0.03 | T38: 308.72 | W38: 3.5 | X38: 0.08666666667 | AA38: 0.1 | AC38: 0.1 | AD38: 2.792272727 | AE38: 0.076 | AF38: 0.1636363636 | AG38: 0.02 | AJ38: 0.0066 | AK38: 0.03795333333 | AO38: 11.964 | AQ38: 0.5575076923 | AR38: 0.0114 | AS38: 192.8 | AT38: 158.82 | AW38: 59.91904762 | BA38: 7.7552 | BB38: 10.488 | BC38: 1.3
C39: Percentil | D39: =PERCENTILE(D3:D27,0.66) -> 30 | E39: =PERCENTILE(E3:E27,0.66) -> 300 | F39: 8.354 | G39: 1.1694 | H39: 0.9488 | I39: 0.01 | J39: 0.01202 | K39: 0.008504 | Q39: 16.31 | R39: 0.0498 | S39: 0.03 | T39: 329.08 | W39: 3.98 | X39: 0.0892 | AA39: 0.1 | AC39: 0.07168 | AD39: 1.2356 | AE39: 0.0864 | AF39: 0.18 | AG39: 0.02 | AJ39: 0.0073808 | AK39: 0.03744 | AO39: 11.358 | AQ39: 0.01548 | AR39: 0.011688 | AS39: 209.84 | AT39: 62.116 | AW39: 63.32 | BA39: 7.9588 | BB39: 11.5 | BC39: 1.62

Sheet CO10 (hidden)
B1: Nro. Muestra | C1: Fecha Muestreo | D1: CF | E1: CT | F1: A y G | G1: Al | H1: Al Dis. | I1: NH4 | J1: As | K1: As Dis. | L1: B | M1: B Dis. | N1: Cd | O1: Cd Dis. | P1: CN | Q1: Cloruro | R1: Cu | S1: Cu Dis. | T1: Co. Esp. | U1: Cr Dis. | V1: Cromo total | W1: DBO5 | X1: Deterg. | Y1: Sn | Z1: Sn Dis. | AA1: Fluoruro | AB1: HCF | AC1: HCV | AD1: Fe | AE1: Fe Dis. | AF1: Mn | AG1: Mn Dis. | AH1: Hg | AI1: Hg Dis. | AJ1: Mo | AK1: Mo Dis. | AL1: Ni | AM1: Ni Dis. | AN1: Nitritos | AO1: O Dis. | AP1: RAS | AQ1: Pb | AR1: Pb Dis. | AS1: SDT | AT1: SST | AU1: Se | AV1: Se Dis. | AW1: Sulfatos | AX1: Sulfuros | AY1: Zn | AZ1: Zn Dis. | BA1: Ph | BB1: T° | BC1: P tot. | BD1: N tot. | BE1: Nitratos | BF1: N Kjeldahl | BG1: DQO | BH1: N amoniacal
D2: [NMP/100 ml] | E2: [NMP/100 ml] | F2: [mg/L] | G2: [mg/L] | H2: [mg/L] | I2: [mg/L] | J2: [mg/L] | K2: [mg/L] | L2: [mg/L] | M2: [mg/L] | N2: [mg/L] | O2: [mg/L] | P2: [mg/L] | Q2: [mg/L] | R2: [mg/L] | S2: [mg/L] | T2: [uS/cm] | U2: [mg/L] | V2: [mg/L] | W2: [mg/L] | X2: [mg/L] | Y2: [mg/L] | Z2: [mg/L] | AA2: [mg/L] | AB2: [mg/L] | AC2: [mg/L] | AD2: [mg/L] | AE2: [mg/L] | AF2: [mg/L] | AG2: [mg/L] | AH2: [mg/L] | AI2: [mg/L] | AJ2: [mg/L] | AK2: [mg/L] | AL2: [mg/L] | AM2: [mg/L] | AN2: [mg/L] | AO2: [mg/L] | AP2: [%] | AQ2: [mg/L] | AR2: [mg/L] | AS2: [mg/L] | AT2: [mg/L] | AU2: [mg/L] | AV2: [mg/L] | AW2: [mg/L] | AX2: [mg/L] | AY2: [mg/L] | AZ2: [mg/L] | BA2: [-] | BB2: [°C] | BC2: [mg/L] | BD2: [mg/L] | BE2: [mg/L] | BF2: [mg/L] | BG2: [mg/L] | BH2: [mg/L]
A3: 1 | B3: 6939 | C3: 2006-03-01 | D3: 4 | E3: <2,00E+0 | F3: 7.4 | G3: 7.89 | H3: <0,1 | I3: <0,03 | J3: 0.0572 | K3: <0,01 | L3: <0,1 | M3: <0,1 | N3: 0.013 | O3: 0.011 | P3: <0,01 | Q3: 13.6 | R3: 30 | S3: 27 | T3: 994 | U3: <0,05 | V3: <0,05 | W3: <2 | X3: <0,05 | Y3: <0,1 | Z3: <0,1 | AA3: 0.5 | AB3: <5 | AC3: ND | AD3: 8.44 | AE3: 0.93 | AF3: 2.55 | AG3: 2.3 | AH3: <0,001 | AI3: <0,001 | AJ3: <0,1 | AK3: <0,1 | AL3: <0,02 | AM3: <0,02 | AN3: * | AO3: 8.8 | AP3: * | AQ3: 0.0338 | AR3: 0.0163 | AS3: 704 | AT3: 150 | AU3: <0,0050 | AV3: <0,0050 | AW3: 85.2 | AX3: <0,1 | AY3: * | AZ3: 0.89 | BA3: 4.9 | BB3: 15.2 | BC3: * | BD3: * | BE3: * | BF3: * | BG3: * | BH3: *
A4: 2 | B4: 18577 | C4: 2006-06-05 | D4: 700 | E4: * | F4: 7.4 | G4: 0.27 | H4: 0.16 | I4: * | J4: * | K4: * | L4: <0,1 | M4: <0,1 | N4: * | O4: * | P4: <0,1 | Q4: 51.15 | R4: 0.07 | S4: 0.07 | T4: 554 | U4: <0,05 | V4: <0,05 | W4: <2 | X4: <0,05 | Y4: * | Z4: * | AA4: * | AB4: * | AC4: * | AD4: 0.11 | AE4: <0,05 | AF4: <0,03 | AG4: <0,03 | AH4: <0,0001 | AI4: <0,001 | AJ4: * | AK4: * | AL4: <0,1 | AM4: <0,02 | AN4: <0,01 | AO4: 10.1 | AP4: * | AQ4: * | AR4: * | AS4: 383 | AT4: 5.3 | AU4: * | AV4: * | AW4: 99.6 | AX4: * | AY4: * | AZ4: * | BA4: 7.7 | BB4: 9.5 | BC4: * | BD4: * | BE4: * | BF4: * | BG4: * | BH4: *
A5: 3 | B5: 30511 | C5: 2006-09-04 | D5: 110 | E5: * | F5: 1 | G5: 8.4 | H5: 0.2 | I5: 0.06 | J5: 0.0177 | K5: <0,01 | L5: <0,1 | M5: <0,1 | N5: 0.0048 | O5: 0.0044 | P5: <0,01 | Q5: 35.34 | R5: 11.25 | S5: 3.75 | T5: 756 | U5: <0,05 | V5: <0,05 | W5: 2.1 | X5: <0,05 | Y5: * | Z5: * | AA5: 0.1 | AB5: * | AC5: * | AD5: 29.21 | AE5: 0.1 | AF5: 1.25 | AG5: 0.9 | AH5: <0,001 | AI5: <0,001 | AJ5: <0,1 | AK5: <0,1 | AL5: <0,02 | AM5: <0,02 | AN5: <0,01 | AO5: 9.7 | AP5: * | AQ5: 0.0433 | AR5: 0.0109 | AS5: 501 | AT5: * | AU5: <0,0050 | AV5: <0,0050 | AW5: 296 | AX5: <0,15 | AY5: 0.47 | AZ5: 0.31 | BA5: 7 | BB5: 8.8 | BC5: * | BD5: * | BE5: * | BF5: * | BG5: * | BH5: *
A6: 4 | B6: 41976 | C6: 2006-12-04 | D6: 7 | E6: * | F6: 7.6 | G6: 6.93 | H6: 0.3 | I6: 0.08 | J6: 0.017 | K6: <0,003 | L6: <0,1 | M6: <0,1 | N6: 0.004 | O6: <0,0040 | P6: <0,01 | Q6: 6.18 | R6: 9.6 | S6: 5.05 | T6: 412 | U6: <0,01 | V6: <0,01 | W6: <2 | X6: <0,05 | Y6: * | Z6: * | AA6: 0.2 | AB6: * | AC6: * | AD6: 10.18 | AE6: 0.03 | AF6: 0.87 | AG6: 0.62 | AH6: <0,001 | AI6: <0,001 | AJ6: <0,1 | AK6: <0,1 | AL6: <0,02 | AM6: <0,02 | AN6: <0,01 | AO6: 11 | AP6: * | AQ6: 0.0263 | AR6: 0.0132 | AS6: 250 | AT6: 100 | AU6: <0,003 | AV6: <0,0050 | AW6: 106 | AX6: <0,15 | AY6: 0.39 | AZ6: 0.29 | BA6: 6.7 | BB6: 10 | BC6: * | BD6: * | BE6: * | BF6: * | BG6: * | BH6: *
A7: 5 | B7: 8464 | C7: 2007-03-12 | D7: 3000 | E7: * | F7: 10.1 | G7: 1.48 | H7: 0.11 | I7: 0.04 | J7: 0.0119 | K7: <0,003 | L7: <0,1 | M7: <0,1 | N7: 0.0034 | O7: 0.0033 | P7: <0,01 | Q7: 11.15 | R7: 4.75 | S7: 0.68 | T7: 803 | U7: <0,002 | V7: <0,002 | W7: <2 | X7: <0,05 | Y7: <0,1 | Z7: <0,1 | AA7: 0.2 | AB7: <5 | AC7: ND | AD7: 2.81 | AE7: <0,05 | AF7: 0.81 | AG7: 0.6 | AH7: <0,001 | AI7: <0,001 | AJ7: <0,003 | AK7: <0,003 | AL7: <0,02 | AM7: <0,02 | AN7: <0,01 | AO7: 9.3 | AP7: * | AQ7: 0.0235 | AR7: 0.0183 | AS7: 309 | AT7: 58 | AU7: <0,003 | AV7: <0,003 | AW7: 324 | AX7: <0,15 | AY7: 0.28 | AZ7: 0.22 | BA7: 6.8 | BB7: 15 | BC7: * | BD7: * | BE7: * | BF7: * | BG7: * | BH7: *
A8: 6 | B8: 19455 | C8: 2007-06-18 | D8: 1300 | E8: 1700 | F8: <5 | G8: 0.17 | H8: <0,1 | I8: 0.15 | J8: 0.0081 | K8: <0,003 | L8: <0,1 | M8: <0,1 | N8: 0.0031 | O8: <0,003 | P8: <0,01 | Q8: 67.34 | R8: 2.5 | S8: 1.6 | T8: 620 | U8: <0,002 | V8: <0,002 | W8: <2 | X8: 0.05 | Y8: <0,1 | Z8: <0,1 | AA8: 0.2 | AB8: <5 | AC8: ND | AD8: 1.48 | AE8: 0.19 | AF8: 0.74 | AG8: 0.69 | AH8: <0,001 | AI8: <0,001 | AJ8: <0,003 | AK8: <0,003 | AL8: <0,02 | AM8: <0,02 | AN8: <0,01 | AO8: 7.42 | AP8: * | AQ8: 0.0141 | AR8: 0.0107 | AS8: 692 | AT8: 20.4 | AU8: <0,003 | AV8: <0,003 | AW8: 283 | AX8: <0,15 | AY8: 0.19 | AZ8: 0.15 | BA8: 6.5 | BB8: 9 | BC8: * | BD8: * | BE8: * | BF8: * | BG8: * | BH8: *
A9: 7 | B9: 27720 | C9: 2007-09-10 | D9: 30 | E9: 70 | F9: 14.3 | G9: 16.5 | H9: 4.44 | I9: 0.22 | J9: 0.0304 | K9: <0,003 | L9: <0,1 | M9: <0,1 | N9: <0,003 | O9: <0,003 | P9: <0,01 | Q9: 40.36 | R9: 3.9 | S9: 0.06 | T9: 216 | U9: <0,002 | V9: <0,002 | W9: <2 | X9: 1.23 | Y9: <0,1 | Z9: <0,1 | AA9: 0.2 | AB9: <5 | AC9: ND | AD9: 50.2 | AE9: 0.06 | AF9: 0.87 | AG9: 0.44 | AH9: <0,001 | AI9: <0,001 | AJ9: <0,003 | AK9: <0,003 | AL9: <0,02 | AM9: <0,02 | AN9: <0,01 | AO9: 12.8 | AP9: * | AQ9: 0.0478 | AR9: 0.0105 | AS9: 306 | AT9: 532 | AU9: <0,003 | AV9: <0,003 | AW9: 169 | AX9: <0,15 | AY9: 0.29 | AZ9: 0.05 | BA9: 7.3 | BB9: 10 | BC9: * | BD9: * | BE9: * | BF9: * | BG9: * | BH9: *
A10: 8 | B10: 35839 | C10: 2007-12-03 | D10: 300 | E10: 500 | F10: 5.4 | G10: 1.29 | H10: 0.74 | I10: 0.09 | J10: 0.0095 | K10: 0.0084 | L10: <0,1 | M10: <0,1 | N10: <0,003 | O10: <0,003 | P10: <0,01 | Q10: 15.97 | R10: 0.84 | S10: 0.09 | T10: 399 | U10: <0,002 | V10: <0,002 | W10: <2 | X10: <0,05 | Y10: 0.14 | Z10: 0.14 | AA10: 0.2 | AB10: <5 | AC10: 0.02 | AD10: 2.35 | AE10: <0,05 | AF10: 0.23 | AG10: 0.18 | AH10: <0,001 | AI10: <0,001 | AJ10: <0,003 | AK10: <0,003 | AL10: <0,02 | AM10: <0,02 | AN10: <0,01 | AO10: 9.4 | AP10: * | AQ10: 0.0181 | AR10: 0.0139 | AS10: 371 | AT10: 33.2 | AU10: <0,003 | AV10: <0,003 | AW10: 151 | AX10: <0,15 | AY10: 0.1 | AZ10: 0.03 | BA10: 7.4 | BB10: 16 | BC10: * | BD10: * | BE10: * | BF10: * | BG10: * | BH10: *
A11: 9 | B11: 6668 | C11: 2008-03-10 | D11: 8000 | E11: 30000 | F11: 8.5 | G11: 33.25 | H11: <0,5 | I11: 0.24 | J11: 0.0695 | K11: 0.0054 | L11: ND | M11: ND | N11: <0,003 | O11: <0,003 | P11: <0,01 | Q11: 27.4 | R11: 2.8 | S11: 0.04 | T11: 580 | U11: <0,002 | V11: 0.003 | W11: 2.5 | X11: <0,05 | Y11: <0,1 | Z11: <0,1 | AA11: 0.2 | AB11: <5 | AC11: ND | AD11: 34.96 | AE11: <0,05 | AF11: 1.15 | AG11: 0.57 | AH11: <0,001 | AI11: <0,001 | AJ11: 0.082 | AK11: 0.035 | AL11: 0.05 | AM11: <0,03 | AN11: 0.01 | AO11: 9.7 | AP11: * | AQ11: 0.0864 | AR11: <0,0100 | AS11: 323 | AT11: 699 | AU11: <0,003 | AV11: <0,003 | AW11: 202 | AX11: <0,15 | AY11: 0.21 | AZ11: 0.02 | BA11: 7.3 | BB11: 16.5 | BC11: * | BD11: * | BE11: * | BF11: * | BG11: * | BH11: *
A12: 10 | B12: 15410 | C12: 2008-06-09 | D12: 210 | E12: 500 | F12: 12.2 | G12: 35.1 | H12: <0,5 | I12: 0.06 | J12: 0.091 | K12: 0.0036 | L12: ND | M12: ND | N12: <0,003 | O12: <0,003 | P12: <0,01 | Q12: 23.1 | R12: 5.25 | S12: 0.05 | T12: 564 | U12: <0,002 | V12: 0.00276 | W12: <2 | X12: 0.84 | Y12: <0,1 | Z12: <0,1 | AA12: 0.1 | AB12: <5 | AC12: ND | AD12: 101.38 | AE12: 0.09 | AF12: 2.2 | AG12: 0.7 | AH12: 0.017 | AI12: <0,001 | AJ12: * | AK12: * | AL12: 0.05 | AM12: <0,03 | AN12: <0,01 | AO12: 12.3 | AP12: * | AQ12: 0.0699 | AR12: <0,0100 | AS12: 369 | AT12: 2202 | AU12: <0,003 | AV12: <0,003 | AW12: 160 | AX12: <0,15 | AY12: 0.44 | AZ12: 0.02 | BA12: 6.7 | BB12: 5.2 | BC12: * | BD12: * | BE12: * | BF12: * | BG12: * | BH12: *
A13: 11 | B13: 23934 | C13: 2008-09-01 | D13: 170 | E13: 1700 | F13: <5 | G13: 22.5 | H13: <0,5 | I13: 0.12 | J13: 0.0186 | K13: 0.0051 | L13: * | M13: * | N13: <0,003 | O13: <0,003 | P13: <0,01 | Q13: 33.03 | R13: 4.51 | S13: 0.08 | T13: 532 | U13: 0.00261 | V13: 0.005 | W13: <2 | X13: <0,05 | Y13: <0,1 | Z13: <0,1 | AA13: 0.2 | AB13: <5 | AC13: ND | AD13: 69.19 | AE13: <0,05 | AF13: 1.25 | AG13: 0.39 | AH13: 0.009 | AI13: <0,001 | AJ13: 0.0447 | AK13: 0.0259 | AL13: 0.04 | AM13: <0,03 | AN13: <0,01 | AO13: 11.4 | AP13: * | AQ13: 0.0635 | AR13: <0,0100 | AS13: 352 | AT13: 1041 | AU13: <0,003 | AV13: <0,003 | AW13: 121 | AX13: <0,15 | AY13: 0.33 | AZ13: 0.02 | BA13: 7.5 | BB13: 9.3 | BC13: * | BD13: * | BE13: * | BF13: * | BG13: * | BH13: *
A14: 12 | B14: 32858 | C14: 2008-12-01 | D14: <2,00E+1 | E14: <2,00E+1 | F14: <5 | G14: 21.4 | H14: <0,5 | I14: 0.04 | J14: 0.0207 | K14: <0,003 | L14: * | M14: * | N14: <0,003 | O14: <0,003 | P14: <0,01 | Q14: 12.14 | R14: 4.86 | S14: 0.06 | T14: 392 | U14: 0.00509 | V14: 0.00983 | W14: <2 | X14: <0,05 | Y14: <0,1 | Z14: <0,1 | AA14: 0.2 | AB14: <5 | AC14: ND | AD14: 58.45 | AE14: 0.07 | AF14: 1.04 | AG14: 0.29 | AH14: <0,001 | AI14: <0,001 | AJ14: 0.0481 | AK14: 0.02115 | AL14: 0.04 | AM14: <0,03 | AN14: <0,015 | AO14: 11 | AP14: * | AQ14: 0.0673 | AR14: <0,0100 | AS14: 268 | AT14: 519 | AU14: <0,003 | AV14: <0,003 | AW14: 97 | AX14: <0,15 | AY14: 0.38 | AZ14: 0.02 | BA14: 7.4 | BB14: 14 | BC14: * | BD14: * | BE14: * | BF14: * | BG14: * | BH14: *
A15: 13 | B15: 7241 | C15: 2009-03-16 | D15: 11000 | E15: 11000 | F15: <5 | G15: 2.11 | H15: <0,5 | I15: 0.14 | J15: 0.0085 | K15: 0.0045 | L15: * | M15: * | N15: <0,003 | O15: <0,003 | P15: <0,01 | Q15: 22.78 | R15: 0.77 | S15: 0.09 | T15: 661 | U15: <0,002 | V15: <0,002 | W15: <2 | X15: <0,05 | Y15: <0,1 | Z15: <0,1 | AA15: 0.2 | AB15: <5 | AC15: ND | AD15: 1.58 | AE15: <0,05 | AF15: 0.32 | AG15: 0.23 | AH15: <0,001 | AI15: <0,001 | AJ15: 0.0478 | AK15: 0.04419 | AL15: <0,03 | AM15: <0,03 | AN15: <0,015 | AO15: 7.3 | AP15: * | AQ15: 0.0162 | AR15: <0,0100 | AS15: 430 | AT15: 33 | AU15: <0,003 | AV15: <0,003 | AW15: 229 | AX15: <0,15 | AY15: 0.1 | AZ15: 0.05 | BA15: 6.9 | BB15: 17 | BC15: * | BD15: * | BE15: * | BF15: * | BG15: * | BH15: *
A16: 14 | B16: 14805 | C16: 2009-06-01 | D16: 1300 | E16: 3000 | F16: <5 | G16: 44.5 | H16: <0,5 | I16: 0.1 | J16: 0.0795 | K16: 0.0044 | L16: * | M16: * | N16: <0,003 | O16: <0,003 | P16: <0,01 | Q16: 27.94 | R16: 3.72 | S16: 0.36 | T16: 694 | U16: <0,002 | V16: 0.00788 | W16: <2 | X16: <0,05 | Y16: <0,1 | Z16: <0,1 | AA16: 0.2 | AB16: <5 | AC16: ND | AD16: 70.57 | AE16: 0.06 | AF16: 1.95 | AG16: 0.54 | AH16: <0,001 | AI16: <0,001 | AJ16: 0.0357 | AK16: 0.03023 | AL16: 0.06 | AM16: <0,03 | AN16: 0.027 | AO16: 10.7 | AP16: * | AQ16: 0.1244 | AR16: 0.0105 | AS16: 454 | AT16: 980 | AU16: <0,003 | AV16: <0,003 | AW16: 249 | AX16: <0,15 | AY16: 0.32 | AZ16: 0.05 | BA16: 7.8 | BB16: 19.6 | BC16: * | BD16: * | BE16: * | BF16: * | BG16: * | BH16: *
A17: 15 | B17: 23332 | C17: 2009-09-01 | D17: 3000 | E17: 5000 | F17: <5 | G17: 27.95 | H17: <0,5 | I17: 0.37 | J17: 0.0219 | K17: 0.0034 | L17: * | M17: * | N17: <0,003 | O17: <0,003 | P17: <0,01 | Q17: 42.33 | R17: 3.19 | S17: 0.06 | T17: 616 | U17: <0,002 | V17: <0,002 | W17: <2 | X17: <0,05 | Y17: <0,1 | Z17: <0,1 | AA17: 0.2 | AB17: <5 | AC17: 0.112 | AD17: 57.17 | AE17: 0.14 | AF17: 1.11 | AG17: 0.44 | AH17: <0,001 | AI17: <0,001 | AJ17: <0,003 | AK17: <0,003 | AL17: 0.04 | AM17: <0,03 | AN17: <0,015 | AO17: 10.2 | AP17: * | AQ17: 0.0669 | AR17: 0.0137 | AS17: 399 | AT17: 603 | AU17: <0,003 | AV17: <0,003 | AW17: 174 | AX17: <0,15 | AY17: 0.29 | AZ17: 0.05 | BA17: 7.5 | BB17: 9.8 | BC17: * | BD17: * | BE17: * | BF17: * | BG17: * | BH17: *
A18: 16 | B18: 32281 | C18: 2009-12-01 | D18: 1300 | E18: 5000 | F18: 8.4 | G18: 26.4 | H18: <0,5 | I18: 0.14 | J18: 0.0519 | K18: 0.0033 | L18: * | M18: * | N18: <0,003 | O18: <0,003 | P18: <0,01 | Q18: 10.48 | R18: 4.26 | S18: <0,03 | T18: 341 | U18: <0,002 | V18: <0,002 | W18: <2 | X18: <0,05 | Y18: <0,1 | Z18: <0,1 | AA18: 0.2 | AB18: <5 | AC18: 0.022 | AD18: 73.76 | AE18: 0.05 | AF18: 1.05 | AG18: 0.27 | AH18: <0,001 | AI18: <0,001 | AJ18: <0,003 | AK18: <0,003 | AL18: <0,03 | AM18: <0,03 | AN18: <0,015 | AO18: 10.5 | AP18: * | AQ18: 0.0707 | AR18: <0,0100 | AS18: 254 | AT18: 839 | AU18: <0,003 | AV18: <0,003 | AW18: 96 | AX18: <0,15 | AY18: 0.37 | AZ18: <0,02 | BA18: 4.6 | BB18: 9.7 | BC18: * | BD18: * | BE18: * | BF18: * | BG18: * | BH18: *
A19: 17 | B19: 27458 | C19: 2010-09-27 | D19: 800 | E19: 1100 | F19: <5 | G19: 4.96 | H19: <0,5 | I19: 0.14 | J19: 0.0145 | K19: 0.0038 | L19: * | M19: * | N19: <0,003 | O19: <0,003 | P19: <0,01 | Q19: 37.2 | R19: 1.27 | S19: 0.06 | T19: 642 | U19: <0,002 | V19: <0,002 | W19: <2 | X19: <0,05 | Y19: <0,1 | Z19: <0,1 | AA19: 0.2 | AB19: <5 | AC19: 0.024 | AD19: 8.37 | AE19: <0,05 | AF19: 0.38 | AG19: 0.22 | AH19: <0,001 | AI19: <0,001 | AJ19: 0.03 | AK19: 0.024 | AL19: <0,03 | AM19: <0,03 | AN19: <0,015 | AO19: 9.9 | AP19: * | AQ19: 0.0199 | AR19: 0.014 | AS19: 464 | AT19: 164 | AU19: <0,003 | AV19: <0,003 | AW19: 184 | AX19: <0,15 | AY19: 0.12 | AZ19: 0.05 | BA19: 7.4 | BB19: 12.2 | BC19: * | BD19: * | BE19: * | BF19: * | BG19: * | BH19: *
A20: 18 | B20: 8981 | C20: 2011-03-01 | D20: 3000 | E20: 5000 | F20: <5 | G20: 1.38 | H20: <0,5 | I20: 0.11 | J20: 0.017 | K20: 0.0068 | L20: * | M20: * | N20: <0,003 | O20: <0,003 | P20: <0,01 | Q20: 27.94 | R20: 0.92 | S20: 0.06 | T20: 751 | U20: 0.00306 | V20: 0.0036 | W20: <2 | X20: 0.14 | Y20: <0,1 | Z20: <0,1 | AA20: * | AB20: <5 | AC20: 0.076 | AD20: 8.9 | AE20: <0,05 | AF20: 0.32 | AG20: 0.2 | AH20: <0,001 | AI20: <0,001 | AJ20: 0.03608 | AK20: 0.03582 | AL20: 0.03 | AM20: <0,03 | AN20: <0,015 | AO20: 8.9 | AP20: * | AQ20: 0.00184 | AR20: 0.0174 | AS20: 561 | AT20: 22.8 | AU20: <0,003 | AV20: <0,003 | AW20: 141 | AX20: <0,15 | AY20: 0.13 | AZ20: 0.06 | BA20: 7.7 | BB20: 12.5 | BC20: * | BD20: * | BE20: * | BF20: * | BG20: * | BH20: *
A21: 19 | B21: 17229 | C21: 2011-06-01 | D21: 7000 | E21: 22000 | F21: 6.5 | G21: 0.83 | H21: <0,5 | I21: <0,3 | J21: 0.0188 | K21: 0.0108 | L21: * | M21: * | N21: <0,003 | O21: <0,003 | P21: <0,05 | Q21: 39.11 | R21: 0.95 | S21: 0.11 | T21: 852 | U21: <0,002 | V21: <0,002 | W21: <2 | X21: <0,1 | Y21: <0,5 | Z21: <0,5 | AA21: 0.3 | AB21: <10 | AC21: <1 | AD21: 0.78 | AE21: <0,05 | AF21: 0.35 | AG21: 0.31 | AH21: <0,001 | AI21: <0,001 | AJ21: 0.041 | AK21: 0.0391 | AL21: <0,03 | AM21: <0,03 | AN21: <0,015 | AO21: 10.6 | AP21: * | AQ21: 0.0167 | AR21: 0.0148 | AS21: 650 | AT21: 27.5 | AU21: <0,003 | AV21: <0,003 | AW21: 247 | AX21: <1 | AY21: 0.09 | AZ21: 0.09 | BA21: 7.8 | BB21: 8.7 | BC21: * | BD21: * | BE21: * | BF21: * | BG21: * | BH21: *
A22: 20 | B22: 29251 | C22: 2011-09-01 | D22: 800 | E22: 7000 | F22: <5 | G22: 9.14 | H22: <0,5 | I22: 0.04 | J22: 0.0165 | K22: 0.0034 | L22: * | M22: * | N22: <0,003 | O22: <0,003 | P22: <0,02 | Q22: 31.43 | R22: 1.16 | S22: 0.03 | T22: 534 | U22: <0,002 | V22: <0,002 | W22: <2 | X22: <0,1 | Y22: <0,5 | Z22: <0,5 | AA22: 0.2 | AB22: <10 | AC22: <1 | AD22: 10.66 | AE22: <0,05 | AF22: 0.4 | AG22: 0.2 | AH22: <0,001 | AI22: <0,001 | AJ22: 0.00997 | AK22: 0.00945 | AL22: 0.04 | AM22: <0,03 | AN22: <0,015 | AO22: 10 | AP22: * | AQ22: 0.021 | AR22: <0,0100 | AS22: 390 | AT22: 225 | AU22: <0,003 | AV22: <0,003 | AW22: 168 | AX22: <1 | AY22: 0.1 | AZ22: <0,02 | BA22: 7 | BB22: 10.9 | BC22: * | BD22: * | BE22: * | BF22: * | BG22: * | BH22: *
A23: 21 | B23: 36296 | C23: 2011-12-22 | D23: 800 | E23: 1300 | F23: <5 | G23: 9.47 | H23: <0,5 | I23: <0,03 | J23: 0.042 | K23: <0,003 | L23: * | M23: * | N23: <0,003 | O23: <0,003 | P23: <0,05 | Q23: 21.76 | R23: 5.95 | S23: 0.12 | T23: 603 | U23: <0,002 | V23: 0.00274 | W23: <2 | X23: 0.1 | Y23: <0,01 | Z23: <0,5 | AA23: 0.2 | AB23: <10 | AC23: <1 | AD23: 8.36 | AE23: <0,05 | AF23: 0.59 | AG23: 0.3 | AH23: <0,001 | AI23: <0,001 | AJ23: 0.04709 | AK23: 0.03142 | AL23: 0.03 | AM23: <0,03 | AN23: <0,015 | AO23: 8.6 | AP23: * | AQ23: 0.0251 | AR23: 0.0144 | AS23: 454 | AT23: 405 | AU23: <0,003 | AV23: <0,003 | AW23: 131 | AX23: <1 | AY23: 0.24 | AZ23: 0.08 | BA23: 7.7 | BB23: 15 | BC23: * | BD23: * | BE23: * | BF23: * | BG23: * | BH23: *
A24: 22 | B24: 9336 | C24: 2012-03-28 | D24: * | E24: * | F24: <10 | G24: 4.41 | H24: <0,5 | I24: 0.09 | J24: 0.034 | K24: 0.0126 | L24: * | M24: * | N24: <0,003 | O24: <0,003 | P24: <0,02 | Q24: 23.05 | R24: 0.65 | S24: 0.07 | T24: 604 | U24: * | V24: 0.00449 | W24: 3.2 | X24: <0,1 | Y24: * | Z24: * | AA24: 0.3 | AB24: * | AC24: * | AD24: 3.86 | AE24: <0,05 | AF24: 0.35 | AG24: 0.17 | AH24: * | AI24: * | AJ24: 0.053 | AK24: 0.049 | AL24: <0,03 | AM24: <0,03 | AN24: * | AO24: 9.9 | AP24: * | AQ24: 0.0225 | AR24: 0.0102 | AS24: 457 | AT24: 150 | AU24: <0,003 | AV24: <0,003 | AW24: 172 | AX24: * | AY24: 0.07 | AZ24: 0.03 | BA24: 7.3 | BB24: 17 | BC24: <0,2 | BD24: * | BE24: 1.09 | BF24: * | BG24: * | BH24: *
A25: 23 | B25: 17476 | C25: 2012-06-11 | D25: * | E25: * | F25: * | G25: * | H25: * | I25: * | J25: * | K25: * | L25: * | M25: * | N25: * | O25: * | P25: * | Q25: * | R25: * | S25: * | T25: 827 | U25: * | V25: * | W25: * | X25: * | Y25: * | Z25: * | AA25: * | AB25: * | AC25: * | AD25: * | AE25: * | AF25: * | AG25: * | AH25: * | AI25: * | AJ25: * | AK25: * | AL25: * | AM25: * | AN25: * | AO25: 23.9 | AP25: * | AQ25: * | AR25: * | AS25: 1923 | AT25: 430 | AU25: * | AV25: * | AW25: 218 | AX25: * | AY25: * | AZ25: * | BA25: 7.51 | BB25: 10.6 | BC25: 1.2 | BD25: * | BE25: 4.58 | BF25: * | BG25: * | BH25: *
A26: 24 | B26: 29565 | C26: 01-10-2012 | D26: * | E26: * | F26: * | G26: * | H26: * | I26: * | J26: * | K26: * | L26: * | M26: * | N26: * | O26: * | P26: * | Q26: * | R26: * | S26: * | T26: 591 | U26: * | V26: * | W26: * | X26: * | Y26: * | Z26: * | AA26: * | AB26: * | AC26: * | AD26: * | AE26: * | AF26: * | AG26: * | AH26: * | AI26: * | AJ26: * | AK26: * | AL26: * | AM26: * | AN26: * | AO26: 8.7 | AP26: * | AQ26: * | AR26: * | AS26: 484 | AT26: 526 | AU26: * | AV26: * | AW26: 184 | AX26: * | AY26: * | AZ26: * | BA26: 7.6 | BB26: 9 | BC26: 1.3 | BD26: * | BE26: 3.26 | BF26: * | BG26: * | BH26: *
A27: 25 | B27: 37887 | C27: 2012-12-12 | D27: * | E27: * | F27: * | G27: * | H27: * | I27: * | J27: * | K27: * | L27: * | M27: * | N27: * | O27: * | P27: * | Q27: * | R27: * | S27: * | T27: 541 | U27: * | V27: * | W27: * | X27: * | Y27: * | Z27: * | AA27: * | AB27: * | AC27: * | AD27: * | AE27: * | AF27: * | AG27: * | AH27: * | AI27: * | AJ27: * | AK27: * | AL27: * | AM27: * | AN27: * | AO27: 7 | AP27: * | AQ27: * | AR27: * | AS27: 435 | AT27: 557 | AU27: * | AV27: * | AW27: 127 | AX27: * | AY27: * | AZ27: * | BA27: 7.87 | BB27: 20.1 | BC27: 2.6 | BD27: * | BE27: 2.62 | BF27: * | BG27: * | BH27: *
A28: 26 | B28: 8857 | C28: 2013-03-20 | D28: 1400 | E28: * | F28: <5 | G28: 19 | H28: <0,5 | I28: 0.08 | J28: 0.096 | K28: 0.07 | L28: * | M28: * | N28: <0,01 | O28: <0,01 | P28: <0,02 | Q28: 17.28 | R28: 2.52 | S28: 0.05 | T28: 730 | U28: * | V28: <0,05 | W28: 13.9 | X28: 0.4 | Y28: * | Z28: * | AA28: 0.3 | AB28: * | AC28: * | AD28: <0,01 | AE28: <0,01 | AF28: 0.56 | AG28: 0.16 | AH28: * | AI28: * | AJ28: <0,005 | AK28: <0,005 | AL28: <0,05 | AM28: <0,05 | AN28: * | AO28: 8.85 | AP28: * | AQ28: <0,01 | AR28: <0,01 | AS28: 566 | AT28: 555 | AU28: <0,001 | AV28: <0,001 | AW28: 118 | AX28: * | AY28: 0.29 | AZ28: 0.26 | BA28: 7.95 | BB28: 15.8 | BC28: 1.6 | BD28: * | BE28: 2.3 | BF28: * | BG28: * | BH28: *
A29: 27 | B29: 21369 | C29: 2013-06-26 | D29: * | E29: * | F29: * | G29: * | H29: * | I29: * | J29: * | K29: * | L29: * | M29: * | N29: * | O29: * | P29: * | Q29: * | R29: * | S29: * | T29: 880 | U29: * | V29: * | W29: * | X29: * | Y29: * | Z29: * | AA29: * | AB29: * | AC29: * | AD29: * | AE29: * | AF29: * | AG29: * | AH29: * | AI29: * | AJ29: * | AK29: * | AL29: * | AM29: * | AN29: * | AO29: 10.95 | AP29: * | AQ29: * | AR29: * | AS29: 668 | AT29: 301 | AU29: * | AV29: * | AW29: 181 | AX29: * | AY29: * | AZ29: * | BA29: 7.76 | BB29: 8.4 | BC29: 1 | BD29: * | BE29: 1.56 | BF29: * | BG29: * | BH29: *
A30: 28 | B30: 36007 | C30: 2013-09-25 | D30: * | E30: * | F30: * | G30: * | H30: * | I30: * | J30: * | K30: * | L30: * | M30: * | N30: * | O30: * | P30: * | Q30: * | R30: * | S30: * | T30: 480 | U30: * | V30: * | W30: * | X30: * | Y30: * | Z30: * | AA30: * | AB30: * | AC30: * | AD30: * | AE30: * | AF30: * | AG30: * | AH30: * | AI30: * | AJ30: * | AK30: * | AL30: * | AM30: * | AN30: * | AO30: 7.8 | AP30: * | AQ30: * | AR30: * | AS30: 302 | AT30: 7.8 | AU30: * | AV30: * | AW30: 23 | AX30: * | AY30: * | AZ30: * | BA30: 7.75 | BB30: 10.2 | BC30: 0.1 | BD30: * | BE30: 2.2 | BF30: * | BG30: * | BH30: *
A31: 29 | B31: 46823 | C31: 2013-12-04 | D31: * | E31: * | F31: * | G31: * | H31: * | I31: * | J31: * | K31: * | L31: * | M31: * | N31: * | O31: * | P31: * | Q31: * | R31: * | S31: * | T31: 619 | U31: * | V31: * | W31: * | X31: * | Y31: * | Z31: * | AA31: * | AB31: * | AC31: * | AD31: * | AE31: * | AF31: * | AG31: * | AH31: * | AI31: * | AJ31: * | AK31: * | AL31: * | AM31: * | AN31: * | AO31: 8 | AP31: * | AQ31: * | AR31: * | AS31: 443 | AT31: 67 | AU31: * | AV31: * | AW31: 88 | AX31: * | AY31: * | AZ31: * | BA31: 7.78 | BB31: 11.6 | BC31: 0.2 | BD31: * | BE31: 2.75 | BF31: * | BG31: * | BH31: *
A32: 30 | B32: 12288 | C32: 2014-03-26 | D32: 2400 | E32: * | F32: * | G32: 1.63 | H32: <0,05 | I32: * | J32: 0.041 | K32: 0.01 | L32: * | M32: * | N32: <0,01 | O32: <0,01 | P32: * | Q32: 22.69 | R32: 1.1 | S32: 0.21 | T32: 615 | U32: <0,05 | V32: <0,05 | W32: * | X32: * | Y32: * | Z32: * | AA32: * | AB32: * | AC32: * | AD32: 0.99 | AE32: 0.95 | AF32: 0.35 | AG32: 0.28 | AH32: * | AI32: * | AJ32: 0.06 | AK32: 0.056 | AL32: <0,05 | AM32: <0,05 | AN32: * | AO32: 10.4 | AP32: * | AQ32: <0,01 | AR32: <0,01 | AS32: 443 | AT32: 35.1 | AU32: * | AV32: * | AW32: 274 | AX32: * | AY32: 0.1 | AZ32: 0.03 | BA32: 6.8 | BB32: 11.5 | BC32: * | BD32: * | BE32: * | BF32: * | BG32: * | BH32: *
A33: 31 | B33: 24931 | C33: 2014-06-18 | D33: * | E33: * | F33: * | G33: * | H33: * | I33: * | J33: * | K33: * | L33: * | M33: * | N33: * | O33: * | P33: * | Q33: 84.6 | R33: * | S33: * | T33: 873 | U33: * | V33: * | W33: * | X33: * | Y33: * | Z33: * | AA33: * | AB33: * | AC33: * | AD33: * | AE33: * | AF33: * | AG33: * | AH33: * | AI33: * | AJ33: * | AK33: * | AL33: * | AM33: * | AN33: * | AO33: 11.2 | AP33: * | AQ33: * | AR33: * | AS33: 576 | AT33: 380 | AU33: * | AV33: * | AW33: 89 | AX33: * | AY33: * | AZ33: * | BA33: 7.26 | BB33: 6 | BC33: * | BD33: * | BE33: * | BF33: * | BG33: 18 | BH33: *
A34: 32 | B34: 40060 | C34: 2014-09-29 | D34: * | E34: * | F34: * | G34: * | H34: * | I34: * | J34: * | K34: * | L34: * | M34: * | N34: * | O34: * | P34: * | Q34: 44.47 | R34: * | S34: * | T34: 482 | U34: * | V34: * | W34: 3.9 | X34: * | Y34: * | Z34: * | AA34: * | AB34: * | AC34: * | AD34: * | AE34: * | AF34: * | AG34: * | AH34: * | AI34: * | AJ34: * | AK34: * | AL34: * | AM34: * | AN34: * | AO34: 8.8 | AP34: * | AQ34: * | AR34: * | AS34: 274 | AT34: <5 | AU34: * | AV34: * | AW34: 43 | AX34: * | AY34: * | AZ34: * | BA34: 7.6 | BB34: 12.7 | BC34: * | BD34: * | BE34: * | BF34: * | BG34: * | BH34: *
B35: - | C35: 2014-12-15 | D35: * | E35: * | F35: * | G35: * | H35: * | I35: * | J35: * | K35: * | L35: * | M35: * | N35: * | O35: * | P35: * | Q35: * | R35: * | S35: * | T35: * | U35: * | V35: * | W35: * | X35: * | Y35: * | Z35: * | AA35: * | AB35: * | AC35: * | AD35: * | AE35: * | AF35: * | AG35: * | AH35: * | AI35: * | AJ35: * | AK35: * | AL35: * | AM35: * | AN35: * | AO35: * | AP35: * | AQ35: * | AR35: * | AS35: * | AT35: * | AU35: * | AV35: * | AW35: * | AX35: * | AY35: * | AZ35: * | BA35: * | BB35: * | BC35: * | BD35: * | BE35: * | BF35: * | BG35: * | BH35: *
C38: Promedio | D38: =AVERAGE(D3:D27) -> 2141.55 | E38: =AVERAGE(E3:E27) -> 6324.666667 | F38: 8.072727273 | G38: 13.015 | H38: 0.9916666667 | I38: 0.1238888889 | J38: 0.03124761905 | K38: 0.005807692308 | N38: 0.00566 | O38: 0.006233333333 | Q38: 28.21727273 | R38: 4.689545455 | S38: 1.88047619 | T38: 603.16 | U38: 0.003586666667 | V38: 0.0049125 | W38: 2.6 | X38: 0.472 | Y38: 0.14 | Z38: 0.14 | AA38: 0.215 | AC38: 0.0508 | AD38: 27.85318182 | AE38: 0.172 | AF38: 0.9419047619 | AG38: 0.5028571429 | AH38: 0.013 | AJ38: 0.04322181818 | AK38: 0.03138727273 | AL38: 0.04222222222 | AN38: 0.0185 | AO38: 10.3648 | AQ38: 0.04186857143 | AR38: 0.01348571429 | AS38: 487.32 | AT38: 430.0916667 | AW38: 176.552 | AY38: 0.2455 | AZ38: 0.1305263158 | BA38: 7.1152 | BB38: 12.424 | BC38: 1.7 | BE38: 2.8875
C39: Percentil | D39: =PERCENTILE(D3:D27,0.66) -> 1300 | E39: =PERCENTILE(E3:E27,0.66) -> 5000 | F39: 8.46 | G39: 15.5158 | H39: 0.432 | I39: 0.14 | J39: 0.03112 | K39: 0.005376 | N39: 0.004512 | O39: 0.006512 | Q39: 32.806 | R39: 4.475 | S39: 0.112 | T39: 638.48 | U39: 0.0037096 | V39: 0.0048062 | W39: 2.724 | X39: 0.588 | Y39: 0.14 | Z39: 0.14 | AA39: 0.2 | AC39: 0.05728 | AD39: 34.155 | AE39: 0.0994 | AF39: 1.062 | AG39: 0.546 | AH39: 0.01428 | AJ39: 0.047516 | AK39: 0.035492 | AL39: 0.0428 | AN39: 0.02122 | AO39: 10.452 | AQ39: 0.05094 | AR39: 0.014232 | AS39: 456.52 | AT39: 527.08 | AW39: 184 | AY39: 0.3062 | AZ39: 0.0776 | BA39: 7.5 | BB39: 14.84 | BC39: 1.716 | BE39: 3.2472

Sheet LC10 (hidden)
B1: Nro. Muestra | C1: Fecha Muestreo | D1: CF | E1: CT | F1: A y G | G1: Al | H1: Al Dis. | I1: NH4 | J1: As | K1: As Dis. | L1: B | M1: B Dis. | N1: Cd | O1: Cd Dis. | P1: CN | Q1: Cloruro | R1: Cu | S1: Cu Dis. | T1: Co. Esp. | U1: Cr Dis. | V1: Cromo total | W1: DBO5 | X1: Deterg. | Y1: Sn | Z1: Sn Dis. | AA1: Fluoruro | AB1: HCF | AC1: HCV | AD1: Fe | AE1: Fe Dis. | AF1: Mn | AG1: Mn Dis. | AH1: Hg | AI1: Hg Dis. | AJ1: Mo | AK1: Mo Dis. | AL1: Ni | AM1: Ni Dis. | AN1: Nitritos | AO1: O Dis. | AP1: RAS | AQ1: Pb | AR1: Pb Dis. | AS1: SDT | AT1: SST | AU1: Se | AV1: Se Dis. | AW1: Sulfatos | AX1: Sulfuros | AY1: Zn | AZ1: Zn Dis. | BA1: Ph | BB1: T° | BC1: P tot. | BD1: N tot. | BE1: Nitratos | BF1: N Kjeldahl | BG1: DQO | BH1: N amoniacal
D2: [NMP/100 ml] | E2: [NMP/100 ml] | F2: [mg/L] | G2: [mg/L] | H2: [mg/L] | I2: [mg/L] | J2: [mg/L] | K2: [mg/L] | L2: [mg/L] | M2: [mg/L] | N2: [mg/L] | O2: [mg/L] | P2: [mg/L] | Q2: [mg/L] | R2: [mg/L] | S2: [mg/L] | T2: [uS/cm] | U2: [mg/L] | V2: [mg/L] | W2: [mg/L] | X2: [mg/L] | Y2: [mg/L] | Z2: [mg/L] | AA2: [mg/L] | AB2: [mg/L] | AC2: [mg/L] | AD2: [mg/L] | AE2: [mg/L] | AF2: [mg/L] | AG2: [mg/L] | AH2: [mg/L] | AI2: [mg/L] | AJ2: [mg/L] | AK2: [mg/L] | AL2: [mg/L] | AM2: [mg/L] | AN2: [mg/L] | AO2: [mg/L] | AP2: [%] | AQ2: [mg/L] | AR2: [mg/L] | AS2: [mg/L] | AT2: [mg/L] | AU2: [mg/L] | AV2: [mg/L] | AW2: [mg/L] | AX2: [mg/L] | AY2: [mg/L] | AZ2: [mg/L] | BA2: [-] | BB2: [°C] | BC2: [mg/L] | BD2: [mg/L] | BE2: [mg/L] | BF2: [mg/L] | BG2: [mg/L] | BH2: [mg/L]
A3: 1 | B3: 6944 | C3: 2006-03-01 | D3: >1,60E+4 | E3: * | F3: 5.6 | G3: 2.32 | H3: 0.32 | I3: 0.81 | J3: 0.0176 | K3: <0,0100 | L3: <0,1 | M3: <0,1 | N3: <0,0040 | O3: <0,0040 | P3: <0,01 | Q3: 27.65 | R3: 0.21 | S3: 0.03 | T3: 441 | U3: <0,05 | V3: <0,05 | W3: 9.9 | X3: <0,05 | Y3: <0,1 | Z3: <0,1 | AA3: 0.1 | AB3: <5 | AC3: 0.04 | AD3: 4.74 | AE3: <0,05 | AF3: 0.17 | AG3: 0.03 | AH3: <0,001 | AI3: <0,001 | AJ3: <0,1 | AK3: <0,1 | AL3: <0,02 | AM3: <0,02 | AN3: * | AO3: 8.6 | AP3: * | AQ3: 0.0171 | AR3: <0,0100 | AS3: 292 | AT3: 28.7 | AU3: <0,0050 | AV3: <0,0050 | AW3: 95.9 | AX3: <0,1 | AY3: 0.1 | AZ3: <0,05 | BA3: 7.4 | BB3: 17.5 | BC3: * | BD3: * | BE3: * | BF3: * | BG3: * | BH3: *
A4: 2 | C4: 2006-06-05 | D4: * | E4: * | F4: * | G4: * | H4: * | I4: * | J4: * | K4: * | L4: * | M4: * | N4: * | O4: * | P4: * | Q4: * | R4: * | S4: * | T4: * | U4: * | V4: * | W4: * | X4: * | Y4: * | Z4: * | AA4: * | AB4: * | AC4: * | AD4: * | AE4: * | AF4: * | AG4: * | AH4: * | AI4: * | AJ4: * | AK4: * | AL4: * | AM4: * | AN4: * | AO4: * | AP4: * | AQ4: * | AR4: * | AS4: * | AT4: * | AU4: * | AV4: * | AW4: * | AX4: * | AY4: * | AZ4: * | BA4: * | BB4: * | BC4: * | BD4: * | BE4: * | BF4: * | BG4: * | BH4: *
A5: 3 | B5: 30626 | C5: 2006-09-04 | D5: >1,60E+4 | E5: >1,60E+4 | F5: 0.7 | G5: 0.83 | H5: 0.13 | I5: 4.82 | J5: <0,0100 | K5: <0,0100 | L5: <0,1 | M5: <0,1 | N5: <0,0040 | O5: <0,0040 | P5: <0,1 | Q5: 37.18 | R5: 0.23 | S5: 0.06 | T5: 496 | U5: <0,05 | V5: <0,05 | W5: 4.3 | X5: <0,05 | Y5: * | Z5: * | AA5: 0.2 | AB5: * | AC5: * | AD5: 1.64 | AE5: <0,05 | AF5: 0.07 | AG5: 0.06 | AH5: * | AI5: * | AJ5: <0,1 | AK5: <0,1 | AL5: <0,02 | AM5: <0,02 | AN5: <0,01 | AO5: 7.5 | AP5: * | AQ5: <0,0100 | AR5: <0,0100 | AS5: 240 | AT5: 5 | AU5: <0,0050 | AV5: <0,0050 | AW5: 146 | AX5: <0,15 | AY5: <0,05 | AZ5: <0,05 | BA5: 7.1 | BB5: 12.7 | BC5: * | BD5: * | BE5: * | BF5: * | BG5: * | BH5: *
A6: 4 | B6: 42158 | C6: 2006-12-04 | D6: 13000 | E6: 24000 | F6: 2.4 | G6: 2.46 | H6: 0.64 | I6: 0.43 | J6: 0.0194 | K6: 0.0084 | L6: <0,1 | M6: <0,1 | N6: <0,003 | O6: <0,0040 | P6: <0,01 | Q6: 20.53 | R6: 0.34 | S6: 0.04 | T6: 322 | U6: <0,01 | V6: <0,01 | W6: 6.4 | X6: <0,05 | Y6: * | Z6: * | AA6: 0.1 | AB6: * | AC6: * | AD6: 12.15 | AE6: 0.15 | AF6: 0.29 | AG6: 0.02 | AH6: * | AI6: * | AJ6: <0,1 | AK6: <0,1 | AL6: <0,02 | AM6: <0,02 | AN6: 0.15 | AO6: 9.25 | AP6: * | AQ6: 0.0179 | AR6: <0,0100 | AS6: 200 | AT6: 289 | AU6: <0,003 | AV6: <0,0050 | AW6: 74.5 | AX6: <0,15 | AY6: 0.07 | AZ6: <0,05 | BA6: 7.8 | BB6: 16.7 | BC6: * | BD6: * | BE6: * | BF6: * | BG6: * | BH6: *
A7: 5 | B7: 8631 | C7: 2007-03-12 | D7: 2300 | E7: 30000 | F7: 7.4 | G7: 1.46 | H7: 0.15 | I7: 55 | J7: 0.0158 | K7: 0.012 | L7: <0,1 | M7: <0,1 | N7: <0,003 | O7: <0,003 | P7: <0,01 | Q7: 27.38 | R7: 0.06 | S7: 0.03 | T7: 476 | U7: <0,002 | V7: <0,002 | W7: 6.5 | X7: <0,05 | Y7: <0,1 | Z7: <0,1 | AA7: 0.1 | AB7: <5 | AC7: ND | AD7: 3.23 | AE7: <0,05 | AF7: 0.11 | AG7: <0,02 | AH7: <0,001 | AI7: <0,001 | AJ7: <0,003 | AK7: <0,003 | AL7: <0,02 | AM7: <0,02 | AN7: 0.17 | AO7: 7.3 | AP7: * | AQ7: 0.0155 | AR7: 0.0122 | AS7: 140 | AT7: 55 | AU7: <0,003 | AV7: <0,003 | AW7: 92.2 | AX7: <0,15 | AY7: 0.02 | AZ7: <0,02 | BA7: 6.6 | BB7: 13 | BC7: * | BD7: * | BE7: * | BF7: * | BG7: * | BH7: *
A8: 6 | B8: 19587 | C8: 2007-06-18 | D8: 130 | E8: 5000 | F8: <5 | G8: 0.48 | H8: <0,1 | I8: 15.6 | J8: 0.0163 | K8: 0.013 | L8: <0,1 | M8: <0,1 | N8: <0,003 | O8: <0,003 | P8: <0,01 | Q8: 70.79 | R8: 0.05 | S8: 0.05 | T8: 675 | U8: <0,002 | V8: <0,002 | W8: 9.4 | X8: 0.65 | Y8: <0,1 | Z8: <0,1 | AA8: 0.3 | AB8: <5 | AC8: ND | AD8: 0.77 | AE8: <0,05 | AF8: 0.07 | AG8: 0.07 | AH8: <0,001 | AI8: <0,001 | AJ8: <0,003 | AK8: <0,003 | AL8: <0,02 | AM8: <0,02 | AN8: <0,01 | AO8: 5.74 | AP8: * | AQ8: 0.0106 | AR8: <0,0100 | AS8: 372 | AT8: 15.6 | AU8: <0,003 | AV8: <0,003 | AW8: 121 | AX8: <0,15 | AY8: 0.02 | AZ8: <0,02 | BA8: 7.2 | BB8: 10 | BC8: * | BD8: * | BE8: * | BF8: * | BG8: * | BH8: *
A9: 7 | B9: 27709 | C9: 2007-09-10 | D9: 8000 | E9: 30000 | F9: 8.9 | G9: 2.6 | H9: 1.25 | I9: 80 | J9: 0.0168 | K9: 0.0111 | L9: 0.1 | M9: <0,1 | N9: <0,003 | O9: <0,003 | P9: <0,01 | Q9: 7.14 | R9: 0.07 | S9: 0.03 | T9: 521 | U9: <0,002 | V9: <0,002 | W9: 13.6 | X9: 0.78 | Y9: <0,1 | Z9: <0,1 | AA9: 0.2 | AB9: <5 | AC9: 0.081 | AD9: 4.36 | AE9: 0.17 | AF9: 0.14 | AG9: 0.06 | AH9: <0,001 | AI9: <0,001 | AJ9: <0,003 | AK9: <0,003 | AL9: <0,02 | AM9: <0,02 | AN9: 0.25 | AO9: 5 | AP9: * | AQ9: 0.0155 | AR9: <0,0100 | AS9: 304 | AT9: 80 | AU9: <0,003 | AV9: <0,003 | AW9: 84.4 | AX9: <0,15 | AY9: 0.02 | AZ9: <0,02 | BA9: 6.6 | BB9: 15 | BC9: * | BD9: * | BE9: * | BF9: * | BG9: * | BH9: *
A10: 8 | B10: 36040 | C10: 2007-12-03 | D10: 300 | E10: >1,60E+4 | F10: 11.1 | G10: 5.14 | H10: 2.25 | I10: 169 | J10: 0.0152 | K10: 0.0072 | L10: <0,1 | M10: <0,1 | N10: <0,003 | O10: <0,003 | P10: <0,01 | Q10: 32.18 | R10: 0.1 | S10: 0.03 | T10: 382 | U10: <0,002 | V10: <0,002 | W10: 7.2 | X10: <0,05 | Y10: <0,1 | Z10: <0,1 | AA10: 0.1 | AB10: <5 | AC10: <0,005 | AD10: 8.26 | AE10: <0,05 | AF10: 0.21 | AG10: <0,02 | AH10: <0,001 | AI10: <0,001 | AJ10: <0,003 | AK10: <0,003 | AL10: <0,02 | AM10: <0,02 | AN10: 0.02 | AO10: 7.1 | AP10: * | AQ10: 0.0218 | AR10: 0.013 | AS10: 213 | AT10: 169 | AU10: <0,003 | AV10: <0,003 | AW10: 73.3 | AX10: <0,15 | AY10: 0.06 | AZ10: <0,02 | BA10: 7.5 | BB10: 16 | BC10: * | BD10: * | BE10: * | BF10: * | BG10: * | BH10: *
A11: 9 | B11: 6754 | C11: 2008-03-10 | D11: 90000 | E11: 90000 | F11: <5 | G11: 4.74 | H11: <0,5 | I11: 0.57 | J11: 0.0201 | K11: 0.014 | L11: ND | M11: ND | N11: <0,003 | O11: <0,003 | P11: <0,01 | Q11: 45.45 | R11: 0.07 | S11: 0.03 | T11: 472 | U11: <0,002 | V11: <0,002 | W11: 4.8 | X11: <0,05 | Y11: <0,1 | Z11: <0,1 | AA11: 0.1 | AB11: <5 | AC11: ND | AD11: 2.86 | AE11: <0,05 | AF11: 0.11 | AG11: 0.02 | AH11: <0,001 | AI11: <0,001 | AJ11: 0.005 | AK11: 0.005 | AL11: 0.05 | AM11: <0,03 | AN11: 0.24 | AO11: 8.1 | AP11: * | AQ11: 0.0134 | AR11: <0,0100 | AS11: 249 | AT11: 89 | AU11: <0,003 | AV11: <0,003 | AW11: 104 | AX11: <0,15 | AY11: 0.02 | AZ11: <0,02 | BA11: 7.2 | BB11: 16.9 | BC11: * | BD11: * | BE11: * | BF11: * | BG11: * | BH11: *
A12: 10 | B12: 15540 | C12: 2008-06-09 | D12: 140 | E12: 1300 | F12: <5 | G12: 1.78 | H12: <0,5 | I12: 12.1 | J12: 0.007 | K12: 0.0052 | L12: ND | M12: ND | N12: <0,003 | O12: <0,003 | P12: <0,01 | Q12: 41.77 | R12: 0.05 | S12: 0.03 | T12: 564 | U12: <0,002 | V12: <0,002 | W12: 6.7 | X12: 1.39 | Y12: <0,1 | Z12: <0,1 | AA12: 0.2 | AB12: <5 | AC12: 0.17 | AD12: 2.2 | AE12: <0,05 | AF12: 0.15 | AG12: 0.11 | AH12: <0,001 | AI12: <0,001 | AJ12: * | AK12: * | AL12: <0,03 | AM12: <0,03 | AN12: 0.08 | AO12: 9.5 | AP12: * | AQ12: <0,0100 | AR12: <0,0100 | AS12: 159 | AT12: 55 | AU12: <0,003 | AV12: <0,003 | AW12: 55 | AX12: <0,15 | AY12: 0.05 | AZ12: <0,02 | BA12: 6.8 | BB12: 9.8 | BC12: * | BD12: * | BE12: * | BF12: * | BG12: * | BH12: *
A13: 11 | B13: 24079 | C13: 2008-09-01 | D13: 130 | E13: 1400 | F13: 10.2 | G13: 1.4 | H13: <0,5 | I13: 5.66 | J13: 0.0088 | K13: 0.0038 | L13: * | M13: * | N13: <0,003 | O13: <0,003 | P13: <0,01 | Q13: 24.29 | R13: 0.12 | S13: 0.03 | T13: 432 | U13: <0,002 | V13: <0,002 | W13: 8 | X13: 0.29 | Y13: <0,1 | Z13: <0,1 | AA13: 0.2 | AB13: <5 | AC13: ND | AD13: 2.66 | AE13: 0.13 | AF13: 0.1 | AG13: 0.06 | AH13: <0,001 | AI13: <0,001 | AJ13: 0.00751 | AK13: <0,003 | AL13: <0,03 | AM13: <0,03 | AN13: 0.35 | AO13: 7.9 | AP13: * | AQ13: <0,0100 | AR13: <0,0100 | AS13: 182 | AT13: 28 | AU13: <0,003 | AV13: <0,003 | AW13: 40 | AX13: <0,15 | AY13: 0.03 | AZ13: <0,02 | BA13: 7 | BB13: 13.1 | BC13: * | BD13: * | BE13: * | BF13: * | BG13: * | BH13: *
A14: 12 | B14: 32985 | C14: 2008-12-01 | D14: 28000 | E14: 160000 | F14: <5 | G14: 21.2 | H14: <0,5 | I14: 0.12 | J14: 0.0191 | K14: 0.0076 | L14: * | M14: * | N14: <0,003 | O14: <0,003 | P14: <0,01 | Q14: 22.34 | R14: 0.37 | S14: 0.03 | T14: 342 | U14: <0,002 | V14: 0.00202 | W14: 5.7 | X14: <0,05 | Y14: <0,1 | Z14: <0,1 | AA14: 0.1 | AB14: <5 | AC14: ND | AD14: 27.65 | AE14: 0.07 | AF14: 0.65 | AG14: 0.02 | AH14: <0,001 | AI14: <0,001 | AJ14: 0.0098 | AK14: 0.00342 | AL14: <0,03 | AM14: <0,03 | AN14: 0.084 | AO14: 8.7 | AP14: * | AQ14: 0.0298 | AR14: <0,0100 | AS14: 205 | AT14: 557 | AU14: <0,003 | AV14: <0,003 | AW14: 30 | AX14: <0,15 | AY14: 0.08 | AZ14: <0,02 | BA14: 6.8 | BB14: 4 | BC14: * | BD14: * | BE14: * | BF14: * | BG14: * | BH14: *
A15: 13 | B15: 7400 | C15: 2009-03-16 | D15: 17000 | E15: 50000 | F15: <5 | G15: 6.36 | H15: <0,5 | I15: 0.1 | J15: 0.0126 | K15: 0.0089 | L15: * | M15: * | N15: <0,003 | O15: <0,003 | P15: <0,01 | Q15: 33.5 | R15: 0.05 | S15: <0,03 | T15: 420 | U15: <0,002 | V15: <0,002 | W15: 2.2 | X15: <0,05 | Y15: <0,1 | Z15: <0,1 | AA15: 0.1 | AB15: <5 | AC15: ND | AD15: 3.5 | AE15: <0,05 | AF15: 0.16 | AG15: <0,02 | AH15: <0,001 | AI15: <0,001 | AJ15: <0,003 | AK15: <0,003 | AL15: <0,03 | AM15: <0,03 | AN15: <0,015 | AO15: 8 | AP15: * | AQ15: 0.0182 | AR15: <0,0100 | AS15: 286 | AT15: 180 | AU15: <0,003 | AV15: <0,003 | AW15: 88 | AX15: <0,15 | AY15: 0.03 | AZ15: <0,02 | BA15: 6.9 | BB15: 12 | BC15: * | BD15: * | BE15: * | BF15: * | BG15: * | BH15: *
A16: 14 | B16: 14860 | C16: 2009-06-01 | D16: 1300 | E16: 23000 | F16: <5 | G16: 1.3 | H16: <0,5 | I16: 5.89 | J16: 0.0096 | K16: 0.0085 | L16: * | M16: * | N16: <0,003 | O16: <0,003 | P16: <0,01 | Q16: 64.95 | R16: 0.06 | S16: <0,03 | T16: 750 | U16: <0,002 | V16: 0.00217 | W16: 14.6 | X16: 0.56 | Y16: <0,1 | Z16: <0,1 | AA16: 0.4 | AB16: <5 | AC16: ND | AD16: 1.42 | AE16: <0,05 | AF16: 0.12 | AG16: 0.07 | AH16: <0,001 | AI16: <0,001 | AJ16: 0.00373 | AK16: <0,003 | AL16: <0,03 | AM16: <0,03 | AN16: 0.956 | AO16: 7.8 | AP16: * | AQ16: 0.014 | AR16: <0,0100 | AS16: 403 | AT16: 48.5 | AU16: <0,003 | AV16: <0,003 | AW16: 95 | AX16: <0,15 | AY16: 0.03 | AZ16: <0,02 | BA16: 7.1 | BB16: 11.5 | BC16: * | BD16: * | BE16: * | BF16: * | BG16: * | BH16: *
A17: 15 | B17: 23276 | C17: 2009-09-01 | D17: 30000 | E17: 160000 | F17: 7.5 | G17: 0.96 | H17: <0,5 | I17: 44.3 | J17: 0.0076 | K17: 0.0067 | L17: * | M17: * | N17: <0,003 | O17: <0,003 | P17: <0,01 | Q17: 63.5 | R17: 0.04 | S17: <0,03 | T17: 852 | U17: <0,002 | V17: <0,002 | W17: 14.8 | X17: 1.14 | Y17: <0,1 | Z17: <0,1 | AA17: 0.3 | AB17: <5 | AC17: 0.084 | AD17: 0.75 | AE17: 0.07 | AF17: 0.1 | AG17: 0.09 | AH17: <0,001 | AI17: <0,001 | AJ17: <0,003 | AK17: <0,003 | AL17: <0,03 | AM17: <0,03 | AN17: 2.328 | AO17: 3.9 | AP17: * | AQ17: 0.0166 | AR17: 0.0118 | AS17: 615 | AT17: 27.5 | AU17: <0,003 | AV17: <0,003 | AW17: 68 | AX17: <0,15 | AY17: 0.04 | AZ17: <0,02 | BA17: 7.4 | BB17: 14.1 | BC17: * | BD17: * | BE17: * | BF17: * | BG17: * | BH17: *
A18: 16 | B18: 32346 | C18: 2009-12-01 | D18: 700 | E18: 5000 | F18: 7.9 | G18: 13.64 | H18: <0,5 | I18: 1.61 | J18: 0.0269 | K18: 0.0101 | L18: * | M18: * | N18: <0,003 | O18: <0,003 | P18: <0,01 | Q18: 33.52 | R18: 0.27 | S18: <0,03 | T18: 394 | U18: <0,002 | V18: <0,002 | W18: 6.6 | X18: <0,05 | Y18: <0,1 | Z18: <0,1 | AA18: 0.1 | AB18: <5 | AC18: 0.007 | AD18: 17.21 | AE18: <0,05 | AF18: 0.42 | AG18: 0.03 | AH18: <0,001 | AI18: <0,001 | AJ18: <0,003 | AK18: <0,003 | AL18: <0,03 | AM18: <0,03 | AN18: 0.608 | AO18: 7.9 | AP18: * | AQ18: 0.0192 | AR18: <0,0100 | AS18: 254 | AT18: 266 | AU18: <0,003 | AV18: <0,003 | AW18: 39 | AX18: <0,15 | AY18: 0.06 | AZ18: <0,02 | BA18: 7.5 | BB18: 15 | BC18: * | BD18: * | BE18: * | BF18: * | BG18: * | BH18: *
A19: 17 | B19: 27551 | C19: 2010-09-27 | D19: 800 | E19: 5000 | F19: <5 | G19: 4.72 | H19: <0,5 | I19: 4.51 | J19: 0.016 | K19: 0.0138 | L19: * | M19: * | N19: <0,003 | O19: <0,003 | P19: <0,01 | Q19: 68.79 | R19: 0.09 | S19: <0,03 | T19: 635 | U19: <0,002 | V19: <0,002 | W19: 13.4 | X19: 0.06 | Y19: <0,1 | Z19: <0,1 | AA19: 0.2 | AB19: <5 | AC19: 0.024 | AD19: 5.12 | AE19: <0,05 | AF19: 0.17 | AG19: 0.05 | AH19: <0,001 | AI19: <0,001 | AJ19: 0.004 | AK19: 0.004 | AL19: <0,03 | AM19: <0,03 | AN19: 1.169 | AO19: 6.3 | AP19: * | AQ19: 0.0182 | AR19: 0.0137 | AS19: 380 | AT19: 104 | AU19: <0,003 | AV19: <0,003 | AW19: 83 | AX19: <0,15 | AY19: 0.04 | AZ19: 0.02 | BA19: 7.1 | BB19: 14 | BC19: * | BD19: * | BE19: * | BF19: * | BG19: * | BH19: *
A20: 18 | B20: 9053 | C20: 2011-03-01 | D20: 5000 | E20: 17000 | F20: <5 | G20: 1.41 | H20: <0,5 | I20: 1.97 | J20: 0.0175 | K20: 0.0141 | L20: * | M20: * | N20: <0,003 | O20: <0,003 | P20: <0,01 | Q20: 64.26 | R20: <0,03 | S20: <0,03 | T20: 652 | U20: <0,002 | V20: 0.00223 | W20: 4.4 | X20: 0.32 | Y20: <0,1 | Z20: <0,1 | AA20: 0.1 | AB20: <5 | AC20: 0.024 | AD20: 1.03 | AE20: <0,05 | AF20: 0.06 | AG20: 0.02 | AH20: <0,001 | AI20: <0,001 | AJ20: 0.00353 | AK20: 0.00305 | AL20: <0,03 | AM20: <0,03 | AN20: 1.018 | AO20: 6.3 | AP20: * | AQ20: 0.0146 | AR20: 0.0134 | AS20: 415 | AT20: 37.5 | AU20: <0,003 | AV20: <0,003 | AW20: 240 | AX20: <0,15 | AY20: 0.03 | AZ20: <0,02 | BA20: 7.3 | BB20: 13.8 | BC20: * | BD20: * | BE20: * | BF20: * | BG20: * | BH20: *
A21: 19 | B21: 17332 | C21: 2011-06-01 | D21: 1100 | E21: 9000 | F21: 23.5 | G21: 0.31 | H21: <0,5 | I21: <0,03 | J21: 0.0225 | K21: 0.018 | L21: * | M21: * | N21: <0,003 | O21: <0,003 | P21: <0,05 | Q21: 94.29 | R21: <0,03 | S21: <0,03 | T21: 860 | U21: <0,002 | V21: <0,002 | W21: <2 | X21: 0.38 | Y21: <0,5 | Z21: <0,5 | AA21: 0.3 | AB21: <10 | AC21: <1 | AD21: 0.48 | AE21: <0,05 | AF21: 0.05 | AG21: 0.03 | AH21: <0,001 | AI21: <0,001 | AJ21: <0,003 | AK21: <0,003 | AL21: <0,03 | AM21: <0,03 | AN21: 1.02 | AO21: 7 | AP21: * | AQ21: 0.016 | AR21: 0.0135 | AS21: 505 | AT21: 21 | AU21: <0,003 | AV21: <0,003 | AW21: 110 | AX21: <1 | AY21: <0,02 | AZ21: <0,02 | BA21: 7.4 | BB21: 11.8 | BC21: * | BD21: * | BE21: * | BF21: * | BG21: * | BH21: *
A22: 20 | B22: 29359 | C22: 2011-09-01 | D22: 3000 | E22: 17000 | F22: <5 | G22: 7.13 | H22: <0,5 | I22: 1.9 | J22: 0.027 | K22: 0.0138 | L22: * | M22: * | N22: <0,003 | O22: <0,003 | P22: <0,02 | Q22: 53.78 | R22: 0.14 | S22: <0,03 | T22: 501 | U22: <0,002 | V22: 0.00235 | W22: 8.4 | X22: <0,1 | Y22: <0,5 | Z22: <0,5 | AA22: 0.2 | AB22: <10 | AC22: <1 | AD22: 6.41 | AE22: <0,05 | AF22: 0.22 | AG22: 0.05 | AH22: <0,001 | AI22: <0,001 | AJ22: 0.00409 | AK22: 0.00327 | AL22: <0,03 | AM22: <0,03 | AN22: 0.564 | AO22: 7.7 | AP22: * | AQ22: 0.0173 | AR22: <0,0100 | AS22: 313 | AT22: 196 | AU22: <0,003 | AV22: <0,003 | AW22: 85 | AX22: <1 | AY22: 0.06 | AZ22: <0,02 | BA22: 7.1 | BB22: 14.4 | BC22: * | BD22: * | BE22: * | BF22: * | BG22: * | BH22: *
A23: 21 | B23: 36385 | C23: 2011-12-22 | D23: 22000 | E23: 160000 | F23: <5 | G23: 7.93 | H23: <0,5 | I23: 1.14 | J23: 0.0195 | K23: 0.009 | L23: * | M23: * | N23: <0,003 | O23: <0,003 | P23: <0,05 | Q23: 32.29 | R23: 0.11 | S23: <0,03 | T23: 449 | U23: <0,002 | V23: <0,002 | W23: 9.8 | X23: <0,1 | Y23: <0,01 | Z23: <0,5 | AA23: 0.1 | AB23: <10 | AC23: <1 | AD23: 7.21 | AE23: <0,05 | AF23: 0.23 | AG23: 0.03 | AH23: <0,001 | AI23: <0,001 | AJ23: 0.00344 | AK23: <0,003 | AL23: <0,03 | AM23: <0,03 | AN23: 0.836 | AO23: 6.2 | AP23: * | AQ23: 0.0163 | AR23: <0,0100 | AS23: 315 | AT23: 220 | AU23: <0,003 | AV23: <0,003 | AW23: 51 | AX23: <1 | AY23: 0.03 | AZ23: <0,02 | BA23: 6.8 | BB23: 17 | BC23: * | BD23: * | BE23: * | BF23: * | BG23: * | BH23: *
A24: 22 | B24: 9432 | C24: 2012-03-28 | D24: 3000 | E24: 30000 | F24: <10 | G24: 1.85 | H24: <0,5 | I24: 3.53 | J24: 0.0165 | K24: 0.0131 | L24: * | M24: * | N24: <0,003 | O24: <0,003 | P24: <0,02 | Q24: 55.18 | R24: <0,03 | S24: <0,03 | T24: 600 | U24: * | V24: <0,002 | W24: 9.9 | X24: 0.11 | Y24: * | Z24: * | AA24: 0.2 | AB24: * | AC24: * | AD24: 1.28 | AE24: <0,05 | AF24: 0.08 | AG24: <0,02 | AH24: * | AI24: * | AJ24: 0.008 | AK24: 0.007 | AL24: <0,03 | AM24: <0,03 | AN24: * | AO24: 6.6 | AP24: * | AQ24: 0.0146 | AR24: 0.0112 | AS24: 372 | AT24: 60 | AU24: <0,003 | AV24: <0,003 | AW24: 92 | AX24: * | AY24: <0,02 | AZ24: <0,02 | BA24: 6.8 | BB24: 17.6 | BC24: <0,2 | BD24: * | BE24: 7.56 | BF24: * | BG24: * | BH24: *
A25: 23 | B25: 17695 | C25: 2012-06-11 | D25: 3000 | E25: 70000 | F25: <10 | G25: * | H25: * | I25: * | J25: * | K25: * | L25: * | M25: * | N25: * | O25: * | P25: * | Q25: * | R25: * | S25: * | T25: 756 | U25: * | V25: * | W25: <2 | X25: <0,1 | Y25: * | Z25: * | AA25: * | AB25: * | AC25: * | AD25: * | AE25: * | AF25: * | AG25: * | AH25: * | AI25: * | AJ25: * | AK25: * | AL25: * | AM25: * | AN25: * | AO25: 19 | AP25: * | AQ25: * | AR25: * | AS25: 445 | AT25: 27.6 | AU25: * | AV25: * | AW25: * | AX25: * | AY25: * | AZ25: * | BA25: 7.63 | BB25: 10.5 | BC25: 1 | BD25: 9.79 | BE25: * | BF25: * | BG25: * | BH25: *
A26: 24 | B26: 29568 | C26: 01-10-2012 | D26: 5000 | E26: 17000 | F26: <5 | G26: * | H26: * | I26: * | J26: * | K26: * | L26: * | M26: * | N26: * | O26: * | P26: * | Q26: * | R26: * | S26: * | T26: 547 | U26: * | V26: * | W26: 5.5 | X26: <0,1 | Y26: * | Z26: * | AA26: * | AB26: * | AC26: * | AD26: * | AE26: * | AF26: * | AG26: * | AH26: * | AI26: * | AJ26: * | AK26: * | AL26: * | AM26: * | AN26: * | AO26: 7 | AP26: * | AQ26: * | AR26: * | AS26: 371 | AT26: 158 | AU26: * | AV26: * | AW26: 64 | AX26: * | AY26: * | AZ26: * | BA26: 7.5 | BB26: 7 | BC26: 1.1 | BD26: * | BE26: 6 | BF26: * | BG26: * | BH26: *
A27: 25 | B27: 38018 | C27: 2012-12-12 | D27: 5000 | E27: 50000 | F27: <5 | G27: * | H27: * | I27: * | J27: * | K27: * | L27: * | M27: * | N27: * | O27: * | P27: * | Q27: * | R27: * | S27: * | T27: 457 | U27: * | V27: * | W27: 4.2 | X27: <0,1 | Y27: * | Z27: * | AA27: * | AB27: * | AC27: * | AD27: * | AE27: * | AF27: * | AG27: * | AH27: * | AI27: * | AJ27: * | AK27: * | AL27: * | AM27: * | AN27: 0.437 | AO27: 6.2 | AP27: * | AQ27: * | AR27: * | AS27: 324 | AT27: 220 | AU27: * | AV27: * | AW27: * | AX27: * | AY27: * | AZ27: * | BA27: 7.24 | BB27: 17.7 | BC27: 1 | BD27: 2.45 | BE27: 6.8 | BF27: <1 | BG27: * | BH27: *
A28: 26 | B28: 8953 | C28: 2013-03-20 | D28: 700 | E28: >1,60e+4 | F28: <5 | G28: 1.6 | H28: <0,5 | I28: 1.23 | J28: 0.004 | K28: 0.004 | L28: * | M28: * | N28: <0,01 | O28: <0,01 | P28: <0,02 | Q28: 53.92 | R28: 0.04 | S28: 0.01 | T28: 583 | U28: * | V28: <0,05 | W28: 5.5 | X28: <0,1 | Y28: * | Z28: * | AA28: 0.1 | AB28: * | AC28: * | AD28: 1.39 | AE28: 0.1 | AF28: 0.04 | AG28: <0,01 | AH28: * | AI28: * | AJ28: <0,005 | AK28: <0,005 | AL28: <0,05 | AM28: <0,05 | AN28: * | AO28: 8.35 | AP28: * | AQ28: <0,01 | AR28: <0,01 | AS28: 402 | AT28: 85 | AU28: <0,001 | AV28: <0,001 | AW28: 44 | AX28: * | AY28: <0,01 | AZ28: <0,01 | BA28: 7.14 | BB28: 15.8 | BC28: 1 | BD28: * | BE28: 5.84 | BF28: * | BG28: * | BH28: *
A29: 27 | B29: 21506 | C29: 2013-06-26 | D29: 300 | E29: 5000 | F29: <5 | G29: * | H29: * | I29: * | J29: * | K29: * | L29: * | M29: * | N29: * | O29: * | P29: * | Q29: * | R29: * | S29: * | T29: 992 | U29: * | V29: * | W29: 4.3 | X29: 2 | Y29: * | Z29: * | AA29: * | AB29: * | AC29: * | AD29: * | AE29: * | AF29: * | AG29: * | AH29: * | AI29: * | AJ29: * | AK29: * | AL29: * | AM29: * | AN29: 0.539 | AO29: 4.18 | AP29: * | AQ29: * | AR29: * | AS29: 507 | AT29: 9.1 | AU29: * | AV29: * | AW29: * | AX29: * | AY29: * | AZ29: * | BA29: 7.24 | BB29: 10.5 | BC29: 1.7 | BD29: 27.65 | BE29: 2.16 | BF29: 27 | BG29: * | BH29: *
A30: 28 | B30: 36180 | C30: 2013-09-25 | D30: >1,60e+4 | E30: >1,60e+4 | F30: <5 | G30: * | H30: * | I30: * | J30: * | K30: * | L30: * | M30: * | N30: * | O30: * | P30: * | Q30: * | R30: * | S30: * | T30: 682 | U30: * | V30: * | W30: 6.2 | X30: <0,1 | Y30: * | Z30: * | AA30: * | AB30: * | AC30: * | AD30: * | AE30: * | AF30: * | AG30: * | AH30: * | AI30: * | AJ30: * | AK30: * | AL30: * | AM30: * | AN30: 1.204 | AO30: 7 | AP30: * | AQ30: * | AR30: * | AS30: 416 | AT30: 91 | AU30: * | AV30: * | AW30: * | AX30: * | AY30: * | AZ30: * | BA30: 7.21 | BB30: 14.3 | BC30: 0.7 | BD30: 1.74 | BE30: 4.74 | BF30: 0.3 | BG30: * | BH30: *
A31: 29 | B31: 47013 | C31: 2013-12-04 | D31: 800 | E31: >1,6E+4 | F31: <5 | G31: * | H31: * | I31: * | J31: * | K31: * | L31: * | M31: * | N31: * | O31: * | P31: * | Q31: * | R31: * | S31: * | T31: 475 | U31: * | V31: * | W31: 7.2 | X31: <0,1 | Y31: * | Z31: * | AA31: * | AB31: * | AC31: * | AD31: * | AE31: * | AF31: * | AG31: * | AH31: * | AI31: * | AJ31: * | AK31: * | AL31: * | AM31: * | AN31: 0.982 | AO31: 5.9 | AP31: * | AQ31: * | AR31: * | AS31: 387 | AT31: 150 | AU31: * | AV31: * | AW31: * | AX31: * | AY31: * | AZ31: * | BA31: 7.35 | BB31: 17.4 | BC31: 0.9 | BD31: 2.85 | BE31: 5.07 | BF31: 1.4 | BG31: * | BH31: *
A32: 30 | B32: 12443 | C32: 2014-03-26 | D32: 2400 | E32: 2400 | F32: <5 | G32: * | H32: * | I32: 1.72 | J32: * | K32: * | L32: * | M32: * | N32: * | O32: * | P32: * | Q32: 53.89 | R32: * | S32: * | T32: 598 | U32: * | V32: * | W32: 6.6 | X32: <0,1 | Y32: * | Z32: * | AA32: * | AB32: * | AC32: * | AD32: * | AE32: * | AF32: * | AG32: * | AH32: * | AI32: * | AJ32: * | AK32: * | AL32: * | AM32: * | AN32: 0.852 | AO32: 5.9 | AP32: * | AQ32: * | AR32: * | AS32: 387 | AT32: 37.6 | AU32: * | AV32: * | AW32: * | AX32: * | AY32: * | AZ32: * | BA32: 7.04 | BB32: 16.1 | BC32: 0.4 | BD32: 1.3 | BE32: 4.63 | BF32: <0,2 | BG32: 10 | BH32: *
A33: 31 | B33: 25091 | C33: 2014-06-18 | D33: 500 | E33: 500 | F33: <5 | G33: * | H33: * | I33: 18.87 | J33: * | K33: * | L33: * | M33: * | N33: * | O33: * | P33: * | Q33: 91.48 | R33: * | S33: * | T33: 944 | U33: * | V33: * | W33: 4.6 | X33: 0.9 | Y33: * | Z33: * | AA33: * | AB33: * | AC33: * | AD33: * | AE33: * | AF33: * | AG33: * | AH33: * | AI33: * | AJ33: * | AK33: * | AL33: * | AM33: * | AN33: 0.923 | AO33: 2.9 | AP33: * | AQ33: * | AR33: * | AS33: 541 | AT33: 22.1 | AU33: * | AV33: * | AW33: * | AX33: * | AY33: * | AZ33: * | BA33: 7.23 | BB33: 11.1 | BC33: 1.8 | BD33: 22.63 | BE33: 8.32 | BF33: 20.47 | BG33: * | BH33: *
A34: 32 | B34: 40113 | C34: 2014-09-29 | D34: 8000 | E34: 17000 | F34: <10 | G34: * | H34: * | I34: 1.47 | J34: * | K34: * | L34: * | M34: * | N34: * | O34: * | P34: * | Q34: 75.05 | R34: * | S34: * | T34: 633 | U34: * | V34: * | W34: 13.3 | X34: 0.1 | Y34: * | Z34: * | AA34: * | AB34: * | AC34: * | AD34: * | AE34: * | AF34: * | AG34: * | AH34: * | AI34: * | AJ34: * | AK34: * | AL34: * | AM34: * | AN34: 0.607 | AO34: 7.5 | AP34: * | AQ34: * | AR34: * | AS34: 359 | AT34: 124 | AU34: * | AV34: * | AW34: * | AX34: * | AY34: * | AZ34: * | BA34: 7.19 | BB34: 14.5 | BC34: 0.5 | BD34: 1.43 | BE34: 2.85 | BF34: 0.6 | BG34: * | BH34: *
B35: - | C35: 2014-12-15 | D35: * | E35: * | F35: * | G35: * | H35: * | I35: * | J35: * | K35: * | L35: * | M35: * | N35: * | O35: * | P35: * | Q35: * | R35: * | S35: * | T35: * | U35: * | V35: * | W35: * | X35: * | Y35: * | Z35: * | AA35: * | AB35: * | AC35: * | AD35: * | AE35: * | AF35: * | AG35: * | AH35: * | AI35: * | AJ35: * | AK35: * | AL35: * | AM35: * | AN35: * | AO35: * | AP35: * | AQ35: * | AR35: * | AS35: * | AT35: * | AU35: * | AV35: * | AW35: * | AX35: * | AY35: * | AZ35: * | BA35: * | BB35: * | BC35: * | BD35: * | BE35: * | BF35: * | BG35: * | BH35: *
C38: Promedio | D38: =AVERAGE(D1:D27) -> 10859.09091 | E38: =AVERAGE(E1:E27) -> 45461.90476 | F38: 8.52 | G38: 4.286666667 | H38: 0.79 | I38: 20.453 | J38: 0.01659 | K38: 0.01043684211 | L38: 0.1 | Q38: 43.84571429 | R38: 0.135 | S38: 0.03545454545 | T38: 541.5 | V38: 0.0021925 | W38: 8.013636364 | X38: 0.568 | AA38: 0.1761904762 | AC38: 0.06142857143 | AD38: 5.472857143 | AE38: 0.118 | AF38: 0.1752380952 | AG38: 0.04823529412 | AJ38: 0.005455555556 | AK38: 0.00429 | AL38: 0.05 | AN38: 0.6047058824 | AO38: 7.69125 | AQ38: 0.01703333333 | AR38: 0.01268571429 | AS38: 314.75 | AT38: 122.3916667 | AW38: 87.78636364 | AY38: 0.04388888889 | AZ38: 0.02 | BA38: 7.157083333 | BB38: 13.37916667 | BC38: 1.033333333 | BD38: 6.12 | BE38: 6.786666667
C39: Percentil | D39: =PERCENTILE(D1:D27,0.66) -> 5000 | E39: =PERCENTILE(E1:E27,0.66) -> 34000 | F39: 8.84 | G39: 4.724 | H39: 0.823 | I39: 5.7842 | J39: 0.01841 | K39: 0.01288 | L39: 0.1 | Q39: 54.06 | R39: 0.1244 | S39: 0.03 | T39: 570.48 | V39: 0.0022288 | W39: 9.26 | X39: 0.6446 | AA39: 0.2 | AC39: 0.07936 | AD39: 4.816 | AE39: 0.1428 | AF39: 0.17 | AG39: 0.06 | AJ39: 0.0057028 | AK39: 0.0043 | AL39: 0.05 | AN39: 0.73568 | AO39: 7.9 | AQ39: 0.017432 | AR39: 0.013384 | AS39: 371.18 | AT39: 159.98 | AW39: 92.172 | AY39: 0.0522 | AZ39: 0.02 | BA39: 7.318 | BB39: 15 | BC39: 1.032 | BD39: 7.2944 | BE39: 7.0432

Sheet CL10 (hidden)
B1: Nro. Muestra | C1: Fecha Muestreo | D1: CF | E1: CT | F1: A y G | G1: Al | H1: Al Dis. | I1: NH4 | J1: As | K1: As Dis. | L1: B | M1: B Dis. | N1: Cd | O1: Cd Dis. | P1: CN | Q1: Cloruro | R1: Cu | S1: Cu Dis. | T1: Co. Esp. | U1: Cr Dis. | V1: Cromo total | W1: DBO5 | X1: Deterg. | Y1: Sn | Z1: Sn Dis. | AA1: Fluoruro | AB1: HCF | AC1: HCV | AD1: Fe | AE1: Fe Dis. | AF1: Mn | AG1: Mn Dis. | AH1: Hg | AI1: Hg Dis. | AJ1: Mo | AK1: Mo Dis. | AL1: Ni | AM1: Ni Dis. | AN1: Nitritos | AO1: O Dis. | AP1: RAS | AQ1: Pb | AR1: Pb Dis. | AS1: SDT | AT1: SST | AU1: Se | AV1: Se Dis. | AW1: Sulfatos | AX1: Sulfuros | AY1: Zn | AZ1: Zn Dis. | BA1: Ph | BB1: T° | BC1: P tot. | BD1: N tot. | BE1: Nitratos | BF1: N Kjeldahl | BG1: DQO | BH1: N amoniacal
D2: [NMP/100 ml] | E2: [NMP/100 ml] | F2: [mg/L] | G2: [mg/L] | H2: [mg/L] | I2: [mg/L] | J2: [mg/L] | K2: [mg/L] | L2: [mg/L] | M2: [mg/L] | N2: [mg/L] | O2: [mg/L] | P2: [mg/L] | Q2: [mg/L] | R2: [mg/L] | S2: [mg/L] | T2: [uS/cm] | U2: [mg/L] | V2: [mg/L] | W2: [mg/L] | X2: [mg/L] | Y2: [mg/L] | Z2: [mg/L] | AA2: [mg/L] | AB2: [mg/L] | AC2: [mg/L] | AD2: [mg/L] | AE2: [mg/L] | AF2: [mg/L] | AG2: [mg/L] | AH2: [mg/L] | AI2: [mg/L] | AJ2: [mg/L] | AK2: [mg/L] | AL2: [mg/L] | AM2: [mg/L] | AN2: [mg/L] | AO2: [mg/L] | AP2: [%] | AQ2: [mg/L] | AR2: [mg/L] | AS2: [mg/L] | AT2: [mg/L] | AU2: [mg/L] | AV2: [mg/L] | AW2: [mg/L] | AX2: [mg/L] | AY2: [mg/L] | AZ2: [mg/L] | BA2: [-] | BB2: [°C] | BC2: [mg/L] | BD2: [mg/L] | BE2: [mg/L] | BF2: [mg/L] | BG2: [mg/L] | BH2: [mg/L]
A3: 1 | B3: 7104 | C3: 2006-03-02 | D3: <2,00E+0 | E3: 300 | F3: * | G3: 0.43 | H3: 0.26 | I3: * | J3: <0,01 | K3: <0,0100 | L3: <0,1 | M3: <0,1 | N3: <0,0040 | O3: <0,0040 | P3: * | Q3: <2,5 | R3: <0,03 | S3: <0,03 | T3: 85.3 | U3: <0,05 | V3: <0,05 | W3: * | X3: * | Y3: <0,1 | Z3: <0,1 | AA3: * | AB3: <5 | AC3: 0.01 | AD3: 0.32 | AE3: <0,05 | AF3: <0,03 | AG3: <0,03 | AH3: <0,001 | AI3: <0,001 | AJ3: 0.1 | AK3: <0,1 | AL3: <0,02 | AM3: <0,02 | AN3: * | AO3: 9.9 | AP3: * | AQ3: <0,0100 | AR3: <0,0100 | AS3: 19 | AT3: * | AU3: <0,0050 | AV3: <0,0050 | AW3: 5 | AX3: 9.59 | AY3: <0,05 | AZ3: <0,05 | BA3: 7.5 | BB3: 14.8 | BC3: * | BD3: * | BE3: * | BF3: * | BG3: * | BH3: *
A4: 2 | B4: 18937 | C4: 2006-06-06 | D4: 26 | E4: 5000 | F4: <5 | G4: 2.33 | H4: 0.57 | I4: 0.01 | J4: <0,01 | K4: <0,0100 | L4: <0,1 | M4: <0,1 | N4: <0,0040 | O4: <0,0040 | P4: <0,01 | Q4: <2,5 | R4: <0,03 | S4: <0,03 | T4: 82 | U4: <0,05 | V4: <0,05 | W4: 2.4 | X4: <0,05 | Y4: * | Z4: * | AA4: <0,05 | AB4: * | AC4: * | AD4: 2.93 | AE4: <0,05 | AF4: 0.08 | AG4: 0.03 | AH4: <0,001 | AI4: <0,001 | AJ4: <0,1 | AK4: <0,1 | AL4: <0,02 | AM4: <0,02 | AN4: <0,01 | AO4: 10.4 | AP4: * | AQ4: <0,0100 | AR4: <0,0100 | AS4: 306 | AT4: 60 | AU4: <0,0050 | AV4: <0,0050 | AW4: 5 | AX4: <0,15 | AY4: <0,05 | AZ4: <0,05 | BA4: 7.5 | BB4: 7.5 | BC4: * | BD4: * | BE4: * | BF4: * | BG4: * | BH4: *
A5: 3 | B5: 30511 | C5: 2006-09-04 | D5: 110 | E5: * | F5: 1 | G5: 8.4 | H5: 0.2 | I5: 0.06 | J5: 0.0177 | K5: <0,0100 | L5: <0,1 | M5: <0,1 | N5: 0.0048 | O5: 0.0044 | P5: <0,01 | Q5: 35.34 | R5: 11.25 | S5: 3.75 | T5: 756 | U5: <0,05 | V5: <0,05 | W5: 2.1 | X5: <0,05 | Y5: * | Z5: * | AA5: 0.1 | AB5: * | AC5: * | AD5: 29.21 | AE5: 0.1 | AF5: 1.25 | AG5: 0.9 | AH5: <0,001 | AI5: <0,001 | AJ5: <0,1 | AK5: <0,1 | AL5: <0,02 | AM5: <0,02 | AN5: <0,01 | AO5: 9.7 | AP5: * | AQ5: 0.0433 | AR5: 0.0109 | AS5: 501 | AT5: * | AU5: <0,0050 | AV5: <0,0050 | AW5: 296 | AX5: <0,15 | AY5: <0,47 | AZ5: 0.31 | BA5: 7 | BB5: 8.8 | BC5: * | BD5: * | BE5: * | BF5: * | BG5: * | BH5: *
A6: 4 | B6: 42200 | C6: 2006-12-05 | D6: <2,00E+0 | E6: 50 | F6: * | G6: 0.19 | H6: 0.12 | I6: * | J6: <0,003 | K6: <0,003 | L6: <0,1 | M6: <0,1 | N6: <0,003 | O6: <0,0040 | P6: * | Q6: <2,5 | R6: <0,03 | S6: <0,03 | T6: 83 | U6: <0,01 | V6: <0,01 | W6: * | X6: * | Y6: * | Z6: * | AA6: * | AB6: * | AC6: * | AD6: 0.36 | AE6: 0.04 | AF6: 0.02 | AG6: 0.02 | AH6: <0,001 | AI6: <0,001 | AJ6: <0,1 | AK6: <0,1 | AL6: <0,02 | AM6: <0,02 | AN6: * | AO6: 10.24 | AP6: * | AQ6: <0,0100 | AR6: <0,0100 | AS6: 28.8 | AT6: 7.1 | AU6: <0,003 | AV6: <0,0050 | AW6: 2.5 | AX6: <0,15 | AY6: 0.05 | AZ6: 0.05 | BA6: 8.1 | BB6: 10.9 | BC6: * | BD6: * | BE6: * | BF6: * | BG6: * | BH6: *
A7: 5 | B7: 8665 | C7: 2007-03-13 | D7: 2 | E7: 170 | F7: * | G7: <0,1 | H7: <0,1 | I7: 0.04 | J7: <0,003 | K7: <0,003 | L7: <0,1 | M7: <0,1 | N7: <0,003 | O7: <0,003 | P7: <0,01 | Q7: <2,5 | R7: <0,03 | S7: <0,03 | T7: 62 | U7: <0,002 | V7: <0,002 | W7: * | X7: * | Y7: <0,1 | Z7: <0,1 | AA7: 0.2 | AB7: <5 | AC7: ND | AD7: 0.14 | AE7: <0,05 | AF7: <0,02 | AG7: <0,02 | AH7: <0,001 | AI7: <0,001 | AJ7: <0,003 | AK7: <0,003 | AL7: <0,02 | AM7: <0,02 | AN7: <0,01 | AO7: 8.4 | AP7: * | AQ7: <0,0100 | AR7: <0,0100 | AS7: 40 | AT7: <5 | AU7: <0,003 | AV7: <0,003 | AW7: 63.8 | AX7: <0,15 | AY7: <0,02 | AZ7: <0,02 | BA7: 7.7 | BB7: 9 | BC7: * | BD7: * | BE7: * | BF7: * | BG7: * | BH7: *
A8: 6 | B8: 19617 | C8: 2007-06-19 | D8: 2 | E8: 230 | F8: * | G8: <0,1 | H8: <0,1 | I8: 0.15 | J8: 0.006 | K8: 0.0054 | L8: <0,1 | M8: <0,1 | N8: <0,003 | O8: <0,003 | P8: <0,01 | Q8: <2,5 | R8: <0,03 | S8: <0,03 | T8: 219 | U8: <0,002 | V8: <0,002 | W8: * | X8: * | Y8: <0,1 | Z8: <0,1 | AA8: 0.2 | AB8: <5 | AC8: ND | AD8: <0,05 | AE8: <0,05 | AF8: <0,02 | AG8: <0,02 | AH8: <0,001 | AI8: <0,001 | AJ8: <0,003 | AK8: <0,003 | AL8: <0,02 | AM8: <0,02 | AN8: <0,01 | AO8: 8.14 | AP8: * | AQ8: <0,0100 | AR8: <0,0100 | AS8: 40 | AT8: 5.2 | AU8: <0,003 | AV8: <0,003 | AW8: 7.4 | AX8: <0,15 | AY8: 0.02 | AZ8: <0,02 | BA8: 7.9 | BB8: 10 | BC8: * | BD8: * | BE8: * | BF8: * | BG8: * | BH8: *
A9: 7 | B9: 27877 | C9: 2007-09-11 | D9: 2 | E9: 4 | F9: * | G9: <0,1 | H9: <0,1 | I9: 0.22 | J9: 0.0035 | K9: <0,003 | L9: <0,1 | M9: <0,1 | N9: <0,003 | O9: <0,003 | P9: <0,01 | Q9: 32.5 | R9: <0,03 | S9: <0,03 | T9: 84.7 | U9: <0,002 | V9: <0,002 | W9: * | X9: * | Y9: <0,1 | Z9: <0,1 | AA9: 0.2 | AB9: <5 | AC9: 0.05 | AD9: 0.07 | AE9: <0,05 | AF9: <0,02 | AG9: <0,02 | AH9: <0,001 | AI9: <0,001 | AJ9: <0,003 | AK9: <0,003 | AL9: <0,02 | AM9: <0,02 | AN9: <0,01 | AO9: 7.8 | AP9: * | AQ9: <0,0100 | AR9: <0,0100 | AS9: 111 | AT9: 7.8 | AU9: <0,003 | AV9: <0,003 | AW9: 32.5 | AX9: <0,15 | AY9: <0,02 | AZ9: <0,02 | BA9: 7 | BB9: 8 | BC9: * | BD9: * | BE9: * | BF9: * | BG9: * | BH9: *
A10: 8 | B10: 36053 | C10: 2007-12-04 | D10: <2,00E+0 | E10: 30 | F10: * | G10: 0.39 | H10: 0.39 | I10: 0.09 | J10: 0.0152 | K10: <0,003 | L10: <0,1 | M10: <0,1 | N10: <0,003 | O10: <0,003 | P10: <0,01 | Q10: 4.09 | R10: <0,03 | S10: <0,03 | T10: 55.6 | U10: <0,002 | V10: <0,002 | W10: * | X10: * | Y10: <0,1 | Z10: <0,1 | AA10: 0.2 | AB10: <5 | AC10: <0,005 | AD10: 0.28 | AE10: <0,05 | AF10: <0,02 | AG10: <0,02 | AH10: <0,001 | AI10: <0,001 | AJ10: <0,003 | AK10: <0,003 | AL10: <0,02 | AM10: <0,02 | AN10: <0,01 | AO10: 10.4 | AP10: * | AQ10: <0,0100 | AR10: <0,0100 | AS10: 74 | AT10: <5 | AU10: <0,003 | AV10: <0,003 | AW10: 27.6 | AX10: <0,15 | AY10: 0.03 | AZ10: <0,02 | BA10: 8 | BB10: 13 | BC10: * | BD10: * | BE10: * | BF10: * | BG10: * | BH10: *
A11: 9 | B11: 6830 | C11: 2008-03-11 | D11: 11 | E11: 280 | F11: ND | G11: <0,5 | H11: <0,5 | I11: ND | J11: 0.0035 | K11: <0,003 | L11: ND | M11: ND | N11: <0,003 | O11: <0,003 | P11: ND | Q11: 3.47 | R11: <0,03 | S11: <0,03 | T11: 66 | U11: <0,002 | V11: 0.0023 | W11: ND | X11: ND | Y11: <0,1 | Z11: <0,1 | AA11: ND | AB11: <5 | AC11: ND | AD11: 0.16 | AE11: <0,05 | AF11: <0,02 | AG11: <0,02 | AH11: <0,001 | AI11: <0,001 | AJ11: 0.00745 | AK11: 0.00371 | AL11: <0,03 | AM11: <0,03 | AN11: ND | AO11: 9.8 | AP11: * | AQ11: <0,0100 | AR11: <0,0100 | AS11: 48.8 | AT11: <5 | AU11: <0,003 | AV11: <0,003 | AW11: 11.92 | AX11: <0,15 | AY11: <0,02 | AZ11: <0,02 | BA11: 7.6 | BB11: 15.4 | BC11: * | BD11: * | BE11: * | BF11: * | BG11: * | BH11: *
A12: 10 | B12: 15580 | C12: 2008-06-10 | D12: 230 | E12: 300 | F12: ND | G12: 0.18 | H12: <0,5 | I12: ND | J12: 0.0033 | K12: <0,003 | L12: ND | M12: ND | N12: <0,003 | O12: <0,003 | P12: ND | Q12: <2,5 | R12: <0,03 | S12: <0,03 | T12: 95.4 | U12: <0,002 | V12: <0,002 | W12: ND | X12: ND | Y12: <0,1 | Z12: <0,1 | AA12: ND | AB12: <5 | AC12: 0.053 | AD12: 0.52 | AE12: <0,05 | AF12: 0.02 | AG12: <0,02 | AH12: <0,001 | AI12: <0,001 | AJ12: * | AK12: * | AL12: <0,03 | AM12: <0,03 | AN12: ND | AO12: 10.5 | AP12: * | AQ12: <0,0100 | AR12: <0,0100 | AS12: 16.3 | AT12: 8.6 | AU12: <0,003 | AV12: <0,003 | AW12: 3 | AX12: <0,15 | AY12: <0,02 | AZ12: <0,02 | BA12: 7.6 | BB12: 8.5 | BC12: * | BD12: * | BE12: * | BF12: * | BG12: * | BH12: *
A13: 11 | B13: 24105 | C13: 2008-09-02 | D13: <2,00E+0 | E13: 140 | F13: * | G13: 0.42 | H13: <0,5 | I13: * | J13: 0.0041 | K13: <0,003 | L13: * | M13: * | N13: <0,003 | O13: <0,003 | P13: * | Q13: <2,5 | R13: <0,03 | S13: <0,03 | T13: 114 | U13: <0,002 | V13: <0,002 | W13: * | X13: * | Y13: <0,1 | Z13: <0,1 | AA13: * | AB13: <5 | AC13: ND | AD13: 0.08 | AE13: <0,05 | AF13: <0,02 | AG13: <0,02 | AH13: <0,001 | AI13: <0,001 | AJ13: <0,003 | AK13: <0,003 | AL13: <0,03 | AM13: <0,03 | AN13: * | AO13: 10.7 | AP13: * | AQ13: <0,0100 | AR13: <0,0100 | AS13: 69 | AT13: <5 | AU13: <0,003 | AV13: <0,003 | AW13: 4 | AX13: <0,15 | AY13: 0.02 | AZ13: <0,02 | BA13: 8 | BB13: 8.8 | BC13: * | BD13: * | BE13: * | BF13: * | BG13: * | BH13: *
A14: 12 | B14: 33001 | C14: 2008-12-02 | D14: <2,00E+0 | E14: 1300 | F14: * | G14: 0.42 | H14: <0,5 | I14: * | J14: 0.0031 | K14: <0,003 | L14: * | M14: * | N14: <0,003 | O14: <0,003 | P14: * | Q14: 3.4 | R14: <0,03 | S14: <0,03 | T14: 56.7 | U14: <0,002 | V14: 0.00447 | W14: * | X14: * | Y14: <0,1 | Z14: <0,1 | AA14: * | AB14: <5 | AC14: 0.034 | AD14: 0.5 | AE14: <0,05 | AF14: <0,02 | AG14: <0,02 | AH14: <0,001 | AI14: <0,001 | AJ14: <0,003 | AK14: <0,003 | AL14: <0,03 | AM14: <0,03 | AN14: * | AO14: 7.3 | AP14: * | AQ14: <0,0100 | AR14: <0,0100 | AS14: 88 | AT14: 11.6 | AU14: <0,003 | AV14: <0,003 | AW14: 1 | AX14: <0,15 | AY14: <0,02 | AZ14: <0,02 | BA14: 7.8 | BB14: 15 | BC14: * | BD14: * | BE14: * | BF14: * | BG14: * | BH14: *
A15: 13 | B15: 7424 | C15: 2009-03-17 | D15: 30 | E15: 220 | F15: * | G15: 0.04 | H15: <0,5 | I15: * | J15: 0.0042 | K15: 0.0033 | L15: * | M15: * | N15: <0,003 | O15: <0,003 | P15: * | Q15: 2.68 | R15: <0,03 | S15: <0,03 | T15: 74.3 | U15: <0,002 | V15: <0,002 | W15: * | X15: * | Y15: <0,1 | Z15: <0,1 | AA15: * | AB15: <5 | AC15: <0,005 | AD15: 0.05 | AE15: <0,05 | AF15: <0,02 | AG15: <0,02 | AH15: <0,001 | AI15: <0,001 | AJ15: <0,003 | AK15: <0,003 | AL15: <0,03 | AM15: <0,03 | AN15: * | AO15: 8.7 | AP15: * | AQ15: <0,0100 | AR15: <0,0100 | AS15: 22.5 | AT15: <5 | AU15: <0,003 | AV15: <0,003 | AW15: 10 | AX15: <0,15 | AY15: <0,02 | AZ15: <0,02 | BA15: 6.9 | BB15: 13 | BC15: * | BD15: * | BE15: * | BF15: * | BG15: * | BH15: *
A16: 14 | B16: 15006 | C16: 2009-06-01 | D16: 2 | E16: 7 | F16: * | G16: * | H16: <0,5 | I16: * | J16: 0.0046 | K16: 0.0037 | L16: * | M16: * | N16: <0,003 | O16: <0,003 | P16: * | Q16: 3.49 | R16: <0,03 | S16: <0,03 | T16: 93.3 | U16: <0,002 | V16: <0,002 | W16: * | X16: * | Y16: <0,1 | Z16: <0,1 | AA16: * | AB16: <5 | AC16: ND | AD16: 0.08 | AE16: <0,05 | AF16: <0,02 | AG16: <0,02 | AH16: <0,001 | AI16: <0,001 | AJ16: 0.00435 | AK16: <0,003 | AL16: <0,03 | AM16: <0,03 | AN16: * | AO16: 10.1 | AP16: * | AQ16: <0,0100 | AR16: <0,0100 | AS16: 48.8 | AT16: <5 | AU16: <0,003 | AV16: <0,003 | AW16: 11 | AX16: <0,15 | AY16: <0,02 | AZ16: <0,02 | BA16: 7.6 | BB16: 11.6 | BC16: * | BD16: * | BE16: * | BF16: * | BG16: * | BH16: *
A17: 15 | B17: 23325 | C17: 2009-09-01 | D17: <2,00E+0 | E17: <2,00E+0 | F17: * | G17: 0.23 | H17: <0,5 | I17: * | J17: 0.003 | K17: <0,003 | L17: * | M17: * | N17: <0,003 | O17: <0,003 | P17: * | Q17: <2,5 | R17: <0,03 | S17: <0,03 | T17: 88.4 | U17: <0,002 | V17: <0,002 | W17: * | X17: * | Y17: <0,1 | Z17: <0,1 | AA17: * | AB17: <5 | AC17: <0,005 | AD17: 0.16 | AE17: <0,05 | AF17: <0,02 | AG17: <0,02 | AH17: <0,001 | AI17: <0,001 | AJ17: <0,003 | AK17: <0,003 | AL17: <0,03 | AM17: <0,03 | AN17: * | AO17: 10.3 | AP17: * | AQ17: <0,0100 | AR17: <0,0100 | AS17: 66 | AT17: <5 | AU17: <0,003 | AV17: <0,003 | AW17: 5 | AX17: <0,15 | AY17: <0,02 | AZ17: <0,02 | BA17: 7.7 | BB17: 8 | BC17: * | BD17: * | BE17: * | BF17: * | BG17: * | BH17: *
A18: 16 | B18: 32447 | C18: 2009-12-02 | D18: 80 | E18: 130 | F18: * | G18: 0.24 | H18: <0,5 | I18: * | J18: 0.003 | K18: <0,003 | L18: * | M18: * | N18: <0,003 | O18: <0,003 | P18: * | Q18: <2,5 | R18: <0,03 | S18: <0,03 | T18: 61.3 | U18: <0,002 | V18: <0,002 | W18: * | X18: * | Y18: <0,1 | Z18: <0,1 | AA18: * | AB18: <5 | AC18: <0,005 | AD18: 0.18 | AE18: 0.1 | AF18: <0,02 | AG18: <0,02 | AH18: <0,001 | AI18: <0,001 | AJ18: <0,003 | AK18: <0,003 | AL18: <0,03 | AM18: <0,03 | AN18: * | AO18: 9.9 | AP18: * | AQ18: <0,0100 | AR18: <0,0100 | AS18: 61 | AT18: 6 | AU18: <0,003 | AV18: <0,003 | AW18: 16 | AX18: <0,15 | AY18: <0,02 | AZ18: <0,02 | BA18: 7.4 | BB18: 13.3 | BC18: * | BD18: * | BE18: * | BF18: * | BG18: * | BH18: *
A19: 17 | B19: 27681 | C19: 2010-09-28 | D19: <2,00E+0 | E19: 3000 | F19: * | G19: 0.1 | H19: <0,5 | I19: * | J19: 0.0058 | K19: 0.0048 | L19: * | M19: * | N19: <0,003 | O19: <0,003 | P19: * | Q19: 3.51 | R19: <0,03 | S19: <0,03 | T19: 120 | U19: <0,002 | V19: <0,002 | W19: * | X19: * | Y19: <0,1 | Z19: <0,1 | AA19: * | AB19: <5 | AC19: 0.087 | AD19: <0,05 | AE19: <0,05 | AF19: <0,02 | AG19: <0,02 | AH19: <0,001 | AI19: <0,001 | AJ19: <0,003 | AK19: <0,003 | AL19: <0,03 | AM19: <0,03 | AN19: * | AO19: 9.8 | AP19: * | AQ19: <0,0100 | AR19: <0,0100 | AS19: 65 | AT19: <5 | AU19: <0,003 | AV19: <0,003 | AW19: 20 | AX19: <0,15 | AY19: 0.02 | AZ19: <0,02 | BA19: 7.2 | BB19: 12.8 | BC19: * | BD19: * | BE19: * | BF19: * | BG19: * | BH19: *
A20: 18 | B20: 9175 | C20: 2011-03-01 | D20: 70 | E20: 1300 | F20: * | G20: 0.08 | H20: <0,5 | I20: * | J20: 0.0045 | K20: 0.0042 | L20: * | M20: * | N20: <0,003 | O20: <0,003 | P20: * | Q20: 3.49 | R20: <0,03 | S20: <0,03 | T20: 133 | U20: <0,002 | V20: 0.00359 | W20: * | X20: * | Y20: <0,1 | Z20: <0,1 | AA20: * | AB20: <5 | AC20: 0.017 | AD20: 0.05 | AE20: <0,05 | AF20: <0,02 | AG20: <0,02 | AH20: <0,001 | AI20: <0,001 | AJ20: 0.00332 | AK20: <0,003 | AL20: <0,03 | AM20: <0,03 | AN20: * | AO20: 9.8 | AP20: * | AQ20: <0,0100 | AR20: <0,0100 | AS20: 100 | AT20: 6.9 | AU20: <0,003 | AV20: <0,003 | AW20: 28 | AX20: <0,15 | AY20: 0.02 | AZ20: <0,02 | BA20: 7.2 | BB20: 12.8 | BC20: * | BD20: * | BE20: * | BF20: * | BG20: * | BH20: *
A21: 19 | B21: 17447 | C21: 2011-06-01 | D21: <2,00E+0 | E21: 8 | F21: 0.07 | G21: <0,5 | H21: * | I21: * | J21: 0.0075 | K21: 0.0072 | L21: * | M21: * | N21: <0,003 | O21: <0,003 | P21: * | Q21: 5.59 | R21: <0,03 | S21: <0,03 | T21: 152 | U21: <0,002 | V21: <0,002 | W21: * | X21: * | Y21: <0,5 | Z21: <0,5 | AA21: * | AB21: <2 | AC21: <1 | AD21: <0,05 | AE21: <0,05 | AF21: <0,02 | AG21: <0,02 | AH21: <0,001 | AI21: <0,001 | AJ21: <0,003 | AK21: <0,003 | AL21: 0.03 | AM21: <0,03 | AN21: * | AO21: * | AP21: * | AQ21: <0,01000 | AR21: <0,0100 | AS21: 103 | AT21: <5 | AU21: * | AV21: * | AW21: 14 | AX21: <1 | AY21: <0,02 | AZ21: <0,02 | BA21: 8.2 | BB21: 10.5 | BC21: * | BD21: * | BE21: * | BF21: * | BG21: * | BH21: *
A22: 20 | B22: 29475 | C22: 2011-09-01 | D22: <2,00E+0 | E22: 300 | F22: * | G22: 0.25 | H22: <0,5 | I22: * | J22: 0.0038 | K22: <0,003 | L22: * | M22: * | N22: <0,003 | O22: <0,003 | P22: * | Q22: <2,5 | R22: <0,03 | S22: <0,03 | T22: 85.6 | U22: <0,002 | V22: <0,002 | W22: * | X22: * | Y22: <0,5 | Z22: <0,5 | AA22: * | AB22: <10 | AC22: <1 | AD22: 0.17 | AE22: <0,05 | AF22: <0,02 | AG22: <0,02 | AH22: <0,001 | AI22: <0,001 | AJ22: <0,003 | AK22: <0,003 | AL22: <0,03 | AM22: <0,03 | AN22: * | AO22: 9.5 | AP22: * | AQ22: <0,0100 | AR22: <0,0100 | AS22: 69 | AT22: <5 | AU22: <0,003 | AV22: <0,003 | AW22: 9 | AX22: <1 | AY22: <0,02 | AZ22: <0,02 | BA22: 8.1 | BB22: 9.54 | BC22: * | BD22: * | BE22: * | BF22: * | BG22: * | BH22: *
A23: 21 | B23: 36457 | C23: 2011-12-22 | D23: 300 | E23: 5000 | F23: * | G23: 0.39 | H23: <0,5 | I23: * | J23: <0,003 | K23: <0,003 | L23: * | M23: * | N23: <0,003 | O23: <0,003 | P23: * | Q23: <2,5 | R23: <0,03 | S23: <0,03 | T23: 81.8 | U23: 0.00358 | V23: 0.00389 | W23: * | X23: * | Y23: <0,5 | Z23: <0,5 | AA23: * | AB23: <10 | AC23: <1 | AD23: 0.16 | AE23: <0,05 | AF23: <0,02 | AG23: <0,02 | AH23: <0,001 | AI23: <0,001 | AJ23: <0,003 | AK23: <0,003 | AL23: <0,03 | AM23: <0,03 | AN23: * | AO23: 8.9 | AP23: * | AQ23: <0,0100 | AR23: <0,0100 | AS23: 76 | AT23: 9.5 | AU23: <0,003 | AV23: <0,003 | AW23: 13 | AX23: <1 | AY23: <0,02 | AZ23: <0,02 | BA23: 7 | BB23: 8 | BC23: * | BD23: * | BE23: * | BF23: * | BG23: * | BH23: *
A24: 22 | B24: 9539 | C24: 2012-03-29 | D24: 2 | E24: 800 | F24: * | G24: <0,5 | H24: <0,5 | I24: * | J24: 0.0056 | K24: 0.0057 | L24: * | M24: * | N24: * | O24: * | P24: * | Q24: * | R24: <0,03 | S24: <0,03 | T24: 132 | U24: * | V24: * | W24: * | X24: * | Y24: * | Z24: * | AA24: * | AB24: * | AC24: * | AD24: * | AE24: * | AF24: <0,02 | AG24: <0,02 | AH24: * | AI24: * | AJ24: 0.006 | AK24: <0,003 | AL24: * | AM24: * | AN24: * | AO24: 8.7 | AP24: * | AQ24: <0,0100 | AR24: <0,0100 | AS24: 80 | AT24: * | AU24: <0,003 | AV24: <0,003 | AW24: 34 | AX24: * | AY24: <0,02 | AZ24: <0,02 | BA24: 7.3 | BB24: 20.1 | BC24: <0,2 | BD24: * | BE24: * | BF24: * | BG24: * | BH24: *
A25: 23 | B25: 17855 | C25: 2012-06-12 | D25: * | E25: * | F25: * | G25: * | H25: * | I25: * | J25: * | K25: * | L25: * | M25: * | N25: * | O25: * | P25: * | Q25: * | R25: * | S25: * | T25: 122 | U25: * | V25: * | W25: * | X25: * | Y25: * | Z25: * | AA25: * | AB25: * | AC25: * | AD25: * | AE25: * | AF25: * | AG25: * | AH25: * | AI25: * | AJ25: * | AK25: * | AL25: * | AM25: * | AN25: * | AO25: 24.9 | AP25: * | AQ25: * | AR25: * | AS25: 86 | AT25: 21.8 | AU25: * | AV25: * | AW25: 14 | AX25: * | AY25: * | AZ25: * | BA25: 8.05 | BB25: 10.1 | BC25: 0.3 | BD25: * | BE25: * | BF25: * | BG25: * | BH25: *
A26: 24 | B26: 29719 | C26: 02-10-2012 | D26: * | E26: * | F26: * | G26: * | H26: * | I26: * | J26: * | K26: * | L26: * | M26: * | N26: * | O26: * | P26: * | Q26: * | R26: * | S26: * | T26: 112 | U26: * | V26: * | W26: * | X26: * | Y26: * | Z26: * | AA26: * | AB26: * | AC26: * | AD26: * | AE26: * | AF26: * | AG26: * | AH26: * | AI26: * | AJ26: * | AK26: * | AL26: * | AM26: * | AN26: * | AO26: 8.6 | AP26: * | AQ26: * | AR26: * | AS26: 100 | AT26: < 5 | AU26: * | AV26: * | AW26: 12 | AX26: * | AY26: * | AZ26: * | BA26: 8.5 | BB26: 16 | BC26: 0.2 | BD26: * | BE26: * | BF26: * | BG26: * | BH26: *
A27: 25 | B27: 38129 | C27: 2012-12-13 | D27: * | E27: * | F27: * | G27: * | H27: * | I27: * | J27: * | K27: * | L27: * | M27: * | N27: * | O27: * | P27: * | Q27: * | R27: * | S27: * | T27: 79.2 | U27: * | V27: * | W27: * | X27: * | Y27: * | Z27: * | AA27: * | AB27: * | AC27: * | AD27: * | AE27: * | AF27: * | AG27: * | AH27: * | AI27: * | AJ27: * | AK27: * | AL27: * | AM27: * | AN27: * | AO27: 8.7 | AP27: * | AQ27: * | AR27: * | AS27: 110 | AT27: 10.9 | AU27: * | AV27: * | AW27: 19 | AX27: * | AY27: * | AZ27: * | BA27: 7.52 | BB27: 16.4 | BC27: 0.3 | BD27: * | BE27: * | BF27: * | BG27: * | BH27: *
A28: 26 | B28: 9002 | C28: 2013-03-21 | D28: 7 | E28: 220 | F28: * | G28: <0,5 | H28: <0,5 | I28: * | J28: <0,001 | K28: <0,001 | L28: * | M28: * | N28: * | O28: * | P28: * | Q28: * | R28: 0.02 | S28: <0,01 | T28: 102 | U28: * | V28: * | W28: * | X28: * | Y28: * | Z28: * | AA28: * | AB28: * | AC28: * | AD28: * | AE28: * | AF28: <0,01 | AG28: <0,01 | AH28: * | AI28: * | AJ28: <0,005 | AK28: <0,005 | AL28: * | AM28: * | AN28: * | AO28: 3.95 | AP28: * | AQ28: <0,01 | AR28: <0,01 | AS28: * | AT28: * | AU28: <0,001 | AV28: <0,001 | AW28: 12 | AX28: * | AY28: <0,01 | AZ28: <0,01 | BA28: 7.88 | BB28: 13.7 | BC28: 0.6 | BD28: * | BE28: * | BF28: * | BG28: * | BH28: *
A29: 27 | B29: 21527 | C29: 2013-06-27 | D29: * | E29: * | F29: * | G29: * | H29: * | I29: * | J29: * | K29: * | L29: * | M29: * | N29: * | O29: * | P29: * | Q29: * | R29: * | S29: * | T29: 110 | U29: * | V29: * | W29: * | X29: * | Y29: * | Z29: * | AA29: * | AB29: * | AC29: * | AD29: * | AE29: * | AF29: * | AG29: * | AH29: * | AI29: * | AJ29: * | AK29: * | AL29: * | AM29: * | AN29: * | AO29: 12.64 | AP29: * | AQ29: * | AR29: * | AS29: 69 | AT29: <5 | AU29: * | AV29: * | AW29: 14 | AX29: * | AY29: * | AZ29: * | BA29: 7.97 | BB29: 8.1 | BC29: <0,1 | BD29: * | BE29: 0.21 | BF29: * | BG29: * | BH29: *
A30: 28 | B30: 36254 | C30: 2013-09-25 | D30: * | E30: * | F30: * | G30: * | H30: * | I30: * | J30: * | K30: * | L30: * | M30: * | N30: * | O30: * | P30: * | Q30: * | R30: * | S30: * | T30: * | U30: * | V30: * | W30: * | X30: * | Y30: * | Z30: * | AA30: * | AB30: * | AC30: * | AD30: * | AE30: * | AF30: * | AG30: * | AH30: * | AI30: * | AJ30: * | AK30: * | AL30: * | AM30: * | AN30: * | AO30: 8.9 | AP30: * | AQ30: * | AR30: * | AS30: 75 | AT30: <5 | AU30: * | AV30: * | AW30: 15 | AX30: * | AY30: * | AZ30: * | BA30: 7.29 | BB30: 11.1 | BC30: <0,1 | BD30: * | BE30: * | BF30: * | BG30: * | BH30: *
A31: 29 | B31: 47204 | C31: 2013-12-05 | D31: * | E31: * | F31: * | G31: * | H31: * | I31: * | J31: * | K31: * | L31: * | M31: * | N31: * | O31: * | P31: * | Q31: * | R31: * | S31: * | T31: 84 | U31: * | V31: * | W31: * | X31: * | Y31: * | Z31: * | AA31: * | AB31: * | AC31: * | AD31: * | AE31: * | AF31: * | AG31: * | AH31: * | AI31: * | AJ31: * | AK31: * | AL31: * | AM31: * | AN31: * | AO31: 8.2 | AP31: * | AQ31: * | AR31: * | AS31: 89 | AT31: <5 | AU31: * | AV31: * | AW31: 17 | AX31: * | AY31: * | AZ31: * | BA31: 7.91 | BB31: 16.7 | BC31: <0,1 | BD31: * | BE31: * | BF31: * | BG31: * | BH31: *
A32: 30 | B32: 12558 | C32: 2014-03-27 | D32: 80 | E32: 170 | F32: * | G32: * | H32: * | I32: * | J32: * | K32: * | L32: * | M32: * | N32: * | O32: * | P32: * | Q32: * | R32: * | S32: * | T32: 136 | U32: * | V32: * | W32: * | X32: * | Y32: * | Z32: * | AA32: * | AB32: * | AC32: * | AD32: * | AE32: * | AF32: * | AG32: * | AH32: * | AI32: * | AJ32: * | AK32: * | AL32: * | AM32: * | AN32: * | AO32: 8.9 | AP32: * | AQ32: * | AR32: * | AS32: 139 | AT32: <5 | AU32: * | AV32: * | AW32: 21 | AX32: * | AY32: * | AZ32: * | BA32: 7.63 | BB32: 12.4 | BC32: * | BD32: * | BE32: * | BF32: * | BG32: * | BH32: *
A33: 31 | B33: 25255 | C33: 2014-06-19 | D33: * | E33: * | F33: * | G33: * | H33: * | I33: * | J33: * | K33: * | L33: * | M33: * | N33: * | O33: * | P33: * | Q33: * | R33: * | S33: * | T33: 105 | U33: * | V33: * | W33: * | X33: * | Y33: * | Z33: * | AA33: * | AB33: * | AC33: * | AD33: * | AE33: * | AF33: * | AG33: * | AH33: * | AI33: * | AJ33: * | AK33: * | AL33: * | AM33: * | AN33: * | AO33: 10.3 | AP33: * | AQ33: * | AR33: * | AS33: 106 | AT33: <5 | AU33: * | AV33: * | AW33: * | AX33: * | AY33: * | AZ33: * | BA33: 7.85 | BB33: 9.7 | BC33: * | BD33: * | BE33: * | BF33: * | BG33: * | BH33: *
A34: 32 | B34: 40188 | C34: 2014-09-30 | D34: * | E34: * | F34: * | G34: * | H34: * | I34: 0.15 | J34: * | K34: * | L34: * | M34: * | N34: * | O34: * | P34: * | Q34: * | R34: <0,01 | S34: <0,01 | T34: 104 | U34: * | V34: * | W34: * | X34: * | Y34: * | Z34: * | AA34: * | AB34: * | AC34: * | AD34: * | AE34: * | AF34: * | AG34: * | AH34: * | AI34: * | AJ34: * | AK34: * | AL34: * | AM34: * | AN34: <0,015 | AO34: 12.7 | AP34: * | AQ34: * | AR34: * | AS34: 58 | AT34: <5 | AU34: * | AV34: * | AW34: * | AX34: * | AY34: * | AZ34: * | BA34: 7.49 | BB34: 10.4 | BC34: <0,1 | BD34: * | BE34: * | BF34: * | BG34: * | BH34: *
B35: 53303 | C35: 2014-12-16 | D35: * | E35: * | F35: * | G35: * | H35: * | I35: * | J35: <0,001 | K35: <0,001 | L35: * | M35: * | N35: * | O35: * | P35: * | Q35: * | R35: <0,01 | S35: <0,01 | T35: 83.2 | U35: * | V35: * | W35: * | X35: * | Y35: * | Z35: * | AA35: * | AB35: * | AC35: * | AD35: <0,01 | AE35: <0,01 | AF35: * | AG35: * | AH35: * | AI35: * | AJ35: * | AK35: * | AL35: * | AM35: * | AN35: * | AO35: 10 | AP35: * | AQ35: * | AR35: * | AS35: 85 | AT35: 27.8 | AU35: * | AV35: * | AW35: * | AX35: * | AY35: * | AZ35: * | BA35: 8.22 | BB35: 14 | BC35: * | BD35: * | BE35: * | BF35: * | BG35: 29 | BH35: *
C38: Promedio | D38: =AVERAGE(D3:D27) -> 66.69230769 | E38: =AVERAGE(E3:E27) -> 928.45 | F38: 0.535 | G38: 0.9393333333 | H38: 0.308 | I38: 0.095 | J38: 0.005788235294 | K38: 0.0049 | N38: 0.0048 | O38: 0.0044 | Q38: 9.756 | R38: 11.25 | S38: 3.75 | T38: 123.784 | U38: 0.00358 | V38: 0.0035625 | W38: 2.25 | AA38: 0.18 | AC38: 0.04183333333 | AD38: 1.967777778 | AE38: 0.08 | AF38: 0.3425 | AG38: 0.3166666667 | AJ38: 0.024224 | AK38: 0.00371 | AL38: 0.03 | AO38: 10.04916667 | AQ38: 0.0433 | AR38: 0.0109 | AS38: 93.168 | AT38: 14.12727273 | AW38: 26.5888 | AX38: 9.59 | AY38: 0.02666666667 | AZ38: 0.18 | BA38: 7.6148 | BB38: 11.6736 | BC38: 0.2666666667
C39: Percentil | D39: =PERCENTILE(D3:D27,0.66) -> 66.8 | E39: =PERCENTILE(E3:E27,0.66) -> 300 | F39: 0.6838 | G39: 0.3972 | H39: 0.3432 | I39: 0.108 | J39: 0.00516 | K39: 0.005376 | N39: 0.0048 | O39: 0.0044 | Q39: 4.0552 | R39: 11.25 | S39: 3.75 | T39: 109.344 | U39: 0.00358 | V39: 0.003884 | W39: 2.298 | AA39: 0.2 | AC39: 0.0509 | AD39: 0.2888 | AE39: 0.1 | AF39: 0.0788 | AG39: 0.3084 | AJ39: 0.006928 | AK39: 0.00371 | AL39: 0.03 | AO39: 9.936 | AQ39: 0.0433 | AR39: 0.0109 | AS39: 85.04 | AT39: 10.34 | AW39: 15.68 | AX39: 9.59 | AY39: 0.023 | AZ39: 0.2216 | BA39: 7.784 | BB39: 12.968 | BC39: 0.3

Sheet CL20 (hidden)
B1: Nro. Muestra | C1: Fecha Muestreo | D1: CF | E1: CT | F1: A y G | G1: Al | H1: Al Dis. | I1: NH4 | J1: As | K1: As Dis. | L1: B | M1: B Dis. | N1: Cd | O1: Cd Dis. | P1: CN | Q1: Cloruro | R1: Cu | S1: Cu Dis. | T1: Co. Esp. | U1: Cr Dis. | V1: Cromo total | W1: DBO5 | X1: Deterg. | Y1: Sn | Z1: Sn Dis. | AA1: Fluoruro | AB1: HCF | AC1: HCV | AD1: Fe | AE1: Fe Dis. | AF1: Mn | AG1: Mn Dis. | AH1: Hg | AI1: Hg Dis. | AJ1: Mo | AK1: Mo Dis. | AL1: Ni | AM1: Ni Dis. | AN1: Nitritos | AO1: O Dis. | AP1: RAS | AQ1: Pb | AR1: Pb Dis. | AS1: SDT | AT1: SST | AU1: Se | AV1: Se Dis. | AW1: Sulfatos | AX1: Sulfuros | AY1: Zn | AZ1: Zn Dis. | BA1: Ph | BB1: T° | BC1: P tot. | BD1: N tot. | BE1: Nitratos | BF1: N Kjeldahl | BG1: DQO | BH1: N amoniacal
D2: [NMP/100 ml] | E2: [NMP/100 ml] | F2: [mg/L] | G2: [mg/L] | H2: [mg/L] | I2: [mg/L] | J2: [mg/L] | K2: [mg/L] | L2: [mg/L] | M2: [mg/L] | N2: [mg/L] | O2: [mg/L] | P2: [mg/L] | Q2: [mg/L] | R2: [mg/L] | S2: [mg/L] | T2: [uS/cm] | U2: [mg/L] | V2: [mg/L] | W2: [mg/L] | X2: [mg/L] | Y2: [mg/L] | Z2: [mg/L] | AA2: [mg/L] | AB2: [mg/L] | AC2: [mg/L] | AD2: [mg/L] | AE2: [mg/L] | AF2: [mg/L] | AG2: [mg/L] | AH2: [mg/L] | AI2: [mg/L] | AJ2: [mg/L] | AK2: [mg/L] | AL2: [mg/L] | AM2: [mg/L] | AN2: [mg/L] | AO2: [mg/L] | AP2: [%] | AQ2: [mg/L] | AR2: [mg/L] | AS2: [mg/L] | AT2: [mg/L] | AU2: [mg/L] | AV2: [mg/L] | AW2: [mg/L] | AX2: [mg/L] | AY2: [mg/L] | AZ2: [mg/L] | BA2: [-] | BB2: [°C] | BC2: [mg/L] | BD2: [mg/L] | BE2: [mg/L] | BF2: [mg/L] | BG2: [mg/L] | BH2: [mg/L]
A3: 1 | B3: 7101 | C3: 2006-03-02 | D3: 16000 | E3: 16000 | F3: <5 | G3: 0.77 | H3: 0.1 | I3: <0,03 | J3: <0,0100 | K3: 0.01 | L3: <0,1 | M3: <0,1 | N3: <0,0040 | O3: <0,0040 | P3: <0,01 | Q3: 31.49 | R3: 0.05 | S3: <0,03 | T3: 581 | U3: <0,05 | V3: <0,05 | W3: 3.2 | X3: <0,05 | Y3: <0,1 | Z3: <0,1 | AA3: 0.1 | AB3: <5 | AC3: ND | AD3: 1.24 | AE3: <0,05 | AF3: 0.04 | AG3: <0,05 | AH3: <0,001 | AI3: <0,001 | AJ3: <0,1 | AK3: <0,1 | AL3: <0,02 | AM3: <0,02 | AN3: * | AO3: 9.6 | AP3: * | AQ3: 0.0159 | AR3: 0.012 | AS3: 377 | AT3: 27.8 | AU3: <0,0050 | AV3: <0,0050 | AW3: 98.8 | AX3: 1.07 | AY3: <0,05 | AZ3: <0,05 | BA3: 8.2 | BB3: 15.5 | BC3: * | BD3: * | BE3: * | BF3: * | BG3: * | BH3: *
A4: 2 | B4: 18932 | C4: 2006-06-06 | D4: 8000 | E4: * | F4: * | G4: 4.93 | H4: 1.21 | I4: * | J4: * | K4: * | L4: <0,1 | M4: <0,1 | N4: * | O4: * | P4: * | Q4: 27.65 | R4: 0.17 | S4: <0,03 | T4: 440 | U4: <0,05 | V4: <0,05 | W4: 4.4 | X4: <0,05 | Y4: * | Z4: * | AA4: * | AB4: * | AC4: * | AD4: 14.37 | AE4: <0,05 | AF4: 0.31 | AG4: <0,03 | AH4: <0,001 | AI4: <0,001 | AJ4: * | AK4: * | AL4: <0,02 | AM4: <0,02 | AN4: 0.05 | AO4: 10.4 | AP4: 13.4 | AQ4: * | AR4: * | AS4: 293 | AT4: 105 | AU4: * | AV4: * | AW4: 98 | AX4: * | AY4: * | AZ4: * | BA4: 7.5 | BB4: 13.3 | BC4: * | BD4: * | BE4: * | BF4: * | BG4: * | BH4: *
A5: 3 | B5: 30775 | C5: 2006-09-05 | D5: 1700 | E5: >1,60E+4 | F5: 1.6 | G5: 0.69 | H5: 0.13 | I5: 0.11 | J5: <0,0100 | K5: <0,0100 | L5: <0,1 | M5: <0,1 | N5: <0,0040 | O5: <0,0040 | P5: <0,01 | Q5: 29.68 | R5: 0.03 | S5: <0,03 | T5: 518 | U5: <0,05 | V5: <0,05 | W5: 2 | X5: <0,05 | Y5: * | Z5: * | AA5: 0.1 | AB5: * | AC5: * | AD5: 0.76 | AE5: <0,05 | AF5: <0,03 | AG5: <0,03 | AH5: <0,001 | AI5: <0,001 | AJ5: <0,1 | AK5: <0,1 | AL5: <0,02 | AM5: <0,02 | AN5: 0.02 | AO5: 11.1 | AP5: * | AQ5: <0,0100 | AR5: <0,0100 | AS5: 319 | AT5: 11.4 | AU5: <0,0050 | AV5: <0,0050 | AW5: 45.3 | AX5: <0,15 | AY5: <0,05 | AZ5: <0,05 | BA5: 8.3 | BB5: 12.6 | BC5: * | BD5: * | BE5: * | BF5: * | BG5: * | BH5: *
A6: 4 | B6: 42195 | C6: 2006-12-05 | D6: 5000 | E6: 16000 | F6: 5.9 | G6: 0.71 | H6: 0.45 | I6: 0.08 | J6: 0.0082 | K6: 0.0044 | L6: <0,1 | M6: <0,1 | N6: <0,003 | O6: <0,0040 | P6: <0,01 | Q6: 24.71 | R6: 0.1 | S6: <0,03 | T6: 492 | U6: <0,01 | V6: <0,01 | W6: 3.9 | X6: <0,05 | Y6: * | Z6: * | AA6: 0.1 | AB6: * | AC6: * | AD6: 3.63 | AE6: 0.04 | AF6: 0.1 | AG6: <0,02 | AH6: <0,001 | AI6: <0,001 | AJ6: <0,1 | AK6: <0,1 | AL6: <0,02 | AM6: <0,02 | AN6: 0.03 | AO6: 9.8 | AP6: * | AQ6: 0.0183 | AR6: 0.0146 | AS6: 334 | AT6: 90 | AU6: <0,003 | AV6: <0,0050 | AW6: 140 | AX6: <0,15 | AY6: <0,05 | AZ6: <0,05 | BA6: 8.3 | BB6: 18.2 | BC6: * | BD6: * | BE6: * | BF6: * | BG6: * | BH6: *
A7: 5 | B7: 8660 | C7: 2007-03-13 | D7: 8000 | E7: 30000 | F7: 8.6 | G7: 0.54 | H7: 0.24 | I7: 0.09 | J7: 0.0104 | K7: 0.0079 | L7: <0,1 | M7: <0,1 | N7: <0,003 | O7: <0,003 | P7: <0,01 | Q7: 31.02 | R7: 0.05 | S7: <0,03 | T7: 572 | U7: <0,002 | V7: <0,002 | W7: 3.3 | X7: <0,05 | Y7: <0,1 | Z7: <0,1 | AA7: 0.1 | AB7: <5 | AC7: ND | AD7: 1.48 | AE7: <0,05 | AF7: 0.05 | AG7: <0,02 | AH7: <0,001 | AI7: <0,001 | AJ7: <0,003 | AK7: <0,003 | AL7: <0,02 | AM7: <0,002 | AN7: <0,01 | AO7: 7.3 | AP7: * | AQ7: 0.0176 | AR7: 0.0136 | AS7: 317 | AT7: 27.8 | AU7: <0,003 | AV7: <0,003 | AW7: 148 | AX7: <0,15 | AY7: <0,02 | AZ7: <0,02 | BA7: 7.6 | BB7: 12 | BC7: * | BD7: * | BE7: * | BF7: * | BG7: * | BH7: *
A8: 6 | B8: 19612 | C8: 2007-06-19 | D8: 800 | E8: 2200 | F8: <5 | G8: 0.33 | H8: <0,1 | I8: 0.12 | J8: 0.0084 | K8: 0.0053 | L8: <0,1 | M8: <0,1 | N8: <0,003 | O8: <0,003 | P8: <0,01 | Q8: 36.83 | R8: <0,03 | S8: <0,03 | T8: 589 | U8: <0,002 | V8: <0,002 | W8: 2.6 | X8: <0,05 | Y8: <0,1 | Z8: <0,1 | AA8: 0.1 | AB8: <5 | AC8: 0.042 | AD8: 0.63 | AE8: <0,05 | AF8: 0.02 | AG8: <0,02 | AH8: <0,001 | AI8: <0,001 | AJ8: <0,003 | AK8: <0,003 | AL8: <0,02 | AM8: <0,02 | AN8: <0,01 | AO8: 7.33 | AP8: * | AQ8: <0,0100 | AR8: <0,0100 | AS8: 371 | AT8: 15.5 | AU8: <0,003 | AV8: <0,003 | AW8: 93.4 | AX8: <0,15 | AY8: 0.02 | AZ8: <0,02 | BA8: 7.8 | BB8: 7 | BC8: * | BD8: * | BE8: * | BF8: * | BG8: * | BH8: *
A9: 7 | B9: 27872 | C9: 2007-09-11 | D9: 1300 | E9: 13000 | F9: <5 | G9: 0.84 | H9: 0.12 | I9: 0.12 | J9: 0.006 | K9: 0.0051 | L9: <0,1 | M9: <0,1 | N9: <0,003 | O9: <0,003 | P9: <0,01 | Q9: 31.53 | R9: 0.03 | S9: <0,03 | T9: 543 | U9: <0,002 | V9: <0,002 | W9: <2 | X9: <0,05 | Y9: <0,1 | Z9: <0,1 | AA9: 0.1 | AB9: <5 | AC9: ND | AD9: 1.29 | AE9: <0,05 | AF9: 0.04 | AG9: <0,02 | AH9: <0,001 | AI9: <0,001 | AJ9: <0,003 | AK9: <0,003 | AL9: <0,02 | AM9: <0,02 | AN9: <0,01 | AO9: 9.8 | AP9: * | AQ9: 0.0133 | AR9: 0.0128 | AS9: 337 | AT9: 35.5 | AU9: <0,003 | AV9: <0,003 | AW9: 98 | AX9: <0,15 | AY9: 0.02 | AZ9: <0,02 | BA9: 7.4 | BB9: 3 | BC9: * | BD9: * | BE9: * | BF9: * | BG9: * | BH9: *
A10: 8 | B10: 36048 | C10: 2007-12-04 | D10: 8000 | E10: 30000 | F10: <5 | G10: 2.12 | H10: 1.03 | I10: 0.11 | J10: 0.0118 | K10: 0.0094 | L10: <0,1 | M10: <0,1 | N10: <0,003 | O10: <0,003 | P10: <0,01 | Q10: 32.13 | R10: 0.12 | S10: <0,03 | T10: 442 | U10: <0,002 | V10: <0,002 | W10: <2 | X10: <0,05 | Y10: <0,1 | Z10: <0,1 | AA10: 0.1 | AB10: <5 | AC10: 0.03 | AD10: 4.37 | AE10: <0,05 | AF10: 0.11 | AG10: <0,02 | AH10: <0,001 | AI10: <0,001 | AJ10: <0,003 | AK10: <0,003 | AL10: <0,02 | AM10: <0,02 | AN10: 0.55 | AO10: 8.4 | AP10: * | AQ10: 0.0195 | AR10: 0.0147 | AS10: 297 | AT10: 60 | AU10: <0,003 | AV10: <0,003 | AW10: 80.3 | AX10: <0,15 | AY10: 0.02 | AZ10: <0,02 | BA10: 7.8 | BB10: 11 | BC10: * | BD10: * | BE10: * | BF10: * | BG10: * | BH10: *
A11: 9 | B11: 6829 | C11: 2008-03-11 | D11: 24000 | E11: 90000 | F11: 5.7 | G11: 2.68 | H11: <0,5 | I11: 0.1 | J11: 0.0093 | K11: 0.0076 | L11: ND | M11: ND | N11: <0,003 | O11: <0,003 | P11: <0,01 | Q11: 41.29 | R11: <0,03 | S11: <0,03 | T11: 546 | U11: <0,002 | V11: <0,002 | W11: <2 | X11: <0,05 | Y11: <0,1 | Z11: <0,1 | AA11: 0.1 | AB11: <5 | AC11: ND | AD11: 1.76 | AE11: <0,05 | AF11: 0.07 | AG11: <0,02 | AH11: <0,001 | AI11: <0,001 | AJ11: 0.00671 | AK11: 0.0063 | AL11: <0,03 | AM11: <0,03 | AN11: 0.02 | AO11: 9 | AP11: * | AQ11: 0.0171 | AR11: <0,0100 | AS11: 346 | AT11: 32.2 | AU11: <0,003 | AV11: <0,003 | AW11: 102 | AX11: <0,15 | AY11: <0,02 | AZ11: <0,02 | BA11: 7.5 | BB11: 18.7 | BC11: * | BD11: * | BE11: * | BF11: * | BG11: * | BH11: *
A12: 10 | B12: 15575 | C12: 2008-06-10 | D12: 2800 | E12: 17000 | F12: <5 | G12: 2.42 | H12: <0,5 | I12: 0.21 | J12: 0.0055 | K12: 0.003 | L12: ND | M12: ND | N12: <0,003 | O12: <0,003 | P12: <0,01 | Q12: 29.63 | R12: <0,03 | S12: <0,03 | T12: 525 | U12: <0,002 | V12: <0,002 | W12: <2 | X12: <0,05 | Y12: <0,1 | Z12: <0,1 | AA12: 0.1 | AB12: <5 | AC12: ND | AD12: 3.72 | AE12: <0,05 | AF12: 0.14 | AG12: 0.06 | AH12: <0,001 | AI12: <0,001 | AJ12: * | AK12: * | AL12: <0,03 | AM12: <0,03 | AN12: 0.02 | AO12: 10.4 | AP12: * | AQ12: <0,0100 | AR12: 0.0101 | AS12: 314 | AT12: 80 | AU12: <0,003 | AV12: <0,003 | AW12: 87 | AX12: <0,15 | AY12: 0.03 | AZ12: <0,02 | BA12: 7.4 | BB12: 10.3 | BC12: * | BD12: * | BE12: * | BF12: * | BG12: * | BH12: *
A13: 11 | B13: 24101 | C13: 2008-09-02 | D13: 3000 | E13: 30000 | F13: <5 | G13: 0.43 | H13: <0,5 | I13: 0.15 | J13: 0.0098 | K13: <0,003 | L13: <0,1 | M13: <0,1 | N13: <0,003 | O13: <0,003 | P13: <0,01 | Q13: 24.29 | R13: <0,03 | S13: <0,03 | T13: 502 | U13: <0,002 | V13: <0,002 | W13: <2 | X13: <0,05 | Y13: <0,1 | Z13: <0,1 | AA13: 0.1 | AB13: <5 | AC13: ND | AD13: 0.93 | AE13: <0,05 | AF13: 0.04 | AG13: 0.02 | AH13: <0,001 | AI13: <0,001 | AJ13: <0,003 | AK13: <0,003 | AL13: <0,03 | AM13: <0,03 | AN13: 0.02 | AO13: 9.2 | AP13: * | AQ13: 0.0133 | AR13: <0,0100 | AS13: 316 | AT13: 30.2 | AU13: <0,003 | AV13: <0,003 | AW13: 56 | AX13: <0,15 | AY13: <0,02 | AZ13: <0,02 | BA13: 8 | BB13: 12.5 | BC13: * | BD13: * | BE13: * | BF13: * | BG13: * | BH13: *
A14: 12 | B14: 32996 | C14: 2008-12-02 | D14: 8000 | E14: 30000 | F14: <5 | G14: 16.7 | H14: <0,5 | I14: 0.06 | J14: 0.0163 | K14: 0.0072 | L14: 0.2 | M14: <0,1 | N14: <0,003 | O14: <0,003 | P14: <0,01 | Q14: 22.83 | R14: 0.15 | S14: <0,03 | T14: 370 | U14: <0,002 | V14: <0,002 | W14: <2 | X14: <0,05 | Y14: <0,1 | Z14: <0,1 | AA14: 0.1 | AB14: <5 | AC14: ND | AD14: 2.97 | AE14: 0.08 | AF14: 0.19 | AG14: <0,02 | AH14: <0,001 | AI14: <0,001 | AJ14: 0.00699 | AK14: <0,003 | AL14: <0,03 | AM14: <0,03 | AN14: <0,015 | AO14: 9.2 | AP14: * | AQ14: 0.021 | AR14: <0,0100 | AS14: 263 | AT14: 374 | AU14: <0,003 | AV14: <0,003 | AW14: 17 | AX14: <0,15 | AY14: <0,02 | AZ14: <0,02 | BA14: 8 | BB14: 16 | BC14: * | BD14: * | BE14: * | BF14: * | BG14: * | BH14: *
A15: 13 | B15: 7419 | C15: 2009-03-17 | D15: 11000 | E15: 30000 | F15: <5 | G15: 1.78 | H15: <0,5 | I15: 0.1 | J15: 0.008 | K15: 0.0059 | L15: <0,1 | M15: <0,1 | N15: <0,003 | O15: <0,003 | P15: <0,01 | Q15: 34.17 | R15: <0,03 | S15: <0,03 | T15: 504 | U15: <0,002 | V15: <0,002 | W15: <2 | X15: <0,05 | Y15: <0,1 | Z15: <0,1 | AA15: 0.1 | AB15: <5 | AC15: ND | AD15: 1.54 | AE15: <0,05 | AF15: 0.05 | AG15: <0,02 | AH15: <0,001 | AI15: <0,001 | AJ15: 0.00444 | AK15: <0,003 | AL15: <0,03 | AM15: <0,03 | AN15: <0,015 | AO15: 9.2 | AP15: * | AQ15: 0.013 | AR15: <0,0100 | AS15: 321 | AT15: 40.3 | AU15: <0,003 | AV15: <0,003 | AW15: 68 | AX15: <0,15 | AY15: <0,02 | AZ15: <0,02 | BA15: 6.3 | BB15: 9 | BC15: * | BD15: * | BE15: * | BF15: * | BG15: * | BH15: *
A16: 14 | B16: 14911 | C16: 2009-06-01 | D16: 1300 | E16: 7000 | F16: <5 | G16: 0.52 | H16: <0,5 | I16: 0.05 | J16: 0.0058 | K16: 0.0045 | L16: 0.23 | M16: <0,1 | N16: <0,003 | O16: <0,003 | P16: <0,01 | Q16: 37.02 | R16: <0,03 | S16: <0,03 | T16: 608 | U16: <0,002 | V16: <0,002 | W16: <2 | X16: <0,05 | Y16: <0,1 | Z16: <0,1 | AA16: 0.1 | AB16: <5 | AC16: ND | AD16: 0.68 | AE16: <0,05 | AF16: 0.03 | AG16: <0,02 | AH16: <0,001 | AI16: <0,001 | AJ16: <0,003 | AK16: <0,003 | AL16: <0,03 | AM16: <0,03 | AN16: 0.029 | AO16: 9.9 | AP16: * | AQ16: 0.0133 | AR16: <0,0100 | AS16: 391 | AT16: 18.1 | AU16: <0,003 | AV16: <0,003 | AW16: 97 | AX16: <0,15 | AY16: <0,02 | AZ16: <0,02 | BA16: 7.8 | BB16: 12.2 | BC16: * | BD16: * | BE16: * | BF16: * | BG16: * | BH16: *
A17: 15 | B17: 23320 | C17: 2009-09-01 | D17: 900 | E17: 8000 | F17: 9.7 | G17: 0.96 | H17: <0,5 | I17: 0.34 | J17: 0.0069 | K17: 0.0055 | L17: <0,1 | M17: <0,1 | N17: <0,003 | O17: <0,003 | P17: <0,01 | Q17: 26.81 | R17: <0,03 | S17: <0,03 | T17: 515 | U17: <0,002 | V17: <0,002 | W17: <2 | X17: <0,05 | Y17: <0,1 | Z17: <0,1 | AA17: 0.1 | AB17: <5 | AC17: <0,005 | AD17: 0.95 | AE17: <0,05 | AF17: 0.03 | AG17: <0,02 | AH17: <0,001 | AI17: <0,001 | AJ17: <0,003 | AK17: <0,003 | AL17: <0,03 | AM17: <0,03 | AN17: 0.036 | AO17: 9.4 | AP17: 1 | AQ17: 0.012 | AR17: <0,0100 | AS17: 351 | AT17: 16.6 | AU17: <0,003 | AV17: <0,003 | AW17: 73 | AX17: <0,15 | AY17: <0,02 | AZ17: <0,02 | BA17: 8 | BB17: 12.3 | BC17: * | BD17: * | BE17: * | BF17: * | BG17: * | BH17: *
A18: 16 | B18: 32442 | C18: 2009-12-02 | D18: 3000 | E18: 8000 | F18: 9.8 | G18: 2.79 | H18: <0,5 | I18: 0.07 | J18: 0.0064 | K18: 0.0044 | L18: <0,1 | M18: <0,1 | N18: <0,003 | O18: <0,003 | P18: <0,01 | Q18: 33.52 | R18: 0.04 | S18: <0,03 | T18: 593 | U18: <0,002 | V18: <0,002 | W18: <2 | X18: <0,05 | Y18: <0,1 | Z18: <0,1 | AA18: 0.1 | AB18: <5 | AC18: 0.011 | AD18: 3.13 | AE18: <0,05 | AF18: 0.09 | AG18: <0,02 | AH18: <0,001 | AI18: <0,001 | AJ18: <0,003 | AK18: <0,003 | AL18: <0,03 | AM18: <0,03 | AN18: 0.083 | AO18: 9.1 | AP18: * | AQ18: 0.0158 | AR18: 0.0104 | AS18: 381 | AT18: 76 | AU18: <0,003 | AV18: <0,003 | AW18: 11 | AX18: <0,15 | AY18: <0,02 | AZ18: <0,02 | BA18: 8.1 | BB18: 9.1 | BC18: * | BD18: * | BE18: * | BF18: * | BG18: * | BH18: *
